Workbook

Sheet REMISE % (hidden)
B4: REMISE IA | C4: 0

Sheet Dimensionnement par chaudière
J2: Détermination et chiffrage des systèmes cascade
J4: Pour GMR 6160
N5: Version 04/2020
N6: Prix net 2020
C8: =texte!B7 -> Identification de l'étude | N8: =TODAY() -> 2020-04-06
D11: =CONCATENATE(texte!B8," ") -> Référence
C14: =texte!B9 -> Données
H17: GMR 6160
D18: =texte!B21 -> Nombre de chaudières | E18: 3 | H18: =E18 -> 3
D20: =texte!B13 -> Alignement de la cascade | E20: mural "LW"
D23: =texte!B14 -> Système cascade | E23: =IF(H18<0,texte!B16,'Calcul dim par chaudière'!M37) -> LW.0456kW.00003
E25: =texte!B44 -> Code à rappeler lors de la commande.
D26: Nombre de chaudière(s)
D27: Oetro-Com-2 : | E27: 0
D29: =texte!B15 -> Attention ! Lorsque vous modifiez une des sélections, il faut toujours revalider les suivantes !
C31: Solution Oertli
D34: =texte!B36 -> Système | E34: =texte!B34 -> Référence | G34: =texte!B35 -> Désignation | K34: Colis | L34: =texte!B32 -> Prix unitaire | M34: =texte!B31 -> Qtté | N34: Prix net
L35: =texte!B29 -> en € | N35: =texte!B29 -> en €
D36: ='Calcul dim par chaudière'!C142 -> LW.0456kW.00003 | E36: Chaudières
E38: =IF('Calcul dim par chaudière'!$G$44<>0,'Calcul dim par chaudière'!$I$45,"") -> 7677083 | G38: =IF($E38="","",'Calcul dim par chaudière'!$J45) -> GMR 6160 Condens COM-3 | K38: =IF($E38="","","-") -> - | L38: =IF($E38="","",'Calcul dim par chaudière'!$K45) -> 10557 | M38: =IF($E38="","",'Calcul dim par chaudière'!$G$44) -> 3 | N38: =IF($E38="","",$M$38*$L$38) -> 31671
E39: =IF('Calcul dim par chaudière'!$C$48-'Calcul dim par chaudière'!$G$44<>0,'Calcul dim par chaudière'!$I$44,"") ->  | G39: =IF($E39="","",'Calcul dim par chaudière'!$J44) ->  | K39: =IF($E39="","","-") ->  | L39: =IF($E39="","",'Calcul dim par chaudière'!$K44) ->  | M39: =IF($E39="","",'Calcul dim par chaudière'!$C$48-'Calcul dim par chaudière'!$G$44) ->  | N39: =IF($E39="","",$M$39*$L$39) -> 
E42: ='Calcul dim par chaudière'!$D$143 -> Support
E44: ='Calcul dim par chaudière'!D145 ->  | G44: ='Calcul dim par chaudière'!E145 ->  | K44: ='Calcul dim par chaudière'!J145 ->  | L44: ='Calcul dim par chaudière'!K145 ->  | M44: ='Calcul dim par chaudière'!L145 ->  | N44: ='Calcul dim par chaudière'!M145 -> 
E45: ='Calcul dim par chaudière'!D146 ->  | G45: ='Calcul dim par chaudière'!E146 ->  | K45: ='Calcul dim par chaudière'!J146 ->  | L45: ='Calcul dim par chaudière'!K146 ->  | M45: ='Calcul dim par chaudière'!L146 ->  | N45: ='Calcul dim par chaudière'!M146 -> 
E46: ='Calcul dim par chaudière'!D147 ->  | G46: ='Calcul dim par chaudière'!E147 ->  | K46: ='Calcul dim par chaudière'!J147 ->  | L46: ='Calcul dim par chaudière'!K147 ->  | M46: ='Calcul dim par chaudière'!L147 ->  | N46: ='Calcul dim par chaudière'!M147 -> 
E47: ='Calcul dim par chaudière'!D148 -> 7637088 | G47: ='Calcul dim par chaudière'!E148 -> RAIL DE MONTAGE MURAL 3 CHAUDIÈRES MCA 160 | K47: ='Calcul dim par chaudière'!J148 -> EH671 | L47: ='Calcul dim par chaudière'!K148 -> 70 | M47: ='Calcul dim par chaudière'!L148 -> 1 | N47: ='Calcul dim par chaudière'!M148 -> 70
E48: ='Calcul dim par chaudière'!D149 ->  | G48: ='Calcul dim par chaudière'!E149 ->  | K48: ='Calcul dim par chaudière'!J149 ->  | L48: ='Calcul dim par chaudière'!K149 ->  | M48: ='Calcul dim par chaudière'!L149 ->  | N48: ='Calcul dim par chaudière'!M149 -> 
E49: ='Calcul dim par chaudière'!D150 ->  | G49: ='Calcul dim par chaudière'!E150 ->  | K49: ='Calcul dim par chaudière'!J150 ->  | L49: ='Calcul dim par chaudière'!K150 ->  | M49: ='Calcul dim par chaudière'!L150 ->  | N49: ='Calcul dim par chaudière'!M150 -> 
E51: ='Calcul dim par chaudière'!D152 -> Hydraulique
E53: ='Calcul dim par chaudière'!D154 ->  | G53: ='Calcul dim par chaudière'!E154 ->  | K53: ='Calcul dim par chaudière'!J154 ->  | L53: ='Calcul dim par chaudière'!K154 ->  | M53: ='Calcul dim par chaudière'!L154 ->  | N53: ='Calcul dim par chaudière'!M154 -> 
E54: ='Calcul dim par chaudière'!D155 -> 7665728 | G54: ='Calcul dim par chaudière'!E155 -> COLLECTEUR DN100-3 CHAUDIERES MCA 160 FR | K54: ='Calcul dim par chaudière'!J155 -> EH653 | L54: ='Calcul dim par chaudière'!K155 -> 1551 | M54: ='Calcul dim par chaudière'!L155 -> 1 | N54: ='Calcul dim par chaudière'!M155 -> 1551
E55: ='Calcul dim par chaudière'!D156 -> 111712 | G55: ='Calcul dim par chaudière'!E156 -> BOUTEILLE DE DÉCOUPLAGE DN65 > 350 et < 460 kW | K55: ='Calcul dim par chaudière'!J156 -> HC200 | L55: ='Calcul dim par chaudière'!K156 -> 1101 | M55: ='Calcul dim par chaudière'!L156 -> 1 | N55: ='Calcul dim par chaudière'!M156 -> 1101
E56: ='Calcul dim par chaudière'!D157 ->  | G56: ='Calcul dim par chaudière'!E157 ->  | K56: ='Calcul dim par chaudière'!J157 ->  | L56: ='Calcul dim par chaudière'!K157 ->  | M56: ='Calcul dim par chaudière'!L157 ->  | N56: ='Calcul dim par chaudière'!M157 -> 
E57: ='Calcul dim par chaudière'!D158 ->  | G57: ='Calcul dim par chaudière'!E158 ->  | K57: ='Calcul dim par chaudière'!J158 ->  | L57: ='Calcul dim par chaudière'!K158 ->  | M57: ='Calcul dim par chaudière'!L158 ->  | N57: ='Calcul dim par chaudière'!M158 -> 
E58: ='Calcul dim par chaudière'!D159 -> 7633244 | G58: ='Calcul dim par chaudière'!E159 -> ADAPTATEUR DN100/DN65 | K58: ='Calcul dim par chaudière'!J159 -> EH654 | L58: ='Calcul dim par chaudière'!K159 -> 328 | M58: ='Calcul dim par chaudière'!L159 -> 1 | N58: ='Calcul dim par chaudière'!M159 -> 328
E59: ='Calcul dim par chaudière'!D160 ->  | G59: ='Calcul dim par chaudière'!E160 ->  | K59: ='Calcul dim par chaudière'!J160 ->  | L59: ='Calcul dim par chaudière'!K160 ->  | M59: ='Calcul dim par chaudière'!L160 ->  | N59: ='Calcul dim par chaudière'!M160 -> 
E60: ='Calcul dim par chaudière'!D161 -> 7622701 | G60: ='Calcul dim par chaudière'!E161 -> RAC COLLEC L MCA 160 EH656 | K60: ='Calcul dim par chaudière'!J161 -> EH656 | L60: ='Calcul dim par chaudière'!K161 -> 767 | M60: ='Calcul dim par chaudière'!L161 -> 3 | N60: ='Calcul dim par chaudière'!M161 -> 2301
E61: ='Calcul dim par chaudière'!D162 -> 111708 | G61: ='Calcul dim par chaudière'!E162 -> JEU DE BOUCHONS | K61: ='Calcul dim par chaudière'!J162 -> HC195 | L61: ='Calcul dim par chaudière'!K162 -> 43 | M61: ='Calcul dim par chaudière'!L162 -> 3 | N61: ='Calcul dim par chaudière'!M162 -> 129
E62: ='Calcul dim par chaudière'!D163 ->  | G62: ='Calcul dim par chaudière'!E163 ->  | K62: ='Calcul dim par chaudière'!J163 ->  | L62: ='Calcul dim par chaudière'!K163 ->  | M62: ='Calcul dim par chaudière'!L163 ->  | N62: ='Calcul dim par chaudière'!M163 -> 
E63: ='Calcul dim par chaudière'!D164 -> 111703 | G63: ='Calcul dim par chaudière'!E164 -> BRIDES PLEINES EAU DN100 | K63: ='Calcul dim par chaudière'!J164 -> HC199 | L63: ='Calcul dim par chaudière'!K164 -> 203 | M63: ='Calcul dim par chaudière'!L164 -> 1 | N63: ='Calcul dim par chaudière'!M164 -> 203
E64: ='Calcul dim par chaudière'!D165 ->  | G64: ='Calcul dim par chaudière'!E165 ->  | K64: ='Calcul dim par chaudière'!J165 ->  | L64: ='Calcul dim par chaudière'!K165 ->  | M64: ='Calcul dim par chaudière'!L165 ->  | N64: ='Calcul dim par chaudière'!M165 -> 
E65: ='Calcul dim par chaudière'!D166 -> 7637223 | G65: ='Calcul dim par chaudière'!E166 -> POMPE UPM XL GRUNDFOS 25-105 H180 | K65: ='Calcul dim par chaudière'!J166 -> EH651 | L65: ='Calcul dim par chaudière'!K166 -> 652 | M65: ='Calcul dim par chaudière'!L166 -> 3 | N65: ='Calcul dim par chaudière'!M166 -> 1956
E66: ='Calcul dim par chaudière'!D167 -> 7638518 | G66: ='Calcul dim par chaudière'!E167 -> JEU DE CONTRE BRIDE A SOUDER DN65 | K66: ='Calcul dim par chaudière'!J167 -> EH669 | L66: ='Calcul dim par chaudière'!K167 -> 150 | M66: ='Calcul dim par chaudière'!L167 -> 1 | N66: ='Calcul dim par chaudière'!M167 -> 150
E67: ='Calcul dim par chaudière'!D168 ->  | G67: ='Calcul dim par chaudière'!E168 ->  | K67: ='Calcul dim par chaudière'!J168 ->  | L67: ='Calcul dim par chaudière'!K168 ->  | M67: ='Calcul dim par chaudière'!L168 ->  | N67: ='Calcul dim par chaudière'!M168 -> 
E68: ='Calcul dim par chaudière'!D169 ->  | G68: ='Calcul dim par chaudière'!E169 ->  | K68: ='Calcul dim par chaudière'!J169 ->  | L68: ='Calcul dim par chaudière'!K169 ->  | M68: ='Calcul dim par chaudière'!L169 ->  | N68: ='Calcul dim par chaudière'!M169 -> 
E69: ='Calcul dim par chaudière'!D170 ->  | G69: ='Calcul dim par chaudière'!E170 ->  | K69: ='Calcul dim par chaudière'!J170 ->  | L69: ='Calcul dim par chaudière'!K170 ->  | M69: ='Calcul dim par chaudière'!L170 ->  | N69: ='Calcul dim par chaudière'!M170 -> 
E70: ='Calcul dim par chaudière'!D171 ->  | G70: ='Calcul dim par chaudière'!E171 ->  | K70: ='Calcul dim par chaudière'!J171 ->  | L70: ='Calcul dim par chaudière'!K171 ->  | M70: ='Calcul dim par chaudière'!L171 ->  | N70: ='Calcul dim par chaudière'!M171 -> 
E71: ='Calcul dim par chaudière'!D172 ->  | G71: ='Calcul dim par chaudière'!E172 ->  | K71: ='Calcul dim par chaudière'!J172 ->  | L71: ='Calcul dim par chaudière'!K172 ->  | M71: ='Calcul dim par chaudière'!L172 ->  | N71: ='Calcul dim par chaudière'!M172 -> 
E73: ='Calcul dim par chaudière'!D174 ->  | G73: ='Calcul dim par chaudière'!E174 ->  | K73: ='Calcul dim par chaudière'!J174 ->  | L73: ='Calcul dim par chaudière'!K174 ->  | M73: ='Calcul dim par chaudière'!L174 ->  | N73: ='Calcul dim par chaudière'!M174 -> 
E74: ='Calcul dim par chaudière'!D175 ->  | G74: ='Calcul dim par chaudière'!E175 ->  | K74: ='Calcul dim par chaudière'!J175 ->  | L74: ='Calcul dim par chaudière'!K175 ->  | M74: ='Calcul dim par chaudière'!L175 ->  | N74: ='Calcul dim par chaudière'!M175 -> 
E75: ='Calcul dim par chaudière'!D176 ->  | G75: ='Calcul dim par chaudière'!E176 ->  | K75: ='Calcul dim par chaudière'!J176 ->  | L75: ='Calcul dim par chaudière'!K176 ->  | M75: ='Calcul dim par chaudière'!L176 ->  | N75: ='Calcul dim par chaudière'!M176 -> 
E77: ='Calcul dim par chaudière'!D178 -> Régulation
E79: ='Calcul dim par chaudière'!D180 ->  | G79: ='Calcul dim par chaudière'!E180 ->  | K79: ='Calcul dim par chaudière'!J180 ->  | L79: ='Calcul dim par chaudière'!K180 ->  | M79: ='Calcul dim par chaudière'!L180 ->  | N79: ='Calcul dim par chaudière'!M180 -> 
E80: ='Calcul dim par chaudière'!D181 -> 100008701 | G80: ='Calcul dim par chaudière'!E181 -> SONDE DE DÉPART + DOIGT DE GANT | K80: ='Calcul dim par chaudière'!J181 -> HC206 | L80: ='Calcul dim par chaudière'!K181 -> 167 | M80: ='Calcul dim par chaudière'!L181 -> 1 | N80: ='Calcul dim par chaudière'!M181 -> 167
E81: ='Calcul dim par chaudière'!D182 -> 7663561 | G81: ='Calcul dim par chaudière'!E182 -> CABLE S-BUS 12M AVEC BOUCHONS | K81: ='Calcul dim par chaudière'!J182 -> AD309 | L81: ='Calcul dim par chaudière'!K182 -> 106 | M81: ='Calcul dim par chaudière'!L182 -> 2 | N81: ='Calcul dim par chaudière'!M182 -> 212
E82: ='Calcul dim par chaudière'!D183 -> 85757741 | G82: ='Calcul dim par chaudière'!E183 -> SONDE EXTERIEURE | K82: ='Calcul dim par chaudière'!J183 -> FM46 | L82: ='Calcul dim par chaudière'!K183 -> 43 | M82: ='Calcul dim par chaudière'!L183 -> 1 | N82: ='Calcul dim par chaudière'!M183 -> 43
E85: ='Calcul dim par chaudière'!D185 -> Mise en service | N85: ='Calcul dim par chaudière'!M186 -> 504
E90: ='Calcul dim par chaudière'!D190 -> Prix du système cascade (Prix net 2020) | N90: ='Calcul dim par chaudière'!$M$190 -> 8211
E91: ='Calcul dim par chaudière'!D191 -> Prix des chaudières (Prix net 2020) | N91: ='Calcul dim par chaudière'!$M$191 -> 31671
E92: ='Calcul dim par chaudière'!D192 -> Prix total du système cascade + chaudières + Mise en service (Prix net 2020) | N92: ='Calcul dim par chaudière'!$M$192 -> 40386
D96: =texte!B37 -> Accessoires | E96: =E34 -> Référence | G96: =G34 -> Désignation | K96: Colis | L96: =L34 -> Prix unitaire | M96: =M34 -> Qtté | N96: =N34 -> Prix net
L97: =L35 -> en € | N97: =N35 -> en €
E99: ='Calcul dim par chaudière'!D197 -> 7622201 | F99: ='Calcul dim par chaudière'!E197 -> ISOLATION ADAPTATEUR 100/65 | K99: ='Calcul dim par chaudière'!J197 ->  | L99: ='Calcul dim par chaudière'!K197 ->  | M99: ='Calcul dim par chaudière'!L197 ->  | N99: ='Calcul dim par chaudière'!$M197 -> 
E100: ='Calcul dim par chaudière'!D198 -> S101656 | F100: ='Calcul dim par chaudière'!E198 -> FILTRE GAZ DN65 | K100: ='Calcul dim par chaudière'!J198 ->  | L100: ='Calcul dim par chaudière'!K198 ->  | M100: ='Calcul dim par chaudière'!L198 ->  | N100: ='Calcul dim par chaudière'!$M198 -> 
E101: ='Calcul dim par chaudière'!D199 -> 111788 | F101: ='Calcul dim par chaudière'!E199 -> COUDES DN65 | K101: ='Calcul dim par chaudière'!J199 ->  | L101: ='Calcul dim par chaudière'!K199 ->  | M101: ='Calcul dim par chaudière'!L199 ->  | N101: ='Calcul dim par chaudière'!$M199 -> 
E102: ='Calcul dim par chaudière'!D200 ->  | F102: ='Calcul dim par chaudière'!E200 ->  | K102: ='Calcul dim par chaudière'!J200 ->  | L102: ='Calcul dim par chaudière'!K200 ->  | M102: ='Calcul dim par chaudière'!L200 ->  | N102: ='Calcul dim par chaudière'!$M200 -> 
E103: ='Calcul dim par chaudière'!D201 ->  | F103: ='Calcul dim par chaudière'!E201 ->  | K103: ='Calcul dim par chaudière'!J201 ->  | L103: ='Calcul dim par chaudière'!K201 ->  | M103: ='Calcul dim par chaudière'!L201 ->  | N103: ='Calcul dim par chaudière'!M201 -> 
E104: ='Calcul dim par chaudière'!D202 -> 7613401 | F104: ='Calcul dim par chaudière'!E202 -> ISOLATION COLLECTEUR MCA 160 | K104: ='Calcul dim par chaudière'!J202 ->  | L104: ='Calcul dim par chaudière'!K202 ->  | M104: ='Calcul dim par chaudière'!L202 ->  | N104: ='Calcul dim par chaudière'!M202 -> 
E105: ='Calcul dim par chaudière'!D203 -> 7611804 | F105: ='Calcul dim par chaudière'!E203 -> ISOLATION RACCORD MCA 160 | K105: ='Calcul dim par chaudière'!J203 ->  | L105: ='Calcul dim par chaudière'!K203 ->  | M105: ='Calcul dim par chaudière'!L203 ->  | N105: ='Calcul dim par chaudière'!M203 -> 
E106: ='Calcul dim par chaudière'!D204 ->  | F106: ='Calcul dim par chaudière'!E204 ->  | K106: ='Calcul dim par chaudière'!J204 ->  | L106: ='Calcul dim par chaudière'!K204 ->  | M106: ='Calcul dim par chaudière'!L204 ->  | N106: ='Calcul dim par chaudière'!M204 -> 
E107: ='Calcul dim par chaudière'!D205 ->  | F107: ='Calcul dim par chaudière'!E205 ->  | K107: ='Calcul dim par chaudière'!J205 ->  | L107: ='Calcul dim par chaudière'!K205 ->  | M107: ='Calcul dim par chaudière'!L205 ->  | N107: ='Calcul dim par chaudière'!M205 -> 
E108: ='Calcul dim par chaudière'!D206 -> 111067 | F108: ='Calcul dim par chaudière'!E206 -> ISOLATION BOUTEILLE DE DÉCOUPLAGE | K108: ='Calcul dim par chaudière'!J206 ->  | L108: ='Calcul dim par chaudière'!K206 ->  | M108: ='Calcul dim par chaudière'!L206 ->  | N108: ='Calcul dim par chaudière'!M206 -> 
N109: =IF(M109="","",(1-remise)*L109*M109) -> 
D119: =CONCATENATE("PRIX TOTAL DES ACCESSOIRES"," ","(",N6," "," ",")") -> PRIX TOTAL DES ACCESSOIRES ( Prix net 2020 ) | N119: ='Calcul dim par chaudière'!$M$225 -> 0
D120: =CONCATENATE("PRIX TOTAL DU SYSTÈME CASCADE AVEC CHAUDIERES + ACCESSOIRES (",N6,")") -> PRIX TOTAL DU SYSTÈME CASCADE AVEC CHAUDIERES + ACCESSOIRES ( Prix net 2020) | N120: ='Calcul dim par chaudière'!$M$226 -> 40386

Sheet Calcul dim par chaudière (hidden)
B2: Dimensionnement par chaudière
B4: Composition de la cascade
C6: nbchaud | D6: ='Dimensionnement par chaudière'!E18 -> 3
C7: 2 | I7: Indications régulation | N7: Indications Montage
C8: 3
C9: 4 | F9: nb iniControl2 | K9: iniControl2 | L9: Diematic | N9: mural "LW"
C10: 5 | F10: 0 | G10: =IF(F10>=$D$6,"",F10) -> 0 | I10: GMR 5045 | N10: sol "LV"
C11: 6 | F11: 1 | G11: =IF(F11>=$D$6,"",F11) -> 1 | I11: GMR 5065
C12: 7 | F12: 2 | G12: =IF(F12>=$D$6,"",F12) -> 2 | I12: GMR 5090
C13: 8 | F13: 3 | I13: GMR 5115
C14: 9 | F14: 4 | I14: GMR 6160 | J14: =D6 -> 3 | K14: ='Dimensionnement par chaudière'!$E$27 -> 0 | L14: =J14-K14 -> 3
C15: 10
C16: nb IniControl | D16: ='Dimensionnement par chaudière'!E27 -> 0
D19: mc45 | E19: 0 | H19: mc65 | I19: 0 | L19: mc90 | M19: 0 | P19: mc115 | Q19: 0 | S19: mca 160 | T19: =D6-E19-I19-M19-Q19 -> 3
D20: =D6 -> 3 | E20: =IF(D20>=0,D20,"") -> 3 | H20: =D6-E19 -> 3 | I20: =IF(H20>=0,H20,"") -> 3 | L20: =D6-E19-I19 -> 3 | M20: =IF(L20>=0,L20,"") -> 3 | P20: =D6-I19-M19 -> 3 | Q20: =IF(P20<0,"",P20) -> 3
D21: =D20-1 -> 2 | E21: =IF(D21>=0,D21,"") -> 2 | H21: =H20-1 -> 2 | I21: =IF(H21>=0,H21,"") -> 2 | L21: =L20-1 -> 2 | M21: =IF(L21>=0,L21,"") -> 2 | P21: =P20-1 -> 2 | Q21: =IF(P21<0,"",P21) -> 2
D22: =D21-1 -> 1 | E22: 1 | H22: =H21-1 -> 1 | I22: 1 | L22: =L21-1 -> 1 | M22: 1 | P22: =P21-1 -> 1 | Q22: 1
D23: 0 | E23: 0 | H23: 0 | I23: 0 | L23: 0 | M23: 0 | P23: 0 | Q23: 0
D24: -1 | H24: -1 | L24: -1 | P24: -1
D25: -2 | H25: -2 | L25: -2 | P25: -2
D26: -3 | H26: -3 | L26: -3 | P26: -3
D27: -4 | H27: -4 | L27: -4 | P27: -4
D28: -5 | H28: -5 | L28: -5 | P28: -5
D29: -6 | H29: -6 | L29: -6 | P29: -6
D30: -7 | H30: -7 | L30: -7 | P30: -7
B32: Nom de la cascade
D33: Nom | E33: Nb | F33: Puissance (kW)
D34: MCA 45 | E34: =J10 -> 0 | F34: 40
D35: MCA 65 | E35: =J11 -> 0 | F35: 61 | H35: Puissance totale (kW)
D36: MCA 90 | E36: =J12 -> 0 | F36: 84.2 | H36: =$E$34*$F$34+$E$35*$F$35+$E$36*$F$36+$E$37*$F$37+$E$38*$F$38 -> 456 | I36: =TEXT(TRUNC(H36,0),"0000") -> 0456
D37: MCA 115 | E37: =J13 -> 0 | F37: 107 | K37: Nom de la cascade | M37: =CONCATENATE(I39,".",I36,"kW.",E34,E35,E36,E37,E38) -> LW.0456kW.00003
D38: MCA 160 | E38: =J14 -> 3 | F38: 152 | H38: Montage
H39: ='Dimensionnement par chaudière'!E20 -> mural "LW" | I39: =IF(H39=N9,"LW",IF(H39=N10,"LV","")) -> LW
B41: Calcul prix mise en service + Prix des chaudières
B43: Nom | C43: Nb | D43: Prix chaudière | F43: Prix Régulation MCA 160 DIEMATIC | L43: =+C48-G44 -> 0 | N43: Prix Mise en Service | O43: Chaudière 1 | P43: Chaudière 2 | Q43: Chaudière 3 | R43: Chaudière 4
B44: GMR 5045 | C44: =E34 -> 0 | D44: / | F44: nb | G44: =L14 -> 3 | I44: 7677082 | J44: 0 | K44: 0 | M44: MCA 45 | N44: 153 | O44: =IF(E34<>0,1,0) -> 0 | P44: =IF(E34>1,1,0) -> 0 | Q44: =IF(E34>2,1,0) -> 0 | R44: =IF(E34>3,1,0) -> 0
B45: GMR 5065 | C45: =E35 -> 0 | D45: / | F45: prix unitaire | G45: =+VLOOKUP(I45,I44:K45,3) -> 10557 | I45: 7677083 | J45: =VLOOKUP($I45,'Price List'!$A:$D,2,FALSE) -> GMR 6160 Condens COM-3 | K45: =VLOOKUP($I45,'Price List'!$A:$D,4,FALSE) -> 10557 | L45: =+G44 -> 3 | M45: MCA 65 | N45: 153 | O45: =IF(AND(E35<>0,E34=0),1,0) -> 0 | P45: =IF(OR(AND(E34=0,E35>=2),AND(E35>=1,E34=1)),1,0) -> 0 | Q45: =IF(OR(AND(E34=0,E35>=3),AND(E35>=1,E34=2),AND(E35>=2,E34=1)),1,0) -> 0 | R45: =IF(OR(AND(E34=0,E35=4),AND(E35>=1,E34=3),AND(E35>=3,E34=1),AND(E35>=2,E34=2)),1,0) -> 0
B46: GMR 5090 | C46: =E36 -> 0 | D46: / | M46: MCA 90 | N46: 210 | O46: =IF(AND(E34=0,E35=0,E36<>0),1,0) -> 0 | P46: =IF(AND(E36>0,O44+O45+O46+O47+O48+P44+P45<2,O46<>E36),1,0) -> 0 | Q46: =IF(AND(E34-O44-P44=0,E35-O45-P45=0,E36-O46-P47<>0),1,0) -> 0 | R46: =IF(E36>O46+P46+Q46,1,0) -> 0
B47: GMR 5115 | C47: =E37 -> 0 | D47: / | M47: MCA 115 | N47: 210 | O47: =IF(AND(E34=0,E35=0,E36=0,E37<>0),1,0) -> 0 | P47: =IF(AND(E37>0,O44+O45+O46+O47+O48+P44+P45+P46<2),1,0) -> 0 | Q47: =IF(AND(E34-O44-P44=0,E35-O45-P45=0,E36-O46-P46=0,E37>0),1,0) -> 0 | R47: =IF(E37>O47+P47+Q47,1,0) -> 0
B48: GMR 6160 | C48: =E38 -> 3 | D48: =$K$45*$G$44+$K$44*($C$48-$G$44) -> 31671 | E48: Total : | M48: MCA 160 | N48: 210 | O48: =IF(AND(E34=0,E35=0,E36=0,E37=0,E38<>0),1,0) -> 1 | P48: =IF(O45+O44+O46+O47+O48+P47+P46+P45+P44<2,1,0) -> 1 | Q48: =IF(D6<3,0,IF(O44+O45+O47+O46+O48+P48+P47+P46+P45+P44+Q44+Q45+Q46+Q47<3,1,0)) -> 1 | R48: =IF(O44+O45+O46+O47+O48+P48+P47+P46+P45+P44+Q44+Q45+Q46+Q47+Q48+R47+R46+R45+R44<D6,1,0) -> 0 | S48: Total :
E49: =$D$48 -> 31671 | O49: =SUMPRODUCT(O44:O48,$N$44:$N$48)*1 -> 210 | P49: =$O$49*2*0.9 -> 378 | Q49: =$O$49*3*0.8 -> 504 | R49: =$O$49*4*0.7 -> 588 | S49: =IF($D$6=2,$P$49,IF($D$6=3,$Q$49,$R$49)) -> 504
A51: Références et accessoires Cascade Sans MCA 160 (pas utilisé dans cette version) | T51: Références et accessoires cascade avec MCA 160
A54: Référence | B54: Colis | C54: Désignation | H54: Quantité | J54: Référence | K54: Colis | L54: Désignation | Q54: Quantité | U54: Référence | V54: Colis | W54: Désignation | AB54: Quantité
A55: =texte!F7 -> 100008701 | B55: =texte!G7 -> HC206 | C55: =texte!H7 -> SONDE DE DÉPART + DOIGT DE GANT | H55: =VLOOKUP($M$37,'gamme DD chaud'!$E$9:$BM$143,11,FALSE) ->  | J55: =IF($Q55="","",A55) ->  | Q55: =IF(H55=0,"",H55) ->  | AD55: VOIR BdD des Néerlandais pour traduction et quantité de chaque accessoires
A56: =texte!F8 -> 100013027 | B56: =texte!G8 -> HC223 | C56: =texte!H8 -> SONDE DE DÉPART + DOIGT DE GANT-BOUTEILLE < 350 kW | H56: =VLOOKUP($M$37,'gamme DD chaud'!$E$9:$BM$143,12,FALSE) ->  | U56: Pour chaudière autre que MCA 160
A57: =texte!F9 -> 88017836 | B57: =texte!G9 -> AD124 | C57: =texte!H9 -> CABLE BUS RX11 LG 1,5 M | H57: =VLOOKUP($M$37,'gamme DD chaud'!$E$9:$BM$143,13,FALSE) -> 
A58: =texte!F10 -> S101614 | B58: =texte!G10 -> 0 | C58: =texte!H10 -> POMPE CHAUFFAGE EEI UPM2 25-70 130MM | H58: =VLOOKUP($M$37,'gamme DD chaud'!$E$9:$BM$143,14,FALSE) ->  | J58: =IF($Q58="","",A58) ->  | K58: =IF($Q58="","",IF(B58=0,"-",B58)) ->  | L58: =IF($Q58="","",C58) ->  | U58: =A55 -> 100008701 | V58: =B55 -> HC206 | W58: =C55 -> SONDE DE DÉPART + DOIGT DE GANT | AD58: Pas de MCA 45/115 dans cette version
A59: =texte!F11 -> S101614 | B59: =texte!G11 -> 0 | C59: =texte!H11 -> POMPE CHAUFFAGE EEI UPM2 25-70 130MM | H59: =VLOOKUP($M$37,'gamme DD chaud'!$E$9:$BM$143,15,FALSE) ->  | K59: =IF($Q59="","",IF(B59=0,"-",B59)) ->  | U59: 100013027 | V59: HC223 | W59: SONDE DE DÉPART + DOIGT DE GANT-BOUTEILLE < 350 kW
A60: =texte!F12 -> 7608398 | B60: =texte!G12 -> 0 | C60: =texte!H12 -> POMPE CHAUFFAGE UPML 25-115 130 MM | H60: =VLOOKUP($M$37,'gamme DD chaud'!$E$9:$BM$143,16,FALSE) ->  | K60: =IF($Q60="","",IF(B60=0,"-",B60)) ->  | U60: 88017836 | V60: AD124 | W60: CABLE BUS RX11 LG 1,5 M
A61: =texte!F13 -> 90777 | B61: =texte!G13 -> HC259 | C61: =texte!H13 -> COLLECTEUR DN65 - 2 CHAUDIERES | H61: =VLOOKUP($M$37,'gamme DD chaud'!$E$9:$BM$143,17,FALSE) ->  | K61: =IF($Q61="","",B61) ->  | U61: S101614 | V61: 0 | W61: POMPE CHAUFFAGE EEI UPM2 25-70 130MM
A62: =texte!F14 -> 90778 | B62: =texte!G14 -> HC260 | C62: =texte!H14 -> COLLECTEUR DN65 - 3 CHAUDIERES | H62: =VLOOKUP($M$37,'gamme DD chaud'!$E$9:$BM$143,18,FALSE) ->  | U62: S101614 | V62: 0 | W62: POMPE CHAUFFAGE EEI UPM2 25-70 130MM
A63: =texte!F15 ->  | B63: =texte!G15 ->  | C63: =texte!H15 ->  | U63: 7608398 | V63: 0 | W63: POMPE CHAUFFAGE UPML 25-115 130 MM
A64: =texte!F16 -> 111712 | B64: =texte!G16 -> HC200 | C64: =texte!H16 -> BOUTEILLE DE DÉCOUPLAGE DN65 > 350 et < 460 kW | H64: =VLOOKUP($M$37,'gamme DD chaud'!$E$9:$BM$143,20,FALSE) ->  | U64: 90777 | V64: HC259 | W64: COLLECTEUR DN65 - 2 CHAUDIERES
A65: =texte!F17 -> 114311 | B65: =texte!G17 -> HC222 | C65: =texte!H17 -> BOUTEILLE DE DÉCOUPLAGE DN65 < 350 kW | H65: =VLOOKUP($M$37,'gamme DD chaud'!$E$9:$BM$143,21,FALSE) ->  | U65: 90778 | V65: HC260 | W65: COLLECTEUR DN65 - 3 CHAUDIERES
A66: =texte!F18 ->  | B66: =texte!G18 ->  | C66: =texte!H18 -> 
A67: =texte!F19 ->  | B67: =texte!G19 ->  | C67: =texte!H19 ->  | U67: 111712 | V67: HC200 | W67: BOUTEILLE DE DÉCOUPLAGE DN65 > 350 et < 460 kW
A68: =texte!F20 ->  | B68: =texte!G20 ->  | C68: =texte!H20 ->  | U68: 114311 | V68: HC222 | W68: BOUTEILLE DE DÉCOUPLAGE DN65 < 350 kW
A69: =texte!F21 ->  | B69: =texte!G21 ->  | C69: =texte!H21 -> 
A70: =texte!F22 -> 111022 | B70: =texte!G22 -> HC202 | C70: =texte!H22 -> KIT DE RACCORDEMENT AVANT FR + BE | H70: =VLOOKUP($M$37,'gamme DD chaud'!$E$9:$BM$143,26,FALSE) -> 
A71: =texte!F23 ->  | B71: =texte!G23 ->  | C71: =texte!H23 -> 
A72: =texte!F24 ->  | B72: =texte!G24 ->  | C72: =texte!H24 -> 
A73: =texte!F25 ->  | B73: =texte!G25 ->  | C73: =texte!H25 ->  | U73: 111022 | V73: HC202 | W73: KIT DE RACCORDEMENT AVANT FR + BE
A74: =texte!F26 -> 111708 | B74: =texte!G26 -> HC195 | C74: =texte!H26 -> JEU DE BOUCHONS | H74: =VLOOKUP($M$37,'gamme DD chaud'!$E$9:$BM$143,30,FALSE) -> 
A75: =texte!F27 ->  | B75: =texte!G27 ->  | C75: =texte!H27 -> 
A76: =texte!F28 -> 111701 | B76: =texte!G28 -> HC198 | C76: =texte!H28 -> BRIDES PLEINES EAU DN65 | H76: =VLOOKUP($M$37,'gamme DD chaud'!$E$9:$BM$143,32,FALSE) -> 
A77: =texte!F29 ->  | B77: =texte!G29 ->  | C77: =texte!H29 ->  | U77: 111708 | V77: HC195 | W77: JEU DE BOUCHONS
A78: =texte!F30 ->  | B78: =texte!G30 ->  | C78: =texte!H30 -> 
A79: =texte!F31 ->  | B79: =texte!G31 ->  | C79: =texte!H31 ->  | H79: =VLOOKUP($M$37,'gamme DD chaud'!$E$9:$BM$143,35,FALSE) ->  | U79: 111701 | V79: HC198 | W79: BRIDES PLEINES EAU DN65
A80: =texte!F32 -> 120900 | B80: =texte!G32 -> HC250 | C80: =texte!H32 -> MONTANT-SUPPORT I GMR 5000 | H80: =VLOOKUP($M$37,'gamme DD chaud'!$E$9:$BM$143,36,FALSE) -> 
A81: =texte!F33 -> 120918 | B81: =texte!G33 -> HC248 | C81: =texte!H33 -> CHASSIS DE MONTAGE GMR 5000 | H81: =VLOOKUP($M$37,'gamme DD chaud'!$E$9:$BM$143,37,FALSE) -> 
A82: =texte!F34 -> 111688 | B82: =texte!G34 -> HC192 | C82: =texte!H34 -> RAIL DE MONTAGE MURAL 2 CHAUDIÈRES | H82: =VLOOKUP($M$37,'gamme DD chaud'!$E$9:$BM$143,38,FALSE) -> 
A83: =texte!F35 -> 111689 | B83: =texte!G35 -> HC193 | C83: =texte!H35 -> RAIL DE MONTAGE MURAL 3 CHAUDIÈRES | H83: =VLOOKUP($M$37,'gamme DD chaud'!$E$9:$BM$143,39,FALSE) ->  | U83: 120900 | V83: HC250 | W83: MONTANT-SUPPORT I GMR 5000
A84: =texte!F36 -> 111690 | B84: =texte!G36 -> HC194 | C84: =texte!H36 -> RAIL DE MONTAGE MURAL 4 CHAUDIÈRES | H84: =VLOOKUP($M$37,'gamme DD chaud'!$E$9:$BM$143,40,FALSE) ->  | U84: 120918 | V84: HC248 | W84: CHASSIS DE MONTAGE GMR 5000
A85: =texte!F37 ->  | B85: =texte!G37 ->  | C85: =texte!H37 ->  | U85: 111688 | V85: HC192 | W85: RAIL DE MONTAGE MURAL 2 CHAUDIÈRES
A86: Options | J86: Options | U86: 111689 | V86: HC193 | W86: RAIL DE MONTAGE MURAL 3 CHAUDIÈRES
A87: =texte!F39 -> 84887768 | B87: =texte!G39 -> DY768 | C87: =texte!H39 -> ADAPTATEUR Ø 80 - 100 MM | H87: =VLOOKUP($M$37,'gamme DD chaud'!$E$9:$BM$143,43,FALSE) ->  | J87: =IF($Q87="","",A87) ->  | K87: =IF($Q87="","",B87) ->  | L87: =IF($Q87="","",C87) ->  | Q87: =IF(H87=0,"",H87) ->  | U87: 111690 | V87: HC194 | W87: RAIL DE MONTAGE MURAL 4 CHAUDIÈRES
A88: =texte!F40 ->  | B88: =texte!G40 ->  | C88: =texte!H40 -> 
A89: =texte!F41 ->  | B89: =texte!G41 ->  | C89: =texte!H41 ->  | U89: =A87 -> 84887768 | V89: =B87 -> DY768 | W89: =C87 -> ADAPTATEUR Ø 80 - 100 MM
A90: =texte!F42 ->  | B90: =texte!G42 ->  | C90: =texte!H42 -> 
A91: =texte!F43 -> S101655 | B91: =texte!G43 -> HC255 | C91: =texte!H43 -> FILTRE GAZ DN50 | H91: =VLOOKUP($M$37,'gamme DD chaud'!$E$9:$BM$143,47,FALSE) -> 
A92: =texte!F44 ->  | B92: =texte!G44 ->  | C92: =texte!H44 -> 
A93: =texte!F45 -> S103345 | B93: =texte!G45 -> HC261 | C93: =texte!H45 -> JEUX DE BRIDES À SOUDER DN50 POUR FILTRE A GAZ | H93: =H91 ->  | U93: S101655 | V93: HC255 | W93: FILTRE GAZ DN50
A94: =texte!F46 -> 111788 | B94: =texte!G46 -> HC209 | C94: =texte!H46 -> COUDES DN65 | H94: =VLOOKUP($M$37,'gamme DD chaud'!$E$9:$BM$143,50,FALSE) -> 
A95: =texte!F47 ->  | B95: =texte!G47 ->  | C95: =texte!H47 ->  | U95: S103345 | V95: HC261 | W95: JEUX DE BRIDES À SOUDER DN50 POUR FILTRE A GAZ
A96: =texte!F48 ->  | B96: =texte!G48 ->  | C96: =texte!H48 ->  | U96: 111788 | V96: HC209 | W96: COUDES DN65
A97: =texte!F49 ->  | B97: =texte!G49 ->  | C97: =texte!H49 -> 
A98: =texte!F50 -> 111069 | B98: =texte!G50 -> HC213 | C98: =texte!H50 -> ISOLATION COLLECTEUR | H98: =VLOOKUP($M$37,'gamme DD chaud'!$E$9:$BM$143,54,FALSE) -> 
A99: 122441 | B99: HC252 | C99: ISOLATION RACCORDEMENT CHAUDIERE | H99: =VLOOKUP($M$37,'gamme DD chaud'!$E$9:$BM$143,55,FALSE) -> 
A100: =texte!F52 -> 111067 | B100: =texte!G52 -> HC215 | C100: =texte!H52 -> ISOLATION BOUTEILLE DE DÉCOUPLAGE | H100: =VLOOKUP($M$37,'gamme DD chaud'!$E$9:$BM$143,56,FALSE) ->  | U100: 111069 | V100: HC213 | W100: ISOLATION COLLECTEUR
A101: =texte!F53 -> 115269 | B101: =texte!G53 -> HC224 | C101: =texte!H53 -> ISOLATION BOUTEILLE DE DÉCOUPLAGE < 350 kW | H101: =VLOOKUP($M$37,'gamme DD chaud'!$E$9:$BM$143,57,FALSE) ->  | U101: 122441 | V101: HC252 | W101: ISOLATION RACCORDEMENT CHAUDIERE
A102: =texte!F54 -> 111167 | B102: =texte!G54 -> HC216 | C102: =texte!H54 -> ISOLATION COUDES 90°C | H102: =VLOOKUP($M$37,'gamme DD chaud'!$E$9:$BM$143,58,FALSE) ->  | U102: 111067 | V102: HC215 | W102: ISOLATION BOUTEILLE DE DÉCOUPLAGE
A103: =texte!F55 -> 111807 | B103: =texte!G55 -> HC219 | C103: =texte!H55 -> PIED RÉGLABLE | H103: =VLOOKUP($M$37,'gamme DD chaud'!$E$9:$BM$143,59,FALSE) ->  | U103: 115269 | V103: HC224 | W103: ISOLATION BOUTEILLE DE DÉCOUPLAGE < 350 kW
A104: =texte!F56 -> 112632 | B104: =texte!G56 -> HC217 | C104: =texte!H56 -> JEU DE CONTRE-BRIDES À SOUDER DN65 | H104: =VLOOKUP($M$37,'gamme DD chaud'!$E$9:$BM$143,60,FALSE) ->  | U104: 111167 | V104: HC216 | W104: ISOLATION COUDES 90°C
U105: 111807 | V105: HC219 | W105: PIED RÉGLABLE
U106: 112632 | V106: HC217 | W106: JEU DE CONTRE-BRIDES À SOUDER DN65
A107: Références du tableau gamme DD non utilisées ou sans références valides | U107: Pour chaudière MCA 160 | AD107: =U107 -> Pour chaudière MCA 160 | AM107: Pour chaudière MCA 160 (trié pour le devis)
B108: 110966 | C108: Collect. 4 DN65
B109: 110961 | C109: Collect. 2 DN100 | U109: référence | V109: colis | W109: Désignation | AA109: prix | AB109: Qté | AD109: référence | AE109: colis | AF109: Désignation | AJ109: prix | AK109: Qté | AM109: référence | AN109: colis | AO109: Désignation | AS109: prix | AT109: Qté
B110: 110960 | C110: Collect. 3 DN100 | U110: =VLOOKUP($V110,'Price List'!$X:$AB,3,FALSE) -> 7637550 | V110: EH680 | W110: =VLOOKUP($V110,'Price List'!$X:$AB,2,FALSE) -> CONNECTION CH SOLO MCA 160 EH680 | AA110: =VLOOKUP($V110,'Price List'!$X:$AB,5,FALSE) -> 688 | AD110: =IF($AB110>0,U110,"") ->  | AE110: =IF($AB110>0,V110,"") -> 
B111: 110954 | C111: Collect. 4 DN100 | U111: =VLOOKUP($V111,'Price List'!$X:$AB,3,FALSE) -> 7637223 | V111: EH651 | W111: =VLOOKUP($V111,'Price List'!$X:$AB,2,FALSE) -> POMPE UPM XL GRUNDFOS 25-105 H180 | AA111: =VLOOKUP($V111,'Price List'!$X:$AB,5,FALSE) -> 652 | AB111: =VLOOKUP($M$37,'gamme DD chaud'!$E$154:$AO$159,12,FALSE) -> 3 | AD111: =IF($AB111>0,U111,"") -> 7637223 | AE111: =IF($AB111>0,V111,"") -> EH651 | AF111: =IF($AB111>0,W111,"") -> POMPE UPM XL GRUNDFOS 25-105 H180 | AJ111: =IF($AB111>0,AA111,"") -> 652 | AK111: =IF($AB111>0,AB111,"") -> 3 | AN111: Support
B112: 111714 | C112: Bouteille découpl. DN100 | U112: =VLOOKUP($V112,'Price List'!$X:$AB,3,FALSE) -> 100019348 | V112: GV47 | W112: =VLOOKUP($V112,'Price List'!$X:$AB,2,FALSE) -> BOUTEILLE DE DECOUPLAGE 120/80-2'' | AA112: =VLOOKUP($V112,'Price List'!$X:$AB,5,FALSE) -> 658 | AD112: =IF($AB112>0,U112,"") ->  | AE112: =IF($AB112>0,V112,"") ->  | AF112: =IF($AB112>0,W112,"") ->  | AJ112: =IF($AB112>0,AA112,"") ->  | AM112: ="" ->  | AN112: ="" ->  | AO112: ="" ->  | AP112: ="" ->  | AQ112: ="" ->  | AR112: ="" ->  | AS112: ="" ->  | AT112: ="" -> 
B113: 111037 | C113: Raccordt. Arrière | U113: =VLOOKUP($V113,'Price List'!$X:$AB,3,FALSE) -> 7656909 | V113: EH693 | W113: =VLOOKUP($V113,'Price List'!$X:$AB,2,FALSE) -> KIT DE CONVERSION PROP. MCA 160KW | AA113: =VLOOKUP($V113,'Price List'!$X:$AB,5,FALSE) -> 73 | AM113: =AD168 ->  | AN113: =AE168 -> 
B114: 112906 | C114: Raccordt. Avant | U114: =VLOOKUP($V114,'Price List'!$X:$AB,3,FALSE) -> 7628753 | V114: SA12 | W114: =VLOOKUP($V114,'Price List'!$X:$AB,2,FALSE) -> REGULATEUR DE PRESSION GDJ 20 300MBAR | AA114: =VLOOKUP($V114,'Price List'!$X:$AB,5,FALSE) -> 190 | AM114: =AD169 ->  | AN114: =AE169 ->  | AO114: =AF169 ->  | AS114: =AJ169 ->  | AT114: =AK169 -> 
B115: 112908 | C115: Raccordt. Arrière | U115: =VLOOKUP($V115,'Price List'!$X:$AB,3,FALSE) ->  | V115: AD245 | W115: =VLOOKUP($V115,'Price List'!$X:$AB,2,FALSE) ->  | AA115: =VLOOKUP($V115,'Price List'!$X:$AB,5,FALSE) ->  | AO115: =AF170 -> 
B116: 111698 | C116: 1 Bride pleine gaz DN50 | U116: =VLOOKUP($V116,'Price List'!$X:$AB,3,FALSE) -> 88027177 | V116: AD246 | W116: =VLOOKUP($V116,'Price List'!$X:$AB,2,FALSE) -> REGUL PRESSION GDJ 50 300MB | AA116: =VLOOKUP($V116,'Price List'!$X:$AB,5,FALSE) -> 483 | AM116: 7637088 | AN116: EH671 | AO116: RAIL DE MONTAGE MURAL 3 CHAUDIÈRES MCA 160 | AS116: 70 | AT116: 1
B117: 111699 | C117: 1 Bride pleine gaz DN65 | U117: =VLOOKUP($V117,'Price List'!$X:$AB,3,FALSE) -> 7613609 | V117: SA3 | W117: =VLOOKUP($V117,'Price List'!$X:$AB,2,FALSE) -> STATION DE NEUTRALISATION DN2 | AA117: =VLOOKUP($V117,'Price List'!$X:$AB,5,FALSE) -> 648 | AM117: ="" ->  | AN117: ="" ->  | AO117: ="" ->  | AP117: ="" ->  | AQ117: ="" ->  | AR117: ="" ->  | AS117: ="" ->  | AT117: ="" -> 
B118: 111703 | C118: 2 Brides pleines eau DN100 | U118: =VLOOKUP($V118,'Price List'!$X:$AB,3,FALSE) -> 7613610 | V118: SA4 | W118: =VLOOKUP($V118,'Price List'!$X:$AB,2,FALSE) -> STATION DE NEUTRALISATION AVEC POMPE | AA118: =VLOOKUP($V118,'Price List'!$X:$AB,5,FALSE) -> 1314 | AN118: Hydraulique
B119: 114419 | C119: Vanne de sécurité gaz DN 65 | U119: =VLOOKUP($V119,'Price List'!$X:$AB,3,FALSE) -> 83877011 | V119: DU15 | W119: =VLOOKUP($V119,'Price List'!$X:$AB,2,FALSE) -> STATION NEUTRALISATION | AA119: =VLOOKUP($V119,'Price List'!$X:$AB,5,FALSE) -> 1457
B120: 111780 | C120: Filtre Gaz DN65 | U120: 94225601 | W120: =VLOOKUP($U120,'Price List'!$A:$AB,2,FALSE) -> RECHARGE DE GRANULATS DE NEUTRALISATION 10 KG** | AA120: =VLOOKUP($U120,'Price List'!$A:$AB,5,FALSE) -> 0 | AM120: =AD144 ->  | AN120: =AE144 -> 
B121: 111790 | C121: Coude DN100 | U121: =VLOOKUP($V121,'Price List'!$X:$AB,3,FALSE) -> 7613613 | V121: SA7 | W121: =VLOOKUP($V121,'Price List'!$X:$AB,2,FALSE) -> GRANULATS DE NEUTRALISATION (SAC DE 25 KG) | AA121: =VLOOKUP($V121,'Price List'!$X:$AB,5,FALSE) -> 89 | AM121: =AD145 -> 7665728 | AN121: =AE145 -> EH653 | AO121: =AF145 -> COLLECTEUR DN100-3 CHAUDIERES MCA 160 FR | AS121: =AJ145 -> 1551 | AT121: =AK145 -> 1
B122: 111805 | C122: Tube rallonge filtre gaz DN50 | U122: =VLOOKUP($V122,'Price List'!$X:$AB,3,FALSE) -> 7619539 | V122: EH692 | W122: =VLOOKUP($V122,'Price List'!$X:$AB,2,FALSE) -> KIT RAC CHAUD 100/150 EH692 | AA122: =VLOOKUP($V122,'Price List'!$X:$AB,5,FALSE) -> 117 | AM122: =AD152 -> 111712 | AN122: =AE152 -> HC200 | AO122: BOUTEILLE DE DÉCOUPLAGE DN65 > 350 et < 460 kW | AS122: 1101 | AT122: 1
B123: 111806 | C123: Tube rallonge filtre gaz DN65 | U123: =VLOOKUP($V123,'Price List'!$X:$AB,3,FALSE) -> 7627596 | V123: EH645 | W123: =VLOOKUP($V123,'Price List'!$X:$AB,2,FALSE) -> EXPANSION 150/200MM PPS EH645 | AA123: =VLOOKUP($V123,'Price List'!$X:$AB,5,FALSE) -> 100 | AM123: =AD153 ->  | AN123: =AE153 ->  | AO123: =AF153 ->  | AS123: =AJ153 ->  | AT123: =AK153 -> 
B124: 112633 | C124: Contre-brides à souder DN100 | U124: =VLOOKUP($V124,'Price List'!$X:$AB,3,FALSE) -> 7624821 | V124: EH646 | W124: =VLOOKUP($V124,'Price List'!$X:$AB,2,FALSE) -> FILTRE A AIR | AA124: =VLOOKUP($V124,'Price List'!$X:$AB,5,FALSE) -> 474 | AN124: =AE154 -> 
U125: =VLOOKUP($V125,'Price List'!$X:$AB,3,FALSE) -> 100000030 | V125: AD212 | W125: =VLOOKUP($V125,'Price List'!$X:$AB,2,FALSE) -> COLIS OPTION SONDE ECS | AA125: =VLOOKUP($V125,'Price List'!$X:$AB,5,FALSE) -> 53 | AM125: ="" ->  | AN125: ="" ->  | AO125: ="" ->  | AP125: ="" ->  | AQ125: ="" ->  | AR125: ="" ->  | AS125: ="" ->  | AT125: ="" -> 
U126: =VLOOKUP($V126,'Price List'!$X:$AB,3,FALSE) -> S101655 | V126: HC255 | W126: =VLOOKUP($V126,'Price List'!$X:$AB,2,FALSE) -> FILTRE GAZ DN50 | AA126: =VLOOKUP($V126,'Price List'!$X:$AB,5,FALSE) -> 558 | AM126: =AD147 -> 7622701 | AN126: =AE147 -> EH656 | AO126: =AF147 -> RAC COLLEC L MCA 160 EH656 | AS126: 767 | AT126: 3
U127: =VLOOKUP($V127,'Price List'!$X:$AB,3,FALSE) -> S101656 | V127: HC256 | W127: =VLOOKUP($V127,'Price List'!$X:$AB,2,FALSE) -> FILTRE GAZ DN65 | AA127: =VLOOKUP($V127,'Price List'!$X:$AB,5,FALSE) -> 769 | AB127: =VLOOKUP($M$37,'gamme DD chaud'!$E$154:$AO$159,25,FALSE) -> 1 | AD127: S101656 | AE127: HC256 | AF127: FILTRE GAZ DN65 | AJ127: 769 | AK127: 1 | AM127: =AD176 -> 111708 | AN127: =AE176 -> HC195 | AO127: =AF176 -> JEU DE BOUCHONS | AS127: 43 | AT127: 3
U128: =VLOOKUP($V128,'Price List'!$X:$AB,3,FALSE) -> 111788 | V128: HC209 | W128: =VLOOKUP($V128,'Price List'!$X:$AB,2,FALSE) -> COUDES DN65 | AA128: =VLOOKUP($V128,'Price List'!$X:$AB,5,FALSE) -> 714 | AB128: =VLOOKUP($M$37,'gamme DD chaud'!$E$154:$AO$159,26,FALSE) -> 1 | AD128: 111788 | AE128: HC209 | AF128: COUDES DN65 | AJ128: 714 | AK128: 1 | AM128: ="" ->  | AN128: ="" ->  | AO128: ="" ->  | AP128: ="" ->  | AQ128: ="" ->  | AR128: ="" ->  | AS128: ="" ->  | AT128: ="" -> 
U129: =VLOOKUP($V129,'Price List'!$X:$AB,3,FALSE) -> 111790 | V129: HC210 | W129: =VLOOKUP($V129,'Price List'!$X:$AB,2,FALSE) -> COUDES DN100 | AA129: =VLOOKUP($V129,'Price List'!$X:$AB,5,FALSE) -> 959 | AB129: =VLOOKUP($M$37,'gamme DD chaud'!$E$154:$AO$159,27,FALSE) -> 0 | AM129: =AD173 -> 111703 | AN129: =AE173 -> HC199 | AO129: BRIDES PLEINES EAU DN100 | AS129: 203 | AT129: 1
U130: =VLOOKUP($V130,'Price List'!$X:$AB,3,FALSE) -> 7638518 | V130: EH669 | W130: =VLOOKUP($V130,'Price List'!$X:$AB,2,FALSE) -> JEU DE CONTRE BRIDE A SOUDER DN65 | AA130: =VLOOKUP($V130,'Price List'!$X:$AB,5,FALSE) -> 150 | AB130: =VLOOKUP($M$37,'gamme DD chaud'!$E$154:$AO$159,36,FALSE) -> 1 | AD130: =IF($AB130>0,U130,"") -> 7638518 | AE130: EH669 | AF130: JEU DE CONTRE BRIDE A SOUDER DN65 | AJ130: 150 | AK130: 1 | AM130: =AD140 ->  | AN130: =AE140 ->  | AO130: =AF140 ->  | AS130: =AJ140 ->  | AT130: =AK140 -> 
U131: =VLOOKUP($V131,'Price List'!$X:$AB,3,FALSE) -> 112633 | V131: HC218 | W131: =VLOOKUP($V131,'Price List'!$X:$AB,2,FALSE) -> JEU DE CONTRE-BRIDES À SOUDER DN100 | AA131: =VLOOKUP($V131,'Price List'!$X:$AB,5,FALSE) -> 183 | AB131: =VLOOKUP($M$37,'gamme DD chaud'!$E$154:$AO$159,37,FALSE) -> 0 | AM131: =AD111 -> 7637223 | AN131: =AE111 -> EH651 | AO131: POMPE UPM XL GRUNDFOS 25-105 H180 | AS131: 652 | AT131: 3
U132: =VLOOKUP($V132,'Price List'!$X:$AB,3,FALSE) -> 7613401 | V132: EH647 | W132: =VLOOKUP($V132,'Price List'!$X:$AB,2,FALSE) -> ISOLATION COLLECTEUR MCA 160 | AA132: =VLOOKUP($V132,'Price List'!$X:$AB,5,FALSE) -> 96 | AB132: =VLOOKUP($M$37,'gamme DD chaud'!$E$154:$AO$159,28,FALSE) -> 3 | AD132: 7613401 | AE132: EH647 | AF132: ISOLATION COLLECTEUR MCA 160 | AJ132: 96 | AK132: 3 | AM132: =IF($AD$178<>"",AD178,AD177) -> 7638518 | AN132: =IF($AD$178<>"",AE178,AE177) -> EH669 | AO132: JEU DE CONTRE BRIDE A SOUDER DN65 | AS132: 150 | AT132: 1
B133: DEVIS MCA CASCADE 160 | U133: =VLOOKUP($V133,'Price List'!$X:$AB,3,FALSE) -> 7611804 | V133: EH648 | W133: =VLOOKUP($V133,'Price List'!$X:$AB,2,FALSE) -> ISOLATION RACCORD MCA 160 | AA133: =VLOOKUP($V133,'Price List'!$X:$AB,5,FALSE) -> 93 | AB133: =VLOOKUP($M$37,'gamme DD chaud'!$E$154:$AO$159,29,FALSE) -> 3 | AD133: 7611804 | AE133: EH648 | AF133: ISOLATION RACCORD MCA 160 | AJ133: 93 | AK133: 3 | AM133: ="" ->  | AN133: ="" ->  | AO133: ="" ->  | AP133: ="" ->  | AQ133: ="" ->  | AR133: ="" ->  | AS133: ="" ->  | AT133: ="" -> 
U134: =VLOOKUP($V134,'Price List'!$X:$AB,3,FALSE) -> 7631858 | V134: EH649 | W134: =VLOOKUP($V134,'Price List'!$X:$AB,2,FALSE) -> PLAQ ISOLATION AR | AA134: =VLOOKUP($V134,'Price List'!$X:$AB,5,FALSE) -> 85 | AB134: =VLOOKUP($M$37,'gamme DD chaud'!$E$154:$AO$159,30,FALSE) -> 0 | AN134: Régulation
U135: =VLOOKUP($V135,'Price List'!$X:$AB,3,FALSE) -> 115269 | V135: HC224 | W135: =VLOOKUP($V135,'Price List'!$X:$AB,2,FALSE) -> ISOLATION BOUTEILLE DE DÉCOUPLAGE < 350 kW | AA135: =VLOOKUP($V135,'Price List'!$X:$AB,5,FALSE) -> 40 | AB135: =VLOOKUP($M$37,'gamme DD chaud'!$E$154:$AO$159,33,FALSE) -> 0
U136: =VLOOKUP($V136,'Price List'!$X:$AB,3,FALSE) -> 111067 | V136: HC215 | W136: =VLOOKUP($V136,'Price List'!$X:$AB,2,FALSE) -> ISOLATION BOUTEILLE DE DÉCOUPLAGE | AA136: =VLOOKUP($V136,'Price List'!$X:$AB,5,FALSE) -> 260 | AB136: =VLOOKUP($M$37,'gamme DD chaud'!$E$154:$AO$159,31,FALSE) -> 1 | AD136: 111067 | AE136: HC215 | AF136: ISOLATION BOUTEILLE DE DÉCOUPLAGE | AJ136: 260 | AK136: 1 | AM136: =AD149 ->  | AN136: =AE149 -> 
U137: =VLOOKUP($V137,'Price List'!$X:$AB,3,FALSE) -> 111167 | V137: HC216 | W137: =VLOOKUP($V137,'Price List'!$X:$AB,2,FALSE) -> ISOLATION COUDES 90°C | AA137: =VLOOKUP($V137,'Price List'!$X:$AB,5,FALSE) -> 111 | AB137: =VLOOKUP($M$37,'gamme DD chaud'!$E$154:$AO$159,34,FALSE) -> 1 | AD137: 111167 | AE137: HC216 | AF137: ISOLATION COUDES 90°C | AJ137: 111 | AK137: 1 | AM137: =AD150 -> 100008701 | AN137: =AE150 -> HC206 | AO137: SONDE DE DÉPART + DOIGT DE GANT | AS137: 167 | AT137: 1
B138: Chiffrage | AM138: =AD141 -> 7663561 | AN138: =AE141 -> AD309 | AO138: CABLE S-BUS 12M AVEC BOUCHONS | AS138: 106 | AT138: 2
U139: =VLOOKUP($V139,'Price List'!$X:$AB,3,FALSE) -> 7622201 | V139: EH650 | W139: =VLOOKUP($V139,'Price List'!$X:$AB,2,FALSE) -> ISOLATION ADAPTATEUR 100/65 | AA139: =VLOOKUP($V139,'Price List'!$X:$AB,5,FALSE) -> 49 | AB139: =VLOOKUP($M$37,'gamme DD chaud'!$E$154:$AO$159,32,FALSE) -> 1 | AD139: 7622201 | AE139: EH650 | AF139: ISOLATION ADAPTATEUR 100/65 | AJ139: 49 | AK139: 1
C140: Système | D140: Référence | F140: Désignation | J140: Colis | K140: Prix unitaire | L140: Qtté | M140: Prix net | U140: =VLOOKUP($V140,'Price List'!$X:$AB,3,FALSE) -> 111807 | V140: HC219 | W140: =VLOOKUP($V140,'Price List'!$X:$AB,2,FALSE) -> PIED RÉGLABLE | AA140: =VLOOKUP($V140,'Price List'!$X:$AB,5,FALSE) -> 4 | AB140: =VLOOKUP($M$37,'gamme DD chaud'!$E$154:$AO$159,35,FALSE) -> 0
K141: en € | M141: en € | U141: =VLOOKUP($V141,'Price List'!$X:$AB,3,FALSE) -> 7663561 | V141: AD309 | W141: =VLOOKUP($V141,'Price List'!$X:$AB,2,FALSE) -> CABLE S-BUS 12M AVEC BOUCHONS | AA141: =VLOOKUP($V141,'Price List'!$X:$AB,5,FALSE) -> 106 | AB141: =D6-1 -> 2 | AD141: 7663561 | AE141: AD309 | AF141: CABLE S-BUS 12M AVEC BOUCHONS | AJ141: 106 | AK141: 2
C142: =M37 -> LW.0456kW.00003 | U142: =VLOOKUP($V142,'Price List'!$X:$AB,3,FALSE) -> 7663619 | V142: AD310 | W142: =VLOOKUP($V142,'Price List'!$X:$AB,2,FALSE) -> CABLE S-BUS 20M AVEC BOUCHONS | AA142: =VLOOKUP($V142,'Price List'!$X:$AB,5,FALSE) -> 140 | AM142: Options
D143: Support | AD143: =IF($AB143>0,U143,"") ->  | AE143: =IF($AB143>0,V143,"") ->  | AF143: =IF($AB143>0,W143,"") ->  | AJ143: =IF($AB143>0,AA143,"") -> 
U144: =VLOOKUP($V144,'Price List'!$X:$AB,3,FALSE) -> 7665725 | V144: EH652 | W144: =VLOOKUP($V144,'Price List'!$X:$AB,2,FALSE) -> COLLECTEUR DN100-2 CHAUDIERES MCA 160 FR | AA144: =VLOOKUP($V144,'Price List'!$X:$AB,5,FALSE) -> 1224 | AB144: =VLOOKUP($M$37,'gamme DD chaud'!$E$154:$AO$159,13,FALSE) -> 0 | AM144: référence | AN144: colis | AO144: Désignation | AS144: prix | AT144: Qté
D145: =IF('Dimensionnement par chaudière'!$H$18=0,$J$79,AM113) ->  | E145: =IF('Dimensionnement par chaudière'!$H$18=0,$J$79,AO113) ->  | J145: =IF('Dimensionnement par chaudière'!$H$18=0,'Calcul dim par chaudière'!$K$79,AN113) ->  | K145: =IF('Dimensionnement par chaudière'!$H$18=0,IF($D$145="","",VLOOKUP($D$145,'Price List'!A:E,5,FALSE)),AS113) ->  | L145: =IF('Dimensionnement par chaudière'!$H$18=0,'Calcul dim par chaudière'!$Q$79,AT113) ->  | M145: =IF($E$145="","",$K$145*$L$145) ->  | U145: =VLOOKUP($V145,'Price List'!$X:$AB,3,FALSE) -> 7665728 | V145: EH653 | W145: =VLOOKUP($V145,'Price List'!$X:$AB,2,FALSE) -> COLLECTEUR DN100-3 CHAUDIERES MCA 160 FR | AA145: =VLOOKUP($V145,'Price List'!$X:$AB,5,FALSE) -> 1551 | AB145: =VLOOKUP($M$37,'gamme DD chaud'!$E$154:$AO$159,14,FALSE) -> 1 | AD145: 7665728 | AE145: EH653 | AF145: COLLECTEUR DN100-3 CHAUDIERES MCA 160 FR | AJ145: 1551 | AK145: 1 | AM145: =AD156 -> 7633244 | AN145: =AE156 -> EH654 | AO145: =IF($AT$145="","",$AF$156) -> ADAPTATEUR DN100/DN65 | AS145: 328 | AT145: =AK156 -> 1
D146: =IF('Dimensionnement par chaudière'!$H$18=0,$J$79,AM114) ->  | E146: =IF('Dimensionnement par chaudière'!$H$18=0,$J$79,AO114) ->  | J146: =IF('Dimensionnement par chaudière'!$H$18=0,'Calcul dim par chaudière'!$K$79,AN114) ->  | K146: =IF('Dimensionnement par chaudière'!$H$18=0,IF($D$145="","",VLOOKUP($D$145,'Price List'!A:E,5,FALSE)),AS114) ->  | L146: =IF('Dimensionnement par chaudière'!$H$18=0,'Calcul dim par chaudière'!$Q$79,AT114) ->  | M146: =IF($E$146="","",$K$146*$L$146) ->  | AM146: =AD139 -> 7622201 | AN146: =AE139 -> EH650 | AO146: =IF(AT146="","",W139) -> ISOLATION ADAPTATEUR 100/65 | AS146: 49 | AT146: =AK139 -> 1
D147: =IF('Dimensionnement par chaudière'!$H$18=0,$J$79,AM115) ->  | E147: =IF('Dimensionnement par chaudière'!$H$18=0,$J$79,AO115) ->  | J147: =IF('Dimensionnement par chaudière'!$H$18=0,'Calcul dim par chaudière'!$K$79,AN115) ->  | K147: =IF('Dimensionnement par chaudière'!$H$18=0,IF($D$145="","",VLOOKUP($D$145,'Price List'!A:E,5,FALSE)),AS115) ->  | L147: =IF('Dimensionnement par chaudière'!$H$18=0,'Calcul dim par chaudière'!$Q$79,AT115) ->  | M147: =IF($E$147="","",$K$147*$L$147) ->  | U147: =VLOOKUP($V147,'Price List'!$X:$AB,3,FALSE) -> 7622701 | V147: EH656 | W147: =VLOOKUP($V147,'Price List'!$X:$AB,2,FALSE) -> RAC COLLEC L MCA 160 EH656 | AA147: =VLOOKUP($V147,'Price List'!$X:$AB,5,FALSE) -> 767 | AB147: =VLOOKUP($M$37,'gamme DD chaud'!$E$154:$AO$159,19,FALSE) -> 3 | AD147: 7622701 | AE147: EH656 | AF147: RAC COLLEC L MCA 160 EH656 | AJ147: 767 | AK147: 3 | AM147: =AD127 -> S101656 | AN147: =AE127 -> HC256 | AO147: =IF(AT147="","",W127) -> FILTRE GAZ DN65 | AS147: =AJ127 -> 769 | AT147: =AK127 -> 1
D148: =IF('Dimensionnement par chaudière'!$H$18=0,$J$79,AM116) -> 7637088 | E148: =IF('Dimensionnement par chaudière'!$H$18=0,$J$79,AO116) -> RAIL DE MONTAGE MURAL 3 CHAUDIÈRES MCA 160 | J148: =IF('Dimensionnement par chaudière'!$H$18=0,'Calcul dim par chaudière'!$K$79,AN116) -> EH671 | K148: =IF('Dimensionnement par chaudière'!$H$18=0,IF($D$145="","",VLOOKUP($D$145,'Price List'!A:E,5,FALSE)),AS116) -> 70 | L148: =IF('Dimensionnement par chaudière'!$H$18=0,'Calcul dim par chaudière'!$Q$79,AT116) -> 1 | M148: =IF($E$148="","",$K$148*$L$148) -> 70 | AM148: =AD128 -> 111788 | AN148: =AE128 -> HC209 | AO148: =IF(AT148="","",W128) -> COUDES DN65 | AS148: =AJ128 -> 714 | AT148: =AK128 -> 1
D149: =IF('Dimensionnement par chaudière'!$H$18=0,$J$79,"") ->  | E149: =IF('Dimensionnement par chaudière'!$H$18=0,$J$79,"") ->  | J149: =IF('Dimensionnement par chaudière'!$H$18=0,'Calcul dim par chaudière'!$K$79,"") ->  | K149: =IF('Dimensionnement par chaudière'!$H$18=0,IF($D$145="","",VLOOKUP($D$145,'Price List'!A:E,5,FALSE)),"") ->  | L149: =IF('Dimensionnement par chaudière'!$H$18=0,'Calcul dim par chaudière'!$Q$83,"") ->  | M149: =IF($E$149="","",$K$149*$L$149) ->  | U149: =VLOOKUP($V149,'Price List'!$X:$AB,3,FALSE) -> 100013027 | V149: HC223 | W149: =VLOOKUP($V149,'Price List'!$X:$AB,2,FALSE) -> SONDE DE DÉPART + DOIGT DE GANT-BOUTEILLE < 350 kW | AA149: =VLOOKUP($V149,'Price List'!$X:$AB,5,FALSE) -> 141 | AB149: =VLOOKUP($M$37,'gamme DD chaud'!$E$154:$AZ$159,38,FALSE) -> 0 | AO149: =IF(AT149="","",W129) -> 
D150: =IF('Dimensionnement par chaudière'!$H$18=0,$J$84,"") ->  | E150: =IF('Dimensionnement par chaudière'!$H$18=0,'Calcul dim par chaudière'!$L$84,"") ->  | J150: =IF('Dimensionnement par chaudière'!$H$18=0,'Calcul dim par chaudière'!$K$84,"") ->  | K150: =IF('Dimensionnement par chaudière'!$H$18=0,IF($D$150="","",VLOOKUP($D$150,'Price List'!A:E,5,FALSE)),"") ->  | L150: =IF('Dimensionnement par chaudière'!$H$18=0,'Calcul dim par chaudière'!$Q$84,"") ->  | M150: =IF($E$150="","",$K$150*$L$150) ->  | U150: =VLOOKUP($V150,'Price List'!$X:$AB,3,FALSE) -> 100008701 | V150: HC206 | W150: =VLOOKUP($V150,'Price List'!$X:$AB,2,FALSE) -> SONDE DE DÉPART + DOIGT DE GANT | AA150: =VLOOKUP($V150,'Price List'!$X:$AB,5,FALSE) -> 167 | AB150: =VLOOKUP($M$37,'gamme DD chaud'!$E$154:$AZ$159,39,FALSE) -> 1 | AD150: 100008701 | AE150: HC206 | AF150: SONDE DE DÉPART + DOIGT DE GANT | AJ150: 167 | AK150: 1 | AM150: =AD131 ->  | AO150: =IF(AT150="","",W131) ->  | AS150: =AJ131 -> 
AM151: 7613401 | AN151: EH647 | AO151: ISOLATION COLLECTEUR MCA 160 | AS151: 96 | AT151: 3
D152: Hydraulique | U152: =VLOOKUP($V152,'Price List'!$X:$AB,3,FALSE) -> 111712 | V152: HC200 | W152: =VLOOKUP($V152,'Price List'!$X:$AB,2,FALSE) -> BOUTEILLE DE DÉCOUPLAGE DN65 > 350 et < 460 kW | AA152: =VLOOKUP($V152,'Price List'!$X:$AB,5,FALSE) -> 1101 | AB152: =VLOOKUP($M$37,'gamme DD chaud'!$E$154:$AO$159,16,FALSE) -> 1 | AD152: 111712 | AE152: HC200 | AF152: BOUTEILLE DE DÉCOUPLAGE DN65 > 350 et < 460 kW | AJ152: 1101 | AK152: 1 | AM152: 7611804 | AN152: EH648 | AO152: ISOLATION RACCORD MCA 160 | AS152: 93 | AT152: 3
U153: =VLOOKUP($V153,'Price List'!$X:$AB,3,FALSE) -> 111714 | V153: HC201 | W153: =VLOOKUP($V153,'Price List'!$X:$AB,2,FALSE) -> BOUTEILLE DE DÉCOUPLAGE DN100 > 460 kW | AA153: =VLOOKUP($V153,'Price List'!$X:$AB,5,FALSE) -> 1334 | AB153: =VLOOKUP($M$37,'gamme DD chaud'!$E$154:$AO$159,17,FALSE) -> 0
D154: =IF('Dimensionnement par chaudière'!$H$18=0,$J61,AM120) ->  | E154: =IF('Dimensionnement par chaudière'!$H$18=0,'Calcul dim par chaudière'!$L$61,$AO120) ->  | J154: =IF('Dimensionnement par chaudière'!$H$18=0,'Calcul dim par chaudière'!$K$61,$AN120) ->  | K154: =IF('Dimensionnement par chaudière'!$H$18=0,IF($D$154="","",VLOOKUP($D$154,'Price List'!A:E,5,FALSE)),$AS120) ->  | L154: =IF('Dimensionnement par chaudière'!$H$18=0,'Calcul dim par chaudière'!$Q$61,$AT120) ->  | M154: =IF($E$154="","",$K$154*$L$154) ->  | U154: =VLOOKUP($V154,'Price List'!$X:$AB,3,FALSE) -> 114311 | V154: HC222 | W154: =VLOOKUP($V154,'Price List'!$X:$AB,2,FALSE) -> BOUTEILLE DE DÉCOUPLAGE DN65 < 350 kW | AA154: =VLOOKUP($V154,'Price List'!$X:$AB,5,FALSE) -> 664 | AB154: =VLOOKUP($M$37,'gamme DD chaud'!$E$154:$AO$159,15,FALSE) -> 0
D155: =IF('Dimensionnement par chaudière'!$H$18=0,$J62,AM121) -> 7665728 | E155: =IF('Dimensionnement par chaudière'!$H$18=0,'Calcul dim par chaudière'!$L$61,$AO121) -> COLLECTEUR DN100-3 CHAUDIERES MCA 160 FR | J155: =IF('Dimensionnement par chaudière'!$H$18=0,'Calcul dim par chaudière'!$K$61,$AN121) -> EH653 | K155: =IF('Dimensionnement par chaudière'!$H$18=0,IF($D$154="","",VLOOKUP($D$154,'Price List'!A:E,5,FALSE)),$AS121) -> 1551 | L155: =IF('Dimensionnement par chaudière'!$H$18=0,'Calcul dim par chaudière'!$Q$61,$AT121) -> 1 | M155: =IF($E$155="","",$K$155*$L$155) -> 1551 | AM155: 111067 | AN155: HC215 | AO155: ISOLATION BOUTEILLE DE DÉCOUPLAGE | AS155: 260 | AT155: 1
D156: =IF('Dimensionnement par chaudière'!$H$18=0,$J63,AM122) -> 111712 | E156: =IF('Dimensionnement par chaudière'!$H$18=0,'Calcul dim par chaudière'!$L$61,$AO122) -> BOUTEILLE DE DÉCOUPLAGE DN65 > 350 et < 460 kW | J156: =IF('Dimensionnement par chaudière'!$H$18=0,'Calcul dim par chaudière'!$K$61,$AN122) -> HC200 | K156: =IF('Dimensionnement par chaudière'!$H$18=0,IF($D$154="","",VLOOKUP($D$154,'Price List'!A:E,5,FALSE)),$AS122) -> 1101 | L156: =IF('Dimensionnement par chaudière'!$H$18=0,'Calcul dim par chaudière'!$Q$61,$AT122) -> 1 | M156: =IF($E$156="","",$K$156*$L$156) -> 1101 | U156: =VLOOKUP($V156,'Price List'!$X:$AB,3,FALSE) -> 7633244 | V156: EH654 | W156: =VLOOKUP($V156,'Price List'!$X:$AB,2,FALSE) -> ADAPTATEUR DN100/DN65 | AA156: =VLOOKUP($V156,'Price List'!$X:$AB,5,FALSE) -> 328 | AB156: =VLOOKUP($M$37,'gamme DD chaud'!$E$154:$AO$159,18,FALSE) -> 1 | AD156: 7633244 | AE156: EH654 | AF156: ADAPTATEUR DN100/DN65 | AJ156: 328 | AK156: =IF($AB156>0,AB156,"") -> 1 | AM156: 111167 | AN156: HC216 | AO156: =W137 -> ISOLATION COUDES 90°C | AS156: 111 | AT156: 1
D157: =IF('Dimensionnement par chaudière'!$H$18=0,$J64,AM123) ->  | E157: =IF('Dimensionnement par chaudière'!$H$18=0,'Calcul dim par chaudière'!$L$61,$AO123) ->  | J157: =IF('Dimensionnement par chaudière'!$H$18=0,'Calcul dim par chaudière'!$K$61,$AN123) ->  | K157: =IF('Dimensionnement par chaudière'!$H$18=0,IF($D$154="","",VLOOKUP($D$154,'Price List'!A:E,5,FALSE)),$AS123) ->  | L157: =IF('Dimensionnement par chaudière'!$H$18=0,'Calcul dim par chaudière'!$Q$61,$AT123) ->  | M157: =IF($E$157="","",$K$157*$L$157) -> 
D158: =IF('Dimensionnement par chaudière'!$H$18=0,$J65,AM124) ->  | E158: =IF('Dimensionnement par chaudière'!$H$18=0,"",$AO124) ->  | J158: =IF('Dimensionnement par chaudière'!$H$18=0,'Calcul dim par chaudière'!$K$61,$AN124) ->  | K158: =IF('Dimensionnement par chaudière'!$H$18=0,IF($D$154="","",VLOOKUP($D$154,'Price List'!A:E,5,FALSE)),$AS124) ->  | L158: =IF('Dimensionnement par chaudière'!$H$18=0,'Calcul dim par chaudière'!$Q$61,$AT124) ->  | M158: =IF($E$158="","",$K$158*$L$158) -> 
D159: =IF($L$159=0,"",$AM$145) -> 7633244 | E159: =IF($L$159=0,"",$AO$145) -> ADAPTATEUR DN100/DN65 | J159: =AN145 -> EH654 | K159: =IF('Dimensionnement par chaudière'!$H$18=0,IF($D$154="","",VLOOKUP($D$154,'Price List'!A:E,5,FALSE)),$AS145) -> 328 | L159: =IF(AT145=0,"",AT145) -> 1 | M159: =IF(L159="","",$K159*$L159) -> 328
D160: =IF('Dimensionnement par chaudière'!$H$18=0,$J66,AM125) ->  | E160: =IF('Dimensionnement par chaudière'!$H$18=0,'Calcul dim par chaudière'!$L$61,$AO125) ->  | J160: =IF('Dimensionnement par chaudière'!$H$18=0,'Calcul dim par chaudière'!$K$61,$AN125) ->  | K160: =IF('Dimensionnement par chaudière'!$H$18=0,IF($D$154="","",VLOOKUP($D$154,'Price List'!A:E,5,FALSE)),$AS125) ->  | L160: =IF('Dimensionnement par chaudière'!$H$18=0,'Calcul dim par chaudière'!$Q$61,$AT125) ->  | M160: =IF($E$160="","",$K$160*$L$160) -> 
D161: =IF('Dimensionnement par chaudière'!$H$18=0,$J67,AM126) -> 7622701 | E161: =IF('Dimensionnement par chaudière'!$H$18=0,'Calcul dim par chaudière'!$L$61,$AO126) -> RAC COLLEC L MCA 160 EH656 | J161: =IF('Dimensionnement par chaudière'!$H$18=0,'Calcul dim par chaudière'!$K$61,$AN126) -> EH656 | K161: =IF('Dimensionnement par chaudière'!$H$18=0,IF($D$154="","",VLOOKUP($D$154,'Price List'!A:E,5,FALSE)),$AS126) -> 767 | L161: =IF('Dimensionnement par chaudière'!$H$18=0,'Calcul dim par chaudière'!$Q$61,$AT126) -> 3 | M161: =IF($E$161="","",$K$161*$L$161) -> 2301
D162: =IF('Dimensionnement par chaudière'!$H$18=0,$J68,AM127) -> 111708 | E162: =IF('Dimensionnement par chaudière'!$H$18=0,'Calcul dim par chaudière'!$L$61,$AO127) -> JEU DE BOUCHONS | J162: =IF('Dimensionnement par chaudière'!$H$18=0,'Calcul dim par chaudière'!$K$61,$AN127) -> HC195 | K162: =IF('Dimensionnement par chaudière'!$H$18=0,IF($D$154="","",VLOOKUP($D$154,'Price List'!A:E,5,FALSE)),$AS127) -> 43 | L162: =IF('Dimensionnement par chaudière'!$H$18=0,'Calcul dim par chaudière'!$Q$61,$AT127) -> 3 | M162: =IF($E$162="","",$K$162*$L$162) -> 129
D163: =IF('Dimensionnement par chaudière'!$H$18=0,$J69,AM128) ->  | E163: =IF('Dimensionnement par chaudière'!$H$18=0,'Calcul dim par chaudière'!$L$61,$AO128) ->  | J163: =IF('Dimensionnement par chaudière'!$H$18=0,'Calcul dim par chaudière'!$K$61,$AN128) ->  | K163: =IF('Dimensionnement par chaudière'!$H$18=0,IF($D$154="","",VLOOKUP($D$154,'Price List'!A:E,5,FALSE)),$AS128) ->  | L163: =IF('Dimensionnement par chaudière'!$H$18=0,'Calcul dim par chaudière'!$Q$61,$AT128) ->  | M163: =IF($E$163="","",$K$163*$L$163) -> 
D164: =IF('Dimensionnement par chaudière'!$H$18=0,$J70,AM129) -> 111703 | E164: =IF('Dimensionnement par chaudière'!$H$18=0,'Calcul dim par chaudière'!$L$61,$AO129) -> BRIDES PLEINES EAU DN100 | J164: =IF('Dimensionnement par chaudière'!$H$18=0,'Calcul dim par chaudière'!$K$61,$AN129) -> HC199 | K164: =IF('Dimensionnement par chaudière'!$H$18=0,IF($D$154="","",VLOOKUP($D$154,'Price List'!A:E,5,FALSE)),$AS129) -> 203 | L164: =IF('Dimensionnement par chaudière'!$H$18=0,'Calcul dim par chaudière'!$Q$61,$AT129) -> 1 | M164: =IF($E$164="","",$K$164*$L$164) -> 203
D165: =IF('Dimensionnement par chaudière'!$H$18=0,$J71,AM130) ->  | E165: =IF('Dimensionnement par chaudière'!$H$18=0,'Calcul dim par chaudière'!$L$61,$AO130) ->  | J165: =IF('Dimensionnement par chaudière'!$H$18=0,'Calcul dim par chaudière'!$K$61,$AN130) ->  | K165: =IF('Dimensionnement par chaudière'!$H$18=0,IF($D$154="","",VLOOKUP($D$154,'Price List'!A:E,5,FALSE)),$AS130) ->  | L165: =IF('Dimensionnement par chaudière'!$H$18=0,'Calcul dim par chaudière'!$Q$61,$AT130) ->  | M165: =IF($E$165="","",$K$165*$L$165) -> 
D166: =IF('Dimensionnement par chaudière'!$H$18=0,$J72,AM131) -> 7637223 | E166: =IF('Dimensionnement par chaudière'!$H$18=0,'Calcul dim par chaudière'!$L$61,$AO131) -> POMPE UPM XL GRUNDFOS 25-105 H180 | J166: =IF('Dimensionnement par chaudière'!$H$18=0,'Calcul dim par chaudière'!$K$61,$AN131) -> EH651 | K166: =IF('Dimensionnement par chaudière'!$H$18=0,IF($D$154="","",VLOOKUP($D$154,'Price List'!A:E,5,FALSE)),$AS131) -> 652 | L166: =IF('Dimensionnement par chaudière'!$H$18=0,'Calcul dim par chaudière'!$Q$61,$AT131) -> 3 | M166: =IF($E$166="","",$K$166*$L$166) -> 1956
D167: =IF('Dimensionnement par chaudière'!$H$18=0,$J73,AM132) -> 7638518 | E167: =IF('Dimensionnement par chaudière'!$H$18=0,$J73,AO132) -> JEU DE CONTRE BRIDE A SOUDER DN65 | J167: =IF('Dimensionnement par chaudière'!$H$18=0,$J73,AN132) -> EH669 | K167: =IF('Dimensionnement par chaudière'!$H$18=0,$J73,AS132) -> 150 | L167: =IF('Dimensionnement par chaudière'!$H$18=0,$J73,AT132) -> 1 | M167: =IF($J$167="","",$K$167*$L$167) -> 150
D168: =IF('Dimensionnement par chaudière'!$H$18=0,$J74,"") ->  | E168: =IF('Dimensionnement par chaudière'!$H$18=0,'Calcul dim par chaudière'!$L$74,"") ->  | J168: =IF('Dimensionnement par chaudière'!$H$18=0,'Calcul dim par chaudière'!$K$74,"") ->  | K168: =IF('Dimensionnement par chaudière'!$H$18=0,IF($D$168="","",VLOOKUP($D$168,'Price List'!A:E,5,FALSE)),"") ->  | L168: =IF('Dimensionnement par chaudière'!$H$18=0,'Calcul dim par chaudière'!$Q$74,"") ->  | M168: =IF($E$168="","",$K$168*$L$168) ->  | U168: =VLOOKUP($V168,'Price List'!$X:$AB,3,FALSE) -> 7621566 | V168: EH664 | W168: =VLOOKUP($V168,'Price List'!$X:$AB,2,FALSE) -> CHASSIS DE MONTAGE MCA 160 | AA168: =VLOOKUP($V168,'Price List'!$X:$AB,5,FALSE) -> 208 | AB168: =VLOOKUP($M$37,'gamme DD chaud'!$E$154:$AO$159,22,FALSE) -> 0
D169: =IF('Dimensionnement par chaudière'!$H$18=0,$J75,"") ->  | E169: =IF('Dimensionnement par chaudière'!$H$18=0,'Calcul dim par chaudière'!$L$75,"") ->  | J169: =IF('Dimensionnement par chaudière'!$H$18=0,'Calcul dim par chaudière'!$K$75,"") ->  | K169: =IF('Dimensionnement par chaudière'!$H$18=0,IF($D$169="","",VLOOKUP($D$169,'Price List'!A:E,5,FALSE)),"") ->  | L169: =IF('Dimensionnement par chaudière'!$H$18=0,'Calcul dim par chaudière'!$Q$75,"") ->  | M169: =IF($E$169="","",$K$169*$L$169) ->  | U169: =VLOOKUP($V169,'Price List'!$X:$AB,3,FALSE) -> 7612941 | V169: EH663 | W169: =VLOOKUP($V169,'Price List'!$X:$AB,2,FALSE) -> MONTANT-SUPPORT I MCA 160 | AA169: =VLOOKUP($V169,'Price List'!$X:$AB,5,FALSE) -> 126 | AB169: =VLOOKUP($M$37,'gamme DD chaud'!$E$154:$AO$159,21,FALSE) -> 0
D170: =IF('Dimensionnement par chaudière'!$H$18=0,$J76,"") ->  | E170: =IF('Dimensionnement par chaudière'!$H$18=0,'Calcul dim par chaudière'!$L$76,"") ->  | J170: =IF('Dimensionnement par chaudière'!$H$18=0,'Calcul dim par chaudière'!$K$76,"") ->  | K170: =IF('Dimensionnement par chaudière'!$H$18=0,IF($D$170="","",VLOOKUP($D$170,'Price List'!A:E,5,FALSE)),"") ->  | L170: =IF('Dimensionnement par chaudière'!$H$18=0,'Calcul dim par chaudière'!$Q$76,"") ->  | M170: =IF($E$170="","",$K$170*$L$170) ->  | U170: =VLOOKUP($V170,'Price List'!$X:$AB,3,FALSE) -> 7637077 | V170: EH670 | W170: =VLOOKUP($V170,'Price List'!$X:$AB,2,FALSE) -> RAIL DE MONTAGE MURAL 2 CHAUDIÈRES MCA 160 | AA170: =VLOOKUP($V170,'Price List'!$X:$AB,5,FALSE) -> 49 | AB170: =VLOOKUP($M$37,'gamme DD chaud'!$E$154:$AO$159,23,FALSE) -> 0
D171: =IF('Dimensionnement par chaudière'!$H$18=0,$J77,"") ->  | E171: =IF('Dimensionnement par chaudière'!$H$18=0,'Calcul dim par chaudière'!$L$77,"") ->  | J171: =IF('Dimensionnement par chaudière'!$H$18=0,'Calcul dim par chaudière'!$K$77,"") ->  | K171: =IF('Dimensionnement par chaudière'!$H$18=0,IF($D$171="","",VLOOKUP($D$171,'Price List'!A:E,5,FALSE)),"") ->  | L171: =IF('Dimensionnement par chaudière'!$H$18=0,'Calcul dim par chaudière'!$Q$77,"") ->  | M171: =IF($E$171="","",$K$171*$L$171) ->  | U171: =VLOOKUP($V171,'Price List'!$X:$AB,3,FALSE) -> 7637088 | V171: EH671 | W171: =VLOOKUP($V171,'Price List'!$X:$AB,2,FALSE) -> RAIL DE MONTAGE MURAL 3 CHAUDIÈRES MCA 160 | AA171: =VLOOKUP($V171,'Price List'!$X:$AB,5,FALSE) -> 70 | AB171: =VLOOKUP($M$37,'gamme DD chaud'!$E$154:$AO$159,24,FALSE) -> 1 | AD171: 7637088 | AE171: EH671 | AF171: RAIL DE MONTAGE MURAL 3 CHAUDIÈRES MCA 160 | AJ171: 70 | AK171: 1
D172: =IF('Dimensionnement par chaudière'!$H$18=0,$J78,"") ->  | E172: =IF('Dimensionnement par chaudière'!$H$18=0,'Calcul dim par chaudière'!$L$78,"") ->  | J172: =IF('Dimensionnement par chaudière'!$H$18=0,'Calcul dim par chaudière'!$K$78,"") ->  | K172: =IF('Dimensionnement par chaudière'!$H$18=0,IF($D$172="","",VLOOKUP($D$172,'Price List'!A:E,5,FALSE)),"") ->  | L172: =IF('Dimensionnement par chaudière'!$H$18=0,'Calcul dim par chaudière'!$Q$78,"") ->  | M172: =IF($E$172="","",$K$172*$L$172) -> 
D173: =IF('Dimensionnement par chaudière'!$H$18=0,$J79,"") ->  | U173: =VLOOKUP($V173,'Price List'!$X:$AB,3,FALSE) -> 111703 | V173: HC199 | W173: =VLOOKUP($V173,'Price List'!$X:$AB,2,FALSE) -> BRIDES PLEINES EAU DN100 | AA173: =VLOOKUP($V173,'Price List'!$X:$AB,5,FALSE) -> 203 | AB173: =VLOOKUP($M$37,'gamme DD chaud'!$E$154:$AO$159,20,FALSE) -> 1 | AD173: 111703 | AE173: HC199 | AF173: BRIDES PLEINES EAU DN100 | AJ173: 203 | AK173: 1
D174: =IF('Dimensionnement par chaudière'!$H$18=0,$J80,"") ->  | E174: =IF('Dimensionnement par chaudière'!$H$18=0,'Calcul dim par chaudière'!$L$58,"") ->  | J174: =IF('Dimensionnement par chaudière'!$H$18=0,'Calcul dim par chaudière'!$K$58,"") ->  | K174: =IF('Dimensionnement par chaudière'!$H$18=0,IF($D$174="","",VLOOKUP($D$174,'Price List'!A:E,5,FALSE)),"") ->  | L174: =IF('Dimensionnement par chaudière'!$H$18=0,'Calcul dim par chaudière'!$Q$58,"") ->  | M174: =IF($E$174="","",$K$174*$L$174) ->  | U174: =VLOOKUP($V174,'Price List'!$X:$AB,3,FALSE) -> 7631858 | V174: EH649 | W174: =VLOOKUP($V174,'Price List'!$X:$AB,2,FALSE) -> PLAQ ISOLATION AR | AA174: =VLOOKUP($V174,'Price List'!$X:$AB,5,FALSE) -> 85
D175: =IF('Dimensionnement par chaudière'!$H$18=0,$J81,"") ->  | E175: =IF('Dimensionnement par chaudière'!$H$18=0,'Calcul dim par chaudière'!$L$59,"") ->  | J175: =IF('Dimensionnement par chaudière'!$H$18=0,'Calcul dim par chaudière'!$K$59,"") ->  | K175: =IF('Dimensionnement par chaudière'!$H$18=0,IF($D$175="","",VLOOKUP($D$175,'Price List'!A:E,5,FALSE)),"") ->  | L175: =IF('Dimensionnement par chaudière'!$H$18=0,'Calcul dim par chaudière'!$Q$59,"") ->  | M175: =IF($E$175="","",$K$175*$L$175) ->  | AD175: =IF($AB175>0,U175,"") ->  | AE175: =IF($AB175>0,V175,"") ->  | AF175: =IF($AB175>0,W175,"") ->  | AJ175: =IF($AB175>0,AA175,"") ->  | AK175: =IF($AB175>0,AB175,"") -> 
D176: =IF('Dimensionnement par chaudière'!$H$18=0,$J82,"") ->  | E176: =IF('Dimensionnement par chaudière'!$H$18=0,'Calcul dim par chaudière'!$L$60,"") ->  | J176: =IF('Dimensionnement par chaudière'!$H$18=0,'Calcul dim par chaudière'!$K$60,"") ->  | K176: =IF('Dimensionnement par chaudière'!$H$18=0,IF($D$176="","",VLOOKUP($D$176,'Price List'!A:E,5,FALSE)),"") ->  | L176: =IF('Dimensionnement par chaudière'!$H$18=0,'Calcul dim par chaudière'!$Q$60,"") ->  | M176: =IF($E$176="","",$K$176*$L$176) ->  | U176: =VLOOKUP($V176,'Price List'!$X:$AB,3,FALSE) -> 111708 | V176: HC195 | W176: =VLOOKUP($V176,'Price List'!$X:$AB,2,FALSE) -> JEU DE BOUCHONS | AA176: =VLOOKUP($V176,'Price List'!$X:$AB,5,FALSE) -> 43 | AB176: =D6 -> 3 | AD176: 111708 | AE176: HC195 | AF176: JEU DE BOUCHONS | AJ176: 43 | AK176: 3
U177: =VLOOKUP($V177,'Price List'!$X:$AB,3,FALSE) -> 7638518 | V177: EH669 | W177: =VLOOKUP($V177,'Price List'!$X:$AB,2,FALSE) -> JEU DE CONTRE BRIDE A SOUDER DN65 | AA177: =VLOOKUP($V177,'Price List'!$X:$AB,5,FALSE) -> 150 | AB177: =VLOOKUP($M$37,'gamme DD chaud'!$E$154:$AO$159,36,FALSE) -> 1 | AD177: 7638518 | AE177: EH669 | AF177: JEU DE CONTRE BRIDE A SOUDER DN65 | AJ177: 150 | AK177: 1
D178: Régulation | U178: =VLOOKUP($V178,'Price List'!$X:$AB,3,FALSE) -> 112633 | V178: HC218 | W178: =VLOOKUP($V178,'Price List'!$X:$AB,2,FALSE) -> JEU DE CONTRE-BRIDES À SOUDER DN100 | AA178: =VLOOKUP($V178,'Price List'!$X:$AB,5,FALSE) -> 183 | AB178: =VLOOKUP($M$37,'gamme DD chaud'!$E$154:$AO$159,37,FALSE) -> 0
D180: =IF('Dimensionnement par chaudière'!$H$18=0,$J$55,AM136) ->  | E180: =IF('Dimensionnement par chaudière'!$H$18=0,'Calcul dim par chaudière'!$L$55,AO136) ->  | J180: =IF('Dimensionnement par chaudière'!$H$18=0,'Calcul dim par chaudière'!$K$55,AN136) ->  | K180: =IF('Dimensionnement par chaudière'!$H$18=0,IF($D$180="","",VLOOKUP($D$180,'Price List'!A:E,5,FALSE)),AS136) ->  | L180: =IF('Dimensionnement par chaudière'!$H$18=0,'Calcul dim par chaudière'!$Q$55,AT136) ->  | M180: =IF($E$180="","",$K$180*$L$180) ->  | V180: Régulation
D181: =IF('Dimensionnement par chaudière'!$H$18=0,$J$55,AM137) -> 100008701 | E181: =IF('Dimensionnement par chaudière'!$H$18=0,'Calcul dim par chaudière'!$L$55,AO137) -> SONDE DE DÉPART + DOIGT DE GANT | J181: =IF('Dimensionnement par chaudière'!$H$18=0,'Calcul dim par chaudière'!$K$55,AN137) -> HC206 | K181: =IF('Dimensionnement par chaudière'!$H$18=0,IF($D$180="","",VLOOKUP($D$180,'Price List'!A:E,5,FALSE)),AS137) -> 167 | L181: =IF('Dimensionnement par chaudière'!$H$18=0,'Calcul dim par chaudière'!$Q$55,AT137) -> 1 | M181: =IF($E$181="","",$K$181*$L$181) -> 167 | U181: =VLOOKUP($V181,'Price List'!$X:$AB,3,FALSE) -> 100013304 | V181: AD249 | W181: =VLOOKUP($V181,'Price List'!$X:$AB,2,FALSE) -> COLIS OPTION V3V OE-TRONIC 4 | AA181: =VLOOKUP($V181,'Price List'!$X:$AB,5,FALSE) -> 170
D182: =IF('Dimensionnement par chaudière'!$H$18=0,$J$55,AM138) -> 7663561 | E182: =IF('Dimensionnement par chaudière'!$H$18=0,'Calcul dim par chaudière'!$L$55,AO138) -> CABLE S-BUS 12M AVEC BOUCHONS | J182: =IF('Dimensionnement par chaudière'!$H$18=0,'Calcul dim par chaudière'!$K$55,AN138) -> AD309 | K182: =IF('Dimensionnement par chaudière'!$H$18=0,IF($D$180="","",VLOOKUP($D$180,'Price List'!A:E,5,FALSE)),AS138) -> 106 | L182: =IF('Dimensionnement par chaudière'!$H$18=0,'Calcul dim par chaudière'!$Q$55,AT138) -> 2 | M182: =IF($E$182="","",$K$182*$L$182) -> 212 | U182: =VLOOKUP($V182,'Price List'!$X:$AB,3,FALSE) -> 85757741 | V182: FM46 | W182: =VLOOKUP($V182,'Price List'!$X:$AB,2,FALSE) -> SONDE EXTERIEURE | AA182: =VLOOKUP($V182,'Price List'!$X:$AB,5,FALSE) -> 43
D183: =VLOOKUP($V182,'Price List'!$X:$AB,3,FALSE) -> 85757741 | E183: =+W182 -> SONDE EXTERIEURE | J183: =+V182 -> FM46 | K183: =+AA182 -> 43 | L183: 1 | M183: =IF($E$182="","",$K$183*$L$183) -> 43 | U183: =VLOOKUP($V183,'Price List'!$X:$AB,3,FALSE) -> 88017017 | V183: AD199 | W183: =VLOOKUP($V183,'Price List'!$X:$AB,2,FALSE) -> SONDE DEPART v3v | AA183: =VLOOKUP($V183,'Price List'!$X:$AB,5,FALSE) -> 85
U184: =VLOOKUP($V184,'Price List'!$X:$AB,3,FALSE) -> 100000030 | V184: AD212 | W184: =VLOOKUP($V184,'Price List'!$X:$AB,2,FALSE) -> COLIS OPTION SONDE ECS | AA184: =VLOOKUP($V184,'Price List'!$X:$AB,5,FALSE) -> 53
D185: Mise en service | U185: =VLOOKUP($V185,'Price List'!$X:$AB,3,FALSE) -> 100013305 | V185: AD250 | W185: =VLOOKUP($V185,'Price List'!$X:$AB,2,FALSE) -> SONDE SYSTÈME ECS | AA185: =VLOOKUP($V185,'Price List'!$X:$AB,5,FALSE) -> 49
M186: =$S$49 -> 504 | U186: =VLOOKUP($V186,'Price List'!$X:$AB,3,FALSE) ->  | V186: AD137 | W186: =VLOOKUP($V186,'Price List'!$X:$AB,2,FALSE) ->  | AA186: =VLOOKUP($V186,'Price List'!$X:$AB,5,FALSE) -> 
U187: =VLOOKUP($V187,'Price List'!$X:$AB,3,FALSE) ->  | V187: AD200 | W187: =VLOOKUP($V187,'Price List'!$X:$AB,2,FALSE) ->  | AA187: =VLOOKUP($V187,'Price List'!$X:$AB,5,FALSE) -> 
U188: =VLOOKUP($V188,'Price List'!$X:$AB,3,FALSE) -> 88017859 | V188: AD140 | W188: =VLOOKUP($V188,'Price List'!$X:$AB,2,FALSE) -> THERMOSTAT D'AMBIANCE NON PROGRAMMABLE | AA188: =VLOOKUP($V188,'Price List'!$X:$AB,5,FALSE) -> 54
D190: Prix du système cascade (Prix net 2020) | M190: =SUM($M$143:$M$183) -> 8211
D191: Prix des chaudières (Prix net 2020) | M191: =$E$49 -> 31671 | AF191: fait parti du "système cascade "
D192: Prix total du système cascade + chaudières + Mise en service (Prix net 2020) | M192: =$M$190+$M$191+$M$186 -> 40386 | AF192: voir catalogue
U193: Liste des accessoires utilisés dans "gamme DD chaud" | AF193: Le reste en option
C194: Accessoires | D194: Référence | F194: Désignation | J194: Colis | K194: Prix unitaire | L194: Qtté | M194: Prix net | AF194: En option avec case à cocher ( nombre donné automatiquement)
K195: en € | M195: en € | V195: colis DD | W195: Désignation | X195: Référence | Y195: Prix
V196: EH651 | W196: POMPE UPM XL GRUNDFOS 25-105 H180 | X196: 7637223 | Y196: 605.8
D197: =+AM146 -> 7622201 | E197: =AO146 -> ISOLATION ADAPTATEUR 100/65 | J197: =IF(AND(E197<>"",N197=TRUE),AN146,"") ->  | K197: =IFERROR(IF(AND(E197<>"",N197=TRUE),VLOOKUP($D197,'Price List'!$1:$1048576,4,FALSE),""),"") ->  | L197: =IF(AND(E197<>"",N197=TRUE),IF(AT146=0,"",AT146),"") ->  | M197: =IF(L197="","",IF(N197=TRUE,$K197*$L197,"")) ->  | N197: FALSE | V197: EH652 | W197: COLLECTEUR DN100-2 CHAUDIERES MCA 160 FR | X197: 7665725 | Y197: 1137.5
D198: S101656 | E198: =+AO147 -> FILTRE GAZ DN65 | J198: =IF(AND(E198<>"",N198=TRUE),AN147,"") ->  | K198: =IFERROR(IF(AND(E198<>"",N198=TRUE),VLOOKUP($D198,'Price List'!$1:$1048576,4,FALSE),""),"") ->  | L198: =IF(AND(E198<>"",N198=TRUE),IF(AT147=0,"",AT147),"") ->  | M198: =IF(L198="","",IF(N198=TRUE,$K198*$L198,"")) ->  | N198: FALSE | V198: EH653 | W198: COLLECTEUR DN100-3 CHAUDIERES MCA 160 FR | X198: 7665728 | Y198: 1442
D199: 111788 | E199: COUDES DN65 | K199: =IFERROR(IF(AND(E199<>"",N199=TRUE),VLOOKUP($D199,'Price List'!$1:$1048576,4,FALSE),""),"") ->  | N199: FALSE | V199: HC222 | W199: BOUTEILLE DE DÉCOUPLAGE DN65 < 350 kW | X199: 114311 | Y199: 617.5
K200: =IFERROR(IF(AND(E200<>"",N200=TRUE),VLOOKUP($D200,'Price List'!$1:$1048576,4,FALSE),""),"") ->  | N200: FALSE | V200: HC200 | W200: BOUTEILLE DE DÉCOUPLAGE DN65 > 350 et < 460 kW | X200: 111712 | Y200: 1028.2
D201: =+AM150 ->  | E201: =+AO150 ->  | J201: =IF(AND(E201<>"",N201=TRUE),AN150,"") ->  | K201: =IFERROR(IF(AND(E201<>"",N201=TRUE),VLOOKUP($D201,'Price List'!$1:$1048576,4,FALSE),""),"") ->  | L201: =IF(AND(E201<>"",N201=TRUE),IF(AT150=0,"",AT150),"") ->  | N201: FALSE | V201: HC201 | W201: BOUTEILLE DE DÉCOUPLAGE DN100 > 460 kW | X201: 111714 | Y201: 1239.7
D202: 7613401 | E202: ISOLATION COLLECTEUR MCA 160 | K202: =IFERROR(IF(AND(E202<>"",N202=TRUE),VLOOKUP($D202,'Price List'!$1:$1048576,4,FALSE),""),"") ->  | N202: FALSE | V202: EH654 | W202: ADAPTATEUR DN100/DN65 | X202: 7633244 | Y202: 304.9
D203: 7611804 | E203: ISOLATION RACCORD MCA 160 | K203: =IFERROR(IF(AND(E203<>"",N203=TRUE),VLOOKUP($D203,'Price List'!$1:$1048576,4,FALSE),""),"") ->  | N203: FALSE | V203: EH656 | W203: RAC COLLEC L MCA 160 EH656 | X203: 7622701 | Y203: 712.3
K204: =IFERROR(IF(AND(E204<>"",N204=TRUE),VLOOKUP($D204,'Price List'!$1:$1048576,4,FALSE),""),"") ->  | N204: FALSE | V204: HC199 | W204: BRIDES PLEINES EAU DN100 | X204: 111703 | Y204: 189.1
K205: =IFERROR(IF(AND(E205<>"",N205=TRUE),VLOOKUP($D205,'Price List'!$1:$1048576,4,FALSE),""),"") ->  | N205: FALSE | V205: EH663 | W205: MONTANT-SUPPORT I MCA 160 | X205: 7612941 | Y205: 116.7
D206: 111067 | E206: ISOLATION BOUTEILLE DE DÉCOUPLAGE | K206: =IFERROR(IF(AND(E206<>"",N206=TRUE),VLOOKUP($D206,'Price List'!$1:$1048576,4,FALSE),""),"") ->  | N206: FALSE | V206: EH664 | W206: CHASSIS DE MONTAGE MCA 160 | X206: 7621566 | Y206: 193.1
V207: EH670 | W207: RAIL DE MONTAGE MURAL 2 CHAUDIÈRES MCA 160 | X207: 7637077 | Y207: 46.5
V208: EH671 | W208: RAIL DE MONTAGE MURAL 3 CHAUDIÈRES MCA 160 | X208: 7637088 | Y208: 65.2
F209: Modif des options pour devis | V209: HC256 | W209: FILTRE GAZ DN65 | X209: S101656 | Y209: 714.5
V210: HC209 | W210: COUDES DN65 | X210: 111788 | Y210: 647.7
D211: ='Dimensionnement par chaudière'!E109 -> 0 | E211: ='Dimensionnement par chaudière'!F109 -> 0 | J211: ='Dimensionnement par chaudière'!K109 -> 0 | K211: ='Dimensionnement par chaudière'!L109 -> 0 | L211: ='Dimensionnement par chaudière'!M109 -> 0 | M211: ='Dimensionnement par chaudière'!N109 ->  | V211: HC210 | W211: COUDES DN100 | X211: 111790 | Y211: 893.1
D212: ='Dimensionnement par chaudière'!E110 -> 0 | E212: ='Dimensionnement par chaudière'!F110 -> 0 | J212: ='Dimensionnement par chaudière'!K110 -> 0 | K212: ='Dimensionnement par chaudière'!L110 -> 0 | L212: ='Dimensionnement par chaudière'!M110 -> 0 | M212: ='Dimensionnement par chaudière'!N110 ->  | V212: EH647 | W212: ISOLATION COLLECTEUR MCA 160 | X212: 7613401 | Y212: 89.2
D213: ='Dimensionnement par chaudière'!E111 -> 0 | E213: ='Dimensionnement par chaudière'!F111 -> 0 | J213: ='Dimensionnement par chaudière'!K111 -> 0 | K213: ='Dimensionnement par chaudière'!L111 -> 0 | L213: ='Dimensionnement par chaudière'!M111 -> 0 | M213: ='Dimensionnement par chaudière'!N111 ->  | V213: EH648 | W213: ISOLATION RACCORD MCA 160 | X213: 7611804 | Y213: 86.6
... 17 more rows

Sheet calculs par chaud (hidden)
B1: nbchaud | C1: ='Dimensionnement par chaudière'!E18 -> 3 | D1: ='Dimensionnement par chaudière'!E27 -> 0
B2: 2 | H2: iSystem | I2: iniControl | L2: nb iSystem
B3: 3 | F3: MCA 45 | G3: =D12 -> 0 | H3: =IF(D1-H4-H5-H6<G3,D1-H4-H5-H6,G3) ->  | I3: =G3-H3 ->  | L3: 0 | M3: =IF(L3>$C$1,"",L3) -> 0
B4: 4 | F4: MCA 65 | G4: =H12 ->  | H4: =IF(D1-H5-H6<G4,D1-H5-H6,G4) ->  | I4: =G4-H4 ->  | L4: 1 | M4: =IF(L4>$C$1,"",L4) -> 1
B5: 5 | F5: MCA 90 | G5: =L12 -> 0 | H5: =IF(D1-H6<G5,D1-H6,G5) -> 0 | I5: =G5-H5 -> 0 | L5: 2 | M5: =IF(L5>$C$1,"",L5) -> 2
B6: 6 | F6: MCA 115 | G6: =O12 -> 0 | H6: =IF(D1<G6,D1,G6) -> 0 | I6: =G6-H6 -> 0 | L6: 3 | M6: =IF(L6>$C$1,"",L6) -> 3
B7: 7 | F7: MCA 160 | G7: =R12 ->  | H7: =IF(D1<G7,D1,G7) ->  | I7: =G7-H7 ->  | L7: 4 | M7: =IF(L7>$C$1,"",L7) -> 
B8: 8
B9: 9
B10: 10
B12: mc45 | C12: =B12 -> mc45 | D12: ='Dimensionnement par chaudière'!G18 -> 0 | F12: mc65 | G12: mc65 | H12: ='Dimensionnement par chaudière'!#REF! ->  | J12: mc90 | K12: mc90 | L12: ='Dimensionnement par chaudière'!I18 -> 0 | N12: mc115 | O12: ='Dimensionnement par chaudière'!J18 -> 0 | Q12: mca 160 | R12: =C1-D12-H12-L12-O12 -> 
B13: =C1 -> 3 | C13: =IF(B13>=0,B13,"") -> 3 | F13: =C1-D12 -> 3 | G13: =IF(F13>=0,F13,"") -> 3 | J13: =C1-D12-H12 ->  | K13: =IF(J13>=0,J13,"") ->  | N13: =$C$1-H12-L12 ->  | O13: =IF(N13<0,"",N13) -> 
B14: =B13-1 -> 2 | C14: =IF(B14>=0,B14,"") -> 2 | F14: =F13-1 -> 2 | G14: =IF(F14>=0,F14,"") -> 2 | J14: =J13-1 ->  | K14: =IF(J14>=0,J14,"") ->  | N14: =N13-1 ->  | O14: =IF(N14<0,"",N14) -> 
B15: =B14-1 -> 1 | C15: 1 | F15: =F14-1 -> 1 | G15: 1 | J15: =J14-1 ->  | N15: =N14-1 -> 
B16: 0 | C16: 0 | F16: 0 | G16: 0
B17: -1 | F17: -1
B18: -2 | F18: -2
B19: -3 | F19: -3
B20: -4 | F20: -4
A21: =texte!B40 -> mural "LW" | B21: -5 | F21: -5
A22: =texte!B41 -> sol "LV" | B22: -6 | F22: -6
A23: =texte!B42 -> dos à dos "RG" | B23: -7 | F23: -7
A25: type | B25: ='Dimensionnement par chaudière'!E20 -> mural "LW"
A26: =IF(C1>7,"",A21) -> mural "LW" | B26: =IF(B25=A21,"LW",IF(B25=A22,"LV",IF(B25=A23,"RG",""))) -> LW | J26: =IF(AND(B26="RG",C1=2),0,IF(AND(C1>7,B26="LV"),0,IF(AND(C1>7,B26="LW"),0,1))) -> 1
A27: =IF(C1>7,"",A22) -> sol "LV"
A28: =IF(C1=2,"",A23) -> dos à dos "RG"
B31: =TEXT(TRUNC(C31*C34+D31*D34+E31*E34+F31*F34+G34*G31),"0000") ->  | C31: =D12 -> 0 | D31: =H12 ->  | E31: =L12 -> 0 | F31: =O12 -> 0 | G31: =R12 ->  | H31: =B26 -> LW | J31: =CONCATENATE(H31,".",B31,"kW",".",C31,D31,E31,F31,G31) -> 
C33: MC 45 | D33: MC 65 | E33: MC 90 | F33: MC 115 | G33: MC 160 | J33: =IF(J26=0,texte!B16,J31) -> 
C34: 40 | D34: 61 | E34: 84.2 | F34: 107 | G34: 152
A37: Références des accessoires et options pour MCA 45 à 115 | AB37: Références des accessoires et options pour MCA 160
A40: =VLOOKUP($J$31,'gamme DD chaud'!$E$14:$BM$143,1) ->  | B40: =VLOOKUP($J$31,'gamme DD chaud'!$E$14:$BM$143,9) ->  | C40: =VLOOKUP($J$31,'gamme DD chaud'!$E$14:$BM$143,38) ->  | D40: =VLOOKUP($J$31,'gamme DD chaud'!$E$14:$BM$143,39) -> 
A41: =VLOOKUP($J$31,'gamme DD chaud'!$E$14:$BM$143,2) ->  | AC41: Base de Données du catalogue p 80/81/83 MCA 160 seule ou Cascade | AI41: Base de Données Tarif
A42: =texte!H7 -> SONDE DE DÉPART + DOIGT DE GANT | B42: =VLOOKUP($J$31,'gamme DD chaud'!$E$14:$BM$143,11) ->  | C42: ='gamme DD chaud'!$O11 -> 167 | D42: ='gamme DD chaud'!$O12 -> 100008701 | E42: =IF('Dimensionnement par chaudière'!$E$23=texte!$B$16,"",IF($B42=0,"",A42)) ->  | F42: =IF('Dimensionnement par chaudière'!$E$23=texte!$B$16,"",IF($B42=0,"",B42)) ->  | G42: =IF('Dimensionnement par chaudière'!$E$23=texte!$B$16,"",IF($B42=0,"",C42)) ->  | H42: =IF('Dimensionnement par chaudière'!$E$23=texte!$B$16,"",IF($B42=0,"",D42)) ->  | M42: Support | Q42: SONDE DE DÉPART + DOIGT DE GANT-BOUTEILLE > 350 kW | R42: 0 | S42: 151.9 | T42: 100008701 | AR42: Ex Composition du système (pour 1 *45 + 1*65 + 2*90) | BB42: Si MCA 160 sélectionnée
A43: =texte!H8 -> SONDE DE DÉPART + DOIGT DE GANT-BOUTEILLE < 350 kW | B43: =VLOOKUP($J$31,'gamme DD chaud'!$E$14:$BM$143,11) ->  | C43: ='gamme DD chaud'!$P11 -> 141 | D43: ='gamme DD chaud'!$P12 -> 100013027 | E43: =IF('Dimensionnement par chaudière'!$E$23=texte!$B$16,"",IF($B43=0,"",A43)) ->  | F43: =IF('Dimensionnement par chaudière'!$E$23=texte!$B$16,"",IF($B43=0,"",B43)) ->  | G43: =IF('Dimensionnement par chaudière'!$E$23=texte!$B$16,"",IF($B43=0,"",C43)) ->  | H43: =IF('Dimensionnement par chaudière'!$E$23=texte!$B$16,"",IF($B43=0,"",D43)) ->  | M43: Hydraulique | Q43: SONDE DE DÉPART + DOIGT DE GANT-BOUTEILLE < 350 kW | R43: 1 | S43: 129.6 | T43: 100013027 | U43: SONDE DE DÉPART + DOIGT DE GANT-BOUTEILLE < 350 kW | V43: 1 | W43: 129.6 | X43: 100013027 | AE43: Référence absente du tarif 2017 de janvier | AJ43: A partir de ligne 6037
A44: =texte!H9 -> CABLE BUS RX11 LG 1,5 M | B44: =VLOOKUP($J$31,'gamme DD chaud'!$E$14:$BM$143,12) ->  | C44: ='gamme DD chaud'!$Q11 -> 90 | D44: ='gamme DD chaud'!$Q12 -> 88017836 | E44: =IF('Dimensionnement par chaudière'!$E$23=texte!$B$16,"",IF($B44=0,"",A44)) ->  | F44: =IF('Dimensionnement par chaudière'!$E$23=texte!$B$16,"",IF($B44=0,"",B44)) ->  | G44: =IF('Dimensionnement par chaudière'!$E$23=texte!$B$16,"",IF($B44=0,"",C44)) ->  | H44: =IF('Dimensionnement par chaudière'!$E$23=texte!$B$16,"",IF($B44=0,"",D44)) ->  | M44: Pompe | Q44: CABLE DE LIAISON INTER-MODULE RX 11 | R44: 1 | S44: 84.5 | T44: 88017836 | U44: CABLE DE LIAISON INTER-MODULE RX 11 | V44: 1 | W44: 84.5 | X44: 88017836 | AE44: Référence absente du tarif 2017 en mars (en cours de correction )( suivi par N.OGET) | AR44: 111690 | AT44: RAIL DE MONTAGE MURAL 4 CHAUDIÈRES | AX44: HC194 | AY44: 64.8 | AZ44: 1 | BA44: 64.8 | BB44: Voir pour rail de montage (si plusieurs taille nécessaire)
A45: =texte!H10 -> POMPE CHAUFFAGE EEI UPM2 25-70 130MM | B45: =VLOOKUP($J$31,'gamme DD chaud'!$E$14:$BM$143,13) ->  | C45: ='gamme DD chaud'!$R11 -> 326 | D45: ='gamme DD chaud'!$R12 -> S101614 | E45: =IF('Dimensionnement par chaudière'!$E$23=texte!$B$16,"",IF($B45=0,"",A45)) ->  | F45: =IF('Dimensionnement par chaudière'!$E$23=texte!$B$16,"",IF($B45=0,"",B45)) ->  | G45: =IF('Dimensionnement par chaudière'!$E$23=texte!$B$16,"",IF($B45=0,"",C45)) ->  | H45: =IF('Dimensionnement par chaudière'!$E$23=texte!$B$16,"",IF($B45=0,"",D45)) ->  | M45: Régulation | Q45: POMPE CHAUFFAGE EEI UPM 25/70 POUR MCA 45 | R45: 0 | S45: 297 | T45: S101614 | AI45: INNOVENS PRO MCA 160 | AN45: Support
A46: =texte!H11 -> POMPE CHAUFFAGE EEI UPM2 25-70 130MM | B46: =VLOOKUP($J$31,'gamme DD chaud'!$E$14:$BM$143,14) ->  | C46: ='gamme DD chaud'!$S11 -> 326 | D46: ='gamme DD chaud'!$S12 -> S101614 | E46: =IF('Dimensionnement par chaudière'!$E$23=texte!$B$16,"",IF($B46=0,"",A46)) ->  | F46: =IF('Dimensionnement par chaudière'!$E$23=texte!$B$16,"",IF($B46=0,"",B46)) ->  | G46: =IF('Dimensionnement par chaudière'!$E$23=texte!$B$16,"",IF($B46=0,"",C46)) ->  | H46: =IF('Dimensionnement par chaudière'!$E$23=texte!$B$16,"",IF($B46=0,"",D46)) ->  | Q46: POMPE CHAUFFAGE EEI UPM 25/70 POUR MCA 45 | R46: 0 | S46: 297 | T46: S101614 | AD46: Absence dans le catalogue de l'accessoire (rail de montage pour MCA 160) ( p81) (voir tarif ligne 6083) | AN46: Hydraulique | AR46: Hydraulique
A47: =texte!H12 -> POMPE CHAUFFAGE UPML 25-115 130 MM | B47: =VLOOKUP($J$31,'gamme DD chaud'!$E$14:$BM$143,15) ->  | C47: ='gamme DD chaud'!$T11 -> 421 | D47: ='gamme DD chaud'!$T12 -> 7608398 | E47: =IF('Dimensionnement par chaudière'!$E$23=texte!$B$16,"",IF($B47=0,"",A47)) ->  | F47: =IF('Dimensionnement par chaudière'!$E$23=texte!$B$16,"",IF($B47=0,"",B47)) ->  | G47: =IF('Dimensionnement par chaudière'!$E$23=texte!$B$16,"",IF($B47=0,"",C47)) ->  | H47: =IF('Dimensionnement par chaudière'!$E$23=texte!$B$16,"",IF($B47=0,"",D47)) ->  | Q47: POMPE UPML 25-115 130 MM | R47: 2 | S47: 384.6 | T47: 7608398 | U47: POMPE UPML 25-115 130 MM | V47: 2 | W47: 384.6 | X47: 7608398 | AC47: EH664 | AD47: 7621566 | AE47: CHASSIS DE MONTAGE MCA 160 | AF47: 193.1 | AI47: Références tarif concernant MCA 160 | AN47: Pompe
A48: =texte!H13 -> COLLECTEUR DN65 - 2 CHAUDIERES | B48: =VLOOKUP($J$31,'gamme DD chaud'!$E$14:$BM$143,16) ->  | C48: ='gamme DD chaud'!$U11 -> 712 | D48: ='gamme DD chaud'!$U12 -> 90777 | E48: =IF('Dimensionnement par chaudière'!$E$23=texte!$B$16,"",IF($B48=0,"",A48)) ->  | F48: =IF('Dimensionnement par chaudière'!$E$23=texte!$B$16,"",IF($B48=0,"",B48)) ->  | G48: =IF('Dimensionnement par chaudière'!$E$23=texte!$B$16,"",IF($B48=0,"",C48)) ->  | H48: =IF('Dimensionnement par chaudière'!$E$23=texte!$B$16,"",IF($B48=0,"",D48)) ->  | Q48: COLLECTEUR DN65-2 CHAUDIERES | R48: 1 | S48: 680.8 | T48: 90777 | U48: COLLECTEUR DN65-2 CHAUDIERES | V48: 1 | W48: 680.8 | X48: 90777 | AN48: Régulation | AR48: 90777 | AT48: COLLECTEUR DN65-2 CHAUDIERES | AX48: HC259 | AY48: 695.1 | AZ48: 2 | BA48: 1390.2 | BB48: voir taille des collecteurs
A49: =texte!H14 -> COLLECTEUR DN65 - 3 CHAUDIERES | B49: =VLOOKUP($J$31,'gamme DD chaud'!$E$14:$BM$143,17) ->  | C49: ='gamme DD chaud'!$V11 -> 964 | D49: ='gamme DD chaud'!$V12 -> 90778 | E49: =IF('Dimensionnement par chaudière'!$E$23=texte!$B$16,"",IF($B49=0,"",A49)) ->  | F49: =IF('Dimensionnement par chaudière'!$E$23=texte!$B$16,"",IF($B49=0,"",B49)) ->  | G49: =IF('Dimensionnement par chaudière'!$E$23=texte!$B$16,"",IF($B49=0,"",C49)) ->  | H49: =IF('Dimensionnement par chaudière'!$E$23=texte!$B$16,"",IF($B49=0,"",D49)) ->  | Q49: COLLECTEUR DN65-3 CHAUDIERES | R49: 0 | S49: 922.2 | T49: 90778 | AC49: Catalogue p80/ MCA 160 seule | AI49: 7674140 | AJ49: MCA 160 INIC2 | AL49: 10073
A50: =texte!H15 ->  | B50: =VLOOKUP($J$31,'gamme DD chaud'!$E$14:$BM$143,18) ->  | C50: ='gamme DD chaud'!$W11 ->  | D50: ='gamme DD chaud'!$W12 -> 110966 | E50: =IF('Dimensionnement par chaudière'!$E$23=texte!$B$16,"",IF($B50=0,"",A50)) ->  | F50: =IF('Dimensionnement par chaudière'!$E$23=texte!$B$16,"",IF($B50=0,"",B50)) ->  | G50: =IF('Dimensionnement par chaudière'!$E$23=texte!$B$16,"",IF($B50=0,"",C50)) ->  | H50: =IF('Dimensionnement par chaudière'!$E$23=texte!$B$16,"",IF($B50=0,"",D50)) ->  | R50: 0 | T50: 110966 | AC50: EH680 | AD50: =VLOOKUP('calculs par chaud'!$AC50,'Price List'!$C:$V,24,FALSE) ->  | AE50: =VLOOKUP('calculs par chaud'!$AC50,'Price List'!$C:$V,25,FALSE) ->  | AF50: =VLOOKUP('calculs par chaud'!$AC50,'Price List'!$C:$V,3,FALSE) -> 0
A51: =texte!H16 -> BOUTEILLE DE DÉCOUPLAGE DN65 > 350 et < 460 kW | B51: =IF(AND(O66>350,O66<=460),1,0) ->  | C51: ='gamme DD chaud'!$X11 -> 1101 | D51: ='gamme DD chaud'!$X12 -> 111712 | E51: =IF('Dimensionnement par chaudière'!$E$23=texte!$B$16,"",IF($B51=0,"",A51)) ->  | F51: =IF('Dimensionnement par chaudière'!$E$23=texte!$B$16,"",IF($B51=0,"",B51)) ->  | G51: =IF('Dimensionnement par chaudière'!$E$23=texte!$B$16,"",IF($B51=0,"",C51)) ->  | H51: =IF('Dimensionnement par chaudière'!$E$23=texte!$B$16,"",IF($B51=0,"",D51)) ->  | Q51: BOUTEILLE DE DÉCOUPLAGE DN65 > 350 et < 460 kW | R51: 0 | S51: 1007.1 | T51: 111712 | AC51: EH651 | AD51: =VLOOKUP('calculs par chaud'!$AC51,'Price List'!$C:$V,24,FALSE) ->  | AE51: =VLOOKUP('calculs par chaud'!$AC51,'Price List'!$C:$V,25,FALSE) ->  | AF51: =VLOOKUP('calculs par chaud'!$AC51,'Price List'!$C:$V,3,FALSE) -> 0 | AI51: 7674142 | AJ51: MCA 160 DIEM EVO | AL51: 10731
A52: =texte!H17 -> BOUTEILLE DE DÉCOUPLAGE DN65 < 350 kW | B52: =IF(O66<=350,1,0) ->  | C52: ='gamme DD chaud'!$Y11 -> 664 | D52: ='gamme DD chaud'!$Y12 -> 114311 | E52: =IF('Dimensionnement par chaudière'!$E$23=texte!$B$16,"",IF($B52=0,"",A52)) ->  | F52: =IF('Dimensionnement par chaudière'!$E$23=texte!$B$16,"",IF($B52=0,"",B52)) ->  | G52: =IF('Dimensionnement par chaudière'!$E$23=texte!$B$16,"",IF($B52=0,"",C52)) ->  | H52: =IF('Dimensionnement par chaudière'!$E$23=texte!$B$16,"",IF($B52=0,"",D52)) ->  | Q52: BOUTEILLE DE DÉCOUPLAGE DN65 < 350 kW | R52: 1 | S52: 604.8 | T52: 114311 | U52: BOUTEILLE DE DÉCOUPLAGE DN65 < 350 kW | V52: 1 | W52: 604.8 | X52: 114311 | AC52: GV47 | AD52: =VLOOKUP('calculs par chaud'!$AC52,'Price List'!$C:$V,24,FALSE) ->  | AE52: =VLOOKUP('calculs par chaud'!$AC52,'Price List'!$C:$V,25,FALSE) ->  | AF52: =VLOOKUP('calculs par chaud'!$AC52,'Price List'!$C:$V,3,FALSE) -> 0 | AR52: 114311 | AT52: BOUTEILLE DE DÉCOUPLAGE DN65 < 350 kW | AX52: HC222 | AY52: 617.5 | AZ52: 1 | BA52: 617.5 | BB52: voir taille de bouteille en fonction de la puissance
A53: =texte!H18 ->  | B53: =VLOOKUP($J$31,'gamme DD chaud'!$E$14:$BM$143,21) ->  | C53: ='gamme DD chaud'!$Z11 ->  | D53: ='gamme DD chaud'!$Z12 -> 110961 | E53: =IF('Dimensionnement par chaudière'!$E$23=texte!$B$16,"",IF($B53=0,"",A53)) ->  | F53: =IF('Dimensionnement par chaudière'!$E$23=texte!$B$16,"",IF($B53=0,"",B53)) ->  | G53: =IF('Dimensionnement par chaudière'!$E$23=texte!$B$16,"",IF($B53=0,"",C53)) ->  | H53: =IF('Dimensionnement par chaudière'!$E$23=texte!$B$16,"",IF($B53=0,"",D53)) ->  | R53: 0 | T53: 110961 | AC53: EH693 | AD53: =VLOOKUP('calculs par chaud'!$AC53,'Price List'!$C:$V,24,FALSE) ->  | AE53: =VLOOKUP('calculs par chaud'!$AC53,'Price List'!$C:$V,25,FALSE) ->  | AF53: =VLOOKUP('calculs par chaud'!$AC53,'Price List'!$C:$V,3,FALSE) -> 0 | AJ53: LISTE DES COLIS
A54: =texte!H19 ->  | B54: =VLOOKUP($J$31,'gamme DD chaud'!$E$14:$BM$143,22) ->  | C54: ='gamme DD chaud'!$AA11 ->  | D54: ='gamme DD chaud'!$AA12 -> 110960 | E54: =IF('Dimensionnement par chaudière'!$E$23=texte!$B$16,"",IF($B54=0,"",A54)) ->  | F54: =IF('Dimensionnement par chaudière'!$E$23=texte!$B$16,"",IF($B54=0,"",B54)) ->  | G54: =IF('Dimensionnement par chaudière'!$E$23=texte!$B$16,"",IF($B54=0,"",C54)) ->  | H54: =IF('Dimensionnement par chaudière'!$E$23=texte!$B$16,"",IF($B54=0,"",D54)) ->  | R54: 0 | T54: 110960 | AC54: SA12 | AD54: =VLOOKUP('calculs par chaud'!$AC54,'Price List'!$C:$V,24,FALSE) ->  | AE54: =VLOOKUP('calculs par chaud'!$AC54,'Price List'!$C:$V,25,FALSE) ->  | AF54: =VLOOKUP('calculs par chaud'!$AC54,'Price List'!$C:$V,3,FALSE) -> 0
A55: =texte!H20 ->  | B55: =VLOOKUP($J$31,'gamme DD chaud'!$E$14:$BM$143,23) ->  | C55: ='gamme DD chaud'!$AB11 ->  | D55: ='gamme DD chaud'!$AB12 -> 110954 | E55: =IF('Dimensionnement par chaudière'!$E$23=texte!$B$16,"",IF($B55=0,"",A55)) ->  | F55: =IF('Dimensionnement par chaudière'!$E$23=texte!$B$16,"",IF($B55=0,"",B55)) ->  | G55: =IF('Dimensionnement par chaudière'!$E$23=texte!$B$16,"",IF($B55=0,"",C55)) ->  | H55: =IF('Dimensionnement par chaudière'!$E$23=texte!$B$16,"",IF($B55=0,"",D55)) ->  | R55: 0 | T55: 110954 | AC55: AD245 | AD55: =VLOOKUP('calculs par chaud'!$AC55,'Price List'!$C:$V,24,FALSE) ->  | AE55: =VLOOKUP('calculs par chaud'!$AC55,'Price List'!$C:$V,25,FALSE) ->  | AF55: =VLOOKUP('calculs par chaud'!$AC55,'Price List'!$C:$V,3,FALSE) ->  | AI55: 7622761 | AJ55: MCA 160 EH632 | AK55: EH632 | AL55: 9512
A56: =texte!H21 ->  | B56: =IF(O66>460,1,0) ->  | C56: ='gamme DD chaud'!$AC11 ->  | D56: ='gamme DD chaud'!$AC12 -> 111714 | E56: =IF('Dimensionnement par chaudière'!$E$23=texte!$B$16,"",IF($B56=0,"",A56)) ->  | F56: =IF('Dimensionnement par chaudière'!$E$23=texte!$B$16,"",IF($B56=0,"",B56)) ->  | G56: =IF('Dimensionnement par chaudière'!$E$23=texte!$B$16,"",IF($B56=0,"",C56)) ->  | H56: =IF('Dimensionnement par chaudière'!$E$23=texte!$B$16,"",IF($B56=0,"",D56)) ->  | R56: 0 | T56: 111714 | AC56: AD246 | AD56: =VLOOKUP('calculs par chaud'!$AC56,'Price List'!$C:$V,24,FALSE) ->  | AE56: =VLOOKUP('calculs par chaud'!$AC56,'Price List'!$C:$V,25,FALSE) ->  | AF56: =VLOOKUP('calculs par chaud'!$AC56,'Price List'!$C:$V,3,FALSE) -> 0
A57: =texte!H22 -> KIT DE RACCORDEMENT AVANT FR + BE | B57: =VLOOKUP($J$31,'gamme DD chaud'!$E$14:$BM$143,25) ->  | C57: ='gamme DD chaud'!$AD11 -> 650 | D57: ='gamme DD chaud'!$AD12 -> 111022 | E57: =IF('Dimensionnement par chaudière'!$E$23=texte!$B$16,"",IF($B57=0,"",A57)) ->  | F57: =IF('Dimensionnement par chaudière'!$E$23=texte!$B$16,"",IF($B57=0,"",B57)) ->  | G57: =IF('Dimensionnement par chaudière'!$E$23=texte!$B$16,"",IF($B57=0,"",C57)) ->  | H57: =IF('Dimensionnement par chaudière'!$E$23=texte!$B$16,"",IF($B57=0,"",D57)) ->  | Q57: KIT DE RACCORDEMENT AVANT FR + BE | R57: 2 | S57: 594.8 | T57: 111022 | U57: KIT DE RACCORDEMENT AVANT FR + BE | V57: 2 | W57: 594.8 | X57: 111022 | AC57: SA3 | AD57: =VLOOKUP('calculs par chaud'!$AC57,'Price List'!$C:$V,24,FALSE) ->  | AE57: =VLOOKUP('calculs par chaud'!$AC57,'Price List'!$C:$V,25,FALSE) ->  | AF57: =VLOOKUP('calculs par chaud'!$AC57,'Price List'!$C:$V,3,FALSE) -> 0 | AI57: 7613958 | AJ57: ACC INST MCA 160 INIC2 EH633 | AK57: EH633 | AL57: 561 | AR57: 111022 | AT57: KIT DE RACCORDEMENT AVANT FR + BE | AX57: HC202 | AY57: 607.3 | AZ57: 4 | BA57: 2429.2 | BB57: ??
A58: =texte!H23 ->  | B58: =VLOOKUP($J$31,'gamme DD chaud'!$E$14:$BM$143,26) ->  | C58: ='gamme DD chaud'!$AE11 ->  | D58: ='gamme DD chaud'!$AE12 -> 111037 | E58: =IF('Dimensionnement par chaudière'!$E$23=texte!$B$16,"",IF($B58=0,"",A58)) ->  | F58: =IF('Dimensionnement par chaudière'!$E$23=texte!$B$16,"",IF($B58=0,"",B58)) ->  | G58: =IF('Dimensionnement par chaudière'!$E$23=texte!$B$16,"",IF($B58=0,"",C58)) ->  | H58: =IF('Dimensionnement par chaudière'!$E$23=texte!$B$16,"",IF($B58=0,"",D58)) ->  | R58: 0 | T58: 111037 | AC58: SA4 | AD58: =VLOOKUP('calculs par chaud'!$AC58,'Price List'!$C:$V,24,FALSE) ->  | AE58: =VLOOKUP('calculs par chaud'!$AC58,'Price List'!$C:$V,25,FALSE) ->  | AF58: =VLOOKUP('calculs par chaud'!$AC58,'Price List'!$C:$V,3,FALSE) -> 0 | AI58: 7613959 | AJ58: ACC INST MCA 160 DIEM EVO EH635 | AK58: EH635 | AL58: 1219
A59: =texte!H24 ->  | B59: =VLOOKUP($J$31,'gamme DD chaud'!$E$14:$BM$143,27) ->  | C59: ='gamme DD chaud'!$AF11 ->  | D59: ='gamme DD chaud'!$AF12 -> 112906 | E59: =IF('Dimensionnement par chaudière'!$E$23=texte!$B$16,"",IF($B59=0,"",A59)) ->  | F59: =IF('Dimensionnement par chaudière'!$E$23=texte!$B$16,"",IF($B59=0,"",B59)) ->  | G59: =IF('Dimensionnement par chaudière'!$E$23=texte!$B$16,"",IF($B59=0,"",C59)) ->  | H59: =IF('Dimensionnement par chaudière'!$E$23=texte!$B$16,"",IF($B59=0,"",D59)) ->  | I59: TRUE | R59: 0 | T59: 112906 | AC59: DU15 | AD59: =VLOOKUP('calculs par chaud'!$AC59,'Price List'!$C:$V,24,FALSE) ->  | AE59: =VLOOKUP('calculs par chaud'!$AC59,'Price List'!$C:$V,25,FALSE) ->  | AF59: =VLOOKUP('calculs par chaud'!$AC59,'Price List'!$C:$V,3,FALSE) -> 0
A60: =texte!H25 ->  | B60: =VLOOKUP($J$31,'gamme DD chaud'!$E$14:$BM$143,28) ->  | C60: ='gamme DD chaud'!$AG11 ->  | D60: ='gamme DD chaud'!$AG12 -> 112908 | E60: =IF('Dimensionnement par chaudière'!$E$23=texte!$B$16,"",IF($B60=0,"",A60)) ->  | F60: =IF('Dimensionnement par chaudière'!$E$23=texte!$B$16,"",IF($B60=0,"",B60)) ->  | G60: =IF('Dimensionnement par chaudière'!$E$23=texte!$B$16,"",IF($B60=0,"",C60)) ->  | H60: =IF('Dimensionnement par chaudière'!$E$23=texte!$B$16,"",IF($B60=0,"",D60)) ->  | M60: P(80/60) | N60: NB | R60: 0 | T60: 112908 | AC60: pas de colis | AD60: 94225601 | AE60: =VLOOKUP($AD60,'Price List'!$A:$V,2,FALSE) -> RECHARGE DE GRANULATS DE NEUTRALISATION 10 KG** | AF60: =VLOOKUP($AD60,'Price List'!$A:$V,4,FALSE) -> 66 | AJ60: OPTIONS EAU CHAUDE SANITAIRE
A61: =texte!H26 -> JEU DE BOUCHONS | B61: =VLOOKUP($J$31,'gamme DD chaud'!$E$14:$BM$143,29) ->  | C61: ='gamme DD chaud'!$AH11 -> 43 | D61: ='gamme DD chaud'!$AH12 -> 111708 | E61: =IF('Dimensionnement par chaudière'!$E$23=texte!$B$16,"",IF($B61=0,"",A61)) ->  | F61: =IF('Dimensionnement par chaudière'!$E$23=texte!$B$16,"",IF($B61=0,"",B61)) ->  | G61: =IF('Dimensionnement par chaudière'!$E$23=texte!$B$16,"",IF($B61=0,"",C61)) ->  | H61: =IF('Dimensionnement par chaudière'!$E$23=texte!$B$16,"",IF($B61=0,"",D61)) ->  | M61: 40 | N61: ='Dimensionnement par chaudière'!G18 -> 0 | O61: =M61*N61 -> 0 | Q61: JEU DE BOUCHONS | R61: 2 | S61: 39.7 | T61: 111708 | U61: JEU DE BOUCHONS | V61: 2 | W61: 39.7 | X61: 111708 | AC61: SA7 | AD61: =VLOOKUP('calculs par chaud'!$AC61,'Price List'!$C:$V,24,FALSE) ->  | AE61: =VLOOKUP('calculs par chaud'!$AC61,'Price List'!$C:$V,25,FALSE) ->  | AF61: =VLOOKUP('calculs par chaud'!$AC61,'Price List'!$C:$V,3,FALSE) -> 0 | AR61: 111708 | AT61: JEU DE BOUCHONS | AX61: HC195 | AY61: 40.5 | AZ61: 4 | BA61: 162 | BB61: idem ?
A62: =texte!H27 ->  | B62: =VLOOKUP($J$31,'gamme DD chaud'!$E$14:$BM$143,30) ->  | C62: ='gamme DD chaud'!$AI11 ->  | D62: ='gamme DD chaud'!$AI12 -> 111698 | E62: =IF('Dimensionnement par chaudière'!$E$23=texte!$B$16,"",IF($B62=0,"",A62)) ->  | F62: =IF('Dimensionnement par chaudière'!$E$23=texte!$B$16,"",IF($B62=0,"",B62)) ->  | G62: =IF('Dimensionnement par chaudière'!$E$23=texte!$B$16,"",IF($B62=0,"",C62)) ->  | H62: =IF('Dimensionnement par chaudière'!$E$23=texte!$B$16,"",IF($B62=0,"",D62)) ->  | M62: 61 | N62: ='Dimensionnement par chaudière'!#REF! ->  | O62: =M62*N62 ->  | R62: 0 | T62: 111698 | AC62: EH692 | AD62: =VLOOKUP('calculs par chaud'!$AC62,'Price List'!$C:$V,24,FALSE) ->  | AE62: =VLOOKUP('calculs par chaud'!$AC62,'Price List'!$C:$V,25,FALSE) ->  | AF62: =VLOOKUP('calculs par chaud'!$AC62,'Price List'!$C:$V,3,FALSE) -> 0 | AI62: 100000030 | AJ62: COLIS OPTION SONDE ECS | AK62: AD212 | AL62: 51.5
A63: =texte!H28 -> BRIDES PLEINES EAU DN65 | B63: =VLOOKUP($J$31,'gamme DD chaud'!$E$14:$BM$143,31) ->  | C63: ='gamme DD chaud'!$AJ11 -> 160 | D63: ='gamme DD chaud'!$AJ12 -> 111701 | E63: =IF('Dimensionnement par chaudière'!$E$23=texte!$B$16,"",IF($B63=0,"",A63)) ->  | F63: =IF('Dimensionnement par chaudière'!$E$23=texte!$B$16,"",IF($B63=0,"",B63)) ->  | G63: =IF('Dimensionnement par chaudière'!$E$23=texte!$B$16,"",IF($B63=0,"",C63)) ->  | H63: =IF('Dimensionnement par chaudière'!$E$23=texte!$B$16,"",IF($B63=0,"",D63)) ->  | M63: 84.2 | N63: ='Dimensionnement par chaudière'!I18 -> 0 | O63: =M63*N63 -> 0 | Q63: BRIDES PLEINES EAU DN65 | R63: 1 | S63: 145.2 | T63: 111701 | U63: BRIDES PLEINES EAU DN65 | V63: 1 | W63: 145.2 | X63: 111701 | AC63: EH645 | AD63: =VLOOKUP('calculs par chaud'!$AC63,'Price List'!$C:$V,24,FALSE) ->  | AE63: =VLOOKUP('calculs par chaud'!$AC63,'Price List'!$C:$V,25,FALSE) ->  | AF63: =VLOOKUP('calculs par chaud'!$AC63,'Price List'!$C:$V,3,FALSE) -> 0 | AI63: 7637550 | AJ63: CONNECTION CH SOLO MCA 160 EH680 | AK63: EH680 | AL63: 639.3 | AR63: 111701 | AT63: BRIDES PLEINES EAU DN65 | AX63: HC198 | AY63: 148.2 | AZ63: 1 | BA63: 148.2 | BB63: voir Ø
A64: =texte!H29 ->  | B64: =VLOOKUP($J$31,'gamme DD chaud'!$E$14:$BM$143,32) ->  | C64: ='gamme DD chaud'!$AK11 ->  | D64: ='gamme DD chaud'!$AK12 -> 111699 | E64: =IF('Dimensionnement par chaudière'!$E$23=texte!$B$16,"",IF($B64=0,"",A64)) ->  | F64: =IF('Dimensionnement par chaudière'!$E$23=texte!$B$16,"",IF($B64=0,"",B64)) ->  | G64: =IF('Dimensionnement par chaudière'!$E$23=texte!$B$16,"",IF($B64=0,"",C64)) ->  | H64: =IF('Dimensionnement par chaudière'!$E$23=texte!$B$16,"",IF($B64=0,"",D64)) ->  | M64: 107 | N64: ='Dimensionnement par chaudière'!J18 -> 0 | O64: =M64*N64 -> 0 | R64: 0 | T64: 111699 | AC64: EH646 | AD64: =VLOOKUP('calculs par chaud'!$AC64,'Price List'!$C:$V,24,FALSE) ->  | AE64: =VLOOKUP('calculs par chaud'!$AC64,'Price List'!$C:$V,25,FALSE) ->  | AF64: =VLOOKUP('calculs par chaud'!$AC64,'Price List'!$C:$V,3,FALSE) -> 0 | AI64: 7637223 | AJ64: POMPE UPM XL GRUNDFOS 25-105 H180 | AK64: EH651 | AL64: 605.8
A65: =texte!H30 ->  | B65: =VLOOKUP($J$31,'gamme DD chaud'!$E$14:$BM$143,33) ->  | C65: ='gamme DD chaud'!$AL11 ->  | D65: ='gamme DD chaud'!$AL12 -> 111703 | E65: =IF('Dimensionnement par chaudière'!$E$23=texte!$B$16,"",IF($B65=0,"",A65)) ->  | F65: =IF('Dimensionnement par chaudière'!$E$23=texte!$B$16,"",IF($B65=0,"",B65)) ->  | G65: =IF('Dimensionnement par chaudière'!$E$23=texte!$B$16,"",IF($B65=0,"",C65)) ->  | H65: =IF('Dimensionnement par chaudière'!$E$23=texte!$B$16,"",IF($B65=0,"",D65)) ->  | R65: 0 | T65: 111703 | AC65: AD212 | AD65: =VLOOKUP('calculs par chaud'!$AC65,'Price List'!$C:$V,24,FALSE) ->  | AE65: =VLOOKUP('calculs par chaud'!$AC65,'Price List'!$C:$V,25,FALSE) ->  | AF65: =VLOOKUP('calculs par chaud'!$AC65,'Price List'!$C:$V,3,FALSE) -> 0 | AI65: 7630016 | AJ65: POMPE CHAUFFAGE ELECTRONIQUE HEE POUR MCA - DTG130 65/115 | AK65: SA13 | AL65: 405.7
A66: =texte!H31 ->  | B66: =VLOOKUP($J$31,'gamme DD chaud'!$E$14:$BM$143,34) ->  | C66: ='gamme DD chaud'!$AM11 ->  | D66: 120842 | E66: =IF('Dimensionnement par chaudière'!$E$23=texte!$B$16,"",IF($B66=0,"",A66)) ->  | F66: =IF('Dimensionnement par chaudière'!$E$23=texte!$B$16,"",IF($B66=0,"",B66)) ->  | G66: =IF('Dimensionnement par chaudière'!$E$23=texte!$B$16,"",IF($B66=0,"",C66)) ->  | H66: =IF('Dimensionnement par chaudière'!$E$23=texte!$B$16,"",IF($B66=0,"",D66)) ->  | N66: Ptot | O66: =SUM(O61:O64) ->  | Q66: MONTANT-SUPPORT L MCA | R66: 0 | S66: 139.1 | T66: 120842 | AC66: Catalogue p81 / MCA 160 Cascade | AI66: 100019348 | AJ66: BOUTEILLE DE DECOUPLAGE 120/80-2'' | AK66: GV47 | AL66: 616.5
A67: =texte!H32 -> MONTANT-SUPPORT I GMR 5000 | B67: =VLOOKUP($J$31,'gamme DD chaud'!$E$14:$BM$143,35) ->  | C67: ='gamme DD chaud'!$AN11 -> 95 | D67: 120900 | E67: =IF('Dimensionnement par chaudière'!$E$23=texte!$B$16,"",IF($B67=0,"",A67)) ->  | F67: =IF('Dimensionnement par chaudière'!$E$23=texte!$B$16,"",IF($B67=0,"",B67)) ->  | G67: =IF('Dimensionnement par chaudière'!$E$23=texte!$B$16,"",IF($B67=0,"",C67)) ->  | H67: =IF('Dimensionnement par chaudière'!$E$23=texte!$B$16,"",IF($B67=0,"",D67)) ->  | Q67: MONTANT-SUPPORT I MCA | R67: 3 | S67: 88 | T67: 120900 | U67: MONTANT-SUPPORT I MCA | V67: 3 | W67: 88 | X67: 120900 | AB67: absent du catalogue | AC67: EH664 | AD67: 7621566 | AE67: CHASSIS DE MONTAGE MCA 160 | AF67: 193.1 | AI67: 7613610 | AJ67: STATION DE NEUTRALISATION HN 1.6 (AVEC POMPE;JUSQU'À 300KW) | AK67: SA4 | AL67: 1222.4 | AR67: S101614 | AT67: POMPE CHAUFFAGE EEI UPM 25/70 POUR MCA 45 | AX67: 0 | AY67: 303.2 | AZ67: 1 | BA67: 303.2 | BB67: voir si taille pompe identiques
A68: =texte!H33 -> CHASSIS DE MONTAGE GMR 5000 | B68: =VLOOKUP($J$31,'gamme DD chaud'!$E$14:$BM$143,36) ->  | C68: ='gamme DD chaud'!$AO11 -> 100 | D68: 120918 | E68: =IF('Dimensionnement par chaudière'!$E$23=texte!$B$16,"",IF($B68=0,"",A68)) ->  | F68: =IF('Dimensionnement par chaudière'!$E$23=texte!$B$16,"",IF($B68=0,"",B68)) ->  | G68: =IF('Dimensionnement par chaudière'!$E$23=texte!$B$16,"",IF($B68=0,"",C68)) ->  | H68: =IF('Dimensionnement par chaudière'!$E$23=texte!$B$16,"",IF($B68=0,"",D68)) ->  | Q68: CHASSIS DE MONTAGE MCA | R68: 2 | S68: 92.7 | T68: 120918 | U68: CHASSIS DE MONTAGE MCA | V68: 2 | W68: 92.7 | X68: 120918 | AC68: HC255 | AD68: =VLOOKUP('calculs par chaud'!$AC68,'Price List'!$C:$V,24,FALSE) ->  | AE68: =VLOOKUP('calculs par chaud'!$AC68,'Price List'!$C:$V,25,FALSE) ->  | AF68: =VLOOKUP('calculs par chaud'!$AC68,'Price List'!$C:$V,3,FALSE) -> 0 | AI68: 7613613 | AJ68: GRANULATS DE NEUTRALISATION (SAC DE 25 KG) | AK68: SA7 | AL68: 83.2 | AR68: S101614 | AT68: POMPE CHAUFFAGE EEI UPM 25/70 POUR MCA 45 | AX68: 0 | AY68: 303.2 | AZ68: 1 | BA68: 303.2
A69: =texte!H34 -> RAIL DE MONTAGE MURAL 2 CHAUDIÈRES | B69: =VLOOKUP($J$31,'gamme DD chaud'!$E$14:$BM$143,37) ->  | C69: ='gamme DD chaud'!$AP11 -> 45 | D69: ='gamme DD chaud'!$AP12 -> 111688 | E69: =IF('Dimensionnement par chaudière'!$E$23=texte!$B$16,"",IF($B69=0,"",A69)) ->  | F69: =IF('Dimensionnement par chaudière'!$E$23=texte!$B$16,"",IF($B69=0,"",B69)) ->  | G69: =IF('Dimensionnement par chaudière'!$E$23=texte!$B$16,"",IF($B69=0,"",C69)) ->  | H69: =IF('Dimensionnement par chaudière'!$E$23=texte!$B$16,"",IF($B69=0,"",D69)) ->  | Q69: RAIL DE MONTAGE MURAL 2 CHAUDIÈRES | R69: 0 | S69: 42.3 | T69: 111688 | AC69: HC256 | AD69: =VLOOKUP('calculs par chaud'!$AC69,'Price List'!$C:$V,24,FALSE) ->  | AE69: =VLOOKUP('calculs par chaud'!$AC69,'Price List'!$C:$V,25,FALSE) ->  | AF69: =VLOOKUP('calculs par chaud'!$AC69,'Price List'!$C:$V,3,FALSE) -> 0 | AI69: 7628753 | AJ69: REGULATEUR DE PRESSION GDJ 20 300MBAR | AK69: SA12 | AL69: 176.8 | AR69: 7608398 | AT69: POMPE UPML 25-115 130 MM | AX69: 0 | AY69: 392.7 | AZ69: 2 | BA69: 785.4
A70: =texte!H35 -> RAIL DE MONTAGE MURAL 3 CHAUDIÈRES | B70: =VLOOKUP($J$31,'gamme DD chaud'!$E$14:$BM$143,38) ->  | C70: ='gamme DD chaud'!$AQ11 -> 54 | D70: ='gamme DD chaud'!$AQ12 -> 111689 | E70: =IF('Dimensionnement par chaudière'!$E$23=texte!$B$16,"",IF($B70=0,"",A70)) ->  | F70: =IF('Dimensionnement par chaudière'!$E$23=texte!$B$16,"",IF($B70=0,"",B70)) ->  | G70: =IF('Dimensionnement par chaudière'!$E$23=texte!$B$16,"",IF($B70=0,"",C70)) ->  | H70: =IF('Dimensionnement par chaudière'!$E$23=texte!$B$16,"",IF($B70=0,"",D70)) ->  | Q70: RAIL DE MONTAGE MURAL 3 CHAUDIÈRES | R70: 0 | S70: 50.6 | T70: 111689 | AC70: HC209 | AD70: =VLOOKUP('calculs par chaud'!$AC70,'Price List'!$C:$V,24,FALSE) ->  | AE70: =VLOOKUP('calculs par chaud'!$AC70,'Price List'!$C:$V,25,FALSE) ->  | AF70: =VLOOKUP('calculs par chaud'!$AC70,'Price List'!$C:$V,3,FALSE) -> 0 | AI70: 7656909 | AJ70: KIT DE CONVERSION PROP. MCA 160KW | AK70: EH693 | AL70: 68
A71: =texte!H36 -> RAIL DE MONTAGE MURAL 4 CHAUDIÈRES | B71: =VLOOKUP($J$31,'gamme DD chaud'!$E$14:$BM$143,39) ->  | C71: ='gamme DD chaud'!$AR11 -> 71 | D71: ='gamme DD chaud'!$AR12 -> 111690 | E71: =IF('Dimensionnement par chaudière'!$E$23=texte!$B$16,"",IF($B71=0,"",A71)) ->  | F71: =IF('Dimensionnement par chaudière'!$E$23=texte!$B$16,"",IF($B71=0,"",B71)) ->  | G71: =IF('Dimensionnement par chaudière'!$E$23=texte!$B$16,"",IF($B71=0,"",C71)) ->  | H71: =IF('Dimensionnement par chaudière'!$E$23=texte!$B$16,"",IF($B71=0,"",D71)) ->  | Q71: RAIL DE MONTAGE MURAL 4 CHAUDIÈRES | R71: 0 | S71: 63.5 | T71: 111690 | AC71: HC210 | AD71: =VLOOKUP('calculs par chaud'!$AC71,'Price List'!$C:$V,24,FALSE) ->  | AE71: =VLOOKUP('calculs par chaud'!$AC71,'Price List'!$C:$V,25,FALSE) ->  | AF71: =VLOOKUP('calculs par chaud'!$AC71,'Price List'!$C:$V,3,FALSE) -> 0
A72: ="" ->  | B72: ="" ->  | C72: ="" ->  | D72: ="" ->  | AC72: EH669 | AD72: =VLOOKUP('calculs par chaud'!$AC72,'Price List'!$C:$V,24,FALSE) ->  | AE72: =VLOOKUP('calculs par chaud'!$AC72,'Price List'!$C:$V,25,FALSE) ->  | AF72: =VLOOKUP('calculs par chaud'!$AC72,'Price List'!$C:$V,3,FALSE) -> 0 | AJ72: OPTIONS REGULATION
A73: ="" ->  | B73: ="" ->  | C73: ="" ->  | D73: ="" ->  | E73: Chaudières | G73: =D12*'gamme DD chaud'!H11+'calculs par chaud'!H12*'gamme DD chaud'!I11+'calculs par chaud'!L12*'gamme DD chaud'!J11+'calculs par chaud'!O12*'gamme DD chaud'!K11+'Dimensionnement par chaudière'!E27*texte!C27 ->  | U73: Chaudières | W73: 15040 | AC73: HC218 | AD73: =VLOOKUP('calculs par chaud'!$AC73,'Price List'!$C:$V,24,FALSE) ->  | AE73: =VLOOKUP('calculs par chaud'!$AC73,'Price List'!$C:$V,25,FALSE) ->  | AF73: =VLOOKUP('calculs par chaud'!$AC73,'Price List'!$C:$V,3,FALSE) -> 0 | AR73: Régulation
A74: =texte!H39 -> ADAPTATEUR Ø 80 - 100 MM | B74: 0 | C74: ='gamme DD chaud'!$AU11 -> 58 | D74: ='gamme DD chaud'!$AU12 -> 84887768 | E74: =IF('Dimensionnement par chaudière'!$E$23=texte!$B$16,"",IF($B74=0,"",A74)) ->  | F74: =IF('Dimensionnement par chaudière'!$E$23=texte!$B$16,"",IF($B74=0,"",IF(I74=FALSE,"",B74))) ->  | G74: =IF('Dimensionnement par chaudière'!$E$23=texte!$B$16,"",IF($B74=0,"",IF(I74=FALSE,"",C74))) ->  | H74: =IF('Dimensionnement par chaudière'!$E$23=texte!$B$16,"",IF($B74=0,"",D74)) ->  | I74: =I75 -> TRUE | K74: =VLOOKUP($J$31,'gamme DD chaud'!$E$14:$BM$143,42) ->  | L74: Formule case rouge B71 | Q74: ADAPTATEUR Ø 80 - 100 MM | R74: 0 | S74: 56.2 | T74: 84887768 | AC74: EH647 | AD74: =VLOOKUP('calculs par chaud'!$AC74,'Price List'!$C:$V,24,FALSE) ->  | AE74: =VLOOKUP('calculs par chaud'!$AC74,'Price List'!$C:$V,25,FALSE) ->  | AF74: =VLOOKUP('calculs par chaud'!$AC74,'Price List'!$C:$V,3,FALSE) -> 0
A75: ="" ->  | B75: ="" ->  | C75: ="" ->  | D75: ="" ->  | E75: ="" ->  | F75: ="" ->  | G75: ="" ->  | H75: ="" ->  | I75: TRUE | AB75: absent du tarif | AC75: HC648 | AD75: =VLOOKUP('calculs par chaud'!$AC75,'Price List'!$C:$V,24,FALSE) ->  | AE75: =VLOOKUP('calculs par chaud'!$AC75,'Price List'!$C:$V,25,FALSE) ->  | AF75: =VLOOKUP('calculs par chaud'!$AC75,'Price List'!$C:$V,3,FALSE) ->  | AI75: 88017017 | AJ75: SONDE DEPART V3V | AK75: AD199 | AL75: 82
A76: =texte!L55 -> ADAPTATEUR Ø 80 - 100 MM | B76: =VLOOKUP($J$31,'gamme DD chaud'!$E$14:$BM$143,44) ->  | C76: =texte!N55 -> 58 | D76: =texte!K55 -> 84887768 | E76: =IF('Dimensionnement par chaudière'!$E$23=texte!$B$16,"",IF($B76=0,"",A76)) ->  | F76: =IF('Dimensionnement par chaudière'!$E$23=texte!$B$16,"",IF($B76=0,"",IF(I76=FALSE,"",B76))) ->  | G76: =IF('Dimensionnement par chaudière'!$E$23=texte!$B$16,"",IF($B76=0,"",IF(I76=FALSE,"",C76))) ->  | H76: =IF('Dimensionnement par chaudière'!$E$23=texte!$B$16,"",IF($B76=0,"",D76)) ->  | I76: FALSE | Q76: ADAPTATEUR Ø 80 - 100 MM | R76: 0 | S76: 56.2 | T76: 84887768 | AC76: EH649 | AD76: =VLOOKUP('calculs par chaud'!$AC76,'Price List'!$C:$V,24,FALSE) ->  | AE76: =VLOOKUP('calculs par chaud'!$AC76,'Price List'!$C:$V,25,FALSE) ->  | AF76: =VLOOKUP('calculs par chaud'!$AC76,'Price List'!$C:$V,3,FALSE) -> 0 | AI76: 100013305 | AJ76: SONDE SYSTÈME ECS | AK76: AD250 | AL76: 46 | AR76: 100013027 | AT76: SONDE DE DÉPART + DOIGT DE GANT-BOUTEILLE < 350 kW | AX76: HC223 | AY76: 132.3 | AZ76: 1 | BA76: 132.3
A77: ="" ->  | B77: ="" ->  | C77: ="" ->  | D77: ="" ->  | E77: ="" ->  | F77: ="" ->  | G77: ="" ->  | H77: ="" ->  | I77: ="" ->  | AC77: HC224 | AD77: =VLOOKUP('calculs par chaud'!$AC77,'Price List'!$C:$V,24,FALSE) ->  | AE77: =VLOOKUP('calculs par chaud'!$AC77,'Price List'!$C:$V,25,FALSE) ->  | AF77: =VLOOKUP('calculs par chaud'!$AC77,'Price List'!$C:$V,3,FALSE) -> 0 | AI77: 85757741 | AJ77: SONDE EXTERIEURE | AK77: FM46 | AL77: 40.8 | AR77: 88017836 | AT77: CABLE DE LIAISON INTER-MODULE RX 11 | AX77: AD124 | AY77: 86.3 | AZ77: 3 | BA77: 258.9
A78: =texte!H43 -> FILTRE GAZ DN50 | B78: =VLOOKUP($J$31,'gamme DD chaud'!$E$14:$BM$143,47) ->  | C78: ='gamme DD chaud'!$AY11 -> 558 | D78: S101655 | E78: =IF('Dimensionnement par chaudière'!$E$23=texte!$B$16,"",IF($B78=0,"",A78)) ->  | F78: =IF('Dimensionnement par chaudière'!$E$23=texte!$B$16,"",IF($B78=0,"",IF(I78=FALSE,"",B78))) ->  | G78: =IF('Dimensionnement par chaudière'!$E$23=texte!$B$16,"",IF($B78=0,"",IF(I78=FALSE,"",C78))) ->  | H78: =IF('Dimensionnement par chaudière'!$E$23=texte!$B$16,"",IF($B78=0,"",D78)) ->  | I78: FALSE | Q78: FILTRE GAZ DN50 | R78: 1 | S78: 507.6 | T78: S101655 | U78: FILTRE GAZ DN50 | X78: S101655 | AC78: HC215 | AD78: =VLOOKUP('calculs par chaud'!$AC78,'Price List'!$C:$V,24,FALSE) ->  | AE78: =VLOOKUP('calculs par chaud'!$AC78,'Price List'!$C:$V,25,FALSE) ->  | AF78: =VLOOKUP('calculs par chaud'!$AC78,'Price List'!$C:$V,3,FALSE) -> 0 | AI78: 100013304 | AJ78: OPTION V3V DIEMATIC iSystem | AK78: AD249 | AL78: 157.9 | BB78: voir si rien de plus
A79: =texte!H44 ->  | B79: =texte!I44 ->  | C79: =texte!J44 ->  | D79: =texte!K44 ->  | E79: =IF('Dimensionnement par chaudière'!$E$23=texte!$B$16,"",IF($B79=0,"",A79)) ->  | F79: =IF('Dimensionnement par chaudière'!$E$23=texte!$B$16,"",IF($B79=0,"",IF(I79=FALSE,"",B79))) ->  | G79: =IF('Dimensionnement par chaudière'!$E$23=texte!$B$16,"",IF($B79=0,"",IF(I79=FALSE,"",C79))) ->  | H79: =IF('Dimensionnement par chaudière'!$E$23=texte!$B$16,"",IF($B79=0,"",D79)) ->  | I79: FALSE | AC79: HC216 | AD79: =VLOOKUP('calculs par chaud'!$AC79,'Price List'!$C:$V,24,FALSE) ->  | AE79: =VLOOKUP('calculs par chaud'!$AC79,'Price List'!$C:$V,25,FALSE) ->  | AF79: =VLOOKUP('calculs par chaud'!$AC79,'Price List'!$C:$V,3,FALSE) -> 0 | AI79: 88017859 | AJ79: THERMOSTAT D'AMBIANCE NON PROGRAMMABLE | AK79: AD140 | AL79: 50.6
A80: =texte!H45 -> JEUX DE BRIDES À SOUDER DN50 POUR FILTRE A GAZ | B80: =B78 ->  | C80: ='gamme DD chaud'!$BA11 -> 90 | D80: S103345 | E80: =IF('Dimensionnement par chaudière'!$E$23=texte!$B$16,"",IF($B80=0,"",A80)) ->  | F80: =IF('Dimensionnement par chaudière'!$E$23=texte!$B$16,"",IF($B80=0,"",IF(I80=FALSE,"",B80))) ->  | G80: =IF('Dimensionnement par chaudière'!$E$23=texte!$B$16,"",IF($B80=0,"",IF(I80=FALSE,"",C80))) ->  | H80: =IF('Dimensionnement par chaudière'!$E$23=texte!$B$16,"",IF($B80=0,"",D80)) ->  | I80: TRUE | Q80: JEUX DE BRIDES À SOUDER DN50 POUR FILTRE A GAZ | R80: 1 | S80: 88 | T80: S103345 | U80: JEUX DE BRIDES À SOUDER DN50 POUR FILTRE A GAZ | X80: S103345 | AC80: EH649 | AD80: =VLOOKUP('calculs par chaud'!$AC80,'Price List'!$C:$V,24,FALSE) ->  | AE80: =VLOOKUP('calculs par chaud'!$AC80,'Price List'!$C:$V,25,FALSE) ->  | AF80: =VLOOKUP('calculs par chaud'!$AC80,'Price List'!$C:$V,3,FALSE) -> 0 | AI80: 88017855 | AJ80: THERMOSTAT D'AMBIANCE PROGRAMMABLE (FILAIRE) | AK80: AD137 | AL80: 163
A81: =texte!H46 -> COUDES DN65 | B81: =VLOOKUP($J$31,'gamme DD chaud'!$E$14:$BM$143,50) ->  | C81: ='gamme DD chaud'!$BB11 -> 714 | D81: ='gamme DD chaud'!$BB12 -> 111788 | E81: =IF('Dimensionnement par chaudière'!$E$23=texte!$B$16,"",IF($B81=0,"",A81)) ->  | F81: =IF('Dimensionnement par chaudière'!$E$23=texte!$B$16,"",IF($B81=0,"",IF(I81=FALSE,"",B81))) ->  | G81: =IF('Dimensionnement par chaudière'!$E$23=texte!$B$16,"",IF($B81=0,"",IF(I81=FALSE,"",C81))) ->  | H81: =IF('Dimensionnement par chaudière'!$E$23=texte!$B$16,"",IF($B81=0,"",D81)) ->  | I81: FALSE | Q81: COUDES DN65 | R81: 1 | S81: 634.4 | T81: 111788 | U81: COUDES DN65 | X81: 111788 | AC81: EH650 | AD81: =VLOOKUP('calculs par chaud'!$AC81,'Price List'!$C:$V,24,FALSE) ->  | AE81: =VLOOKUP('calculs par chaud'!$AC81,'Price List'!$C:$V,25,FALSE) ->  | AF81: =VLOOKUP('calculs par chaud'!$AC81,'Price List'!$C:$V,3,FALSE) -> 0 | AI81: 88017018 | AJ81: THERMOSTAT D'AMBIANCE PROGRAMMABLE (SANS FILS) | AK81: AD200 | AL81: 287.1
A82: =texte!H56 -> JEU DE CONTRE-BRIDES À SOUDER DN65 | B82: =VLOOKUP($J$31,'gamme DD chaud'!$E$14:$BM$143,60) ->  | C82: =texte!I56 -> 165 | D82: =texte!E56 -> 112632 | E82: =IF('Dimensionnement par chaudière'!$E$23=texte!$B$16,"",IF($B82=0,"",A82)) ->  | F82: =IF('Dimensionnement par chaudière'!$E$23=texte!$B$16,"",IF($B82=0,"",IF(I82=FALSE,"",B82))) ->  | G82: =IF('Dimensionnement par chaudière'!$E$23=texte!$B$16,"",IF($B82=0,"",IF(I82=FALSE,"",C82))) ->  | H82: =IF('Dimensionnement par chaudière'!$E$23=texte!$B$16,"",IF($B82=0,"",D82)) ->  | I82: FALSE | Q82: JEU DE CONTRE-BRIDES À SOUDER DN65 | R82: 1 | S82: 145.2 | T82: 112632 | U82: JEU DE CONTRE-BRIDES À SOUDER DN65 | X82: 112632 | AC82: HC219 | AD82: =VLOOKUP('calculs par chaud'!$AC82,'Price List'!$C:$V,24,FALSE) ->  | AE82: =VLOOKUP('calculs par chaud'!$AC82,'Price List'!$C:$V,25,FALSE) ->  | AF82: =VLOOKUP('calculs par chaud'!$AC82,'Price List'!$C:$V,3,FALSE) -> 0 | AI82: 7663561 | AJ82: CABLE S-BUS 12M AVEC BOUCHONS | AK82: AD309 | AL82: 97.9
A83: =texte!H48 ->  | B83: =VLOOKUP($J$31,'gamme DD chaud'!$E$14:$BM$143,52) ->  | C83: ='gamme DD chaud'!$BD11 ->  | D83: ='gamme DD chaud'!$BD12 -> 111805 | E83: =IF('Dimensionnement par chaudière'!$E$23=texte!$B$16,"",IF($B83=0,"",A83)) ->  | F83: =IF('Dimensionnement par chaudière'!$E$23=texte!$B$16,"",IF($B83=0,"",IF(I83=FALSE,"",B83))) ->  | G83: =IF('Dimensionnement par chaudière'!$E$23=texte!$B$16,"",IF($B83=0,"",IF(I83=FALSE,"",C83))) ->  | H83: =IF('Dimensionnement par chaudière'!$E$23=texte!$B$16,"",IF($B83=0,"",D83)) ->  | I83: TRUE | R83: 0 | T83: 111805 | AC83: AD309 | AD83: =VLOOKUP('calculs par chaud'!$AC83,'Price List'!$C:$V,24,FALSE) ->  | AE83: =VLOOKUP('calculs par chaud'!$AC83,'Price List'!$C:$V,25,FALSE) ->  | AF83: =VLOOKUP('calculs par chaud'!$AC83,'Price List'!$C:$V,3,FALSE) -> 0 | AI83: 7663619 | AJ83: CABLE S-BUS 20M AVEC BOUCHONS | AK83: AD310 | AL83: 130.2
A84: =texte!H49 ->  | B84: =VLOOKUP($J$31,'gamme DD chaud'!$E$14:$BM$143,53) ->  | C84: ='gamme DD chaud'!$BE11 ->  | D84: ='gamme DD chaud'!$BE12 -> 111806 | E84: =IF('Dimensionnement par chaudière'!$E$23=texte!$B$16,"",IF($B84=0,"",A84)) ->  | F84: =IF('Dimensionnement par chaudière'!$E$23=texte!$B$16,"",IF($B84=0,"",IF(I84=FALSE,"",B84))) ->  | G84: =IF('Dimensionnement par chaudière'!$E$23=texte!$B$16,"",IF($B84=0,"",IF(I84=FALSE,"",C84))) ->  | H84: =IF('Dimensionnement par chaudière'!$E$23=texte!$B$16,"",IF($B84=0,"",D84)) ->  | I84: FALSE | R84: 0 | T84: 111806 | AC84: AD310 | AD84: =VLOOKUP('calculs par chaud'!$AC84,'Price List'!$C:$V,24,FALSE) ->  | AE84: =VLOOKUP('calculs par chaud'!$AC84,'Price List'!$C:$V,25,FALSE) ->  | AF84: =VLOOKUP('calculs par chaud'!$AC84,'Price List'!$C:$V,3,FALSE) -> 0
A85: =texte!H50 -> ISOLATION COLLECTEUR | B85: =VLOOKUP($J$31,'gamme DD chaud'!$E$14:$BM$143,54) ->  | C85: ='gamme DD chaud'!$BF11 -> 92 | D85: ='gamme DD chaud'!$BF12 -> 111069 | E85: =IF('Dimensionnement par chaudière'!$E$23=texte!$B$16,"",IF($B85=0,"",A85)) ->  | F85: =IF('Dimensionnement par chaudière'!$E$23=texte!$B$16,"",IF($B85=0,"",IF(I85=FALSE,"",B85))) ->  | G85: =IF('Dimensionnement par chaudière'!$E$23=texte!$B$16,"",IF($B85=0,"",IF(I85=FALSE,"",C85))) ->  | H85: =IF('Dimensionnement par chaudière'!$E$23=texte!$B$16,"",IF($B85=0,"",D85)) ->  | I85: FALSE | Q85: ISOLATION COLLECTEUR | R85: 2 | S85: 84.5 | T85: 111069 | U85: ISOLATION COLLECTEUR | X85: 111069 | AC85: Catalogue p83 / Régulations | AI85: CASCADES INNOVENS PRO MCA 160
A86: =texte!L46 -> ISOLATION ARRIERE KIT DE RACCORDEMENT HYDRAULIQUE | B86: =VLOOKUP($J$31,'gamme DD chaud'!$E$14:$BM$143,55) ->  | C86: =texte!N46 -> 73 | D86: 122441 | E86: =IF('Dimensionnement par chaudière'!$E$23=texte!$B$16,"",IF($B86=0,"",A86)) ->  | F86: =IF('Dimensionnement par chaudière'!$E$23=texte!$B$16,"",IF($B86=0,"",IF(I86=FALSE,"",B86))) ->  | G86: =IF('Dimensionnement par chaudière'!$E$23=texte!$B$16,"",IF($B86=0,"",IF(I86=FALSE,"",C86))) ->  | H86: =IF('Dimensionnement par chaudière'!$E$23=texte!$B$16,"",IF($B86=0,"",D86)) ->  | I86: FALSE | Q86: ISOLATION RACCORDEMENT CHAUDIÈRE | R86: 2 | S86: 63.5 | T86: 122441 | U86: ISOLATION RACCORDEMENT CHAUDIÈRE | X86: 122441 | AC86: AD249 | AD86: =VLOOKUP('calculs par chaud'!$AC86,'Price List'!$C:$V,24,FALSE) ->  | AE86: =VLOOKUP('calculs par chaud'!$AC86,'Price List'!$C:$V,25,FALSE) ->  | AF86: =VLOOKUP('calculs par chaud'!$AC86,'Price List'!$C:$V,3,FALSE) -> 0 | AI86: REFERENCE | AJ86: DESIGNATION | AK86: COLIS | AL86: PRIX 03/2017
A87: =texte!H52 -> ISOLATION BOUTEILLE DE DÉCOUPLAGE | B87: =VLOOKUP($J$31,'gamme DD chaud'!$E$14:$BM$143,56) ->  | C87: ='gamme DD chaud'!$BH11 -> 260 | D87: ='gamme DD chaud'!$BH12 -> 111067 | E87: =IF('Dimensionnement par chaudière'!$E$23=texte!$B$16,"",IF($B87=0,"",A87)) ->  | F87: =IF('Dimensionnement par chaudière'!$E$23=texte!$B$16,"",IF($B87=0,"",IF(I87=FALSE,"",B87))) ->  | G87: =IF('Dimensionnement par chaudière'!$E$23=texte!$B$16,"",IF($B87=0,"",IF(I87=FALSE,"",C87))) ->  | H87: =IF('Dimensionnement par chaudière'!$E$23=texte!$B$16,"",IF($B87=0,"",D87)) ->  | I87: FALSE | Q87: ISOLATION BOUTEILLE DE DÉCOUPLAGE | R87: 0 | S87: 232.7 | T87: 111067 | AC87: FM46 | AD87: =VLOOKUP('calculs par chaud'!$AC87,'Price List'!$C:$V,24,FALSE) ->  | AE87: =VLOOKUP('calculs par chaud'!$AC87,'Price List'!$C:$V,25,FALSE) ->  | AF87: =VLOOKUP('calculs par chaud'!$AC87,'Price List'!$C:$V,3,FALSE) -> 0 | AL87: EUR
A88: =texte!H53 -> ISOLATION BOUTEILLE DE DÉCOUPLAGE < 350 kW | B88: =VLOOKUP($J$31,'gamme DD chaud'!$E$14:$BM$143,57) ->  | C88: ='gamme DD chaud'!$BI11 -> 40 | D88: ='gamme DD chaud'!$BI12 -> 115269 | E88: =IF('Dimensionnement par chaudière'!$E$23=texte!$B$16,"",IF($B88=0,"",A88)) ->  | F88: =IF('Dimensionnement par chaudière'!$E$23=texte!$B$16,"",IF($B88=0,"",IF(I88=FALSE,"",B88))) ->  | G88: =IF('Dimensionnement par chaudière'!$E$23=texte!$B$16,"",IF($B88=0,"",IF(I88=FALSE,"",C88))) ->  | H88: =IF('Dimensionnement par chaudière'!$E$23=texte!$B$16,"",IF($B88=0,"",D88)) ->  | I88: FALSE | Q88: ISOLATION BOUTEILLE DE DÉCOUPLAGE < 350 kW | R88: 1 | S88: 34.4 | T88: 115269 | U88: ISOLATION BOUTEILLE DE DÉCOUPLAGE < 350 kW | X88: 115269 | AC88: AD199 | AD88: =VLOOKUP('calculs par chaud'!$AC88,'Price List'!$C:$V,24,FALSE) ->  | AE88: =VLOOKUP('calculs par chaud'!$AC88,'Price List'!$C:$V,25,FALSE) ->  | AF88: =VLOOKUP('calculs par chaud'!$AC88,'Price List'!$C:$V,3,FALSE) -> 0
A89: =texte!H54 -> ISOLATION COUDES 90°C | B89: =VLOOKUP($J$31,'gamme DD chaud'!$E$14:$BM$143,58) ->  | C89: ='gamme DD chaud'!$BJ11 -> 111 | D89: ='gamme DD chaud'!$BJ12 -> 111167 | E89: =IF('Dimensionnement par chaudière'!$E$23=texte!$B$16,"",IF($B89=0,"",A89)) ->  | F89: =IF('Dimensionnement par chaudière'!$E$23=texte!$B$16,"",IF($B89=0,"",IF(I89=FALSE,"",B89))) ->  | G89: =IF('Dimensionnement par chaudière'!$E$23=texte!$B$16,"",IF($B89=0,"",IF(I89=FALSE,"",C89))) ->  | H89: =IF('Dimensionnement par chaudière'!$E$23=texte!$B$16,"",IF($B89=0,"",D89)) ->  | I89: FALSE | Q89: ISOLATION COUDES 90°C | R89: 1 | S89: 97.9 | T89: 111167 | U89: ISOLATION COUDES 90°C | X89: 111167 | AC89: AD212 | AD89: =VLOOKUP('calculs par chaud'!$AC89,'Price List'!$C:$V,24,FALSE) ->  | AE89: =VLOOKUP('calculs par chaud'!$AC89,'Price List'!$C:$V,25,FALSE) ->  | AF89: =VLOOKUP('calculs par chaud'!$AC89,'Price List'!$C:$V,3,FALSE) -> 0 | AJ89: REFERENCES DES COMPOSANTS DE BASE DE LA CASCADE :
A90: =texte!H55 -> PIED RÉGLABLE | B90: =VLOOKUP($J$31,'gamme DD chaud'!$E$14:$BM$143,59) ->  | C90: ='gamme DD chaud'!$BK11 -> 4 | D90: ='gamme DD chaud'!$BK12 -> 111807 | E90: =IF('Dimensionnement par chaudière'!$E$23=texte!$B$16,"",IF($B90=0,"",A90)) ->  | F90: =IF('Dimensionnement par chaudière'!$E$23=texte!$B$16,"",IF($B90=0,"",IF(I90=FALSE,"",B90))) ->  | G90: =IF('Dimensionnement par chaudière'!$E$23=texte!$B$16,"",IF($B90=0,"",IF(I90=FALSE,"",C90))) ->  | H90: =IF('Dimensionnement par chaudière'!$E$23=texte!$B$16,"",IF($B90=0,"",D90)) ->  | I90: FALSE | Q90: PIED RÉGLABLE | R90: 5 | S90: 4.1 | T90: 111807 | U90: PIED RÉGLABLE | X90: 111807 | AC90: AD250 | AD90: =VLOOKUP('calculs par chaud'!$AC90,'Price List'!$C:$V,24,FALSE) ->  | AE90: =VLOOKUP('calculs par chaud'!$AC90,'Price List'!$C:$V,25,FALSE) ->  | AF90: =VLOOKUP('calculs par chaud'!$AC90,'Price List'!$C:$V,3,FALSE) -> 0
A91: ="" ->  | B91: ="" ->  | C91: ="" ->  | D91: ="" ->  | E91: ="" ->  | F91: ="" ->  | G91: ="" ->  | H91: ="" ->  | I91: FALSE | AC91: AD137 | AD91: =VLOOKUP('calculs par chaud'!$AC91,'Price List'!$C:$V,24,FALSE) ->  | AE91: =VLOOKUP('calculs par chaud'!$AC91,'Price List'!$C:$V,25,FALSE) ->  | AF91: =VLOOKUP('calculs par chaud'!$AC91,'Price List'!$C:$V,3,FALSE) ->  | AI91: 7621566 | AJ91: CHASSIS DE MONTAGE MCA 160 | AK91: EH664 | AL91: 193.1 | AT91: 100018920 | AU91: BOITIER MURAL INTERFACE OTH / ModBus | AV91: AD286 | AW91: 138.5 | AX91: 138.5 | AY91: 3661238544918 | AZ91: 213 | BA91: 113 | BB91: 100 | BL91: 95010 | BM91: 0.12 | BN91: 1 | BO91: GC
A92: ="" ->  | B92: ="" ->  | C92: ="" ->  | D92: ="" ->  | E92: ="" ->  | F92: ="" ->  | G92: ="" ->  | H92: ="" ->  | I92: FALSE | AC92: AD200 | AD92: =VLOOKUP('calculs par chaud'!$AC92,'Price List'!$C:$V,24,FALSE) ->  | AE92: =VLOOKUP('calculs par chaud'!$AC92,'Price List'!$C:$V,25,FALSE) ->  | AF92: =VLOOKUP('calculs par chaud'!$AC92,'Price List'!$C:$V,3,FALSE) ->  | AI92: 7612942 | AJ92: MONTANT-SUPPORT L MCA 160 | AK92: EH662 | AL92: 157.9
AC93: AD140 | AD93: =VLOOKUP('calculs par chaud'!$AC93,'Price List'!$C:$V,24,FALSE) ->  | AE93: =VLOOKUP('calculs par chaud'!$AC93,'Price List'!$C:$V,25,FALSE) ->  | AF93: =VLOOKUP('calculs par chaud'!$AC93,'Price List'!$C:$V,3,FALSE) -> 0 | AI93: 7612941 | AJ93: MONTANT-SUPPORT I MCA 160 | AK93: EH663 | AL93: 116.7
A94: =VLOOKUP(D94,'Price List'!$1:$1048576,2,FALSE) ->  | B94: =IF(#REF!="",I3,#REF!) ->  | C94: =VLOOKUP(D94,'Price List'!$1:$1048576,4,FALSE) ->  | D94: 100016195 | AI94: 7637077 | AJ94: RAIL DE MONTAGE MURAL 2 CHAUDIÈRES MCA 160 | AK94: EH670 | AL94: 46.5
A95: =VLOOKUP(D95,'Price List'!$1:$1048576,2,FALSE) ->  | B95: =IF(#REF!="",H3,#REF!) ->  | C95: =VLOOKUP(D95,'Price List'!$1:$1048576,4,FALSE) ->  | D95: 100016199 | AI95: 7637088 | AJ95: RAIL DE MONTAGE MURAL 3 CHAUDIÈRES MCA 160 | AK95: EH671 | AL95: 65.2
A96: =VLOOKUP(D96,'Price List'!$1:$1048576,2,FALSE) ->  | B96: =IF(#REF!="",I4,#REF!) ->  | C96: =VLOOKUP(D96,'Price List'!$1:$1048576,4,FALSE) ->  | D96: 100016196 | AI96: 7665725 | AJ96: COLLECTEUR DN100-2 CHAUDIERES MCA 160 FR | AK96: EH652 | AL96: 1137.5
A97: =VLOOKUP(D97,'Price List'!$1:$1048576,2,FALSE) ->  | B97: =IF(#REF!="",H4,#REF!) ->  | C97: =VLOOKUP(D97,'Price List'!$1:$1048576,4,FALSE) ->  | D97: 100016200 | AI97: 7665728 | AJ97: COLLECTEUR DN100-3 CHAUDIERES MCA 160 FR | AK97: EH653 | AL97: 1442
A98: =VLOOKUP(D98,'Price List'!$1:$1048576,2,FALSE) ->  | B98: =IF(#REF!="",I5,#REF!) ->  | C98: =VLOOKUP(D98,'Price List'!$1:$1048576,4,FALSE) ->  | D98: 100016197 | AI98: 7622699 | AJ98: RAC COLLEC L MCA 45/115 EH655 | AK98: EH655 | AL98: 799.9
A99: =VLOOKUP(D99,'Price List'!$1:$1048576,2,FALSE) ->  | B99: =IF(#REF!="",H5,#REF!) ->  | C99: =VLOOKUP(D99,'Price List'!$1:$1048576,4,FALSE) ->  | D99: 100016201 | AI99: 7622701 | AJ99: RAC COLLEC L MCA 160 EH656 | AK99: EH656 | AL99: 712.3
A100: =VLOOKUP(D100,'Price List'!$1:$1048576,2,FALSE) ->  | B100: =IF(#REF!="",I6,#REF!) ->  | C100: =VLOOKUP(D100,'Price List'!$1:$1048576,4,FALSE) ->  | D100: 100016198 | AI100: 111703 | AJ100: BRIDES PLEINES EAU DN100 | AK100: HC199 | AL100: 189.1
A101: =VLOOKUP(D101,'Price List'!$1:$1048576,2,FALSE) ->  | B101: =IF(#REF!="",H6,#REF!) ->  | C101: =VLOOKUP(D101,'Price List'!$1:$1048576,4,FALSE) ->  | D101: 100016202 | AI101: 111701 | AJ101: BRIDES PLEINES EAU DN65 | AK101: HC198 | AL101: 148.2
AI102: 111708 | AJ102: JEU DE BOUCHONS | AK102: HC195 | AL102: 40.5
AI103: 7633244 | AJ103: ADAPTATEUR DN100/DN65 | AK103: EH654 | AL103: 304.9
AI104: 114311 | AJ104: BOUTEILLE DE DÉCOUPLAGE DN65 < 350 kW | AK104: HC222 | AL104: 617.5
AI105: 111712 | AJ105: BOUTEILLE DE DÉCOUPLAGE DN65 > 350 et < 460 kW | AK105: HC200 | AL105: 1028.2
AI106: 111714 | AJ106: BOUTEILLE DE DÉCOUPLAGE DN100 > 460 kW | AK106: HC201 | AL106: 1239.7
AI107: 100013027 | AJ107: SONDE DE DÉPART + DOIGT DE GANT-BOUTEILLE < 350 kW | AK107: HC223 | AL107: 132.3
AI108: 100008701 | AJ108: SONDE DE DÉPART + DOIGT DE GANT-BOUTEILLE > 350 kW | AK108: HC206 | AL108: 155.1
AI109: 7663618 | AJ109: CABLE S-BUS 1,5M AVEC BOUCHONS | AK109: AD308 | AL109: 32.3
F111: LW | G111: =IF($C$1=2,D117,IF($C$1=3,D118,D119)) -> 2 | AJ111: OPTIONS CASCADE
F112: LV | G112: =IF($C$1=2,D120,IF($C$1=3,D121,D122)) -> 5
F113: RG | G113: =IF($C$1=2,"",IF($C$1=3,D123,D124)) -> 7 | AI113: 7638518 | AJ113: JEU DE CONTRE BRIDE A SOUDER DN65 | AK113: EH669 | AL113: 139.6
AI114: 112633 | AJ114: JEU DE CONTRE-BRIDES À SOUDER DN100 | AK114: HC218 | AL114: 170.8
AI115: 111788 | AJ115: COUDES DN65 | AK115: HC209 | AL115: 647.7
D116: images | E116: =IF(B26="LW",G111,IF(B26="LV",G112,IF(B26="RG",G113,""))) -> 2 | AI116: 111790 | AJ116: COUDES DN100 | AK116: HC210 | AL116: 893.1
D117: 1 | AI117: 7613401 | AJ117: ISOLATION COLLECTEUR MCA 160 | AK117: EH647 | AL117: 89.2
D118: 2 | AI118: 7611804 | AJ118: ISOLATION RACCORD MCA 160 | AK118: EH648 | AL118: 86.6
D119: 3 | AI119: 7631858 | AJ119: PLAQ ISOLATION AR | AK119: EH649 | AL119: 79.8
D120: 4 | AI120: 7622201 | AJ120: ISOLATION ADAPTATEUR 100/65 | AK120: EH650 | AL120: 46.7
D121: 5 | AI121: 111167 | AJ121: ISOLATION COUDES 90°(DN65 ET 100) | AK121: HC216 | AL121: 100
D122: 6 | AI122: 115269 | AJ122: ISOLATION BOUTEILLE DE DÉCOUPLAGE < 350 kW | AK122: HC224 | AL122: 35.1
D123: 7 | AI123: 111067 | AJ123: ISOLATION BOUTEILLE DE DÉCOUPLAGE | AK123: HC215 | AL123: 237.6
D124: 8
AI125: S101655 | AJ125: FILTRE GAZ DN50 | AK125: HC255 | AL125: 518.3
AI126: S101656 | AJ126: FILTRE GAZ DN65 | AK126: HC256 | AL126: 714.5
AI127: 100011223 | AJ127: REGULATEUR DE PRESSION GDJ 25 300MBAR raccordt Ø 1' | AK127: AD245 | AL127: 184.7
AI128: 88027177 | AJ128: REGULATEUR DE PRESSION GDJ 50 300MBAR | AK128: AD246 | AL128: 441.1
AI129: 83877011 | AJ129: SYSTEME DE NEUTRALISATION DES CONDENSATS (CHAUDIERES ≥ 350KW) | AK129: DU15 | AL129: 1361.4
AI130: 94225601 | AJ130: RECHARGE DE GRANULATS DE NEUTRALISATION 10 KG** | AL130: 60.7
AI132: OPTIONS FUMISTERIE INNOVENS PRO MCA 160
AI133: REFERENCE | AJ133: DESIGNATION | AK133: COLIS | AL133: PRIX 03/2017
AL134: EUR
AI135: 7624821 | AJ135: FILTRE A AIR | AK135: EH646 | AL135: 440.4
AI136: 7619539 | AJ136: KIT RAC CHAUD 110/150 EH692 | AK136: EH692 | AL136: 109.2
AI137: 7627596 | AJ137: EXPANSION 150/200MM PPS EH645 | AK137: EH645 | AL137: 93.6
AJ139: PPS 110/150 MM
AI141: 100011364 | AJ141: PPS/ALU KIT VENTOUSE HORIZONTALE Ø 110/150MM | AK141: DY881 | AL141: 454.2
AI142: 100002734 | AJ142: TERMINAL VERTICAL PPS/GALV Ø 110/150 MM NOIR | AK142: DY845 | AL142: 269.7
AI143: 100002360 | AJ143: KIT N° 3 RACCORDEMENT CHAUDIÈRE PPS Ø 100/150 MM | AK143: DY818 | AL143: 299.8
AI144: 100002351 | AJ144: RALLONGE PPS-ALU Ø 110/150 MM LG= 500 MM | AK144: DY811 | AL144: 69.4
AI145: 100002352 | AJ145: RALLONGE PPS-ALU Ø 110/150 MM LG=1000 MM | AK145: DY812 | AL145: 103.4
AI146: 100002353 | AJ146: COUDE PPS-ALU 87°Ø 110/150 MM | AK146: DY813 | AL146: 125.8
AI147: 100002354 | AJ147: COUDE PPS-ALU 45°Ø 110/150 MM (2 PIÈCES) | AK147: DY814 | AL147: 218.7
AI148: 100002355 | AJ148: PIÈCE DE RÉVISION DROITE PPS-ALU Ø 110/150 MM | AK148: DY815 | AL148: 133
AI149: 100002356 | AJ149: TÉ DE RÉVISION PPS-ALU Ø 110/150 MM | AK149: DY816 | AL149: 190.4
AI150: 100002357 | AJ150: ADAPTATEUR PPS-ALU 100/150 - 110/150 MM | AK150: DY817 | AL150: 112.4
AI151: 84827104 | AJ151: TUILE A DOUILLE NOIRE AVEC ROTULE NOIRE POUR PENTE DE 25 ° A 45 ° | AK151: CX104 | AL151: 109
AI152: 84827106 | AJ152: TUILE A DOUILLE NOIRE AVEC ROTULE ROUGE POUR PENTE DE 25 ° A 45 ° | AK152: CX106 | AL152: 109
AI153: 84827111 | AJ153: COLLIER DE FIXATION Ø 150 MM | AK153: CX111 | AL153: 15.1
AI154: 84827115 | AJ154: PLATINES DE FINITION ( 2 PIECES ) | AK154: CX115 | AL154: 24.3
AI155: 100005004 | AJ155: GRILLE DE PROTECTION INOX Ø 100/150 MM | AK155: DY866 | AL155: 180.7
AI156: 84827103 | AJ156: EMBASE D'ETANCHEITE POUR TOIT PLAT | AK156: CX103 | AL156: 57.3
AJ158: PPS Ø 110 MM
AI160: 100008312 | AJ160: KIT DE RACCORDEMENT CHEMINÉE Ø 80 - 110 MM PPS | AK160: DY876 | AL160: 209
AI161: 100002357 | AJ161: ADAPTATEUR PPS-ALU 100/150 - 110/150 MM | AK161: DY817 | AL161: 112.4
AI162: 100017529 | AJ162: KIT DE BASE PPS/ALU D110/150 | AK162: DY914 | AL162: 282.9
AI163: 84887577 | AJ163: KIT DE RACCORDEMENT CHEMINÉE PPS Ø 110 MM | AK163: DY177 | AL163: 258.4
AI164: 84887589 | AJ164: TERMINAL AVEC SOLIN DIAMÉTRE 100/110 | AK164: DY189 | AL164: 229.7
AI165: 84887578 | AJ165: TUYAU PPS Ø 110 MM LG = 1950 MM (GRIS) | AK165: DY178 | AL165: 71.9
AI166: 84887579 | AJ166: TUYAU PPS Ø 110 MM LG = 1000 MM (GRIS) | AK166: DY179 | AL166: 40.2
AI167: 84887580 | AJ167: TUYAU PPS Ø 110 MM LG = 500 MM (GRIS) | AK167: DY180 | AL167: 27.3
AI168: 84887581 | AJ168: COUDE PPS 87° Ø 110 MM (GRIS) | AK168: DY181 | AL168: 33.2
AI169: 84887582 | AJ169: COUDE PPS 45° Ø 110 MM (GRIS) | AK169: DY182 | AL169: 50.2
AI170: 84887583 | AJ170: TUBE DE VISITE DROIT Ø 110 MM (GRIS) | AK170: DY183 | AL170: 50.2
AI171: 84887587 | AJ171: ETOILE DE CENTRAGE PPS Ø 110 MM (2 PIÈCES) | AK171: DY187 | AL171: 15.1
AI172: 100010270 | AJ172: PLAQUE DE FINITION CHEMINEE Ø 110 MM | AK172: DY879 | AL172: 43.2
AI173: 84887588 | AJ173: COUDE DE REVISION PPS 87° Ø 110 MM (GRIS) | AK173: DY188 | AL173: 71.9
AJ175: EN ALU Ø 150 MM
AI177: 100002473 | AJ177: VENTOUSE VERTICALE ALU / GALVA Ø 150/220 MM | AK177: DY835 | AL177: 841.1
AI178: 100002404 | AJ178: PIÈCE DE RACCORDEMENT AIR POUR VENTOUSE Ø 150 MM | AK178: DY830 | AL178: 105.2
AI179: 100002470 | AJ179: TÉ D'INSPECTION Ø 150 MM ALU | AK179: DY832 | AL179: 225.7
AI180: 84887645 | AJ180: RALLONGE Ø 150 MM LG = 500 MM | AK180: DY645 | AL180: 46.4
AI181: 84887646 | AJ181: RALLONGE Ø 150 MM LG = 1000 MM | AK181: DY646 | AL181: 80.7
AI182: 84887647 | AJ182: RALLONGE Ø 150 MM LG = 1950 MM | AK182: DY647 | AL182: 139.3
AI183: 84887435 | AJ183: GRILLE D'AERATION EXTERIEURE 175 CM² | AK183: DY35 | AL183: 20.9
AI184: 84887436 | AJ184: GRILLE D'AERATION INTERIEURE 175 CM² | AK184: DY36 | AL184: 24.3
AI185: 84887648 | AJ185: ETOILE DE CENTRAGE Ø 150 MM (2 PIÈCES) | AK185: DY648 | AL185: 54.8
AI186: 84887649 | AJ186: COUDE A 87° Ø 150 MM | AK186: DY649 | AL186: 86.8
AI187: 84887650 | AJ187: COUDE A 45° Ø 150 MM (2 PIÈCES) | AK187: DY650 | AL187: 161.2
AI188: 100002402 | AJ188: SOLIN POUR TOIT PLAT Ø 160/220 MM | AK188: DY828 | AL188: 74.6
AI189: 100002403 | AJ189: SOLIN POUR TOIT INCLINÉ Ø 160/220 MM | AK189: DY829 | AL189: 160.9
AI190: 100002692 | AJ190: COLLIER DE FIXATION Ø 150 MM | AK190: DY841 | AL190: 12.3
AI191: 100002700 | AJ191: PLATINES DE FINITION INTERIEURES Ø 220 MM | AK191: DY840 | AL191: 35.1
AJ193: EN PPS Ø 160 MM
AI195: 100002400 | AJ195: VENTOUSE VERTICALE PPS GALVA Ø 160/220 MM | AK195: DY826 | AL195: 841.1
AI196: 100002404 | AJ196: PIÈCE DE RACCORDEMENT AIR POUR VENTOUSE Ø 150 MM | AK196: DY830 | AL196: 105.2
AI197: 100002399 | AJ197: ADAPTATEUR PPS Ø 150-160 MM | AK197: DY825 | AL197: 102.4
AI198: 100002395 | AJ198: RALLONGE PPS Ø 160 MM LG = 1000 MM | AK198: DY821 | AL198: 121.8
AI199: 100002396 | AJ199: RALLONGE PPS Ø 160 MM LG = 500 MM | AK199: DY822 | AL199: 85.2
AI200: 100002397 | AJ200: COUDE PPS 87° Ø 160 MM | AK200: DY823 | AL200: 99.4
AI201: 100002398 | AJ201: COUDE PPS 45° Ø 160 MM | AK201: DY824 | AL201: 181.5
AI202: 100002471 | AJ202: TUBE D'INSPECTION Ø 160 MM LG = 300 MM | AK202: DY833 | AL202: 157.6
AI203: 100002472 | AJ203: COUDE DE RÉVISION Ø 160 MM | AK203: DY834 | AL203: 185.9
AI204: 100002402 | AJ204: SOLIN POUR TOIT PLAT Ø 160/220 MM | AK204: DY828 | AL204: 74.6
AI205: 100002403 | AJ205: SOLIN POUR TOIT INCLINÉ Ø 160/220 MM | AK205: DY829 | AL205: 160.9
AI206: 100002693 | AJ206: COLLIER DE FIXATION Ø 160 MM | AK206: DY842 | AL206: 13.6
AI207: 100002700 | AJ207: PLATINES DE FINITION INTERIEURES Ø 220 MM | AK207: DY840 | AL207: 35.1
AJ209: CONFIGURATION VENTOUSE HORIZONTALE
AJ210: EN PPS Ø 160 MM
AI212: 100002401 | AJ212: VENTOUSE HORIZONTALE PPS GALVA Ø 160/220 MM | AK212: DY827 | AL212: 693.2
AI213: 100004040 | AJ213: RALLONGE VENTOUSE PPS HORIZONTALE Ø160/200 L.1M | AK213: DY857 | AL213: 258.4
AI214: 100004243 | AJ214: RALLONGE GALVA/ALU VENTOUSE HORIZONTALE F 150/220 LONG. 1M | AK214: DY864 | AL214: 301.5
AI215: 100002404 | AJ215: PIÈCE DE RACCORDEMENT AIR POUR VENTOUSE Ø 150 MM | AK215: DY830 | AL215: 105.2
AI216: 100002399 | AJ216: ADAPTATEUR PPS Ø 150-160 MM | AK216: DY825 | AL216: 102.4
AI217: 100002395 | AJ217: RALLONGE PPS Ø 160 MM LG = 1000 MM | AK217: DY821 | AL217: 121.8
AI218: 100002396 | AJ218: RALLONGE PPS Ø 160 MM LG = 500 MM | AK218: DY822 | AL218: 85.2
AI219: 100002397 | AJ219: COUDE PPS 87° Ø 160 MM | AK219: DY823 | AL219: 99.4
AI220: 100002398 | AJ220: COUDE PPS 45° Ø 160 MM | AK220: DY824 | AL220: 181.5
AI221: 100002471 | AJ221: TUBE D'INSPECTION Ø 160 MM LG = 300 MM | AK221: DY833 | AL221: 157.6
... 2 more rows

Sheet gamme DD chaud (hidden)
E2: 1 | F2: 2 | G2: 3 | H2: 4 | I2: 5 | J2: 6 | K2: 7 | L2: 8 | M2: 9 | N2: 10 | O2: 11 | P2: 12 | Q2: 13 | R2: 14 | S2: 15 | T2: 16 | U2: 17 | V2: 18 | W2: 19 | X2: 20 | Y2: 21 | Z2: 22 | AA2: 23 | AB2: 24 | AC2: 25 | AD2: 26 | AE2: 27 | AF2: 28 | AG2: 29 | AH2: 30 | AI2: 31 | AJ2: 32 | AK2: 33 | AL2: 34 | AM2: 35 | AN2: 36 | AO2: 37 | AP2: 38 | AQ2: 39 | AR2: 40 | AS2: 41 | AT2: 42 | AU2: 43 | AV2: 44 | AW2: 45 | AX2: 46 | AY2: 47 | AZ2: 48 | BA2: 49 | BB2: 50 | BC2: 51 | BD2: 52 | BE2: 53 | BF2: 54 | BG2: 55 | BH2: 56 | BI2: 57 | BJ2: 58 | BK2: 59 | BL2: 60 | BM2: 61
J5: non utilisé
AF7: NON | AG7: NON
AD8: France | AF8: Autres Pays | AZ8: Obligatoire BE
H9: MC 45 | I9: MC 65 | J9: MC 90 | K9: MC 115 | L9: MCA 160
G10: Puissance [kW] (80/60) | H10: 40 | I10: 61 | J10: 84.2 | K10: 107 | L10: 152.1 | O10: Sonde départ doigt de gant (> 350 kW) | P10: Sonde départ doigt de gant (< 350 kW) | Q10: Câble Bus RX11 | R10: Pompe MC 45 | S10: Pompe MC 65 | T10: Pompe MC 90/MC 115 | U10: Collect. 2 DN65 | V10: Collect. 3 DN65 | W10: Collect. 4 DN65 | X10: Bouteille découpl. DN65 | Y10: Bouteille découpl. DN65 (<350 kW) | Z10: Collect. 2 DN100 | AA10: Collect. 3 DN100 | AB10: Collect. 4 DN100 | AC10: Bouteille découpl. DN100 | AD10: Raccordt. Avant | AE10: Raccordt. Arrière | AF10: Raccordt. Avant | AG10: Raccordt. Arrière | AH10: Kit Bouchons | AI10: 1 Bride pleine gaz DN50 | AJ10: 2 Brides pleines eau DN65 | AK10: 1 Bride pleine gaz DN65 | AL10: 2 Brides pleines eau DN100 | AM10: Support L | AN10: Support I | AO10: Cadre de montage | AP10: Rail mural LW2 | AQ10: Rail mural LW3 | AR10: Rail mural LW4 | AU10: =texte!H39 -> ADAPTATEUR Ø 80 - 100 MM | AY10: Filtre Gaz DN50 | AZ10: Vanne de sécurité gaz DN 65 | BA10: Filtre Gaz DN65 | BB10: Coude DN65 | BC10: Coude DN100 | BD10: Tube rallonge filtre gaz DN50 | BE10: Tube rallonge filtre gaz DN65 | BF10: Isolation collecteur | BG10: Isolation raccordt. chaudière | BH10: Isolation Bouteille Découplage (>350 kW) | BI10: Isolation Bouteille Découplage (<350 kW) | BJ10: Isolation Coude 90° | BK10: Pied reglable | BL10: Jeux de Contre-brides à souder DN65 | BM10: Contre-brides à souder DN100
E11: Prix | G11: Prix | O11: =texte!I7 -> 167 | P11: =texte!I8 -> 141 | Q11: =texte!I9 -> 90 | R11: =texte!I10 -> 326 | S11: =texte!I11 -> 326 | T11: =texte!I12 -> 421 | U11: =texte!I13 -> 712 | V11: =texte!I14 -> 964 | W11: =texte!I15 ->  | X11: =texte!I16 -> 1101 | Y11: =texte!I17 -> 664 | Z11: =texte!I18 ->  | AA11: =texte!I19 ->  | AB11: =texte!I20 ->  | AC11: =texte!I21 ->  | AD11: =texte!I22 -> 650 | AE11: =texte!I23 ->  | AF11: =texte!I24 ->  | AG11: =texte!I25 ->  | AH11: =texte!I26 -> 43 | AI11: =texte!I27 ->  | AJ11: =texte!I28 -> 160 | AK11: =texte!I29 ->  | AL11: =texte!I30 ->  | AM11: =texte!I31 ->  | AN11: =texte!I32 -> 95 | AO11: =texte!I33 -> 100 | AP11: =texte!I34 -> 45 | AQ11: =texte!I35 -> 54 | AR11: =texte!I36 -> 71 | AU11: =texte!I39 -> 58 | AY11: =texte!I43 -> 558 | AZ11: =texte!I44 ->  | BA11: =texte!I45 -> 90 | BB11: =texte!I46 -> 714 | BC11: =texte!I47 ->  | BD11: =texte!I48 ->  | BE11: =texte!I49 ->  | BF11: =texte!I50 -> 92 | BG11: =texte!I51 ->  | BH11: =texte!I52 -> 260 | BI11: =texte!I53 -> 40 | BJ11: =texte!I54 -> 111 | BK11: =texte!I55 -> 4 | BL11: =texte!I56 -> 165 | BM11: =texte!I57 -> 0
G12: Référence | H12: 100002181 | I12: 100002182 | J12: 100002183 | K12: 100006745 | L12: 7677082 | O12: 100008701 | P12: 100013027 | Q12: 88017836 | R12: S101614 | S12: S101614 | T12: 7608398 | U12: 90777 | V12: 90778 | W12: 110966 | X12: 111712 | Y12: 114311 | Z12: 110961 | AA12: 110960 | AB12: 110954 | AC12: 111714 | AD12: 111022 | AE12: 111037 | AF12: 112906 | AG12: 112908 | AH12: 111708 | AI12: 111698 | AJ12: 111701 | AK12: 111699 | AL12: 111703 | AM12: 120842 | AN12: 120900 | AO12: 120918 | AP12: 111688 | AQ12: 111689 | AR12: 111690 | AU12: 84887768 | AY12: S101655 | AZ12: 114419 | BA12: 111780 | BB12: 111788 | BC12: 111790 | BD12: 111805 | BE12: 111806 | BF12: 111069 | BG12: 122441 | BH12: 111067 | BI12: 115269 | BJ12: 111167 | BK12: 111807 | BL12: 162632 | BM12: 112633
E13: N° Référence DD | F13: volgnr | G13: Nombre de chaudières | H13: MC 45 | I13: MC 65 | J13: MC 90 | K13: MC 115 | L13: MCA 160 | M13: Type | N13: P (80/60) [kW] | O13: =O10 -> Sonde départ doigt de gant (> 350 kW) | P13: Sonde départ doigt de gant (< 350 kW) | Q13: Câble Bus RX11 | R13: Pompe MC 45 | S13: Pompe MC 65 | T13: Pompe MC 90/MC 115 | U13: Collect. 2 DN65 | V13: Collect. 3 DN65 | W13: Collect. 4 DN65 | X13: Bouteille découpl. DN65 | Y13: Bouteille découpl. DN65 (<350 kW) | Z13: Collect. 2 DN100 | AA13: Collect. 3 DN100 | AB13: Collect. 4 DN100 | AC13: Bouteille découpl. DN100 | AD13: Raccordt. Avant | AE13: Raccordt. Arrière | AF13: Raccordt. Avant | AG13: Raccordt. Arrière | AH13: Kit Bouchons | AI13: 1 Bride pleine gaz DN50 | AJ13: 2 Brides pleines eau DN65 | AK13: 1 Bride pleine gaz DN65 | AL13: 2 Brides pleines eau DN100 | AM13: Support L | AN13: Support I | AO13: Cadre de montage | AP13: Rail mural LW2 | AQ13: Rail mural LW3 | AR13: Rail mural LW4 | AS13: Prix cascade | AT13: Prix cascade + chaudières | AU13: =AU10 -> ADAPTATEUR Ø 80 - 100 MM | AY13: =AY10 -> Filtre Gaz DN50 | AZ13: Vanne de sécurité gaz DN 65 | BA13: =BA10 -> Filtre Gaz DN65 | BB13: Coude DN65 | BC13: Coude DN100 | BD13: Tube rallonge filtre gaz DN50 | BE13: Tube rallonge filtre gaz DN65 | BF13: Isolation collecteur | BG13: Isolation raccordt. chaudière | BH13: Isolation Bouteille Découplage (>350 kW) | BI13: Isolation Bouteille Découplage (<350 kW) | BJ13: Isolation Coude 90° | BK13: Pied reglable | BL13: Jeux de Contre-brides à souder DN65 | BM13: Contre-brides à souder DN100
E14: =M14&"."&TEXT(FLOOR(N14,1),"0000")&"kW."&H14&I14&J14&K14&L14 -> LV.0080kW.20000 | F14: =E14 -> LV.0080kW.20000 | G14: 2 | H14: 2 | I14: 0 | J14: 0 | K14: 0 | L14: 0 | M14: LV | N14: =SUMPRODUCT($H$10:$L$10,H14:L14) -> 80 | O14: 0 | P14: 1 | Q14: =G14-1 -> 1 | R14: 2 | S14: 0 | T14: 0 | U14: =IF(G14=2,1,IF(G14=4,2,0)) -> 1 | V14: =IF(G14=3,1,0) -> 0 | W14: 0 | X14: 0 | Y14: 1 | Z14: 0 | AA14: 0 | AB14: 0 | AC14: 0 | AD14: 2 | AE14: 0 | AF14: 0 | AG14: 0 | AH14: 2 | AI14: 0 | AJ14: 1 | AK14: 0 | AL14: 0 | AM14: 0 | AN14: 3 | AO14: 2 | AP14: 0 | AQ14: 0 | AR14: 0 | AS14: =SUMPRODUCT(O14:AR14,$O$11:$AR$11) ->  | AT14: =SUMPRODUCT(H14:K14,$H$11:$K$11)+AS14 ->  | AU14: =H14 -> 2 | AY14: 1 | AZ14: 0 | BA14: 0 | BB14: 1 | BC14: 0 | BD14: 0 | BE14: 0 | BF14: 2 | BG14: =G14 -> 2 | BH14: 0 | BI14: 1 | BJ14: 1 | BK14: =IF(G14=2,5,IF(G14=3,6,IF(G14=4,8,IF(G14=5,9,IF(G14=6,10,IF(G14=7,12,0)))))) -> 5 | BL14: 0 | BM14: 0
E15: =M15&"."&TEXT(FLOOR(N15,1),"0000")&"kW."&H15&I15&J15&K15&L15 -> LV.0101kW.11000 | F15: =E15 -> LV.0101kW.11000 | G15: 2 | H15: 1 | I15: 1 | J15: 0 | K15: 0 | L15: 0 | M15: LV | N15: 101 | O15: 0 | P15: 1 | Q15: 1 | R15: 1 | S15: 1 | T15: 0 | U15: =IF(G15=2,1,IF(G15=4,2,0)) -> 1 | V15: =IF(G15=3,1,0) -> 0 | W15: 0 | X15: 0 | Y15: 1 | Z15: 0 | AA15: 0 | AB15: 0 | AC15: 0 | AD15: 2 | AE15: 0 | AF15: 0 | AG15: 0 | AH15: 2 | AI15: 0 | AJ15: 1 | AK15: 0 | AL15: 0 | AM15: 0 | AN15: 3 | AO15: 2 | AP15: 0 | AQ15: 0 | AR15: 0 | AU15: =H15 -> 1 | AY15: 1 | AZ15: 0 | BA15: 0 | BB15: 1 | BC15: 0 | BD15: 0 | BE15: 0 | BF15: 2 | BG15: =G15 -> 2 | BH15: 0 | BI15: 1 | BJ15: 1 | BK15: =IF(G15=2,5,IF(G15=3,6,IF(G15=4,8,IF(G15=5,9,IF(G15=6,10,IF(G15=7,12,0)))))) -> 5 | BL15: 0 | BM15: 0
E16: LV.0120kW.30000 | F16: LV.0120kW.30000 | G16: 3 | H16: 3 | I16: 0 | J16: 0 | K16: 0 | L16: 0 | M16: LV | N16: 120 | O16: 0 | P16: 1 | Q16: 2 | R16: 3 | S16: 0 | T16: 0 | U16: 0 | V16: 1 | W16: 0 | X16: 0 | Y16: 1 | Z16: 0 | AA16: 0 | AB16: 0 | AC16: 0 | AD16: 3 | AE16: 0 | AF16: 0 | AG16: 0 | AH16: 3 | AI16: 0 | AJ16: 1 | AK16: 0 | AL16: 0 | AM16: 0 | AN16: 4 | AO16: 3 | AP16: 0 | AQ16: 0 | AR16: 0 | AU16: 3 | AY16: 1 | AZ16: 0 | BA16: 0 | BB16: 1 | BC16: 0 | BD16: 0 | BE16: 0 | BF16: 3 | BG16: 3 | BH16: 0 | BI16: 1 | BJ16: 1 | BK16: 6 | BL16: 0 | BM16: 0
E17: LV.0122kW.02000 | F17: LV.0122kW.02000 | G17: 2 | H17: 0 | I17: 2 | J17: 0 | K17: 0 | L17: 0 | M17: LV | N17: 122 | O17: 0 | P17: 1 | Q17: 1 | R17: 0 | S17: 2 | T17: 0 | U17: 1 | V17: 0 | W17: 0 | X17: 0 | Y17: 1 | Z17: 0 | AA17: 0 | AB17: 0 | AC17: 0 | AD17: 2 | AE17: 0 | AF17: 0 | AG17: 0 | AH17: 2 | AI17: 0 | AJ17: 1 | AK17: 0 | AL17: 0 | AM17: 0 | AN17: 3 | AO17: 2 | AP17: 0 | AQ17: 0 | AR17: 0 | AU17: 0 | AY17: 1 | AZ17: 0 | BA17: 0 | BB17: 1 | BC17: 0 | BD17: 0 | BE17: 0 | BF17: 2 | BG17: 2 | BH17: 0 | BI17: 1 | BJ17: 1 | BK17: 5 | BL17: 0 | BM17: 0
E18: LV.0124kW.10100 | F18: LV.0124kW.10100 | G18: 2 | H18: 1 | I18: 0 | J18: 1 | K18: 0 | L18: 0 | M18: LV | N18: 124.2 | O18: 0 | P18: 1 | Q18: 1 | R18: 1 | S18: 0 | T18: 1 | U18: 1 | V18: 0 | W18: 0 | X18: 0 | Y18: 1 | Z18: 0 | AA18: 0 | AB18: 0 | AC18: 0 | AD18: 2 | AE18: 0 | AF18: 0 | AG18: 0 | AH18: 2 | AI18: 0 | AJ18: 1 | AK18: 0 | AL18: 0 | AM18: 0 | AN18: 3 | AO18: 2 | AP18: 0 | AQ18: 0 | AR18: 0 | AU18: 1 | AY18: 1 | AZ18: 0 | BA18: 0 | BB18: 1 | BC18: 0 | BD18: 0 | BE18: 0 | BF18: 2 | BG18: 2 | BH18: 0 | BI18: 1 | BJ18: 1 | BK18: 5 | BL18: 0 | BM18: 0
E19: LV.0141kW.21000 | F19: LV.0141kW.21000 | G19: 3 | H19: 2 | I19: 1 | J19: 0 | K19: 0 | L19: 0 | M19: LV | N19: 141 | O19: 0 | P19: 1 | Q19: 2 | R19: 2 | S19: 1 | T19: 0 | U19: 0 | V19: 1 | W19: 0 | X19: 0 | Y19: 1 | Z19: 0 | AA19: 0 | AB19: 0 | AC19: 0 | AD19: 3 | AE19: 0 | AF19: 0 | AG19: 0 | AH19: 3 | AI19: 0 | AJ19: 1 | AK19: 0 | AL19: 0 | AM19: 0 | AN19: 4 | AO19: 3 | AP19: 0 | AQ19: 0 | AR19: 0 | AU19: 2 | AY19: 1 | AZ19: 0 | BA19: 0 | BB19: 1 | BC19: 0 | BD19: 0 | BE19: 0 | BF19: 3 | BG19: 3 | BH19: 0 | BI19: 1 | BJ19: 1 | BK19: 6 | BL19: 0 | BM19: 0
E20: LV.0145kW.01100 | F20: LV.0145kW.01100 | G20: 2 | H20: 0 | I20: 1 | J20: 1 | K20: 0 | L20: 0 | M20: LV | N20: 145.2 | O20: 0 | P20: 1 | Q20: 1 | R20: 0 | S20: 1 | T20: 1 | U20: 1 | V20: 0 | W20: 0 | X20: 0 | Y20: 1 | Z20: 0 | AA20: 0 | AB20: 0 | AC20: 0 | AD20: 2 | AE20: 0 | AF20: 0 | AG20: 0 | AH20: 2 | AI20: 0 | AJ20: 1 | AK20: 0 | AL20: 0 | AM20: 0 | AN20: 3 | AO20: 2 | AP20: 0 | AQ20: 0 | AR20: 0 | AU20: 0 | AY20: 1 | AZ20: 0 | BA20: 0 | BB20: 1 | BC20: 0 | BD20: 0 | BE20: 0 | BF20: 2 | BG20: 2 | BH20: 0 | BI20: 1 | BJ20: 1 | BK20: 5 | BL20: 0 | BM20: 0
E21: LV.0147kW.10010 | F21: LV.0147kW.10010 | G21: 2 | H21: 1 | I21: 0 | J21: 0 | K21: 1 | L21: 0 | M21: LV | N21: 147 | O21: 0 | P21: 1 | Q21: 1 | R21: 1 | S21: 0 | T21: 1 | U21: 1 | V21: 0 | W21: 0 | X21: 0 | Y21: 1 | Z21: 0 | AA21: 0 | AB21: 0 | AC21: 0 | AD21: 2 | AE21: 0 | AF21: 0 | AG21: 0 | AH21: 2 | AI21: 0 | AJ21: 1 | AK21: 0 | AL21: 0 | AM21: 0 | AN21: 3 | AO21: 2 | AP21: 0 | AQ21: 0 | AR21: 0 | AU21: 1 | AY21: 1 | AZ21: 0 | BA21: 0 | BB21: 1 | BC21: 0 | BD21: 0 | BE21: 0 | BF21: 2 | BG21: 2 | BH21: 0 | BI21: 1 | BJ21: 1 | BK21: 5 | BL21: 0 | BM21: 0
E22: LV.0160kW.40000 | F22: LV.0160kW.40000 | G22: 4 | H22: 4 | I22: 0 | J22: 0 | K22: 0 | L22: 0 | M22: LV | N22: 160 | O22: 0 | P22: 1 | Q22: 3 | R22: 4 | S22: 0 | T22: 0 | U22: 2 | V22: 0 | W22: 0 | X22: 0 | Y22: 1 | Z22: 0 | AA22: 0 | AB22: 0 | AC22: 0 | AD22: 4 | AE22: 0 | AF22: 0 | AG22: 0 | AH22: 4 | AI22: 0 | AJ22: 1 | AK22: 0 | AL22: 0 | AM22: 0 | AN22: 5 | AO22: 4 | AP22: 0 | AQ22: 0 | AR22: 0 | AU22: 4 | AY22: 1 | AZ22: 0 | BA22: 0 | BB22: 1 | BC22: 0 | BD22: 0 | BE22: 0 | BF22: 4 | BG22: 4 | BH22: 0 | BI22: 1 | BJ22: 1 | BK22: 8 | BL22: 0 | BM22: 0
E23: LV.0162kW.12000 | F23: LV.0162kW.12000 | G23: 3 | H23: 1 | I23: 2 | J23: 0 | K23: 0 | L23: 0 | M23: LV | N23: 162 | O23: 0 | P23: 1 | Q23: 2 | R23: 1 | S23: 2 | T23: 0 | U23: 0 | V23: 1 | W23: 0 | X23: 0 | Y23: 1 | Z23: 0 | AA23: 0 | AB23: 0 | AC23: 0 | AD23: 3 | AE23: 0 | AF23: 0 | AG23: 0 | AH23: 3 | AI23: 0 | AJ23: 1 | AK23: 0 | AL23: 0 | AM23: 0 | AN23: 4 | AO23: 3 | AP23: 0 | AQ23: 0 | AR23: 0 | AU23: 1 | AY23: 1 | AZ23: 0 | BA23: 0 | BB23: 1 | BC23: 0 | BD23: 0 | BE23: 0 | BF23: 3 | BG23: 3 | BH23: 0 | BI23: 1 | BJ23: 1 | BK23: 6 | BL23: 0 | BM23: 0
E24: LV.0164kW.20100 | F24: LV.0164kW.20100 | G24: 3 | H24: 2 | I24: 0 | J24: 1 | K24: 0 | L24: 0 | M24: LV | N24: 164.2 | O24: 0 | P24: 1 | Q24: 2 | R24: 2 | S24: 0 | T24: 1 | U24: 0 | V24: 1 | W24: 0 | X24: 0 | Y24: 1 | Z24: 0 | AA24: 0 | AB24: 0 | AC24: 0 | AD24: 3 | AE24: 0 | AF24: 0 | AG24: 0 | AH24: 3 | AI24: 0 | AJ24: 1 | AK24: 0 | AL24: 0 | AM24: 0 | AN24: 4 | AO24: 3 | AP24: 0 | AQ24: 0 | AR24: 0 | AU24: 2 | AY24: 1 | AZ24: 0 | BA24: 0 | BB24: 1 | BC24: 0 | BD24: 0 | BE24: 0 | BF24: 3 | BG24: 3 | BH24: 0 | BI24: 1 | BJ24: 1 | BK24: 6 | BL24: 0 | BM24: 0
E25: LV.0168kW.00200 | F25: LV.0168kW.00200 | G25: 2 | H25: 0 | I25: 0 | J25: 2 | K25: 0 | L25: 0 | M25: LV | N25: 168.4 | O25: 0 | P25: 1 | Q25: 1 | R25: 0 | S25: 0 | T25: 2 | U25: 1 | V25: 0 | W25: 0 | X25: 0 | Y25: 1 | Z25: 0 | AA25: 0 | AB25: 0 | AC25: 0 | AD25: 2 | AE25: 0 | AF25: 0 | AG25: 0 | AH25: 2 | AI25: 0 | AJ25: 1 | AK25: 0 | AL25: 0 | AM25: 0 | AN25: 3 | AO25: 2 | AP25: 0 | AQ25: 0 | AR25: 0 | AU25: 0 | AY25: 1 | AZ25: 0 | BA25: 0 | BB25: 1 | BC25: 0 | BD25: 0 | BE25: 0 | BF25: 2 | BG25: 2 | BH25: 0 | BI25: 1 | BJ25: 1 | BK25: 5 | BL25: 0 | BM25: 0
E26: LV.0168kW.01010 | F26: LV.0168kW.01010 | G26: 2 | H26: 0 | I26: 1 | J26: 0 | K26: 1 | L26: 0 | M26: LV | N26: 168 | O26: 0 | P26: 1 | Q26: 1 | R26: 0 | S26: 1 | T26: 1 | U26: 1 | V26: 0 | W26: 0 | X26: 0 | Y26: 1 | Z26: 0 | AA26: 0 | AB26: 0 | AC26: 0 | AD26: 2 | AE26: 0 | AF26: 0 | AG26: 0 | AH26: 2 | AI26: 0 | AJ26: 1 | AK26: 0 | AL26: 0 | AM26: 0 | AN26: 3 | AO26: 2 | AP26: 0 | AQ26: 0 | AR26: 0 | AU26: 0 | AY26: 1 | AZ26: 0 | BA26: 0 | BB26: 1 | BC26: 0 | BD26: 0 | BE26: 0 | BF26: 2 | BG26: 2 | BH26: 0 | BI26: 1 | BJ26: 1 | BK26: 5 | BL26: 0 | BM26: 0
E27: LV.0181kW.31000 | F27: LV.0181kW.31000 | G27: 4 | H27: 3 | I27: 1 | J27: 0 | K27: 0 | L27: 0 | M27: LV | N27: 181 | O27: 0 | P27: 1 | Q27: 3 | R27: 3 | S27: 1 | T27: 0 | U27: 2 | V27: 0 | W27: 0 | X27: 0 | Y27: 1 | Z27: 0 | AA27: 0 | AB27: 0 | AC27: 0 | AD27: 4 | AE27: 0 | AF27: 0 | AG27: 0 | AH27: 4 | AI27: 0 | AJ27: 1 | AK27: 0 | AL27: 0 | AM27: 0 | AN27: 5 | AO27: 4 | AP27: 0 | AQ27: 0 | AR27: 0 | AU27: 3 | AY27: 1 | AZ27: 0 | BA27: 0 | BB27: 1 | BC27: 0 | BD27: 0 | BE27: 0 | BF27: 4 | BG27: 4 | BH27: 0 | BI27: 1 | BJ27: 1 | BK27: 8 | BL27: 0 | BM27: 0
E28: LV.0183kW.03000 | F28: LV.0183kW.03000 | G28: 3 | H28: 0 | I28: 3 | J28: 0 | K28: 0 | L28: 0 | M28: LV | N28: 183 | O28: 0 | P28: 1 | Q28: 2 | R28: 0 | S28: 3 | T28: 0 | U28: 0 | V28: 1 | W28: 0 | X28: 0 | Y28: 1 | Z28: 0 | AA28: 0 | AB28: 0 | AC28: 0 | AD28: 3 | AE28: 0 | AF28: 0 | AG28: 0 | AH28: 3 | AI28: 0 | AJ28: 1 | AK28: 0 | AL28: 0 | AM28: 0 | AN28: 4 | AO28: 3 | AP28: 0 | AQ28: 0 | AR28: 0 | AU28: 0 | AY28: 1 | AZ28: 0 | BA28: 0 | BB28: 1 | BC28: 0 | BD28: 0 | BE28: 0 | BF28: 3 | BG28: 3 | BH28: 0 | BI28: 1 | BJ28: 1 | BK28: 6 | BL28: 0 | BM28: 0
E29: LV.0185kW.11100 | F29: LV.0185kW.11100 | G29: 3 | H29: 1 | I29: 1 | J29: 1 | K29: 0 | L29: 0 | M29: LV | N29: 185.2 | O29: 0 | P29: 1 | Q29: 2 | R29: 1 | S29: 1 | T29: 1 | U29: 0 | V29: 1 | W29: 0 | X29: 0 | Y29: 1 | Z29: 0 | AA29: 0 | AB29: 0 | AC29: 0 | AD29: 3 | AE29: 0 | AF29: 0 | AG29: 0 | AH29: 3 | AI29: 0 | AJ29: 1 | AK29: 0 | AL29: 0 | AM29: 0 | AN29: 4 | AO29: 3 | AP29: 0 | AQ29: 0 | AR29: 0 | AU29: 1 | AY29: 1 | AZ29: 0 | BA29: 0 | BB29: 1 | BC29: 0 | BD29: 0 | BE29: 0 | BF29: 3 | BG29: 3 | BH29: 0 | BI29: 1 | BJ29: 1 | BK29: 6 | BL29: 0 | BM29: 0
E30: LV.0187kW.20010 | F30: LV.0187kW.20010 | G30: 3 | H30: 2 | I30: 0 | J30: 0 | K30: 1 | L30: 0 | M30: LV | N30: 187 | O30: 0 | P30: 1 | Q30: 2 | R30: 2 | S30: 0 | T30: 1 | U30: 0 | V30: 1 | W30: 0 | X30: 0 | Y30: 1 | Z30: 0 | AA30: 0 | AB30: 0 | AC30: 0 | AD30: 3 | AE30: 0 | AF30: 0 | AG30: 0 | AH30: 3 | AI30: 0 | AJ30: 1 | AK30: 0 | AL30: 0 | AM30: 0 | AN30: 4 | AO30: 3 | AP30: 0 | AQ30: 0 | AR30: 0 | AU30: 2 | AY30: 1 | AZ30: 0 | BA30: 0 | BB30: 1 | BC30: 0 | BD30: 0 | BE30: 0 | BF30: 3 | BG30: 3 | BH30: 0 | BI30: 1 | BJ30: 1 | BK30: 6 | BL30: 0 | BM30: 0
E31: LV.0191kW.00110 | F31: LV.0191kW.00110 | G31: 2 | H31: 0 | I31: 0 | J31: 1 | K31: 1 | L31: 0 | M31: LV | N31: 191.2 | O31: 0 | P31: 1 | Q31: 1 | R31: 0 | S31: 0 | T31: 2 | U31: 1 | V31: 0 | W31: 0 | X31: 0 | Y31: 1 | Z31: 0 | AA31: 0 | AB31: 0 | AC31: 0 | AD31: 2 | AE31: 0 | AF31: 0 | AG31: 0 | AH31: 2 | AI31: 0 | AJ31: 1 | AK31: 0 | AL31: 0 | AM31: 0 | AN31: 3 | AO31: 2 | AP31: 0 | AQ31: 0 | AR31: 0 | AU31: 0 | AY31: 1 | AZ31: 0 | BA31: 0 | BB31: 1 | BC31: 0 | BD31: 0 | BE31: 0 | BF31: 2 | BG31: 2 | BH31: 0 | BI31: 1 | BJ31: 1 | BK31: 5 | BL31: 0 | BM31: 0
E32: LV.0202kW.22000 | F32: LV.0202kW.22000 | G32: 4 | H32: 2 | I32: 2 | J32: 0 | K32: 0 | L32: 0 | M32: LV | N32: 202 | O32: 0 | P32: 1 | Q32: 3 | R32: 2 | S32: 2 | T32: 0 | U32: 2 | V32: 0 | W32: 0 | X32: 0 | Y32: 1 | Z32: 0 | AA32: 0 | AB32: 0 | AC32: 0 | AD32: 4 | AE32: 0 | AF32: 0 | AG32: 0 | AH32: 4 | AI32: 0 | AJ32: 1 | AK32: 0 | AL32: 0 | AM32: 0 | AN32: 5 | AO32: 4 | AP32: 0 | AQ32: 0 | AR32: 0 | AU32: 2 | AY32: 1 | AZ32: 0 | BA32: 0 | BB32: 1 | BC32: 0 | BD32: 0 | BE32: 0 | BF32: 4 | BG32: 4 | BH32: 0 | BI32: 1 | BJ32: 1 | BK32: 8 | BL32: 0 | BM32: 0
E33: LV.0204kW.30100 | F33: LV.0204kW.30100 | G33: 4 | H33: 3 | I33: 0 | J33: 1 | K33: 0 | L33: 0 | M33: LV | N33: 204.2 | O33: 0 | P33: 1 | Q33: 3 | R33: 3 | S33: 0 | T33: 1 | U33: 2 | V33: 0 | W33: 0 | X33: 0 | Y33: 1 | Z33: 0 | AA33: 0 | AB33: 0 | AC33: 0 | AD33: 4 | AE33: 0 | AF33: 0 | AG33: 0 | AH33: 4 | AI33: 0 | AJ33: 1 | AK33: 0 | AL33: 0 | AM33: 0 | AN33: 5 | AO33: 4 | AP33: 0 | AQ33: 0 | AR33: 0 | AU33: 3 | AY33: 1 | AZ33: 0 | BA33: 0 | BB33: 1 | BC33: 0 | BD33: 0 | BE33: 0 | BF33: 4 | BG33: 4 | BH33: 0 | BI33: 1 | BJ33: 1 | BK33: 8 | BL33: 0 | BM33: 0
E34: LV.0206kW.02100 | F34: LV.0206kW.02100 | G34: 3 | H34: 0 | I34: 2 | J34: 1 | K34: 0 | L34: 0 | M34: LV | N34: 206.2 | O34: 0 | P34: 1 | Q34: 2 | R34: 0 | S34: 2 | T34: 1 | U34: 0 | V34: 1 | W34: 0 | X34: 0 | Y34: 1 | Z34: 0 | AA34: 0 | AB34: 0 | AC34: 0 | AD34: 3 | AE34: 0 | AF34: 0 | AG34: 0 | AH34: 3 | AI34: 0 | AJ34: 1 | AK34: 0 | AL34: 0 | AM34: 0 | AN34: 4 | AO34: 3 | AP34: 0 | AQ34: 0 | AR34: 0 | AU34: 0 | AY34: 1 | AZ34: 0 | BA34: 0 | BB34: 1 | BC34: 0 | BD34: 0 | BE34: 0 | BF34: 3 | BG34: 3 | BH34: 0 | BI34: 1 | BJ34: 1 | BK34: 6 | BL34: 0 | BM34: 0
E35: LV.0208kW.10200 | F35: LV.0208kW.10200 | G35: 3 | H35: 1 | I35: 0 | J35: 2 | K35: 0 | L35: 0 | M35: LV | N35: 208.4 | O35: 0 | P35: 1 | Q35: 2 | R35: 1 | S35: 0 | T35: 2 | U35: 0 | V35: 1 | W35: 0 | X35: 0 | Y35: 1 | Z35: 0 | AA35: 0 | AB35: 0 | AC35: 0 | AD35: 3 | AE35: 0 | AF35: 0 | AG35: 0 | AH35: 3 | AI35: 0 | AJ35: 1 | AK35: 0 | AL35: 0 | AM35: 0 | AN35: 4 | AO35: 3 | AP35: 0 | AQ35: 0 | AR35: 0 | AU35: 1 | AY35: 1 | AZ35: 0 | BA35: 0 | BB35: 1 | BC35: 0 | BD35: 0 | BE35: 0 | BF35: 3 | BG35: 3 | BH35: 0 | BI35: 1 | BJ35: 1 | BK35: 6 | BL35: 0 | BM35: 0
E36: LV.0208kW.11010 | F36: LV.0208kW.11010 | G36: 3 | H36: 1 | I36: 1 | J36: 0 | K36: 1 | L36: 0 | M36: LV | N36: 208 | O36: 0 | P36: 1 | Q36: 2 | R36: 1 | S36: 1 | T36: 1 | U36: 0 | V36: 1 | W36: 0 | X36: 0 | Y36: 1 | Z36: 0 | AA36: 0 | AB36: 0 | AC36: 0 | AD36: 3 | AE36: 0 | AF36: 0 | AG36: 0 | AH36: 3 | AI36: 0 | AJ36: 1 | AK36: 0 | AL36: 0 | AM36: 0 | AN36: 4 | AO36: 3 | AP36: 0 | AQ36: 0 | AR36: 0 | AU36: 1 | AY36: 1 | AZ36: 0 | BA36: 0 | BB36: 1 | BC36: 0 | BD36: 0 | BE36: 0 | BF36: 3 | BG36: 3 | BH36: 0 | BI36: 1 | BJ36: 1 | BK36: 6 | BL36: 0 | BM36: 0
E37: LV.0214kW.00020 | F37: LV.0214kW.00020 | G37: 2 | H37: 0 | I37: 0 | J37: 0 | K37: 2 | L37: 0 | M37: LV | N37: 214 | O37: 0 | P37: 1 | Q37: 1 | R37: 0 | S37: 0 | T37: 2 | U37: 1 | V37: 0 | W37: 0 | X37: 0 | Y37: 1 | Z37: 0 | AA37: 0 | AB37: 0 | AC37: 0 | AD37: 2 | AE37: 0 | AF37: 0 | AG37: 0 | AH37: 2 | AI37: 0 | AJ37: 1 | AK37: 0 | AL37: 0 | AM37: 0 | AN37: 3 | AO37: 2 | AP37: 0 | AQ37: 0 | AR37: 0 | AU37: 0 | AY37: 1 | AZ37: 0 | BA37: 0 | BB37: 1 | BC37: 0 | BD37: 0 | BE37: 0 | BF37: 2 | BG37: 2 | BH37: 0 | BI37: 1 | BJ37: 1 | BK37: 5 | BL37: 0 | BM37: 0
E38: LV.0223kW.13000 | F38: LV.0223kW.13000 | G38: 4 | H38: 1 | I38: 3 | J38: 0 | K38: 0 | L38: 0 | M38: LV | N38: 223 | O38: 0 | P38: 1 | Q38: 3 | R38: 1 | S38: 3 | T38: 0 | U38: 2 | V38: 0 | W38: 0 | X38: 0 | Y38: 1 | Z38: 0 | AA38: 0 | AB38: 0 | AC38: 0 | AD38: 4 | AE38: 0 | AF38: 0 | AG38: 0 | AH38: 4 | AI38: 0 | AJ38: 1 | AK38: 0 | AL38: 0 | AM38: 0 | AN38: 5 | AO38: 4 | AP38: 0 | AQ38: 0 | AR38: 0 | AU38: 1 | AY38: 1 | AZ38: 0 | BA38: 0 | BB38: 1 | BC38: 0 | BD38: 0 | BE38: 0 | BF38: 4 | BG38: 4 | BH38: 0 | BI38: 1 | BJ38: 1 | BK38: 8 | BL38: 0 | BM38: 0
E39: LV.0225kW.21100 | F39: LV.0225kW.21100 | G39: 4 | H39: 2 | I39: 1 | J39: 1 | K39: 0 | L39: 0 | M39: LV | N39: 225.2 | O39: 0 | P39: 1 | Q39: 3 | R39: 2 | S39: 1 | T39: 1 | U39: 2 | V39: 0 | W39: 0 | X39: 0 | Y39: 1 | Z39: 0 | AA39: 0 | AB39: 0 | AC39: 0 | AD39: 4 | AE39: 0 | AF39: 0 | AG39: 0 | AH39: 4 | AI39: 0 | AJ39: 1 | AK39: 0 | AL39: 0 | AM39: 0 | AN39: 5 | AO39: 4 | AP39: 0 | AQ39: 0 | AR39: 0 | AU39: 2 | AY39: 1 | AZ39: 0 | BA39: 0 | BB39: 1 | BC39: 0 | BD39: 0 | BE39: 0 | BF39: 4 | BG39: 4 | BH39: 0 | BI39: 1 | BJ39: 1 | BK39: 8 | BL39: 0 | BM39: 0
E40: LV.0227kW.30010 | F40: LV.0227kW.30010 | G40: 4 | H40: 3 | I40: 0 | J40: 0 | K40: 1 | L40: 0 | M40: LV | N40: 227 | O40: 0 | P40: 1 | Q40: 3 | R40: 3 | S40: 0 | T40: 1 | U40: 2 | V40: 0 | W40: 0 | X40: 0 | Y40: 1 | Z40: 0 | AA40: 0 | AB40: 0 | AC40: 0 | AD40: 4 | AE40: 0 | AF40: 0 | AG40: 0 | AH40: 4 | AI40: 0 | AJ40: 1 | AK40: 0 | AL40: 0 | AM40: 0 | AN40: 5 | AO40: 4 | AP40: 0 | AQ40: 0 | AR40: 0 | AU40: 3 | AY40: 1 | AZ40: 0 | BA40: 0 | BB40: 1 | BC40: 0 | BD40: 0 | BE40: 0 | BF40: 4 | BG40: 4 | BH40: 0 | BI40: 1 | BJ40: 1 | BK40: 8 | BL40: 0 | BM40: 0
E41: LV.0229kW.01200 | F41: LV.0229kW.01200 | G41: 3 | H41: 0 | I41: 1 | J41: 2 | K41: 0 | L41: 0 | M41: LV | N41: 229.4 | O41: 0 | P41: 1 | Q41: 2 | R41: 0 | S41: 1 | T41: 2 | U41: 0 | V41: 1 | W41: 0 | X41: 0 | Y41: 1 | Z41: 0 | AA41: 0 | AB41: 0 | AC41: 0 | AD41: 3 | AE41: 0 | AF41: 0 | AG41: 0 | AH41: 3 | AI41: 0 | AJ41: 1 | AK41: 0 | AL41: 0 | AM41: 0 | AN41: 4 | AO41: 3 | AP41: 0 | AQ41: 0 | AR41: 0 | AU41: 0 | AY41: 1 | AZ41: 0 | BA41: 0 | BB41: 1 | BC41: 0 | BD41: 0 | BE41: 0 | BF41: 3 | BG41: 3 | BH41: 0 | BI41: 1 | BJ41: 1 | BK41: 6 | BL41: 0 | BM41: 0
E42: LV.0229kW.02010 | F42: LV.0229kW.02010 | G42: 3 | H42: 0 | I42: 2 | J42: 0 | K42: 1 | L42: 0 | M42: LV | N42: 229 | O42: 0 | P42: 1 | Q42: 2 | R42: 0 | S42: 2 | T42: 1 | U42: 0 | V42: 1 | W42: 0 | X42: 0 | Y42: 1 | Z42: 0 | AA42: 0 | AB42: 0 | AC42: 0 | AD42: 3 | AE42: 0 | AF42: 0 | AG42: 0 | AH42: 3 | AI42: 0 | AJ42: 1 | AK42: 0 | AL42: 0 | AM42: 0 | AN42: 4 | AO42: 3 | AP42: 0 | AQ42: 0 | AR42: 0 | AU42: 0 | AY42: 1 | AZ42: 0 | BA42: 0 | BB42: 1 | BC42: 0 | BD42: 0 | BE42: 0 | BF42: 3 | BG42: 3 | BH42: 0 | BI42: 1 | BJ42: 1 | BK42: 6 | BL42: 0 | BM42: 0
E43: LV.0231kW.10110 | F43: LV.0231kW.10110 | G43: 3 | H43: 1 | I43: 0 | J43: 1 | K43: 1 | L43: 0 | M43: LV | N43: 231.2 | O43: 0 | P43: 1 | Q43: 2 | R43: 1 | S43: 0 | T43: 2 | U43: 0 | V43: 1 | W43: 0 | X43: 0 | Y43: 1 | Z43: 0 | AA43: 0 | AB43: 0 | AC43: 0 | AD43: 3 | AE43: 0 | AF43: 0 | AG43: 0 | AH43: 3 | AI43: 0 | AJ43: 1 | AK43: 0 | AL43: 0 | AM43: 0 | AN43: 4 | AO43: 3 | AP43: 0 | AQ43: 0 | AR43: 0 | AU43: 1 | AY43: 1 | AZ43: 0 | BA43: 0 | BB43: 1 | BC43: 0 | BD43: 0 | BE43: 0 | BF43: 3 | BG43: 3 | BH43: 0 | BI43: 1 | BJ43: 1 | BK43: 6 | BL43: 0 | BM43: 0
E44: LV.0244kW.04000 | F44: LV.0244kW.04000 | G44: 4 | H44: 0 | I44: 4 | J44: 0 | K44: 0 | L44: 0 | M44: LV | N44: 244 | O44: 0 | P44: 1 | Q44: 3 | R44: 0 | S44: 4 | T44: 0 | U44: 2 | V44: 0 | W44: 0 | X44: 0 | Y44: 1 | Z44: 0 | AA44: 0 | AB44: 0 | AC44: 0 | AD44: 4 | AE44: 0 | AF44: 0 | AG44: 0 | AH44: 4 | AI44: 0 | AJ44: 1 | AK44: 0 | AL44: 0 | AM44: 0 | AN44: 5 | AO44: 4 | AP44: 0 | AQ44: 0 | AR44: 0 | AU44: 0 | AY44: 1 | AZ44: 0 | BA44: 0 | BB44: 1 | BC44: 0 | BD44: 0 | BE44: 0 | BF44: 4 | BG44: 4 | BH44: 0 | BI44: 1 | BJ44: 1 | BK44: 8 | BL44: 0 | BM44: 0
E45: LV.0246kW.12100 | F45: LV.0246kW.12100 | G45: 4 | H45: 1 | I45: 2 | J45: 1 | K45: 0 | L45: 0 | M45: LV | N45: 246.2 | O45: 0 | P45: 1 | Q45: 3 | R45: 1 | S45: 2 | T45: 1 | U45: 2 | V45: 0 | W45: 0 | X45: 0 | Y45: 1 | Z45: 0 | AA45: 0 | AB45: 0 | AC45: 0 | AD45: 4 | AE45: 0 | AF45: 0 | AG45: 0 | AH45: 4 | AI45: 0 | AJ45: 1 | AK45: 0 | AL45: 0 | AM45: 0 | AN45: 5 | AO45: 4 | AP45: 0 | AQ45: 0 | AR45: 0 | AU45: 1 | AY45: 1 | AZ45: 0 | BA45: 0 | BB45: 1 | BC45: 0 | BD45: 0 | BE45: 0 | BF45: 4 | BG45: 4 | BH45: 0 | BI45: 1 | BJ45: 1 | BK45: 8 | BL45: 0 | BM45: 0
E46: LV.0248kW.20200 | F46: LV.0248kW.20200 | G46: 4 | H46: 2 | I46: 0 | J46: 2 | K46: 0 | L46: 0 | M46: LV | N46: 248.4 | O46: 0 | P46: 1 | Q46: 3 | R46: 2 | S46: 0 | T46: 2 | U46: 2 | V46: 0 | W46: 0 | X46: 0 | Y46: 1 | Z46: 0 | AA46: 0 | AB46: 0 | AC46: 0 | AD46: 4 | AE46: 0 | AF46: 0 | AG46: 0 | AH46: 4 | AI46: 0 | AJ46: 1 | AK46: 0 | AL46: 0 | AM46: 0 | AN46: 5 | AO46: 4 | AP46: 0 | AQ46: 0 | AR46: 0 | AU46: 2 | AY46: 1 | AZ46: 0 | BA46: 0 | BB46: 1 | BC46: 0 | BD46: 0 | BE46: 0 | BF46: 4 | BG46: 4 | BH46: 0 | BI46: 1 | BJ46: 1 | BK46: 8 | BL46: 0 | BM46: 0
E47: LV.0248kW.21010 | F47: LV.0248kW.21010 | G47: 4 | H47: 2 | I47: 1 | J47: 0 | K47: 1 | L47: 0 | M47: LV | N47: 248 | O47: 0 | P47: 1 | Q47: 3 | R47: 2 | S47: 1 | T47: 1 | U47: 2 | V47: 0 | W47: 0 | X47: 0 | Y47: 1 | Z47: 0 | AA47: 0 | AB47: 0 | AC47: 0 | AD47: 4 | AE47: 0 | AF47: 0 | AG47: 0 | AH47: 4 | AI47: 0 | AJ47: 1 | AK47: 0 | AL47: 0 | AM47: 0 | AN47: 5 | AO47: 4 | AP47: 0 | AQ47: 0 | AR47: 0 | AU47: 2 | AY47: 1 | AZ47: 0 | BA47: 0 | BB47: 1 | BC47: 0 | BD47: 0 | BE47: 0 | BF47: 4 | BG47: 4 | BH47: 0 | BI47: 1 | BJ47: 1 | BK47: 8 | BL47: 0 | BM47: 0
E48: LV.0252kW.00300 | F48: LV.0252kW.00300 | G48: 3 | H48: 0 | I48: 0 | J48: 3 | K48: 0 | L48: 0 | M48: LV | N48: 252.6 | O48: 0 | P48: 1 | Q48: 2 | R48: 0 | S48: 0 | T48: 3 | U48: 0 | V48: 1 | W48: 0 | X48: 0 | Y48: 1 | Z48: 0 | AA48: 0 | AB48: 0 | AC48: 0 | AD48: 3 | AE48: 0 | AF48: 0 | AG48: 0 | AH48: 3 | AI48: 0 | AJ48: 1 | AK48: 0 | AL48: 0 | AM48: 0 | AN48: 4 | AO48: 3 | AP48: 0 | AQ48: 0 | AR48: 0 | AU48: 0 | AY48: 1 | AZ48: 0 | BA48: 0 | BB48: 1 | BC48: 0 | BD48: 0 | BE48: 0 | BF48: 3 | BG48: 3 | BH48: 0 | BI48: 1 | BJ48: 1 | BK48: 6 | BL48: 0 | BM48: 0
E49: LV.0252kW.01110 | F49: LV.0252kW.01110 | G49: 3 | H49: 0 | I49: 1 | J49: 1 | K49: 1 | L49: 0 | M49: LV | N49: 252.2 | O49: 0 | P49: 1 | Q49: 2 | R49: 0 | S49: 1 | T49: 2 | U49: 0 | V49: 1 | W49: 0 | X49: 0 | Y49: 1 | Z49: 0 | AA49: 0 | AB49: 0 | AC49: 0 | AD49: 3 | AE49: 0 | AF49: 0 | AG49: 0 | AH49: 3 | AI49: 0 | AJ49: 1 | AK49: 0 | AL49: 0 | AM49: 0 | AN49: 4 | AO49: 3 | AP49: 0 | AQ49: 0 | AR49: 0 | AU49: 0 | AY49: 1 | AZ49: 0 | BA49: 0 | BB49: 1 | BC49: 0 | BD49: 0 | BE49: 0 | BF49: 3 | BG49: 3 | BH49: 0 | BI49: 1 | BJ49: 1 | BK49: 6 | BL49: 0 | BM49: 0
E50: LV.0254kW.10020 | F50: LV.0254kW.10020 | G50: 3 | H50: 1 | I50: 0 | J50: 0 | K50: 2 | L50: 0 | M50: LV | N50: 254 | O50: 0 | P50: 1 | Q50: 2 | R50: 1 | S50: 0 | T50: 2 | U50: 0 | V50: 1 | W50: 0 | X50: 0 | Y50: 1 | Z50: 0 | AA50: 0 | AB50: 0 | AC50: 0 | AD50: 3 | AE50: 0 | AF50: 0 | AG50: 0 | AH50: 3 | AI50: 0 | AJ50: 1 | AK50: 0 | AL50: 0 | AM50: 0 | AN50: 4 | AO50: 3 | AP50: 0 | AQ50: 0 | AR50: 0 | AU50: 1 | AY50: 1 | AZ50: 0 | BA50: 0 | BB50: 1 | BC50: 0 | BD50: 0 | BE50: 0 | BF50: 3 | BG50: 3 | BH50: 0 | BI50: 1 | BJ50: 1 | BK50: 6 | BL50: 0 | BM50: 0
E51: LV.0267kW.03100 | F51: LV.0267kW.03100 | G51: 4 | H51: 0 | I51: 3 | J51: 1 | K51: 0 | L51: 0 | M51: LV | N51: 267.2 | O51: 0 | P51: 1 | Q51: 3 | R51: 0 | S51: 3 | T51: 1 | U51: 2 | V51: 0 | W51: 0 | X51: 0 | Y51: 1 | Z51: 0 | AA51: 0 | AB51: 0 | AC51: 0 | AD51: 4 | AE51: 0 | AF51: 0 | AG51: 0 | AH51: 4 | AI51: 0 | AJ51: 1 | AK51: 0 | AL51: 0 | AM51: 0 | AN51: 5 | AO51: 4 | AP51: 0 | AQ51: 0 | AR51: 0 | AU51: 0 | AY51: 1 | AZ51: 0 | BA51: 0 | BB51: 1 | BC51: 0 | BD51: 0 | BE51: 0 | BF51: 4 | BG51: 4 | BH51: 0 | BI51: 1 | BJ51: 1 | BK51: 8 | BL51: 0 | BM51: 0
E52: LV.0269kW.11200 | F52: LV.0269kW.11200 | G52: 4 | H52: 1 | I52: 1 | J52: 2 | K52: 0 | L52: 0 | M52: LV | N52: 269.4 | O52: 0 | P52: 1 | Q52: 3 | R52: 1 | S52: 1 | T52: 2 | U52: 2 | V52: 0 | W52: 0 | X52: 0 | Y52: 1 | Z52: 0 | AA52: 0 | AB52: 0 | AC52: 0 | AD52: 4 | AE52: 0 | AF52: 0 | AG52: 0 | AH52: 4 | AI52: 0 | AJ52: 1 | AK52: 0 | AL52: 0 | AM52: 0 | AN52: 5 | AO52: 4 | AP52: 0 | AQ52: 0 | AR52: 0 | AU52: 1 | AY52: 1 | AZ52: 0 | BA52: 0 | BB52: 1 | BC52: 0 | BD52: 0 | BE52: 0 | BF52: 4 | BG52: 4 | BH52: 0 | BI52: 1 | BJ52: 1 | BK52: 8 | BL52: 0 | BM52: 0
E53: LV.0269kW.12010 | F53: LV.0269kW.12010 | G53: 4 | H53: 1 | I53: 2 | J53: 0 | K53: 1 | L53: 0 | M53: LV | N53: 269 | O53: 0 | P53: 1 | Q53: 3 | R53: 1 | S53: 2 | T53: 1 | U53: 2 | V53: 0 | W53: 0 | X53: 0 | Y53: 1 | Z53: 0 | AA53: 0 | AB53: 0 | AC53: 0 | AD53: 4 | AE53: 0 | AF53: 0 | AG53: 0 | AH53: 4 | AI53: 0 | AJ53: 1 | AK53: 0 | AL53: 0 | AM53: 0 | AN53: 5 | AO53: 4 | AP53: 0 | AQ53: 0 | AR53: 0 | AU53: 1 | AY53: 1 | AZ53: 0 | BA53: 0 | BB53: 1 | BC53: 0 | BD53: 0 | BE53: 0 | BF53: 4 | BG53: 4 | BH53: 0 | BI53: 1 | BJ53: 1 | BK53: 8 | BL53: 0 | BM53: 0
E54: LV.0271kW.20110 | F54: LV.0271kW.20110 | G54: 4 | H54: 2 | I54: 0 | J54: 1 | K54: 1 | L54: 0 | M54: LV | N54: 271.2 | O54: 0 | P54: 1 | Q54: 3 | R54: 2 | S54: 0 | T54: 2 | U54: 2 | V54: 0 | W54: 0 | X54: 0 | Y54: 1 | Z54: 0 | AA54: 0 | AB54: 0 | AC54: 0 | AD54: 4 | AE54: 0 | AF54: 0 | AG54: 0 | AH54: 4 | AI54: 0 | AJ54: 1 | AK54: 0 | AL54: 0 | AM54: 0 | AN54: 5 | AO54: 4 | AP54: 0 | AQ54: 0 | AR54: 0 | AU54: 2 | AY54: 1 | AZ54: 0 | BA54: 0 | BB54: 1 | BC54: 0 | BD54: 0 | BE54: 0 | BF54: 4 | BG54: 4 | BH54: 0 | BI54: 1 | BJ54: 1 | BK54: 8 | BL54: 0 | BM54: 0
E55: LV.0275kW.00210 | F55: LV.0275kW.00210 | G55: 3 | H55: 0 | I55: 0 | J55: 2 | K55: 1 | L55: 0 | M55: LV | N55: 275.4 | O55: 0 | P55: 1 | Q55: 2 | R55: 0 | S55: 0 | T55: 3 | U55: 0 | V55: 1 | W55: 0 | X55: 0 | Y55: 1 | Z55: 0 | AA55: 0 | AB55: 0 | AC55: 0 | AD55: 3 | AE55: 0 | AF55: 0 | AG55: 0 | AH55: 3 | AI55: 0 | AJ55: 1 | AK55: 0 | AL55: 0 | AM55: 0 | AN55: 4 | AO55: 3 | AP55: 0 | AQ55: 0 | AR55: 0 | AU55: 0 | AY55: 1 | AZ55: 0 | BA55: 0 | BB55: 1 | BC55: 0 | BD55: 0 | BE55: 0 | BF55: 3 | BG55: 3 | BH55: 0 | BI55: 1 | BJ55: 1 | BK55: 6 | BL55: 0 | BM55: 0
E56: LV.0275kW.01020 | F56: LV.0275kW.01020 | G56: 3 | H56: 0 | I56: 1 | J56: 0 | K56: 2 | L56: 0 | M56: LV | N56: 275 | O56: 0 | P56: 1 | Q56: 2 | R56: 0 | S56: 1 | T56: 2 | U56: 0 | V56: 1 | W56: 0 | X56: 0 | Y56: 1 | Z56: 0 | AA56: 0 | AB56: 0 | AC56: 0 | AD56: 3 | AE56: 0 | AF56: 0 | AG56: 0 | AH56: 3 | AI56: 0 | AJ56: 1 | AK56: 0 | AL56: 0 | AM56: 0 | AN56: 4 | AO56: 3 | AP56: 0 | AQ56: 0 | AR56: 0 | AU56: 0 | AY56: 1 | AZ56: 0 | BA56: 0 | BB56: 1 | BC56: 0 | BD56: 0 | BE56: 0 | BF56: 3 | BG56: 3 | BH56: 0 | BI56: 1 | BJ56: 1 | BK56: 6 | BL56: 0 | BM56: 0
E57: LV.0290kW.02200 | F57: LV.0290kW.02200 | G57: 4 | H57: 0 | I57: 2 | J57: 2 | K57: 0 | L57: 0 | M57: LV | N57: 290.4 | O57: 0 | P57: 1 | Q57: 3 | R57: 0 | S57: 2 | T57: 2 | U57: 2 | V57: 0 | W57: 0 | X57: 0 | Y57: 1 | Z57: 0 | AA57: 0 | AB57: 0 | AC57: 0 | AD57: 4 | AE57: 0 | AF57: 0 | AG57: 0 | AH57: 4 | AI57: 0 | AJ57: 1 | AK57: 0 | AL57: 0 | AM57: 0 | AN57: 5 | AO57: 4 | AP57: 0 | AQ57: 0 | AR57: 0 | AU57: 0 | AY57: 1 | AZ57: 0 | BA57: 0 | BB57: 1 | BC57: 0 | BD57: 0 | BE57: 0 | BF57: 4 | BG57: 4 | BH57: 0 | BI57: 1 | BJ57: 1 | BK57: 8 | BL57: 0 | BM57: 0
E58: LV.0290kW.03010 | F58: LV.0290kW.03010 | G58: 4 | H58: 0 | I58: 3 | J58: 0 | K58: 1 | L58: 0 | M58: LV | N58: 290 | O58: 0 | P58: 1 | Q58: 3 | R58: 0 | S58: 3 | T58: 1 | U58: 2 | V58: 0 | W58: 0 | X58: 0 | Y58: 1 | Z58: 0 | AA58: 0 | AB58: 0 | AC58: 0 | AD58: 4 | AE58: 0 | AF58: 0 | AG58: 0 | AH58: 4 | AI58: 0 | AJ58: 1 | AK58: 0 | AL58: 0 | AM58: 0 | AN58: 5 | AO58: 4 | AP58: 0 | AQ58: 0 | AR58: 0 | AU58: 0 | AY58: 1 | AZ58: 0 | BA58: 0 | BB58: 1 | BC58: 0 | BD58: 0 | BE58: 0 | BF58: 4 | BG58: 4 | BH58: 0 | BI58: 1 | BJ58: 1 | BK58: 8 | BL58: 0 | BM58: 0
E59: LV.0292kW.10300 | F59: LV.0292kW.10300 | G59: 4 | H59: 1 | I59: 0 | J59: 3 | K59: 0 | L59: 0 | M59: LV | N59: 292.6 | O59: 0 | P59: 1 | Q59: 3 | R59: 1 | S59: 0 | T59: 3 | U59: 2 | V59: 0 | W59: 0 | X59: 0 | Y59: 1 | Z59: 0 | AA59: 0 | AB59: 0 | AC59: 0 | AD59: 4 | AE59: 0 | AF59: 0 | AG59: 0 | AH59: 4 | AI59: 0 | AJ59: 1 | AK59: 0 | AL59: 0 | AM59: 0 | AN59: 5 | AO59: 4 | AP59: 0 | AQ59: 0 | AR59: 0 | AU59: 1 | AY59: 1 | AZ59: 0 | BA59: 0 | BB59: 1 | BC59: 0 | BD59: 0 | BE59: 0 | BF59: 4 | BG59: 4 | BH59: 0 | BI59: 1 | BJ59: 1 | BK59: 8 | BL59: 0 | BM59: 0
E60: LV.0292kW.11110 | F60: LV.0292kW.11110 | G60: 4 | H60: 1 | I60: 1 | J60: 1 | K60: 1 | L60: 0 | M60: LV | N60: 292.2 | O60: 0 | P60: 1 | Q60: 3 | R60: 1 | S60: 1 | T60: 2 | U60: 2 | V60: 0 | W60: 0 | X60: 0 | Y60: 1 | Z60: 0 | AA60: 0 | AB60: 0 | AC60: 0 | AD60: 4 | AE60: 0 | AF60: 0 | AG60: 0 | AH60: 4 | AI60: 0 | AJ60: 1 | AK60: 0 | AL60: 0 | AM60: 0 | AN60: 5 | AO60: 4 | AP60: 0 | AQ60: 0 | AR60: 0 | AU60: 1 | AY60: 1 | AZ60: 0 | BA60: 0 | BB60: 1 | BC60: 0 | BD60: 0 | BE60: 0 | BF60: 4 | BG60: 4 | BH60: 0 | BI60: 1 | BJ60: 1 | BK60: 8 | BL60: 0 | BM60: 0
E61: LV.0294kW.20020 | F61: LV.0294kW.20020 | G61: 4 | H61: 2 | I61: 0 | J61: 0 | K61: 2 | L61: 0 | M61: LV | N61: 294 | O61: 0 | P61: 1 | Q61: 3 | R61: 2 | S61: 0 | T61: 2 | U61: 2 | V61: 0 | W61: 0 | X61: 0 | Y61: 1 | Z61: 0 | AA61: 0 | AB61: 0 | AC61: 0 | AD61: 4 | AE61: 0 | AF61: 0 | AG61: 0 | AH61: 4 | AI61: 0 | AJ61: 1 | AK61: 0 | AL61: 0 | AM61: 0 | AN61: 5 | AO61: 4 | AP61: 0 | AQ61: 0 | AR61: 0 | AU61: 2 | AY61: 1 | AZ61: 0 | BA61: 0 | BB61: 1 | BC61: 0 | BD61: 0 | BE61: 0 | BF61: 4 | BG61: 4 | BH61: 0 | BI61: 1 | BJ61: 1 | BK61: 8 | BL61: 0 | BM61: 0
E62: LV.0298kW.00120 | F62: LV.0298kW.00120 | G62: 3 | H62: 0 | I62: 0 | J62: 1 | K62: 2 | L62: 0 | M62: LV | N62: 298.2 | O62: 0 | P62: 1 | Q62: =G62-1 -> 2 | R62: 0 | S62: 0 | T62: 3 | U62: 0 | V62: 1 | W62: 0 | X62: 0 | Y62: 1 | Z62: 0 | AA62: 0 | AB62: 0 | AC62: 0 | AD62: 3 | AE62: 0 | AF62: 0 | AG62: 0 | AH62: 3 | AI62: 0 | AJ62: 1 | AK62: 0 | AL62: 0 | AM62: 0 | AN62: 4 | AO62: 3 | AP62: 0 | AQ62: 0 | AR62: 0 | AS62: =SUMPRODUCT(O62:AR62,$O$11:$AR$11) ->  | AT62: =SUMPRODUCT(H62:K62,$H$11:$K$11)+AS62 ->  | AU62: 0 | AY62: 1 | AZ62: 0 | BA62: 0 | BB62: 1 | BC62: 0 | BD62: 0 | BE62: 0 | BF62: 3 | BG62: 3 | BH62: 0 | BI62: 1 | BJ62: 1 | BK62: 6 | BL62: 0 | BM62: 0
E63: LV.0313kW.01300 | F63: LV.0313kW.01300 | G63: 4 | H63: 0 | I63: 1 | J63: 3 | K63: 0 | L63: 0 | M63: LV | N63: 313.6 | O63: 0 | P63: 1 | Q63: 3 | R63: 0 | S63: 1 | T63: 3 | U63: 2 | V63: 0 | W63: 0 | X63: 0 | Y63: 1 | Z63: 0 | AA63: 0 | AB63: 0 | AC63: 0 | AD63: 4 | AE63: 0 | AF63: 0 | AG63: 0 | AH63: 4 | AI63: 0 | AJ63: 1 | AK63: 0 | AL63: 0 | AM63: 0 | AN63: 5 | AO63: 4 | AP63: 0 | AQ63: 0 | AR63: 0 | AU63: =H63 -> 0 | AY63: 1 | AZ63: 0 | BA63: 0 | BB63: 1 | BC63: 0 | BD63: 0 | BE63: 0 | BF63: 4 | BG63: 4 | BH63: 0 | BI63: 1 | BJ63: 1 | BK63: =IF(G63=2,5,IF(G63=3,6,IF(G63=4,8,IF(G63=5,9,IF(G63=6,10,IF(G63=7,12,0)))))) -> 8 | BL63: 0 | BM63: 0
E64: LV.0313kW.02110 | F64: LV.0313kW.02110 | G64: 4 | H64: 0 | I64: 2 | J64: 1 | K64: 1 | L64: 0 | M64: LV | N64: 313.2 | O64: 0 | P64: 1 | Q64: 3 | R64: 0 | S64: 2 | T64: 2 | U64: 2 | V64: 0 | W64: 0 | X64: 0 | Y64: 1 | Z64: 0 | AA64: 0 | AB64: 0 | AC64: 0 | AD64: 4 | AE64: 0 | AF64: 0 | AG64: 0 | AH64: 4 | AI64: 0 | AJ64: 1 | AK64: 0 | AL64: 0 | AM64: 0 | AN64: 5 | AO64: 4 | AP64: 0 | AQ64: 0 | AR64: 0 | AU64: 0 | AY64: 1 | AZ64: 0 | BA64: 0 | BB64: 1 | BC64: 0 | BD64: 0 | BE64: 0 | BF64: 4 | BG64: 4 | BH64: 0 | BI64: 1 | BJ64: 1 | BK64: 8 | BL64: 0 | BM64: 0
E65: LV.0315kW.10210 | F65: LV.0315kW.10210 | G65: 4 | H65: 1 | I65: 0 | J65: 2 | K65: 1 | L65: 0 | M65: LV | N65: 315.4 | O65: 0 | P65: 1 | Q65: 3 | R65: 1 | S65: 0 | T65: 3 | U65: 2 | V65: 0 | W65: 0 | X65: 0 | Y65: 1 | Z65: 0 | AA65: 0 | AB65: 0 | AC65: 0 | AD65: 4 | AE65: 0 | AF65: 0 | AG65: 0 | AH65: 4 | AI65: 0 | AJ65: 1 | AK65: 0 | AL65: 0 | AM65: 0 | AN65: 5 | AO65: 4 | AP65: 0 | AQ65: 0 | AR65: 0 | AU65: 1 | AY65: 1 | AZ65: 0 | BA65: 0 | BB65: 1 | BC65: 0 | BD65: 0 | BE65: 0 | BF65: 4 | BG65: 4 | BH65: 0 | BI65: 1 | BJ65: 1 | BK65: 8 | BL65: 0 | BM65: 0
E66: LV.0315kW.11020 | F66: LV.0315kW.11020 | G66: 4 | H66: 1 | I66: 1 | J66: 0 | K66: 2 | L66: 0 | M66: LV | N66: 315 | O66: 0 | P66: 1 | Q66: 3 | R66: 1 | S66: 1 | T66: 2 | U66: 2 | V66: 0 | W66: 0 | X66: 0 | Y66: 1 | Z66: 0 | AA66: 0 | AB66: 0 | AC66: 0 | AD66: 4 | AE66: 0 | AF66: 0 | AG66: 0 | AH66: 4 | AI66: 0 | AJ66: 1 | AK66: 0 | AL66: 0 | AM66: 0 | AN66: 5 | AO66: 4 | AP66: 0 | AQ66: 0 | AR66: 0 | AU66: 1 | AY66: 1 | AZ66: 0 | BA66: 0 | BB66: 1 | BC66: 0 | BD66: 0 | BE66: 0 | BF66: 4 | BG66: 4 | BH66: 0 | BI66: 1 | BJ66: 1 | BK66: 8 | BL66: 0 | BM66: 0
E67: LV.0321kW.00030 | F67: LV.0321kW.00030 | G67: 3 | H67: 0 | I67: 0 | J67: 0 | K67: 3 | L67: 0 | M67: LV | N67: 321 | O67: 0 | P67: 1 | Q67: 2 | R67: 0 | S67: 0 | T67: 3 | U67: 0 | V67: 1 | W67: 0 | X67: 0 | Y67: 1 | Z67: 0 | AA67: 0 | AB67: 0 | AC67: 0 | AD67: 3 | AE67: 0 | AF67: 0 | AG67: 0 | AH67: 3 | AI67: 0 | AJ67: 1 | AK67: 0 | AL67: 0 | AM67: 0 | AN67: 4 | AO67: 3 | AP67: 0 | AQ67: 0 | AR67: 0 | AU67: 0 | AY67: 1 | AZ67: 0 | BA67: 0 | BB67: 1 | BC67: 0 | BD67: 0 | BE67: 0 | BF67: 3 | BG67: 3 | BH67: 0 | BI67: 1 | BJ67: 1 | BK67: 6 | BL67: 0 | BM67: 0
E68: LV.0336kW.00400 | F68: LV.0336kW.00400 | G68: 4 | H68: 0 | I68: 0 | J68: 4 | K68: 0 | L68: 0 | M68: LV | N68: 336.8 | O68: 0 | P68: 1 | Q68: 3 | R68: 0 | S68: 0 | T68: 4 | U68: 2 | V68: 0 | W68: 0 | X68: 0 | Y68: 1 | Z68: 0 | AA68: 0 | AB68: 0 | AC68: 0 | AD68: 4 | AE68: 0 | AF68: 0 | AG68: 0 | AH68: 4 | AI68: 0 | AJ68: 1 | AK68: 0 | AL68: 0 | AM68: 0 | AN68: 5 | AO68: 4 | AP68: 0 | AQ68: 0 | AR68: 0 | AU68: 0 | AY68: 1 | AZ68: 0 | BA68: 0 | BB68: 1 | BC68: 0 | BD68: 0 | BE68: 0 | BF68: 4 | BG68: 4 | BH68: 0 | BI68: 1 | BJ68: 1 | BK68: 8 | BL68: 0 | BM68: 0
E69: LV.0336kW.01210 | F69: LV.0336kW.01210 | G69: 4 | H69: 0 | I69: 1 | J69: 2 | K69: 1 | L69: 0 | M69: LV | N69: 336.4 | O69: 0 | P69: 1 | Q69: 3 | R69: 0 | S69: 1 | T69: 3 | U69: 2 | V69: 0 | W69: 0 | X69: 0 | Y69: 1 | Z69: 0 | AA69: 0 | AB69: 0 | AC69: 0 | AD69: 4 | AE69: 0 | AF69: 0 | AG69: 0 | AH69: 4 | AI69: 0 | AJ69: 1 | AK69: 0 | AL69: 0 | AM69: 0 | AN69: 5 | AO69: 4 | AP69: 0 | AQ69: 0 | AR69: 0 | AU69: 0 | AY69: 1 | AZ69: 0 | BA69: 0 | BB69: 1 | BC69: 0 | BD69: 0 | BE69: 0 | BF69: 4 | BG69: 4 | BH69: 0 | BI69: 1 | BJ69: 1 | BK69: 8 | BL69: 0 | BM69: 0
E70: LV.0336kW.02020 | F70: LV.0336kW.02020 | G70: 4 | H70: 0 | I70: 2 | J70: 0 | K70: 2 | L70: 0 | M70: LV | N70: 336 | O70: 0 | P70: 1 | Q70: 3 | R70: 0 | S70: 2 | T70: 2 | U70: 2 | V70: 0 | W70: 0 | X70: 0 | Y70: 1 | Z70: 0 | AA70: 0 | AB70: 0 | AC70: 0 | AD70: 4 | AE70: 0 | AF70: 0 | AG70: 0 | AH70: 4 | AI70: 0 | AJ70: 1 | AK70: 0 | AL70: 0 | AM70: 0 | AN70: 5 | AO70: 4 | AP70: 0 | AQ70: 0 | AR70: 0 | AU70: 0 | AY70: 1 | AZ70: 0 | BA70: 0 | BB70: 1 | BC70: 0 | BD70: 0 | BE70: 0 | BF70: 4 | BG70: 4 | BH70: 0 | BI70: 1 | BJ70: 1 | BK70: 8 | BL70: 0 | BM70: 0
E71: LV.0338kW.10120 | F71: LV.0338kW.10120 | G71: 4 | H71: 1 | I71: 0 | J71: 1 | K71: 2 | L71: 0 | M71: LV | N71: 338.2 | O71: 0 | P71: 1 | Q71: 3 | R71: 1 | S71: 0 | T71: 3 | U71: 2 | V71: 0 | W71: 0 | X71: 0 | Y71: 1 | Z71: 0 | AA71: 0 | AB71: 0 | AC71: 0 | AD71: 4 | AE71: 0 | AF71: 0 | AG71: 0 | AH71: 4 | AI71: 0 | AJ71: 1 | AK71: 0 | AL71: 0 | AM71: 0 | AN71: 5 | AO71: 4 | AP71: 0 | AQ71: 0 | AR71: 0 | AU71: 1 | AY71: 1 | AZ71: 0 | BA71: 0 | BB71: 1 | BC71: 0 | BD71: 0 | BE71: 0 | BF71: 4 | BG71: 4 | BH71: 0 | BI71: 1 | BJ71: 1 | BK71: 8 | BL71: 0 | BM71: 0
E72: LV.0359kW.00310 | F72: LV.0359kW.00310 | G72: 4 | H72: 0 | I72: 0 | J72: 3 | K72: 1 | L72: 0 | M72: LV | N72: 359.6 | O72: 1 | P72: 0 | Q72: 3 | R72: 0 | S72: 0 | T72: 4 | U72: 2 | V72: 0 | W72: 0 | X72: 1 | Y72: 0 | Z72: 0 | AA72: 0 | AB72: 0 | AC72: 0 | AD72: 4 | AE72: 0 | AF72: 0 | AG72: 0 | AH72: 4 | AI72: 0 | AJ72: 1 | AK72: 0 | AL72: 0 | AM72: 0 | AN72: 5 | AO72: 4 | AP72: 0 | AQ72: 0 | AR72: 0 | AU72: 0 | AY72: 1 | AZ72: 0 | BA72: 0 | BB72: 1 | BC72: 0 | BD72: 0 | BE72: 0 | BF72: 4 | BG72: 4 | BH72: 1 | BI72: 0 | BJ72: 1 | BK72: 8 | BL72: 0 | BM72: 0
E73: LV.0359kW.01120 | F73: LV.0359kW.01120 | G73: 4 | H73: 0 | I73: 1 | J73: 1 | K73: 2 | L73: 0 | M73: LV | N73: 359.2 | O73: 1 | P73: 0 | Q73: 3 | R73: 0 | S73: 1 | T73: 3 | U73: 2 | V73: 0 | W73: 0 | X73: 1 | Y73: 0 | Z73: 0 | AA73: 0 | AB73: 0 | AC73: 0 | AD73: 4 | AE73: 0 | AF73: 0 | AG73: 0 | AH73: 4 | AI73: 0 | AJ73: 1 | AK73: 0 | AL73: 0 | AM73: 0 | AN73: 5 | AO73: 4 | AP73: 0 | AQ73: 0 | AR73: 0 | AU73: 0 | AY73: 1 | AZ73: 0 | BA73: 0 | BB73: 1 | BC73: 0 | BD73: 0 | BE73: 0 | BF73: 4 | BG73: 4 | BH73: 1 | BI73: 0 | BJ73: 1 | BK73: 8 | BL73: 0 | BM73: 0
E74: LV.0361kW.10030 | F74: LV.0361kW.10030 | G74: 4 | H74: 1 | I74: 0 | J74: 0 | K74: 3 | L74: 0 | M74: LV | N74: 361 | O74: 1 | P74: 0 | Q74: 3 | R74: 1 | S74: 0 | T74: 3 | U74: 2 | V74: 0 | W74: 0 | X74: 1 | Y74: 0 | Z74: 0 | AA74: 0 | AB74: 0 | AC74: 0 | AD74: 4 | AE74: 0 | AF74: 0 | AG74: 0 | AH74: 4 | AI74: 0 | AJ74: 1 | AK74: 0 | AL74: 0 | AM74: 0 | AN74: 5 | AO74: 4 | AP74: 0 | AQ74: 0 | AR74: 0 | AU74: 1 | AY74: 1 | AZ74: 0 | BA74: 0 | BB74: 1 | BC74: 0 | BD74: 0 | BE74: 0 | BF74: 4 | BG74: 4 | BH74: 1 | BI74: 0 | BJ74: 1 | BK74: 8 | BL74: 0 | BM74: 0
E75: LV.0382kW.00220 | F75: LV.0382kW.00220 | G75: 4 | H75: 0 | I75: 0 | J75: 2 | K75: 2 | L75: 0 | M75: LV | N75: 382.4 | O75: 1 | P75: 0 | Q75: =G75-1 -> 3 | R75: 0 | S75: 0 | T75: 4 | U75: 2 | V75: 0 | W75: 0 | X75: 1 | Y75: 0 | Z75: 0 | AA75: 0 | AB75: 0 | AC75: 0 | AD75: 4 | AE75: 0 | AF75: 0 | AG75: 0 | AH75: 4 | AI75: 0 | AJ75: 1 | AK75: 0 | AL75: 0 | AM75: 0 | AN75: 5 | AO75: 4 | AP75: 0 | AQ75: 0 | AR75: 0 | AS75: =SUMPRODUCT(O75:AR75,$O$11:$AR$11) ->  | AT75: =SUMPRODUCT(H75:K75,$H$11:$K$11)+AS75 ->  | AU75: =H75 -> 0 | AY75: 1 | AZ75: 0 | BA75: 0 | BB75: 1 | BC75: 0 | BD75: 0 | BE75: 0 | BF75: 4 | BG75: 4 | BH75: 1 | BI75: 0 | BJ75: 1 | BK75: =IF(G75=2,5,IF(G75=3,6,IF(G75=4,8,IF(G75=5,9,IF(G75=6,10,IF(G75=7,12,0)))))) -> 8 | BL75: 0 | BM75: 0
E76: LV.0382kW.01030 | F76: LV.0382kW.01030 | G76: 4 | H76: 0 | I76: 1 | J76: 0 | K76: 3 | L76: 0 | M76: LV | N76: 382 | O76: 1 | P76: 0 | Q76: =G76-1 -> 3 | R76: 0 | S76: 1 | T76: 3 | U76: 2 | V76: 0 | W76: 0 | X76: 1 | Y76: 0 | Z76: 0 | AA76: 0 | AB76: 0 | AC76: 0 | AD76: 4 | AE76: 0 | AF76: 0 | AG76: 0 | AH76: 4 | AI76: 0 | AJ76: 1 | AK76: 0 | AL76: 0 | AM76: 0 | AN76: 5 | AO76: 4 | AP76: 0 | AQ76: 0 | AR76: 0 | AS76: =SUMPRODUCT(O76:AR76,$O$11:$AR$11) ->  | AT76: =SUMPRODUCT(H76:K76,$H$11:$K$11)+AS76 ->  | AU76: =H76 -> 0 | AY76: 1 | AZ76: 0 | BA76: 0 | BB76: 1 | BC76: 0 | BD76: 0 | BE76: 0 | BF76: 4 | BG76: 4 | BH76: 1 | BI76: 0 | BJ76: 1 | BK76: =IF(G76=2,5,IF(G76=3,6,IF(G76=4,8,IF(G76=5,9,IF(G76=6,10,IF(G76=7,12,0)))))) -> 8 | BL76: 0 | BM76: 0
E77: LV.0405kW.00130 | F77: LV.0405kW.00130 | G77: 4 | H77: 0 | I77: 0 | J77: 1 | K77: 3 | L77: 0 | M77: LV | N77: 405.2 | O77: 1 | P77: 0 | Q77: =G77-1 -> 3 | R77: 0 | S77: 0 | T77: 4 | U77: 2 | V77: 0 | W77: 0 | X77: 1 | Y77: 0 | Z77: 0 | AA77: 0 | AB77: 0 | AC77: 0 | AD77: 4 | AE77: 0 | AF77: 0 | AG77: 0 | AH77: 4 | AI77: 0 | AJ77: 1 | AK77: 0 | AL77: 0 | AM77: 0 | AN77: 5 | AO77: 4 | AP77: 0 | AQ77: 0 | AR77: 0 | AS77: =SUMPRODUCT(O77:AR77,$O$11:$AR$11) ->  | AT77: =SUMPRODUCT(H77:K77,$H$11:$K$11)+AS77 ->  | AU77: =H77 -> 0 | AY77: 1 | AZ77: 0 | BA77: 0 | BB77: 1 | BC77: 0 | BD77: 0 | BE77: 0 | BF77: 4 | BG77: 4 | BH77: 1 | BI77: 0 | BJ77: 1 | BK77: =IF(G77=2,5,IF(G77=3,6,IF(G77=4,8,IF(G77=5,9,IF(G77=6,10,IF(G77=7,12,0)))))) -> 8 | BL77: 0 | BM77: 0
E78: LV.0428kW.00040 | F78: LV.0428kW.00040 | G78: 4 | H78: 0 | I78: 0 | J78: 0 | K78: 4 | L78: 0 | M78: LV | N78: =SUMPRODUCT($H$10:$L$10,H78:L78) -> 428 | O78: 1 | P78: 0 | Q78: =G78-1 -> 3 | R78: 0 | S78: 0 | T78: 4 | U78: 2 | V78: 0 | W78: 0 | X78: 1 | Y78: 0 | Z78: 0 | AA78: 0 | AB78: 0 | AC78: 0 | AD78: 4 | AE78: 0 | AF78: 0 | AG78: 0 | AH78: 4 | AI78: 0 | AJ78: 1 | AK78: 0 | AL78: 0 | AM78: 0 | AN78: 5 | AO78: 4 | AP78: 0 | AQ78: 0 | AR78: 0 | AS78: =SUMPRODUCT(O78:AR78,$O$11:$AR$11) ->  | AT78: =SUMPRODUCT(H78:K78,$H$11:$K$11)+AS78 ->  | AU78: =H78 -> 0 | AY78: 1 | AZ78: 0 | BA78: 0 | BB78: 1 | BC78: 0 | BD78: 0 | BE78: 0 | BF78: 4 | BG78: 4 | BH78: 1 | BI78: 0 | BJ78: 1 | BK78: =IF(G78=2,5,IF(G78=3,6,IF(G78=4,8,IF(G78=5,9,IF(G78=6,10,IF(G78=7,12,0)))))) -> 8 | BL78: 0 | BM78: 0
E79: =M79&"."&TEXT(FLOOR(N79,1),"0000")&"kW."&H79&I79&J79&K79&L79 -> LW.0080kW.20000 | F79: =E79 -> LW.0080kW.20000 | G79: 2 | H79: 2 | I79: 0 | J79: 0 | K79: 0 | L79: 0 | M79: LW | N79: 80 | O79: 0 | P79: 1 | Q79: =G79-1 -> 1 | R79: 2 | S79: 0 | T79: 0 | U79: =IF(G79=2,1,IF(G79=4,2,0)) -> 1 | V79: =IF(G79=3,1,0) -> 0 | W79: 0 | X79: 0 | Y79: 1 | Z79: 0 | AA79: 0 | AB79: 0 | AC79: 0 | AD79: 2 | AE79: 0 | AF79: 0 | AG79: 0 | AH79: 2 | AI79: 0 | AJ79: 1 | AK79: 0 | AL79: 0 | AM79: 0 | AN79: 0 | AO79: 0 | AP79: 1 | AQ79: 0 | AR79: 0 | AS79: =SUMPRODUCT(O79:AR79,$O$11:$AR$11) ->  | AT79: =SUMPRODUCT(H79:K79,$H$11:$K$11)+AS79 ->  | AU79: =H79 -> 2 | AY79: 1 | AZ79: 0 | BA79: 0 | BB79: 1 | BC79: 0 | BD79: 0 | BE79: 0 | BF79: 2 | BG79: =G79 -> 2 | BH79: 0 | BI79: 1 | BJ79: 1 | BK79: 0 | BL79: 0 | BM79: 0
E80: LW.0101kW.11000 | F80: LW.0101kW.11000 | G80: 2 | H80: 1 | I80: 1 | J80: 0 | K80: 0 | L80: 0 | M80: LW | N80: 101 | O80: 0 | P80: 1 | Q80: 1 | R80: 1 | S80: 1 | T80: 0 | U80: 1 | V80: 0 | W80: 0 | X80: 0 | Y80: 1 | Z80: 0 | AA80: 0 | AB80: 0 | AC80: 0 | AD80: 2 | AE80: 0 | AF80: 0 | AG80: 0 | AH80: 2 | AI80: 0 | AJ80: 1 | AK80: 0 | AL80: 0 | AM80: 0 | AN80: 0 | AO80: 0 | AP80: 1 | AQ80: 0 | AR80: 0 | AU80: 1 | AY80: 1 | AZ80: 0 | BA80: 0 | BB80: 1 | BC80: 0 | BD80: 0 | BE80: 0 | BF80: 2 | BG80: 2 | BH80: 0 | BI80: 1 | BJ80: 1 | BK80: 0 | BL80: 0 | BM80: 0
E81: LW.0120kW.30000 | F81: LW.0120kW.30000 | G81: 3 | H81: 3 | I81: 0 | J81: 0 | K81: 0 | L81: 0 | M81: LW | N81: 120 | O81: 0 | P81: 1 | Q81: 2 | R81: 3 | S81: 0 | T81: 0 | U81: 0 | V81: 1 | W81: 0 | X81: 0 | Y81: 1 | Z81: 0 | AA81: 0 | AB81: 0 | AC81: 0 | AD81: 3 | AE81: 0 | AF81: 0 | AG81: 0 | AH81: 3 | AI81: 0 | AJ81: 1 | AK81: 0 | AL81: 0 | AM81: 0 | AN81: 0 | AO81: 0 | AP81: 0 | AQ81: 1 | AR81: 0 | AU81: 3 | AY81: 1 | AZ81: 0 | BA81: 0 | BB81: 1 | BC81: 0 | BD81: 0 | BE81: 0 | BF81: 3 | BG81: 3 | BH81: 0 | BI81: 1 | BJ81: 1 | BK81: 0 | BL81: 0 | BM81: 0
E82: LW.0122kW.02000 | F82: LW.0122kW.02000 | G82: 2 | H82: 0 | I82: 2 | J82: 0 | K82: 0 | L82: 0 | M82: LW | N82: 122 | O82: 0 | P82: 1 | Q82: 1 | R82: 0 | S82: 2 | T82: 0 | U82: 1 | V82: 0 | W82: 0 | X82: 0 | Y82: 1 | Z82: 0 | AA82: 0 | AB82: 0 | AC82: 0 | AD82: 2 | AE82: 0 | AF82: 0 | AG82: 0 | AH82: 2 | AI82: 0 | AJ82: 1 | AK82: 0 | AL82: 0 | AM82: 0 | AN82: 0 | AO82: 0 | AP82: 1 | AQ82: 0 | AR82: 0 | AU82: 0 | AY82: 1 | AZ82: 0 | BA82: 0 | BB82: 1 | BC82: 0 | BD82: 0 | BE82: 0 | BF82: 2 | BG82: 2 | BH82: 0 | BI82: 1 | BJ82: 1 | BK82: 0 | BL82: 0 | BM82: 0
E83: LW.0124kW.10100 | F83: LW.0124kW.10100 | G83: 2 | H83: 1 | I83: 0 | J83: 1 | K83: 0 | L83: 0 | M83: LW | N83: 124.2 | O83: 0 | P83: 1 | Q83: 1 | R83: 1 | S83: 0 | T83: 1 | U83: 1 | V83: 0 | W83: 0 | X83: 0 | Y83: 1 | Z83: 0 | AA83: 0 | AB83: 0 | AC83: 0 | AD83: 2 | AE83: 0 | AF83: 0 | AG83: 0 | AH83: 2 | AI83: 0 | AJ83: 1 | AK83: 0 | AL83: 0 | AM83: 0 | AN83: 0 | AO83: 0 | AP83: 1 | AQ83: 0 | AR83: 0 | AU83: 1 | AY83: 1 | AZ83: 0 | BA83: 0 | BB83: 1 | BC83: 0 | BD83: 0 | BE83: 0 | BF83: 2 | BG83: 2 | BH83: 0 | BI83: 1 | BJ83: 1 | BK83: 0 | BL83: 0 | BM83: 0
E84: LW.0141kW.21000 | F84: LW.0141kW.21000 | G84: 3 | H84: 2 | I84: 1 | J84: 0 | K84: 0 | L84: 0 | M84: LW | N84: 141 | O84: 0 | P84: 1 | Q84: 2 | R84: 2 | S84: 1 | T84: 0 | U84: 0 | V84: 1 | W84: 0 | X84: 0 | Y84: 1 | Z84: 0 | AA84: 0 | AB84: 0 | AC84: 0 | AD84: 3 | AE84: 0 | AF84: 0 | AG84: 0 | AH84: 3 | AI84: 0 | AJ84: 1 | AK84: 0 | AL84: 0 | AM84: 0 | AN84: 0 | AO84: 0 | AP84: 0 | AQ84: 1 | AR84: 0 | AU84: 2 | AY84: 1 | AZ84: 0 | BA84: 0 | BB84: 1 | BC84: 0 | BD84: 0 | BE84: 0 | BF84: 3 | BG84: 3 | BH84: 0 | BI84: 1 | BJ84: 1 | BK84: 0 | BL84: 0 | BM84: 0
E85: LW.0145kW.01100 | F85: LW.0145kW.01100 | G85: 2 | H85: 0 | I85: 1 | J85: 1 | K85: 0 | L85: 0 | M85: LW | N85: 145.2 | O85: 0 | P85: 1 | Q85: 1 | R85: 0 | S85: 1 | T85: 1 | U85: 1 | V85: 0 | W85: 0 | X85: 0 | Y85: 1 | Z85: 0 | AA85: 0 | AB85: 0 | AC85: 0 | AD85: 2 | AE85: 0 | AF85: 0 | AG85: 0 | AH85: 2 | AI85: 0 | AJ85: 1 | AK85: 0 | AL85: 0 | AM85: 0 | AN85: 0 | AO85: 0 | AP85: 1 | AQ85: 0 | AR85: 0 | AU85: 0 | AY85: 1 | AZ85: 0 | BA85: 0 | BB85: 1 | BC85: 0 | BD85: 0 | BE85: 0 | BF85: 2 | BG85: 2 | BH85: 0 | BI85: 1 | BJ85: 1 | BK85: 0 | BL85: 0 | BM85: 0
E86: LW.0147kW.10010 | F86: LW.0147kW.10010 | G86: 2 | H86: 1 | I86: 0 | J86: 0 | K86: 1 | L86: 0 | M86: LW | N86: 147 | O86: 0 | P86: 1 | Q86: 1 | R86: 1 | S86: 0 | T86: 1 | U86: 1 | V86: 0 | W86: 0 | X86: 0 | Y86: 1 | Z86: 0 | AA86: 0 | AB86: 0 | AC86: 0 | AD86: 2 | AE86: 0 | AF86: 0 | AG86: 0 | AH86: 2 | AI86: 0 | AJ86: 1 | AK86: 0 | AL86: 0 | AM86: 0 | AN86: 0 | AO86: 0 | AP86: 1 | AQ86: 0 | AR86: 0 | AU86: 1 | AY86: 1 | AZ86: 0 | BA86: 0 | BB86: 1 | BC86: 0 | BD86: 0 | BE86: 0 | BF86: 2 | BG86: 2 | BH86: 0 | BI86: 1 | BJ86: 1 | BK86: 0 | BL86: 0 | BM86: 0
E87: LW.0160kW.40000 | F87: LW.0160kW.40000 | G87: 4 | H87: 4 | I87: 0 | J87: 0 | K87: 0 | L87: 0 | M87: LW | N87: 160 | O87: 0 | P87: 1 | Q87: 3 | R87: 4 | S87: 0 | T87: 0 | U87: 2 | V87: 0 | W87: 0 | X87: 0 | Y87: 1 | Z87: 0 | AA87: 0 | AB87: 0 | AC87: 0 | AD87: 4 | AE87: 0 | AF87: 0 | AG87: 0 | AH87: 4 | AI87: 0 | AJ87: 1 | AK87: 0 | AL87: 0 | AM87: 0 | AN87: 0 | AO87: 0 | AP87: 0 | AQ87: 0 | AR87: 1 | AU87: 4 | AY87: 1 | AZ87: 0 | BA87: 0 | BB87: 1 | BC87: 0 | BD87: 0 | BE87: 0 | BF87: 4 | BG87: 4 | BH87: 0 | BI87: 1 | BJ87: 1 | BK87: 0 | BL87: 0 | BM87: 0
E88: LW.0162kW.12000 | F88: LW.0162kW.12000 | G88: 3 | H88: 1 | I88: 2 | J88: 0 | K88: 0 | L88: 0 | M88: LW | N88: 162 | O88: 0 | P88: 1 | Q88: 2 | R88: 1 | S88: 2 | T88: 0 | U88: 0 | V88: 1 | W88: 0 | X88: 0 | Y88: 1 | Z88: 0 | AA88: 0 | AB88: 0 | AC88: 0 | AD88: 3 | AE88: 0 | AF88: 0 | AG88: 0 | AH88: 3 | AI88: 0 | AJ88: 1 | AK88: 0 | AL88: 0 | AM88: 0 | AN88: 0 | AO88: 0 | AP88: 0 | AQ88: 1 | AR88: 0 | AU88: 1 | AY88: 1 | AZ88: 0 | BA88: 0 | BB88: 1 | BC88: 0 | BD88: 0 | BE88: 0 | BF88: 3 | BG88: 3 | BH88: 0 | BI88: 1 | BJ88: 1 | BK88: 0 | BL88: 0 | BM88: 0
E89: LW.0164kW.20100 | F89: LW.0164kW.20100 | G89: 3 | H89: 2 | I89: 0 | J89: 1 | K89: 0 | L89: 0 | M89: LW | N89: 164.2 | O89: 0 | P89: 1 | Q89: 2 | R89: 2 | S89: 0 | T89: 1 | U89: 0 | V89: 1 | W89: 0 | X89: 0 | Y89: 1 | Z89: 0 | AA89: 0 | AB89: 0 | AC89: 0 | AD89: 3 | AE89: 0 | AF89: 0 | AG89: 0 | AH89: 3 | AI89: 0 | AJ89: 1 | AK89: 0 | AL89: 0 | AM89: 0 | AN89: 0 | AO89: 0 | AP89: 0 | AQ89: 1 | AR89: 0 | AU89: 2 | AY89: 1 | AZ89: 0 | BA89: 0 | BB89: 1 | BC89: 0 | BD89: 0 | BE89: 0 | BF89: 3 | BG89: 3 | BH89: 0 | BI89: 1 | BJ89: 1 | BK89: 0 | BL89: 0 | BM89: 0
E90: LW.0168kW.00200 | F90: LW.0168kW.00200 | G90: 2 | H90: 0 | I90: 0 | J90: 2 | K90: 0 | L90: 0 | M90: LW | N90: 168.4 | O90: 0 | P90: 1 | Q90: 1 | R90: 0 | S90: 0 | T90: 2 | U90: 1 | V90: 0 | W90: 0 | X90: 0 | Y90: 1 | Z90: 0 | AA90: 0 | AB90: 0 | AC90: 0 | AD90: 2 | AE90: 0 | AF90: 0 | AG90: 0 | AH90: 2 | AI90: 0 | AJ90: 1 | AK90: 0 | AL90: 0 | AM90: 0 | AN90: 0 | AO90: 0 | AP90: 1 | AQ90: 0 | AR90: 0 | AU90: 0 | AY90: 1 | AZ90: 0 | BA90: 0 | BB90: 1 | BC90: 0 | BD90: 0 | BE90: 0 | BF90: 2 | BG90: 2 | BH90: 0 | BI90: 1 | BJ90: 1 | BK90: 0 | BL90: 0 | BM90: 0
E91: LW.0168kW.01010 | F91: LW.0168kW.01010 | G91: 2 | H91: 0 | I91: 1 | J91: 0 | K91: 1 | L91: 0 | M91: LW | N91: 168 | O91: 0 | P91: 1 | Q91: 1 | R91: 0 | S91: 1 | T91: 1 | U91: 1 | V91: 0 | W91: 0 | X91: 0 | Y91: 1 | Z91: 0 | AA91: 0 | AB91: 0 | AC91: 0 | AD91: 2 | AE91: 0 | AF91: 0 | AG91: 0 | AH91: 2 | AI91: 0 | AJ91: 1 | AK91: 0 | AL91: 0 | AM91: 0 | AN91: 0 | AO91: 0 | AP91: 1 | AQ91: 0 | AR91: 0 | AU91: 0 | AY91: 1 | AZ91: 0 | BA91: 0 | BB91: 1 | BC91: 0 | BD91: 0 | BE91: 0 | BF91: 2 | BG91: 2 | BH91: 0 | BI91: 1 | BJ91: 1 | BK91: 0 | BL91: 0 | BM91: 0
E92: LW.0181kW.31000 | F92: LW.0181kW.31000 | G92: 4 | H92: 3 | I92: 1 | J92: 0 | K92: 0 | L92: 0 | M92: LW | N92: 181 | O92: 0 | P92: 1 | Q92: 3 | R92: 3 | S92: 1 | T92: 0 | U92: 2 | V92: 0 | W92: 0 | X92: 0 | Y92: 1 | Z92: 0 | AA92: 0 | AB92: 0 | AC92: 0 | AD92: 4 | AE92: 0 | AF92: 0 | AG92: 0 | AH92: 4 | AI92: 0 | AJ92: 1 | AK92: 0 | AL92: 0 | AM92: 0 | AN92: 0 | AO92: 0 | AP92: 0 | AQ92: 0 | AR92: 1 | AU92: 3 | AY92: 1 | AZ92: 0 | BA92: 0 | BB92: 1 | BC92: 0 | BD92: 0 | BE92: 0 | BF92: 4 | BG92: 4 | BH92: 0 | BI92: 1 | BJ92: 1 | BK92: 0 | BL92: 0 | BM92: 0
E93: LW.0183kW.03000 | F93: LW.0183kW.03000 | G93: 3 | H93: 0 | I93: 3 | J93: 0 | K93: 0 | L93: 0 | M93: LW | N93: 183 | O93: 0 | P93: 1 | Q93: 2 | R93: 0 | S93: 3 | T93: 0 | U93: 0 | V93: 1 | W93: 0 | X93: 0 | Y93: 1 | Z93: 0 | AA93: 0 | AB93: 0 | AC93: 0 | AD93: 3 | AE93: 0 | AF93: 0 | AG93: 0 | AH93: 3 | AI93: 0 | AJ93: 1 | AK93: 0 | AL93: 0 | AM93: 0 | AN93: 0 | AO93: 0 | AP93: 0 | AQ93: 1 | AR93: 0 | AU93: 0 | AY93: 1 | AZ93: 0 | BA93: 0 | BB93: 1 | BC93: 0 | BD93: 0 | BE93: 0 | BF93: 3 | BG93: 3 | BH93: 0 | BI93: 1 | BJ93: 1 | BK93: 0 | BL93: 0 | BM93: 0
E94: LW.0185kW.11100 | F94: LW.0185kW.11100 | G94: 3 | H94: 1 | I94: 1 | J94: 1 | K94: 0 | L94: 0 | M94: LW | N94: 185.2 | O94: 0 | P94: 1 | Q94: 2 | R94: 1 | S94: 1 | T94: 1 | U94: 0 | V94: 1 | W94: 0 | X94: 0 | Y94: 1 | Z94: 0 | AA94: 0 | AB94: 0 | AC94: 0 | AD94: 3 | AE94: 0 | AF94: 0 | AG94: 0 | AH94: 3 | AI94: 0 | AJ94: 1 | AK94: 0 | AL94: 0 | AM94: 0 | AN94: 0 | AO94: 0 | AP94: 0 | AQ94: 1 | AR94: 0 | AU94: 1 | AY94: 1 | AZ94: 0 | BA94: 0 | BB94: 1 | BC94: 0 | BD94: 0 | BE94: 0 | BF94: 3 | BG94: 3 | BH94: 0 | BI94: 1 | BJ94: 1 | BK94: 0 | BL94: 0 | BM94: 0
E95: LW.0187kW.20010 | F95: LW.0187kW.20010 | G95: 3 | H95: 2 | I95: 0 | J95: 0 | K95: 1 | L95: 0 | M95: LW | N95: 187 | O95: 0 | P95: 1 | Q95: 2 | R95: 2 | S95: 0 | T95: 1 | U95: 0 | V95: 1 | W95: 0 | X95: 0 | Y95: 1 | Z95: 0 | AA95: 0 | AB95: 0 | AC95: 0 | AD95: 3 | AE95: 0 | AF95: 0 | AG95: 0 | AH95: 3 | AI95: 0 | AJ95: 1 | AK95: 0 | AL95: 0 | AM95: 0 | AN95: 0 | AO95: 0 | AP95: 0 | AQ95: 1 | AR95: 0 | AU95: 2 | AY95: 1 | AZ95: 0 | BA95: 0 | BB95: 1 | BC95: 0 | BD95: 0 | BE95: 0 | BF95: 3 | BG95: 3 | BH95: 0 | BI95: 1 | BJ95: 1 | BK95: 0 | BL95: 0 | BM95: 0
E96: LW.0191kW.00110 | F96: LW.0191kW.00110 | G96: 2 | H96: 0 | I96: 0 | J96: 1 | K96: 1 | L96: 0 | M96: LW | N96: 191.2 | O96: 0 | P96: 1 | Q96: 1 | R96: 0 | S96: 0 | T96: 2 | U96: 1 | V96: 0 | W96: 0 | X96: 0 | Y96: 1 | Z96: 0 | AA96: 0 | AB96: 0 | AC96: 0 | AD96: 2 | AE96: 0 | AF96: 0 | AG96: 0 | AH96: 2 | AI96: 0 | AJ96: 1 | AK96: 0 | AL96: 0 | AM96: 0 | AN96: 0 | AO96: 0 | AP96: 1 | AQ96: 0 | AR96: 0 | AU96: 0 | AY96: 1 | AZ96: 0 | BA96: 0 | BB96: 1 | BC96: 0 | BD96: 0 | BE96: 0 | BF96: 2 | BG96: 2 | BH96: 0 | BI96: 1 | BJ96: 1 | BK96: 0 | BL96: 0 | BM96: 0
E97: LW.0202kW.22000 | F97: LW.0202kW.22000 | G97: 4 | H97: 2 | I97: 2 | J97: 0 | K97: 0 | L97: 0 | M97: LW | N97: 202 | O97: 0 | P97: 1 | Q97: 3 | R97: 2 | S97: 2 | T97: 0 | U97: 2 | V97: 0 | W97: 0 | X97: 0 | Y97: 1 | Z97: 0 | AA97: 0 | AB97: 0 | AC97: 0 | AD97: 4 | AE97: 0 | AF97: 0 | AG97: 0 | AH97: 4 | AI97: 0 | AJ97: 1 | AK97: 0 | AL97: 0 | AM97: 0 | AN97: 0 | AO97: 0 | AP97: 0 | AQ97: 0 | AR97: 1 | AU97: 2 | AY97: 1 | AZ97: 0 | BA97: 0 | BB97: 1 | BC97: 0 | BD97: 0 | BE97: 0 | BF97: 4 | BG97: 4 | BH97: 0 | BI97: 1 | BJ97: 1 | BK97: 0 | BL97: 0 | BM97: 0
E98: LW.0204kW.30100 | F98: LW.0204kW.30100 | G98: 4 | H98: 3 | I98: 0 | J98: 1 | K98: 0 | L98: 0 | M98: LW | N98: 204.2 | O98: 0 | P98: 1 | Q98: 3 | R98: 3 | S98: 0 | T98: 1 | U98: 2 | V98: 0 | W98: 0 | X98: 0 | Y98: 1 | Z98: 0 | AA98: 0 | AB98: 0 | AC98: 0 | AD98: 4 | AE98: 0 | AF98: 0 | AG98: 0 | AH98: 4 | AI98: 0 | AJ98: 1 | AK98: 0 | AL98: 0 | AM98: 0 | AN98: 0 | AO98: 0 | AP98: 0 | AQ98: 0 | AR98: 1 | AU98: 3 | AY98: 1 | AZ98: 0 | BA98: 0 | BB98: 1 | BC98: 0 | BD98: 0 | BE98: 0 | BF98: 4 | BG98: 4 | BH98: 0 | BI98: 1 | BJ98: 1 | BK98: 0 | BL98: 0 | BM98: 0
E99: LW.0206kW.02100 | F99: LW.0206kW.02100 | G99: 3 | H99: 0 | I99: 2 | J99: 1 | K99: 0 | L99: 0 | M99: LW | N99: 206.2 | O99: 0 | P99: 1 | Q99: 2 | R99: 0 | S99: 2 | T99: 1 | U99: 0 | V99: 1 | W99: 0 | X99: 0 | Y99: 1 | Z99: 0 | AA99: 0 | AB99: 0 | AC99: 0 | AD99: 3 | AE99: 0 | AF99: 0 | AG99: 0 | AH99: 3 | AI99: 0 | AJ99: 1 | AK99: 0 | AL99: 0 | AM99: 0 | AN99: 0 | AO99: 0 | AP99: 0 | AQ99: 1 | AR99: 0 | AU99: 0 | AY99: 1 | AZ99: 0 | BA99: 0 | BB99: 1 | BC99: 0 | BD99: 0 | BE99: 0 | BF99: 3 | BG99: 3 | BH99: 0 | BI99: 1 | BJ99: 1 | BK99: 0 | BL99: 0 | BM99: 0
E100: LW.0208kW.10200 | F100: LW.0208kW.10200 | G100: 3 | H100: 1 | I100: 0 | J100: 2 | K100: 0 | L100: 0 | M100: LW | N100: 208.4 | O100: 0 | P100: 1 | Q100: 2 | R100: 1 | S100: 0 | T100: 2 | U100: 0 | V100: 1 | W100: 0 | X100: 0 | Y100: 1 | Z100: 0 | AA100: 0 | AB100: 0 | AC100: 0 | AD100: 3 | AE100: 0 | AF100: 0 | AG100: 0 | AH100: 3 | AI100: 0 | AJ100: 1 | AK100: 0 | AL100: 0 | AM100: 0 | AN100: 0 | AO100: 0 | AP100: 0 | AQ100: 1 | AR100: 0 | AU100: 1 | AY100: 1 | AZ100: 0 | BA100: 0 | BB100: 1 | BC100: 0 | BD100: 0 | BE100: 0 | BF100: 3 | BG100: 3 | BH100: 0 | BI100: 1 | BJ100: 1 | BK100: 0 | BL100: 0 | BM100: 0
E101: LW.0208kW.11010 | F101: LW.0208kW.11010 | G101: 3 | H101: 1 | I101: 1 | J101: 0 | K101: 1 | L101: 0 | M101: LW | N101: 208 | O101: 0 | P101: 1 | Q101: 2 | R101: 1 | S101: 1 | T101: 1 | U101: 0 | V101: 1 | W101: 0 | X101: 0 | Y101: 1 | Z101: 0 | AA101: 0 | AB101: 0 | AC101: 0 | AD101: 3 | AE101: 0 | AF101: 0 | AG101: 0 | AH101: 3 | AI101: 0 | AJ101: 1 | AK101: 0 | AL101: 0 | AM101: 0 | AN101: 0 | AO101: 0 | AP101: 0 | AQ101: 1 | AR101: 0 | AU101: 1 | AY101: 1 | AZ101: 0 | BA101: 0 | BB101: 1 | BC101: 0 | BD101: 0 | BE101: 0 | BF101: 3 | BG101: 3 | BH101: 0 | BI101: 1 | BJ101: 1 | BK101: 0 | BL101: 0 | BM101: 0
E102: LW.0214kW.00020 | F102: LW.0214kW.00020 | G102: 2 | H102: 0 | I102: 0 | J102: 0 | K102: 2 | L102: 0 | M102: LW | N102: 214 | O102: 0 | P102: 1 | Q102: 1 | R102: 0 | S102: 0 | T102: 2 | U102: 1 | V102: 0 | W102: 0 | X102: 0 | Y102: 1 | Z102: 0 | AA102: 0 | AB102: 0 | AC102: 0 | AD102: 2 | AE102: 0 | AF102: 0 | AG102: 0 | AH102: 2 | AI102: 0 | AJ102: 1 | AK102: 0 | AL102: 0 | AM102: 0 | AN102: 0 | AO102: 0 | AP102: 1 | AQ102: 0 | AR102: 0 | AU102: 0 | AY102: 1 | AZ102: 0 | BA102: 0 | BB102: 1 | BC102: 0 | BD102: 0 | BE102: 0 | BF102: 2 | BG102: 2 | BH102: 0 | BI102: 1 | BJ102: 1 | BK102: 0 | BL102: 0 | BM102: 0
E103: LW.0223kW.13000 | F103: LW.0223kW.13000 | G103: 4 | H103: 1 | I103: 3 | J103: 0 | K103: 0 | L103: 0 | M103: LW | N103: 223 | O103: 0 | P103: 1 | Q103: 3 | R103: 1 | S103: 3 | T103: 0 | U103: 2 | V103: 0 | W103: 0 | X103: 0 | Y103: 1 | Z103: 0 | AA103: 0 | AB103: 0 | AC103: 0 | AD103: 4 | AE103: 0 | AF103: 0 | AG103: 0 | AH103: 4 | AI103: 0 | AJ103: 1 | AK103: 0 | AL103: 0 | AM103: 0 | AN103: 0 | AO103: 0 | AP103: 0 | AQ103: 0 | AR103: 1 | AU103: 1 | AY103: 1 | AZ103: 0 | BA103: 0 | BB103: 1 | BC103: 0 | BD103: 0 | BE103: 0 | BF103: 4 | BG103: 4 | BH103: 0 | BI103: 1 | BJ103: 1 | BK103: 0 | BL103: 0 | BM103: 0
E104: LW.0225kW.21100 | F104: LW.0225kW.21100 | G104: 4 | H104: 2 | I104: 1 | J104: 1 | K104: 0 | L104: 0 | M104: LW | N104: 225.2 | O104: 0 | P104: 1 | Q104: 3 | R104: 2 | S104: 1 | T104: 1 | U104: 2 | V104: 0 | W104: 0 | X104: 0 | Y104: 1 | Z104: 0 | AA104: 0 | AB104: 0 | AC104: 0 | AD104: 4 | AE104: 0 | AF104: 0 | AG104: 0 | AH104: 4 | AI104: 0 | AJ104: 1 | AK104: 0 | AL104: 0 | AM104: 0 | AN104: 0 | AO104: 0 | AP104: 0 | AQ104: 0 | AR104: 1 | AU104: 2 | AY104: 1 | AZ104: 0 | BA104: 0 | BB104: 1 | BC104: 0 | BD104: 0 | BE104: 0 | BF104: 4 | BG104: 4 | BH104: 0 | BI104: 1 | BJ104: 1 | BK104: 0 | BL104: 0 | BM104: 0
E105: LW.0227kW.30010 | F105: LW.0227kW.30010 | G105: 4 | H105: 3 | I105: 0 | J105: 0 | K105: 1 | L105: 0 | M105: LW | N105: 227 | O105: 0 | P105: 1 | Q105: 3 | R105: 3 | S105: 0 | T105: 1 | U105: 2 | V105: 0 | W105: 0 | X105: 0 | Y105: 1 | Z105: 0 | AA105: 0 | AB105: 0 | AC105: 0 | AD105: 4 | AE105: 0 | AF105: 0 | AG105: 0 | AH105: 4 | AI105: 0 | AJ105: 1 | AK105: 0 | AL105: 0 | AM105: 0 | AN105: 0 | AO105: 0 | AP105: 0 | AQ105: 0 | AR105: 1 | AU105: 3 | AY105: 1 | AZ105: 0 | BA105: 0 | BB105: 1 | BC105: 0 | BD105: 0 | BE105: 0 | BF105: 4 | BG105: 4 | BH105: 0 | BI105: 1 | BJ105: 1 | BK105: 0 | BL105: 0 | BM105: 0
E106: LW.0229kW.01200 | F106: LW.0229kW.01200 | G106: 3 | H106: 0 | I106: 1 | J106: 2 | K106: 0 | L106: 0 | M106: LW | N106: 229.4 | O106: 0 | P106: 1 | Q106: 2 | R106: 0 | S106: 1 | T106: 2 | U106: 0 | V106: 1 | W106: 0 | X106: 0 | Y106: 1 | Z106: 0 | AA106: 0 | AB106: 0 | AC106: 0 | AD106: 3 | AE106: 0 | AF106: 0 | AG106: 0 | AH106: 3 | AI106: 0 | AJ106: 1 | AK106: 0 | AL106: 0 | AM106: 0 | AN106: 0 | AO106: 0 | AP106: 0 | AQ106: 1 | AR106: 0 | AU106: 0 | AY106: 1 | AZ106: 0 | BA106: 0 | BB106: 1 | BC106: 0 | BD106: 0 | BE106: 0 | BF106: 3 | BG106: 3 | BH106: 0 | BI106: 1 | BJ106: 1 | BK106: 0 | BL106: 0 | BM106: 0
E107: LW.0229kW.02010 | F107: LW.0229kW.02010 | G107: 3 | H107: 0 | I107: 2 | J107: 0 | K107: 1 | L107: 0 | M107: LW | N107: 229 | O107: 0 | P107: 1 | Q107: 2 | R107: 0 | S107: 2 | T107: 1 | U107: 0 | V107: 1 | W107: 0 | X107: 0 | Y107: 1 | Z107: 0 | AA107: 0 | AB107: 0 | AC107: 0 | AD107: 3 | AE107: 0 | AF107: 0 | AG107: 0 | AH107: 3 | AI107: 0 | AJ107: 1 | AK107: 0 | AL107: 0 | AM107: 0 | AN107: 0 | AO107: 0 | AP107: 0 | AQ107: 1 | AR107: 0 | AU107: 0 | AY107: 1 | AZ107: 0 | BA107: 0 | BB107: 1 | BC107: 0 | BD107: 0 | BE107: 0 | BF107: 3 | BG107: 3 | BH107: 0 | BI107: 1 | BJ107: 1 | BK107: 0 | BL107: 0 | BM107: 0
E108: LW.0231kW.10110 | F108: LW.0231kW.10110 | G108: 3 | H108: 1 | I108: 0 | J108: 1 | K108: 1 | L108: 0 | M108: LW | N108: 231.2 | O108: 0 | P108: 1 | Q108: 2 | R108: 1 | S108: 0 | T108: 2 | U108: 0 | V108: 1 | W108: 0 | X108: 0 | Y108: 1 | Z108: 0 | AA108: 0 | AB108: 0 | AC108: 0 | AD108: 3 | AE108: 0 | AF108: 0 | AG108: 0 | AH108: 3 | AI108: 0 | AJ108: 1 | AK108: 0 | AL108: 0 | AM108: 0 | AN108: 0 | AO108: 0 | AP108: 0 | AQ108: 1 | AR108: 0 | AU108: 1 | AY108: 1 | AZ108: 0 | BA108: 0 | BB108: 1 | BC108: 0 | BD108: 0 | BE108: 0 | BF108: 3 | BG108: 3 | BH108: 0 | BI108: 1 | BJ108: 1 | BK108: 0 | BL108: 0 | BM108: 0
E109: LW.0244kW.04000 | F109: LW.0244kW.04000 | G109: 4 | H109: 0 | I109: 4 | J109: 0 | K109: 0 | L109: 0 | M109: LW | N109: 244 | O109: 0 | P109: 1 | Q109: 3 | R109: 0 | S109: 4 | T109: 0 | U109: 2 | V109: 0 | W109: 0 | X109: 0 | Y109: 1 | Z109: 0 | AA109: 0 | AB109: 0 | AC109: 0 | AD109: 4 | AE109: 0 | AF109: 0 | AG109: 0 | AH109: 4 | AI109: 0 | AJ109: 1 | AK109: 0 | AL109: 0 | AM109: 0 | AN109: 0 | AO109: 0 | AP109: 0 | AQ109: 0 | AR109: 1 | AU109: 0 | AY109: 1 | AZ109: 0 | BA109: 0 | BB109: 1 | BC109: 0 | BD109: 0 | BE109: 0 | BF109: 4 | BG109: 4 | BH109: 0 | BI109: 1 | BJ109: 1 | BK109: 0 | BL109: 0 | BM109: 0
E110: LW.0246kW.12100 | F110: LW.0246kW.12100 | G110: 4 | H110: 1 | I110: 2 | J110: 1 | K110: 0 | L110: 0 | M110: LW | N110: 246.2 | O110: 0 | P110: 1 | Q110: 3 | R110: 1 | S110: 2 | T110: 1 | U110: 2 | V110: 0 | W110: 0 | X110: 0 | Y110: 1 | Z110: 0 | AA110: 0 | AB110: 0 | AC110: 0 | AD110: 4 | AE110: 0 | AF110: 0 | AG110: 0 | AH110: 4 | AI110: 0 | AJ110: 1 | AK110: 0 | AL110: 0 | AM110: 0 | AN110: 0 | AO110: 0 | AP110: 0 | AQ110: 0 | AR110: 1 | AU110: 1 | AY110: 1 | AZ110: 0 | BA110: 0 | BB110: 1 | BC110: 0 | BD110: 0 | BE110: 0 | BF110: 4 | BG110: 4 | BH110: 0 | BI110: 1 | BJ110: 1 | BK110: 0 | BL110: 0 | BM110: 0
E111: LW.0248kW.20200 | F111: LW.0248kW.20200 | G111: 4 | H111: 2 | I111: 0 | J111: 2 | K111: 0 | L111: 0 | M111: LW | N111: 248.4 | O111: 0 | P111: 1 | Q111: 3 | R111: 2 | S111: 0 | T111: 2 | U111: 2 | V111: 0 | W111: 0 | X111: 0 | Y111: 1 | Z111: 0 | AA111: 0 | AB111: 0 | AC111: 0 | AD111: 4 | AE111: 0 | AF111: 0 | AG111: 0 | AH111: 4 | AI111: 0 | AJ111: 1 | AK111: 0 | AL111: 0 | AM111: 0 | AN111: 0 | AO111: 0 | AP111: 0 | AQ111: 0 | AR111: 1 | AU111: 2 | AY111: 1 | AZ111: 0 | BA111: 0 | BB111: 1 | BC111: 0 | BD111: 0 | BE111: 0 | BF111: 4 | BG111: 4 | BH111: 0 | BI111: 1 | BJ111: 1 | BK111: 0 | BL111: 0 | BM111: 0
E112: LW.0248kW.21010 | F112: LW.0248kW.21010 | G112: 4 | H112: 2 | I112: 1 | J112: 0 | K112: 1 | L112: 0 | M112: LW | N112: 248 | O112: 0 | P112: 1 | Q112: 3 | R112: 2 | S112: 1 | T112: 1 | U112: 2 | V112: 0 | W112: 0 | X112: 0 | Y112: 1 | Z112: 0 | AA112: 0 | AB112: 0 | AC112: 0 | AD112: 4 | AE112: 0 | AF112: 0 | AG112: 0 | AH112: 4 | AI112: 0 | AJ112: 1 | AK112: 0 | AL112: 0 | AM112: 0 | AN112: 0 | AO112: 0 | AP112: 0 | AQ112: 0 | AR112: 1 | AU112: 2 | AY112: 1 | AZ112: 0 | BA112: 0 | BB112: 1 | BC112: 0 | BD112: 0 | BE112: 0 | BF112: 4 | BG112: 4 | BH112: 0 | BI112: 1 | BJ112: 1 | BK112: 0 | BL112: 0 | BM112: 0
E113: LW.0252kW.00300 | F113: LW.0252kW.00300 | G113: 3 | H113: 0 | I113: 0 | J113: 3 | K113: 0 | L113: 0 | M113: LW | N113: 252.6 | O113: 0 | P113: 1 | Q113: 2 | R113: 0 | S113: 0 | T113: 3 | U113: 0 | V113: 1 | W113: 0 | X113: 0 | Y113: 1 | Z113: 0 | AA113: 0 | AB113: 0 | AC113: 0 | AD113: 3 | AE113: 0 | AF113: 0 | AG113: 0 | AH113: 3 | AI113: 0 | AJ113: 1 | AK113: 0 | AL113: 0 | AM113: 0 | AN113: 0 | AO113: 0 | AP113: 0 | AQ113: 1 | AR113: 0 | AU113: 0 | AY113: 1 | AZ113: 0 | BA113: 0 | BB113: 1 | BC113: 0 | BD113: 0 | BE113: 0 | BF113: 3 | BG113: 3 | BH113: 0 | BI113: 1 | BJ113: 1 | BK113: 0 | BL113: 0 | BM113: 0
E114: LW.0252kW.01110 | F114: LW.0252kW.01110 | G114: 3 | H114: 0 | I114: 1 | J114: 1 | K114: 1 | L114: 0 | M114: LW | N114: 252.2 | O114: 0 | P114: 1 | Q114: 2 | R114: 0 | S114: 1 | T114: 2 | U114: 0 | V114: 1 | W114: 0 | X114: 0 | Y114: 1 | Z114: 0 | AA114: 0 | AB114: 0 | AC114: 0 | AD114: 3 | AE114: 0 | AF114: 0 | AG114: 0 | AH114: 3 | AI114: 0 | AJ114: 1 | AK114: 0 | AL114: 0 | AM114: 0 | AN114: 0 | AO114: 0 | AP114: 0 | AQ114: 1 | AR114: 0 | AU114: 0 | AY114: 1 | AZ114: 0 | BA114: 0 | BB114: 1 | BC114: 0 | BD114: 0 | BE114: 0 | BF114: 3 | BG114: 3 | BH114: 0 | BI114: 1 | BJ114: 1 | BK114: 0 | BL114: 0 | BM114: 0
E115: LW.0254kW.10020 | F115: LW.0254kW.10020 | G115: 3 | H115: 1 | I115: 0 | J115: 0 | K115: 2 | L115: 0 | M115: LW | N115: 254 | O115: 0 | P115: 1 | Q115: 2 | R115: 1 | S115: 0 | T115: 2 | U115: 0 | V115: 1 | W115: 0 | X115: 0 | Y115: 1 | Z115: 0 | AA115: 0 | AB115: 0 | AC115: 0 | AD115: 3 | AE115: 0 | AF115: 0 | AG115: 0 | AH115: 3 | AI115: 0 | AJ115: 1 | AK115: 0 | AL115: 0 | AM115: 0 | AN115: 0 | AO115: 0 | AP115: 0 | AQ115: 1 | AR115: 0 | AU115: 1 | AY115: 1 | AZ115: 0 | BA115: 0 | BB115: 1 | BC115: 0 | BD115: 0 | BE115: 0 | BF115: 3 | BG115: 3 | BH115: 0 | BI115: 1 | BJ115: 1 | BK115: 0 | BL115: 0 | BM115: 0
E116: LW.0267kW.03100 | F116: LW.0267kW.03100 | G116: 4 | H116: 0 | I116: 3 | J116: 1 | K116: 0 | L116: 0 | M116: LW | N116: 267.2 | O116: 0 | P116: 1 | Q116: 3 | R116: 0 | S116: 3 | T116: 1 | U116: 2 | V116: 0 | W116: 0 | X116: 0 | Y116: 1 | Z116: 0 | AA116: 0 | AB116: 0 | AC116: 0 | AD116: 4 | AE116: 0 | AF116: 0 | AG116: 0 | AH116: 4 | AI116: 0 | AJ116: 1 | AK116: 0 | AL116: 0 | AM116: 0 | AN116: 0 | AO116: 0 | AP116: 0 | AQ116: 0 | AR116: 1 | AU116: 0 | AY116: 1 | AZ116: 0 | BA116: 0 | BB116: 1 | BC116: 0 | BD116: 0 | BE116: 0 | BF116: 4 | BG116: 4 | BH116: 0 | BI116: 1 | BJ116: 1 | BK116: 0 | BL116: 0 | BM116: 0
E117: LW.0269kW.11200 | F117: LW.0269kW.11200 | G117: 4 | H117: 1 | I117: 1 | J117: 2 | K117: 0 | L117: 0 | M117: LW | N117: 269.4 | O117: 0 | P117: 1 | Q117: 3 | R117: 1 | S117: 1 | T117: 2 | U117: 2 | V117: 0 | W117: 0 | X117: 0 | Y117: 1 | Z117: 0 | AA117: 0 | AB117: 0 | AC117: 0 | AD117: 4 | AE117: 0 | AF117: 0 | AG117: 0 | AH117: 4 | AI117: 0 | AJ117: 1 | AK117: 0 | AL117: 0 | AM117: 0 | AN117: 0 | AO117: 0 | AP117: 0 | AQ117: 0 | AR117: 1 | AU117: 1 | AY117: 1 | AZ117: 0 | BA117: 0 | BB117: 1 | BC117: 0 | BD117: 0 | BE117: 0 | BF117: 4 | BG117: 4 | BH117: 0 | BI117: 1 | BJ117: 1 | BK117: 0 | BL117: 0 | BM117: 0
E118: LW.0269kW.12010 | F118: LW.0269kW.12010 | G118: 4 | H118: 1 | I118: 2 | J118: 0 | K118: 1 | L118: 0 | M118: LW | N118: 269 | O118: 0 | P118: 1 | Q118: 3 | R118: 1 | S118: 2 | T118: 1 | U118: 2 | V118: 0 | W118: 0 | X118: 0 | Y118: 1 | Z118: 0 | AA118: 0 | AB118: 0 | AC118: 0 | AD118: 4 | AE118: 0 | AF118: 0 | AG118: 0 | AH118: 4 | AI118: 0 | AJ118: 1 | AK118: 0 | AL118: 0 | AM118: 0 | AN118: 0 | AO118: 0 | AP118: 0 | AQ118: 0 | AR118: 1 | AU118: 1 | AY118: 1 | AZ118: 0 | BA118: 0 | BB118: 1 | BC118: 0 | BD118: 0 | BE118: 0 | BF118: 4 | BG118: 4 | BH118: 0 | BI118: 1 | BJ118: 1 | BK118: 0 | BL118: 0 | BM118: 0
E119: LW.0271kW.20110 | F119: LW.0271kW.20110 | G119: 4 | H119: 2 | I119: 0 | J119: 1 | K119: 1 | L119: 0 | M119: LW | N119: 271.2 | O119: 0 | P119: 1 | Q119: 3 | R119: 2 | S119: 0 | T119: 2 | U119: 2 | V119: 0 | W119: 0 | X119: 0 | Y119: 1 | Z119: 0 | AA119: 0 | AB119: 0 | AC119: 0 | AD119: 4 | AE119: 0 | AF119: 0 | AG119: 0 | AH119: 4 | AI119: 0 | AJ119: 1 | AK119: 0 | AL119: 0 | AM119: 0 | AN119: 0 | AO119: 0 | AP119: 0 | AQ119: 0 | AR119: 1 | AU119: 2 | AY119: 1 | AZ119: 0 | BA119: 0 | BB119: 1 | BC119: 0 | BD119: 0 | BE119: 0 | BF119: 4 | BG119: 4 | BH119: 0 | BI119: 1 | BJ119: 1 | BK119: 0 | BL119: 0 | BM119: 0
E120: LW.0275kW.00210 | F120: LW.0275kW.00210 | G120: 3 | H120: 0 | I120: 0 | J120: 2 | K120: 1 | L120: 0 | M120: LW | N120: 275.4 | O120: 0 | P120: 1 | Q120: 2 | R120: 0 | S120: 0 | T120: 3 | U120: 0 | V120: 1 | W120: 0 | X120: 0 | Y120: 1 | Z120: 0 | AA120: 0 | AB120: 0 | AC120: 0 | AD120: 3 | AE120: 0 | AF120: 0 | AG120: 0 | AH120: 3 | AI120: 0 | AJ120: 1 | AK120: 0 | AL120: 0 | AM120: 0 | AN120: 0 | AO120: 0 | AP120: 0 | AQ120: 1 | AR120: 0 | AU120: 0 | AY120: 1 | AZ120: 0 | BA120: 0 | BB120: 1 | BC120: 0 | BD120: 0 | BE120: 0 | BF120: 3 | BG120: 3 | BH120: 0 | BI120: 1 | BJ120: 1 | BK120: 0 | BL120: 0 | BM120: 0
E121: LW.0275kW.01020 | F121: LW.0275kW.01020 | G121: 3 | H121: 0 | I121: 1 | J121: 0 | K121: 2 | L121: 0 | M121: LW | N121: 275 | O121: 0 | P121: 1 | Q121: 2 | R121: 0 | S121: 1 | T121: 2 | U121: 0 | V121: 1 | W121: 0 | X121: 0 | Y121: 1 | Z121: 0 | AA121: 0 | AB121: 0 | AC121: 0 | AD121: 3 | AE121: 0 | AF121: 0 | AG121: 0 | AH121: 3 | AI121: 0 | AJ121: 1 | AK121: 0 | AL121: 0 | AM121: 0 | AN121: 0 | AO121: 0 | AP121: 0 | AQ121: 1 | AR121: 0 | AU121: 0 | AY121: 1 | AZ121: 0 | BA121: 0 | BB121: 1 | BC121: 0 | BD121: 0 | BE121: 0 | BF121: 3 | BG121: 3 | BH121: 0 | BI121: 1 | BJ121: 1 | BK121: 0 | BL121: 0 | BM121: 0
E122: LW.0290kW.02200 | F122: LW.0290kW.02200 | G122: 4 | H122: 0 | I122: 2 | J122: 2 | K122: 0 | L122: 0 | M122: LW | N122: 290.4 | O122: 0 | P122: 1 | Q122: =G122-1 -> 3 | R122: 0 | S122: 2 | T122: 2 | U122: 2 | V122: 0 | W122: 0 | X122: 0 | Y122: 1 | Z122: 0 | AA122: 0 | AB122: 0 | AC122: 0 | AD122: 4 | AE122: 0 | AF122: 0 | AG122: 0 | AH122: 4 | AI122: 0 | AJ122: 1 | AK122: 0 | AL122: 0 | AM122: 0 | AN122: 0 | AO122: 0 | AP122: 0 | AQ122: 0 | AR122: 1 | AS122: =SUMPRODUCT(O122:AR122,$O$11:$AR$11) ->  | AT122: =SUMPRODUCT(H122:K122,$H$11:$K$11)+AS122 ->  | AU122: 0 | AY122: 1 | AZ122: 0 | BA122: 0 | BB122: 1 | BC122: 0 | BD122: 0 | BE122: 0 | BF122: 4 | BG122: 4 | BH122: 0 | BI122: 1 | BJ122: 1 | BK122: 0 | BL122: 0 | BM122: 0
E123: LW.0290kW.03010 | F123: LW.0290kW.03010 | G123: 4 | H123: 0 | I123: 3 | J123: 0 | K123: 1 | L123: 0 | M123: LW | N123: 290 | O123: 0 | P123: 1 | Q123: 3 | R123: 0 | S123: 3 | T123: 1 | U123: 2 | V123: 0 | W123: 0 | X123: 0 | Y123: 1 | Z123: 0 | AA123: 0 | AB123: 0 | AC123: 0 | AD123: 4 | AE123: 0 | AF123: 0 | AG123: 0 | AH123: 4 | AI123: 0 | AJ123: 1 | AK123: 0 | AL123: 0 | AM123: 0 | AN123: 0 | AO123: 0 | AP123: 0 | AQ123: 0 | AR123: 1 | AU123: =H123 -> 0 | AY123: 1 | AZ123: 0 | BA123: 0 | BB123: 1 | BC123: 0 | BD123: 0 | BE123: 0 | BF123: 4 | BG123: 4 | BH123: 0 | BI123: 1 | BJ123: 1 | BK123: 0 | BL123: 0 | BM123: 0
E124: LW.0292kW.10300 | F124: LW.0292kW.10300 | G124: 4 | H124: 1 | I124: 0 | J124: 3 | K124: 0 | L124: 0 | M124: LW | N124: 292.6 | O124: 0 | P124: 1 | Q124: 3 | R124: 1 | S124: 0 | T124: 3 | U124: 2 | V124: 0 | W124: 0 | X124: 0 | Y124: 1 | Z124: 0 | AA124: 0 | AB124: 0 | AC124: 0 | AD124: 4 | AE124: 0 | AF124: 0 | AG124: 0 | AH124: 4 | AI124: 0 | AJ124: 1 | AK124: 0 | AL124: 0 | AM124: 0 | AN124: 0 | AO124: 0 | AP124: 0 | AQ124: 0 | AR124: 1 | AU124: 1 | AY124: 1 | AZ124: 0 | BA124: 0 | BB124: 1 | BC124: 0 | BD124: 0 | BE124: 0 | BF124: 4 | BG124: 4 | BH124: 0 | BI124: 1 | BJ124: 1 | BK124: 0 | BL124: 0 | BM124: 0
E125: LW.0292kW.11110 | F125: LW.0292kW.11110 | G125: 4 | H125: 1 | I125: 1 | J125: 1 | K125: 1 | L125: 0 | M125: LW | N125: 292.2 | O125: 0 | P125: 1 | Q125: 3 | R125: 1 | S125: 1 | T125: 2 | U125: 2 | V125: 0 | W125: 0 | X125: 0 | Y125: 1 | Z125: 0 | AA125: 0 | AB125: 0 | AC125: 0 | AD125: 4 | AE125: 0 | AF125: 0 | AG125: 0 | AH125: 4 | AI125: 0 | AJ125: 1 | AK125: 0 | AL125: 0 | AM125: 0 | AN125: 0 | AO125: 0 | AP125: 0 | AQ125: 0 | AR125: 1 | AU125: 1 | AY125: 1 | AZ125: 0 | BA125: 0 | BB125: 1 | BC125: 0 | BD125: 0 | BE125: 0 | BF125: 4 | BG125: 4 | BH125: 0 | BI125: 1 | BJ125: 1 | BK125: 0 | BL125: 0 | BM125: 0
E126: LW.0294kW.20020 | F126: LW.0294kW.20020 | G126: 4 | H126: 2 | I126: 0 | J126: 0 | K126: 2 | L126: 0 | M126: LW | N126: 294 | O126: 0 | P126: 1 | Q126: 3 | R126: 2 | S126: 0 | T126: 2 | U126: 2 | V126: 0 | W126: 0 | X126: 0 | Y126: 1 | Z126: 0 | AA126: 0 | AB126: 0 | AC126: 0 | AD126: 4 | AE126: 0 | AF126: 0 | AG126: 0 | AH126: 4 | AI126: 0 | AJ126: 1 | AK126: 0 | AL126: 0 | AM126: 0 | AN126: 0 | AO126: 0 | AP126: 0 | AQ126: 0 | AR126: 1 | AU126: 2 | AY126: 1 | AZ126: 0 | BA126: 0 | BB126: 1 | BC126: 0 | BD126: 0 | BE126: 0 | BF126: 4 | BG126: 4 | BH126: 0 | BI126: 1 | BJ126: 1 | BK126: 0 | BL126: 0 | BM126: 0
E127: LW.0298kW.00120 | F127: LW.0298kW.00120 | G127: 3 | H127: 0 | I127: 0 | J127: 1 | K127: 2 | L127: 0 | M127: LW | N127: 298.2 | O127: 0 | P127: 1 | Q127: 2 | R127: 0 | S127: 0 | T127: 3 | U127: 0 | V127: 1 | W127: 0 | X127: 0 | Y127: 1 | Z127: 0 | AA127: 0 | AB127: 0 | AC127: 0 | AD127: 3 | AE127: 0 | AF127: 0 | AG127: 0 | AH127: 3 | AI127: 0 | AJ127: 1 | AK127: 0 | AL127: 0 | AM127: 0 | AN127: 0 | AO127: 0 | AP127: 0 | AQ127: 1 | AR127: 0 | AU127: 0 | AY127: 1 | AZ127: 0 | BA127: 0 | BB127: 1 | BC127: 0 | BD127: 0 | BE127: 0 | BF127: 3 | BG127: 3 | BH127: 0 | BI127: 1 | BJ127: 1 | BK127: 0 | BL127: 0 | BM127: 0
E128: LW.0313kW.01300 | F128: LW.0313kW.01300 | G128: 4 | H128: 0 | I128: 1 | J128: 3 | K128: 0 | L128: 0 | M128: LW | N128: 313.6 | O128: 0 | P128: 1 | Q128: 3 | R128: 0 | S128: 1 | T128: 3 | U128: 2 | V128: 0 | W128: 0 | X128: 0 | Y128: 1 | Z128: 0 | AA128: 0 | AB128: 0 | AC128: 0 | AD128: 4 | AE128: 0 | AF128: 0 | AG128: 0 | AH128: 4 | AI128: 0 | AJ128: 1 | AK128: 0 | AL128: 0 | AM128: 0 | AN128: 0 | AO128: 0 | AP128: 0 | AQ128: 0 | AR128: 1 | AU128: 0 | AY128: 1 | AZ128: 0 | BA128: 0 | BB128: 1 | BC128: 0 | BD128: 0 | BE128: 0 | BF128: 4 | BG128: 4 | BH128: 0 | BI128: 1 | BJ128: 1 | BK128: 0 | BL128: 0 | BM128: 0
E129: LW.0313kW.02110 | F129: LW.0313kW.02110 | G129: 4 | H129: 0 | I129: 2 | J129: 1 | K129: 1 | L129: 0 | M129: LW | N129: 313.2 | O129: 0 | P129: 1 | Q129: 3 | R129: 0 | S129: 2 | T129: 2 | U129: 2 | V129: 0 | W129: 0 | X129: 0 | Y129: 1 | Z129: 0 | AA129: 0 | AB129: 0 | AC129: 0 | AD129: 4 | AE129: 0 | AF129: 0 | AG129: 0 | AH129: 4 | AI129: 0 | AJ129: 1 | AK129: 0 | AL129: 0 | AM129: 0 | AN129: 0 | AO129: 0 | AP129: 0 | AQ129: 0 | AR129: 1 | AU129: 0 | AY129: 1 | AZ129: 0 | BA129: 0 | BB129: 1 | BC129: 0 | BD129: 0 | BE129: 0 | BF129: 4 | BG129: 4 | BH129: 0 | BI129: 1 | BJ129: 1 | BK129: 0 | BL129: 0 | BM129: 0
E130: LW.0315kW.10210 | F130: LW.0315kW.10210 | G130: 4 | H130: 1 | I130: 0 | J130: 2 | K130: 1 | L130: 0 | M130: LW | N130: 315.4 | O130: 0 | P130: 1 | Q130: 3 | R130: 1 | S130: 0 | T130: 3 | U130: 2 | V130: 0 | W130: 0 | X130: 0 | Y130: 1 | Z130: 0 | AA130: 0 | AB130: 0 | AC130: 0 | AD130: 4 | AE130: 0 | AF130: 0 | AG130: 0 | AH130: 4 | AI130: 0 | AJ130: 1 | AK130: 0 | AL130: 0 | AM130: 0 | AN130: 0 | AO130: 0 | AP130: 0 | AQ130: 0 | AR130: 1 | AU130: 1 | AY130: 1 | AZ130: 0 | BA130: 0 | BB130: 1 | BC130: 0 | BD130: 0 | BE130: 0 | BF130: 4 | BG130: 4 | BH130: 0 | BI130: 1 | BJ130: 1 | BK130: 0 | BL130: 0 | BM130: 0
E131: LW.0315kW.11020 | F131: LW.0315kW.11020 | G131: 4 | H131: 1 | I131: 1 | J131: 0 | K131: 2 | L131: 0 | M131: LW | N131: 315 | O131: 0 | P131: 1 | Q131: 3 | R131: 1 | S131: 1 | T131: 2 | U131: 2 | V131: 0 | W131: 0 | X131: 0 | Y131: 1 | Z131: 0 | AA131: 0 | AB131: 0 | AC131: 0 | AD131: 4 | AE131: 0 | AF131: 0 | AG131: 0 | AH131: 4 | AI131: 0 | AJ131: 1 | AK131: 0 | AL131: 0 | AM131: 0 | AN131: 0 | AO131: 0 | AP131: 0 | AQ131: 0 | AR131: 1 | AU131: 1 | AY131: 1 | AZ131: 0 | BA131: 0 | BB131: 1 | BC131: 0 | BD131: 0 | BE131: 0 | BF131: 4 | BG131: 4 | BH131: 0 | BI131: 1 | BJ131: 1 | BK131: 0 | BL131: 0 | BM131: 0
E132: LW.0321kW.00030 | F132: LW.0321kW.00030 | G132: 3 | H132: 0 | I132: 0 | J132: 0 | K132: 3 | L132: 0 | M132: LW | N132: 321 | O132: 0 | P132: 1 | Q132: 2 | R132: 0 | S132: 0 | T132: 3 | U132: 0 | V132: 1 | W132: 0 | X132: 0 | Y132: 1 | Z132: 0 | AA132: 0 | AB132: 0 | AC132: 0 | AD132: 3 | AE132: 0 | AF132: 0 | AG132: 0 | AH132: 3 | AI132: 0 | AJ132: 1 | AK132: 0 | AL132: 0 | AM132: 0 | AN132: 0 | AO132: 0 | AP132: 0 | AQ132: 1 | AR132: 0 | AU132: 0 | AY132: 1 | AZ132: 0 | BA132: 0 | BB132: 1 | BC132: 0 | BD132: 0 | BE132: 0 | BF132: 3 | BG132: 3 | BH132: 0 | BI132: 1 | BJ132: 1 | BK132: 0 | BL132: 0 | BM132: 0
E133: LW.0336kW.00400 | F133: LW.0336kW.00400 | G133: 4 | H133: 0 | I133: 0 | J133: 4 | K133: 0 | L133: 0 | M133: LW | N133: 336.8 | O133: 0 | P133: 1 | Q133: 3 | R133: 0 | S133: 0 | T133: 4 | U133: 2 | V133: 0 | W133: 0 | X133: 0 | Y133: 1 | Z133: 0 | AA133: 0 | AB133: 0 | AC133: 0 | AD133: 4 | AE133: 0 | AF133: 0 | AG133: 0 | AH133: 4 | AI133: 0 | AJ133: 1 | AK133: 0 | AL133: 0 | AM133: 0 | AN133: 0 | AO133: 0 | AP133: 0 | AQ133: 0 | AR133: 1 | AU133: 0 | AY133: 1 | AZ133: 0 | BA133: 0 | BB133: 1 | BC133: 0 | BD133: 0 | BE133: 0 | BF133: 4 | BG133: 4 | BH133: 0 | BI133: 1 | BJ133: 1 | BK133: 0 | BL133: 0 | BM133: 0
E134: LW.0336kW.01210 | F134: LW.0336kW.01210 | G134: 4 | H134: 0 | I134: 1 | J134: 2 | K134: 1 | L134: 0 | M134: LW | N134: 336.4 | O134: 0 | P134: 1 | Q134: 3 | R134: 0 | S134: 1 | T134: 3 | U134: 2 | V134: 0 | W134: 0 | X134: 0 | Y134: 1 | Z134: 0 | AA134: 0 | AB134: 0 | AC134: 0 | AD134: 4 | AE134: 0 | AF134: 0 | AG134: 0 | AH134: 4 | AI134: 0 | AJ134: 1 | AK134: 0 | AL134: 0 | AM134: 0 | AN134: 0 | AO134: 0 | AP134: 0 | AQ134: 0 | AR134: 1 | AU134: 0 | AY134: 1 | AZ134: 0 | BA134: 0 | BB134: 1 | BC134: 0 | BD134: 0 | BE134: 0 | BF134: 4 | BG134: 4 | BH134: 0 | BI134: 1 | BJ134: 1 | BK134: 0 | BL134: 0 | BM134: 0
E135: LW.0336kW.02020 | F135: LW.0336kW.02020 | G135: 4 | H135: 0 | I135: 2 | J135: 0 | K135: 2 | L135: 0 | M135: LW | N135: 336 | O135: 0 | P135: 1 | Q135: 3 | R135: 0 | S135: 2 | T135: 2 | U135: 2 | V135: 0 | W135: 0 | X135: 0 | Y135: 1 | Z135: 0 | AA135: 0 | AB135: 0 | AC135: 0 | AD135: 4 | AE135: 0 | AF135: 0 | AG135: 0 | AH135: 4 | AI135: 0 | AJ135: 1 | AK135: 0 | AL135: 0 | AM135: 0 | AN135: 0 | AO135: 0 | AP135: 0 | AQ135: 0 | AR135: 1 | AU135: 0 | AY135: 1 | AZ135: 0 | BA135: 0 | BB135: 1 | BC135: 0 | BD135: 0 | BE135: 0 | BF135: 4 | BG135: 4 | BH135: 0 | BI135: 1 | BJ135: 1 | BK135: 0 | BL135: 0 | BM135: 0
E136: LW.0338kW.10120 | F136: LW.0338kW.10120 | G136: 4 | H136: 1 | I136: 0 | J136: 1 | K136: 2 | L136: 0 | M136: LW | N136: 338.2 | O136: 0 | P136: 1 | Q136: 3 | R136: 1 | S136: 0 | T136: 3 | U136: 2 | V136: 0 | W136: 0 | X136: 0 | Y136: 1 | Z136: 0 | AA136: 0 | AB136: 0 | AC136: 0 | AD136: 4 | AE136: 0 | AF136: 0 | AG136: 0 | AH136: 4 | AI136: 0 | AJ136: 1 | AK136: 0 | AL136: 0 | AM136: 0 | AN136: 0 | AO136: 0 | AP136: 0 | AQ136: 0 | AR136: 1 | AU136: 1 | AY136: 1 | AZ136: 0 | BA136: 0 | BB136: 1 | BC136: 0 | BD136: 0 | BE136: 0 | BF136: 4 | BG136: 4 | BH136: 0 | BI136: 1 | BJ136: 1 | BK136: 0 | BL136: 0 | BM136: 0
E137: LW.0359kW.00310 | F137: LW.0359kW.00310 | G137: 4 | H137: 0 | I137: 0 | J137: 3 | K137: 1 | L137: 0 | M137: LW | N137: 359.6 | O137: 1 | P137: 0 | Q137: 3 | R137: 0 | S137: 0 | T137: 4 | U137: 2 | V137: 0 | W137: 0 | X137: 1 | Y137: 0 | Z137: 0 | AA137: 0 | AB137: 0 | AC137: 0 | AD137: 4 | AE137: 0 | AF137: 0 | AG137: 0 | AH137: 4 | AI137: 0 | AJ137: 1 | AK137: 0 | AL137: 0 | AM137: 0 | AN137: 0 | AO137: 0 | AP137: 0 | AQ137: 0 | AR137: 1 | AU137: 0 | AY137: 1 | AZ137: 0 | BA137: 0 | BB137: 1 | BC137: 0 | BD137: 0 | BE137: 0 | BF137: 4 | BG137: 4 | BH137: 1 | BI137: 0 | BJ137: 1 | BK137: 0 | BL137: 0 | BM137: 0
E138: LW.0359kW.01120 | F138: LW.0359kW.01120 | G138: 4 | H138: 0 | I138: 1 | J138: 1 | K138: 2 | L138: 0 | M138: LW | N138: 359.2 | O138: 1 | P138: 0 | Q138: 3 | R138: 0 | S138: 1 | T138: 3 | U138: 2 | V138: 0 | W138: 0 | X138: 1 | Y138: 0 | Z138: 0 | AA138: 0 | AB138: 0 | AC138: 0 | AD138: 4 | AE138: 0 | AF138: 0 | AG138: 0 | AH138: 4 | AI138: 0 | AJ138: 1 | AK138: 0 | AL138: 0 | AM138: 0 | AN138: 0 | AO138: 0 | AP138: 0 | AQ138: 0 | AR138: 1 | AU138: 0 | AY138: 1 | AZ138: 0 | BA138: 0 | BB138: 1 | BC138: 0 | BD138: 0 | BE138: 0 | BF138: 4 | BG138: 4 | BH138: 1 | BI138: 0 | BJ138: 1 | BK138: 0 | BL138: 0 | BM138: 0
E139: LW.0361kW.10030 | F139: LW.0361kW.10030 | G139: 4 | H139: 1 | I139: 0 | J139: 0 | K139: 3 | L139: 0 | M139: LW | N139: 361 | O139: 1 | P139: 0 | Q139: 3 | R139: 1 | S139: 0 | T139: 3 | U139: 2 | V139: 0 | W139: 0 | X139: 1 | Y139: 0 | Z139: 0 | AA139: 0 | AB139: 0 | AC139: 0 | AD139: 4 | AE139: 0 | AF139: 0 | AG139: 0 | AH139: 4 | AI139: 0 | AJ139: 1 | AK139: 0 | AL139: 0 | AM139: 0 | AN139: 0 | AO139: 0 | AP139: 0 | AQ139: 0 | AR139: 1 | AU139: 1 | AY139: 1 | AZ139: 0 | BA139: 0 | BB139: 1 | BC139: 0 | BD139: 0 | BE139: 0 | BF139: 4 | BG139: 4 | BH139: 1 | BI139: 0 | BJ139: 1 | BK139: 0 | BL139: 0 | BM139: 0
E140: LW.0382kW.00220 | F140: LW.0382kW.00220 | G140: 4 | H140: 0 | I140: 0 | J140: 2 | K140: 2 | L140: 0 | M140: LW | N140: 382.4 | O140: 1 | P140: 0 | Q140: =G140-1 -> 3 | R140: 0 | S140: 0 | T140: 4 | U140: 2 | V140: 0 | W140: 0 | X140: 1 | Y140: 0 | Z140: 0 | AA140: 0 | AB140: 0 | AC140: 0 | AD140: 4 | AE140: 0 | AF140: 0 | AG140: 0 | AH140: 4 | AI140: 0 | AJ140: 1 | AK140: 0 | AL140: 0 | AM140: 0 | AN140: 0 | AO140: 0 | AP140: 0 | AQ140: 0 | AR140: 1 | AS140: =SUMPRODUCT(O140:AR140,$O$11:$AR$11) ->  | AT140: =SUMPRODUCT(H140:K140,$H$11:$K$11)+AS140 ->  | AU140: =H140 -> 0 | AY140: 1 | AZ140: 0 | BA140: 0 | BB140: 1 | BC140: 0 | BD140: 0 | BE140: 0 | BF140: 4 | BG140: 4 | BH140: 1 | BI140: 0 | BJ140: 1 | BK140: 0 | BL140: 0 | BM140: 0
E141: LW.0382kW.01030 | F141: LW.0382kW.01030 | G141: 4 | H141: 0 | I141: 1 | J141: 0 | K141: 3 | L141: 0 | M141: LW | N141: 382 | O141: 1 | P141: 0 | Q141: =G141-1 -> 3 | R141: 0 | S141: 1 | T141: 3 | U141: 2 | V141: 0 | W141: 0 | X141: 1 | Y141: 0 | Z141: 0 | AA141: 0 | AB141: 0 | AC141: 0 | AD141: 4 | AE141: 0 | AF141: 0 | AG141: 0 | AH141: 4 | AI141: 0 | AJ141: 1 | AK141: 0 | AL141: 0 | AM141: 0 | AN141: 0 | AO141: 0 | AP141: 0 | AQ141: 0 | AR141: 1 | AS141: =SUMPRODUCT(O141:AR141,$O$11:$AR$11) ->  | AT141: =SUMPRODUCT(H141:K141,$H$11:$K$11)+AS141 ->  | AU141: =H141 -> 0 | AY141: 1 | AZ141: 0 | BA141: 0 | BB141: 1 | BC141: 0 | BD141: 0 | BE141: 0 | BF141: 4 | BG141: 4 | BH141: 1 | BI141: 0 | BJ141: 1 | BK141: 0 | BL141: 0 | BM141: 0
E142: LW.0405kW.00130 | F142: LW.0405kW.00130 | G142: 4 | H142: 0 | I142: 0 | J142: 1 | K142: 3 | L142: 0 | M142: LW | N142: =SUMPRODUCT($H$10:$L$10,H142:L142) -> 405.2 | O142: 1 | P142: 0 | Q142: =G142-1 -> 3 | R142: 0 | S142: 0 | T142: 4 | U142: 2 | V142: 0 | W142: 0 | X142: 1 | Y142: 0 | Z142: 0 | AA142: 0 | AB142: 0 | AC142: 0 | AD142: 4 | AE142: 0 | AF142: 0 | AG142: 0 | AH142: 4 | AI142: 0 | AJ142: 1 | AK142: 0 | AL142: 0 | AM142: 0 | AN142: 0 | AO142: 0 | AP142: 0 | AQ142: 0 | AR142: 1 | AS142: =SUMPRODUCT(O142:AR142,$O$11:$AR$11) ->  | AT142: =SUMPRODUCT(H142:K142,$H$11:$K$11)+AS142 ->  | AU142: =H142 -> 0 | AY142: 1 | AZ142: 0 | BA142: 0 | BB142: 1 | BC142: 0 | BD142: 0 | BE142: 0 | BF142: 4 | BG142: 4 | BH142: 1 | BI142: 0 | BJ142: 1 | BK142: 0 | BL142: 0 | BM142: 0
E143: =M143&"."&TEXT(FLOOR(N143,1),"0000")&"kW."&H143&I143&J143&K143&L143 -> LW.0428kW.00040 | F143: =E143 -> LW.0428kW.00040 | G143: 4 | H143: 0 | I143: 0 | J143: 0 | K143: 4 | L143: 0 | M143: LW | N143: =SUMPRODUCT($H$10:$L$10,H143:L143) -> 428 | O143: 1 | P143: 0 | Q143: =G143-1 -> 3 | R143: 0 | S143: 0 | T143: 4 | U143: =IF(G143=2,1,IF(G143=4,2,0)) -> 2 | V143: =IF(G143=3,1,0) -> 0 | W143: 0 | X143: 1 | Y143: 0 | Z143: 0 | AA143: 0 | AB143: 0 | AC143: 0 | AD143: 4 | AE143: 0 | AF143: 0 | AG143: 0 | AH143: 4 | AI143: 0 | AJ143: 1 | AK143: 0 | AL143: 0 | AM143: 0 | AN143: 0 | AO143: 0 | AP143: 0 | AQ143: 0 | AR143: 1 | AS143: =SUMPRODUCT(O143:AR143,$O$11:$AR$11) ->  | AT143: =SUMPRODUCT(H143:K143,$H$11:$K$11)+AS143 ->  | AU143: =H143 -> 0 | AY143: 1 | AZ143: 0 | BA143: 0 | BB143: 1 | BC143: 0 | BD143: 0 | BE143: 0 | BF143: 4 | BG143: =G143 -> 4 | BH143: 1 | BI143: 0 | BJ143: 1 | BK143: 0 | BL143: 0 | BM143: 0
E147: 1 | F147: 2 | G147: 3 | H147: 4 | I147: 5 | J147: 6 | K147: 7 | L147: 8 | M147: 9 | N147: 10 | O147: 11 | P147: 12 | Q147: 13 | R147: 14 | S147: 15 | T147: 16 | U147: 17 | V147: 18 | W147: 19 | X147: 20 | Y147: 21 | Z147: 22 | AA147: 23 | AB147: 24 | AC147: 25 | AD147: 26 | AE147: 27 | AF147: 28 | AG147: 29 | AH147: 30 | AI147: 31 | AJ147: 32 | AK147: 33 | AL147: 34 | AM147: 35 | AN147: 36 | AO147: 37 | AP147: 38 | AQ147: 39
E150: Avec MCA 160 (importation de la BdD des Néerlandais) | N150: Colis | P150: EH651 | Q150: EH652 | R150: EH653 | S150: HC222 | T150: HC200 | U150: HC201 | V150: EH654 | W150: EH656 | X150: HC199 | Y150: EH663 | Z150: EH664 | AA150: EH670 | AB150: EH671 | AC150: HC256 | AD150: HC209 | AE150: HC210 | AF150: EH647 | AG150: EH648 | AH150: EH649 | AI150: HC215 | AJ150: EH650 | AK150: HC224 | AL150: HC216 | AM150: HC219 | AN150: EH669 | AO150: HC218 | AP150: ='Calcul dim par chaudière'!V149 -> HC223 | AQ150: ='Calcul dim par chaudière'!V150 -> HC206
N151: Prix | P151: 605.8 | Q151: 1137.5 | R151: 1442 | S151: 617.5 | T151: 1028.2 | U151: 1239.7 | V151: 304.9 | W151: 712.3 | X151: 189.1 | Y151: 116.7 | Z151: 193.1 | AA151: 46.5 | AB151: 65.2 | AC151: 714.5 | AD151: 647.7 | AE151: 893.1 | AF151: 89.2 | AG151: 86.6 | AH151: 79.8 | AI151: 237.6 | AJ151: 46.7 | AK151: 35.1 | AL151: 100 | AM151: 4.2 | AN151: 139.6 | AO151: 170.8 | AP151: ='Calcul dim par chaudière'!AA149 -> 141 | AQ151: ='Calcul dim par chaudière'!AA150 -> 167
N152: Référence | P152: 7637223 | Q152: 7665725 | R152: 7665728 | S152: 114311 | T152: 111712 | U152: 111714 | V152: 7633244 | W152: 7622701 | X152: 111703 | Y152: 7612941 | Z152: 7621566 | AA152: 7637077 | AB152: 7637088 | AC152: S101656 | AD152: 111788 | AE152: 111790 | AF152: 7613401 | AG152: 7611804 | AH152: 7631858 | AI152: 111067 | AJ152: 7622201 | AK152: 115269 | AL152: 111167 | AM152: 111807 | AN152: 7638518 | AO152: 112633 | AP152: ='Calcul dim par chaudière'!U149 -> 100013027 | AQ152: ='Calcul dim par chaudière'!U150 -> 100008701
N153: Puissance (80/60°C) | O153: DN nécessaire | P153: POMPE UPM XL GRUNDFOS 25-105 H180 | Q153: COLLECTEUR DN100-2 CHAUDIERES MCA 160 FR | R153: COLLECTEUR DN100-3 CHAUDIERES MCA 160 FR | S153: BOUTEILLE DE DÉCOUPLAGE DN65 < 350 kW | T153: BOUTEILLE DE DÉCOUPLAGE DN65 > 350 et < 460 kW | U153: BOUTEILLE DE DÉCOUPLAGE DN100 > 460 kW | V153: ADAPTATEUR DN100/DN65 | W153: RAC COLLEC L MCA 160 EH656 | X153: BRIDES PLEINES EAU DN100 | Y153: MONTANT-SUPPORT I MCA 160 | Z153: CHASSIS DE MONTAGE MCA 160 | AA153: RAIL DE MONTAGE MURAL 2 CHAUDIÈRES MCA 160 | AB153: RAIL DE MONTAGE MURAL 3 CHAUDIÈRES MCA 160 | AC153: FILTRE GAZ DN65 | AD153: COUDES DN65 | AE153: COUDES DN100 | AF153: ISOLATION COLLECTEUR MCA 160 | AG153: ISOLATION RACCORD MCA 160 | AH153: PLAQ ISOLATION AR | AI153: ISOLATION BOUTEILLE DE DÉCOUPLAGE | AJ153: ISOLATION ADAPTATEUR 100/65 | AK153: ISOLATION BOUTEILLE DE DÉCOUPLAGE < 350 kW | AL153: ISOLATION COUDES 90° | AM153: PIED RÉGLABLE | AN153: JEU DE CONTRE BRIDE A SOUDER DN65 | AO153: JEU DE CONTRE-BRIDES À SOUDER DN100 | AP153: ='Calcul dim par chaudière'!W149 -> SONDE DE DÉPART + DOIGT DE GANT-BOUTEILLE < 350 kW | AQ153: ='Calcul dim par chaudière'!W150 -> SONDE DE DÉPART + DOIGT DE GANT
D154: 1 | E154: =M154&"."&TEXT(FLOOR(N154,1),"0000")&"kW."&H154&I154&J154&K154&L154 -> LW.0304kW.00002 | F154: =E154 -> LW.0304kW.00002 | G154: 2 | H154: 0 | I154: 0 | J154: 0 | K154: 0 | L154: 2 | M154: LW | N154: =SUMPRODUCT($H$10:$L$10,H154:L154) -> 304.2 | O154: =IF(N154<460,"DN65","DN100") -> DN65 | P154: 2 | Q154: 1 | R154: 0 | S154: 1 | T154: 0 | U154: 0 | V154: 1 | W154: 2 | X154: 1 | Y154: 0 | Z154: 0 | AA154: 1 | AB154: 0 | AC154: 1 | AD154: 1 | AE154: 0 | AF154: 2 | AG154: 2 | AH154: 0 | AI154: 0 | AJ154: 1 | AK154: 1 | AL154: 1 | AM154: 0 | AN154: 1 | AO154: 0 | AP154: 1 | AQ154: 0
D155: 2 | E155: =M155&"."&TEXT(FLOOR(N155,1),"0000")&"kW."&H155&I155&J155&K155&L155 -> LW.0456kW.00003 | F155: LW.0456kW.00003 | G155: 3 | H155: 0 | I155: 0 | J155: 0 | K155: 0 | L155: 3 | M155: LW | N155: 456.3 | O155: DN65 | P155: 3 | Q155: 0 | R155: 1 | S155: 0 | T155: 1 | U155: 0 | V155: 1 | W155: 3 | X155: 1 | Y155: 0 | Z155: 0 | AA155: 0 | AB155: 1 | AC155: 1 | AD155: 1 | AE155: 0 | AF155: 3 | AG155: 3 | AH155: 0 | AI155: 1 | AJ155: 1 | AK155: 0 | AL155: 1 | AM155: 0 | AN155: 1 | AO155: 0 | AP155: 0 | AQ155: 1
D156: 3 | E156: =M156&"."&TEXT(FLOOR(N156,1),"0000")&"kW."&H156&I156&J156&K156&L156 -> LW.0608kW.00004 | F156: LW.0608kW.00004 | G156: 4 | H156: 0 | I156: 0 | J156: 0 | K156: 0 | L156: 4 | M156: LW | N156: 608.4 | O156: DN100 | P156: 4 | Q156: 2 | R156: 0 | S156: 0 | T156: 0 | U156: 1 | V156: 0 | W156: 4 | X156: 1 | Y156: 0 | Z156: 0 | AA156: 2 | AB156: 0 | AC156: 1 | AD156: 0 | AE156: 1 | AF156: 4 | AG156: 4 | AH156: 0 | AI156: 1 | AJ156: 0 | AK156: 0 | AL156: 1 | AM156: 0 | AN156: 0 | AO156: 1 | AP156: 0 | AQ156: 1
D157: 4 | E157: LV.0304kW.00002 | F157: LV.0304kW.00002 | G157: 2 | H157: 0 | I157: 0 | J157: 0 | K157: 0 | L157: 2 | M157: LV | N157: 304.2 | O157: DN65 | P157: 2 | Q157: 1 | R157: 0 | S157: 1 | T157: 0 | U157: 0 | V157: 1 | W157: 2 | X157: 1 | Y157: 3 | Z157: 2 | AA157: 0 | AB157: 0 | AC157: 1 | AD157: 1 | AE157: 0 | AF157: 2 | AG157: 2 | AH157: 2 | AI157: 0 | AJ157: 1 | AK157: 1 | AL157: 1 | AM157: 6 | AN157: 1 | AO157: 0 | AP157: 1 | AQ157: 0
D158: 5 | E158: LV.0456kW.00003 | F158: LV.0456kW.00003 | G158: 3 | H158: 0 | I158: 0 | J158: 0 | K158: 0 | L158: 3 | M158: LV | N158: 456.3 | O158: DN65 | P158: 3 | Q158: 0 | R158: 1 | S158: 0 | T158: 1 | U158: 0 | V158: 1 | W158: 3 | X158: 1 | Y158: 4 | Z158: 3 | AA158: 0 | AB158: 0 | AC158: 1 | AD158: 1 | AE158: 0 | AF158: 3 | AG158: 3 | AH158: 3 | AI158: 1 | AJ158: 1 | AK158: 0 | AL158: 1 | AM158: 8 | AN158: 1 | AO158: 0 | AP158: 0 | AQ158: 1
D159: 6 | E159: LV.0608kW.00004 | F159: LV.0608kW.00004 | G159: 4 | H159: 0 | I159: 0 | J159: 0 | K159: 0 | L159: 4 | M159: LV | N159: 608.4 | O159: DN100 | P159: 4 | Q159: 2 | R159: 0 | S159: 0 | T159: 0 | U159: 1 | V159: 0 | W159: 4 | X159: 1 | Y159: 5 | Z159: 4 | AA159: 0 | AB159: 0 | AC159: 1 | AD159: 0 | AE159: 1 | AF159: 4 | AG159: 4 | AH159: 4 | AI159: 1 | AJ159: 0 | AK159: 0 | AL159: 1 | AM159: 10 | AN159: 0 | AO159: 1 | AP159: 0 | AQ159: 1
D161: 7 | E161: =M161&"."&TEXT(FLOOR(N161,1),"0000")&"kW."&H161&I161&J161&K161&L161 -> LW.0192kW.10001 | F161: =E161 -> LW.0192kW.10001 | G161: 2 | H161: 1 | I161: 0 | J161: 0 | K161: 0 | L161: 1 | M161: LW | N161: =SUMPRODUCT($H$10:$L$10,H161:L161) -> 192.1 | O161: =IF(N161<460,"DN65","DN100") -> DN65
D162: 8 | E162: =M162&"."&TEXT(FLOOR(N162,1),"0000")&"kW."&H162&I162&J162&K162&L162 -> LV.0192kW.10001 | F162: LV.0192kW.10001 | G162: 2 | H162: 1 | I162: 0 | J162: 0 | K162: 0 | L162: 1 | M162: LV | N162: 192.1 | O162: =IF(N162<460,"DN65","DN100") -> DN65
D163: 9 | E163: LW.0213kW.01001 | F163: LW.0213kW.01001 | G163: 2 | H163: 0 | I163: 1 | J163: 0 | K163: 0 | L163: 1 | M163: LW | N163: 213.1 | O163: DN65
D164: 10 | E164: LV.0213kW.01001 | F164: LV.0213kW.01001 | G164: 2 | H164: 0 | I164: 1 | J164: 0 | K164: 0 | L164: 1 | M164: LV | N164: 213.1 | O164: DN65
D165: 11 | E165: LW.0232kW.20001 | F165: LW.0232kW.20001 | G165: 3 | H165: 2 | I165: 0 | J165: 0 | K165: 0 | L165: 1 | M165: LW | N165: 232.1 | O165: DN65
D166: 12 | E166: LV.0232kW.20001 | F166: LV.0232kW.20001 | G166: 3 | H166: 2 | I166: 0 | J166: 0 | K166: 0 | L166: 1 | M166: LV | N166: 232.1 | O166: DN65
D167: 13 | E167: LW.0236kW.00101 | F167: LW.0236kW.00101 | G167: 2 | H167: 0 | I167: 0 | J167: 1 | K167: 0 | L167: 1 | M167: LW | N167: 236.3 | O167: DN65
D168: 14 | E168: LV.0236kW.00101 | F168: LV.0236kW.00101 | G168: 2 | H168: 0 | I168: 0 | J168: 1 | K168: 0 | L168: 1 | M168: LV | N168: 236.3 | O168: DN65
D169: 15 | E169: LW.0253kW.11001 | F169: LW.0253kW.11001 | G169: 3 | H169: 1 | I169: 1 | J169: 0 | K169: 0 | L169: 1 | M169: LW | N169: 253.1 | O169: DN65
D170: 16 | E170: LV.0253kW.11001 | F170: LV.0253kW.11001 | G170: 3 | H170: 1 | I170: 1 | J170: 0 | K170: 0 | L170: 1 | M170: LV | N170: 253.1 | O170: DN65
D171: 17 | E171: LW.0259kW.00011 | F171: LW.0259kW.00011 | G171: 2 | H171: 0 | I171: 0 | J171: 0 | K171: 1 | L171: 1 | M171: LW | N171: 259.1 | O171: DN65
D172: 18 | E172: LV.0259kW.00011 | F172: LV.0259kW.00011 | G172: 2 | H172: 0 | I172: 0 | J172: 0 | K172: 1 | L172: 1 | M172: LV | N172: 259.1 | O172: DN65
D173: 19 | E173: LW.0272kW.30001 | F173: LW.0272kW.30001 | G173: 4 | H173: 3 | I173: 0 | J173: 0 | K173: 0 | L173: 1 | M173: LW | N173: 272.1 | O173: DN65
D174: 20 | E174: LV.0272kW.30001 | F174: LV.0272kW.30001 | G174: 4 | H174: 3 | I174: 0 | J174: 0 | K174: 0 | L174: 1 | M174: LV | N174: 272.1 | O174: DN65
D175: 21 | E175: LW.0274kW.02001 | F175: LW.0274kW.02001 | G175: 3 | H175: 0 | I175: 2 | J175: 0 | K175: 0 | L175: 1 | M175: LW | N175: 274.1 | O175: DN65
D176: 22 | E176: LV.0274kW.02001 | F176: LV.0274kW.02001 | G176: 3 | H176: 0 | I176: 2 | J176: 0 | K176: 0 | L176: 1 | M176: LV | N176: 274.1 | O176: DN65
D177: 23 | E177: LW.0276kW.10101 | F177: LW.0276kW.10101 | G177: 3 | H177: 1 | I177: 0 | J177: 1 | K177: 0 | L177: 1 | M177: LW | N177: 276.3 | O177: DN65
D178: 24 | E178: LV.0276kW.10101 | F178: LV.0276kW.10101 | G178: 3 | H178: 1 | I178: 0 | J178: 1 | K178: 0 | L178: 1 | M178: LV | N178: 276.3 | O178: DN65
D179: 25 | E179: LW.0293kW.21001 | F179: LW.0293kW.21001 | G179: 4 | H179: 2 | I179: 1 | J179: 0 | K179: 0 | L179: 1 | M179: LW | N179: 293.1 | O179: DN65
D180: 26 | E180: LV.0293kW.21001 | F180: LV.0293kW.21001 | G180: 4 | H180: 2 | I180: 1 | J180: 0 | K180: 0 | L180: 1 | M180: LV | N180: 293.1 | O180: DN65
D181: 27 | E181: LW.0297kW.01101 | F181: LW.0297kW.01101 | G181: 3 | H181: 0 | I181: 1 | J181: 1 | K181: 0 | L181: 1 | M181: LW | N181: 297.3 | O181: DN65
D182: 28 | E182: LV.0297kW.01101 | F182: LV.0297kW.01101 | G182: 3 | H182: 0 | I182: 1 | J182: 1 | K182: 0 | L182: 1 | M182: LV | N182: 297.3 | O182: DN65
D183: 29 | E183: LW.0299kW.10011 | F183: LW.0299kW.10011 | G183: 3 | H183: 1 | I183: 0 | J183: 0 | K183: 1 | L183: 1 | M183: LW | N183: 299.1 | O183: DN65
D184: 30 | E184: LV.0299kW.10011 | F184: LV.0299kW.10011 | G184: 3 | H184: 1 | I184: 0 | J184: 0 | K184: 1 | L184: 1 | M184: LV | N184: 299.1 | O184: DN65
D185: 31 | E185: LW.0314kW.12001 | F185: LW.0314kW.12001 | G185: 4 | H185: 1 | I185: 2 | J185: 0 | K185: 0 | L185: 1 | M185: LW | N185: 314.1 | O185: DN65
D186: 32 | E186: LV.0314kW.12001 | F186: LV.0314kW.12001 | G186: 4 | H186: 1 | I186: 2 | J186: 0 | K186: 0 | L186: 1 | M186: LV | N186: 314.1 | O186: DN65
D187: 33 | E187: LW.0316kW.20101 | F187: LW.0316kW.20101 | G187: 4 | H187: 2 | I187: 0 | J187: 1 | K187: 0 | L187: 1 | M187: LW | N187: 316.3 | O187: DN65
D188: 34 | E188: LV.0316kW.20101 | F188: LV.0316kW.20101 | G188: 4 | H188: 2 | I188: 0 | J188: 1 | K188: 0 | L188: 1 | M188: LV | N188: 316.3 | O188: DN65
D189: 35 | E189: LW.0320kW.01011 | F189: LW.0320kW.01011 | G189: 3 | H189: 0 | I189: 1 | J189: 0 | K189: 1 | L189: 1 | M189: LW | N189: 320.1 | O189: DN65
D190: 36 | E190: LW.0320kW.00201 | F190: LW.0320kW.00201 | G190: 3 | H190: 0 | I190: 0 | J190: 2 | K190: 0 | L190: 1 | M190: LW | N190: 320.5 | O190: DN65
D191: 37 | E191: LV.0320kW.01011 | F191: =E191 -> LV.0320kW.01011 | G191: 3 | H191: 0 | I191: 1 | J191: 0 | K191: 1 | L191: 1 | M191: LV | N191: =SUMPRODUCT($H$10:$L$10,H191:L191) -> 320.1 | O191: DN65
D192: 38 | E192: LV.0320kW.00201 | F192: LV.0320kW.00201 | G192: 3 | H192: 0 | I192: 0 | J192: 2 | K192: 0 | L192: 1 | M192: LV | N192: 320.5 | O192: DN65
D193: 39 | E193: LW.0335kW.03001 | F193: LW.0335kW.03001 | G193: 4 | H193: 0 | I193: 3 | J193: 0 | K193: 0 | L193: 1 | M193: LW | N193: 335.1 | O193: DN65
D194: 40 | E194: LV.0335kW.03001 | F194: LV.0335kW.03001 | G194: 4 | H194: 0 | I194: 3 | J194: 0 | K194: 0 | L194: 1 | M194: LV | N194: 335.1 | O194: DN65
D195: 41 | E195: LW.0337kW.11101 | F195: LW.0337kW.11101 | G195: 4 | H195: 1 | I195: 1 | J195: 1 | K195: 0 | L195: 1 | M195: LW | N195: 337.3 | O195: DN65
D196: 42 | E196: LV.0337kW.11101 | F196: LV.0337kW.11101 | G196: 4 | H196: 1 | I196: 1 | J196: 1 | K196: 0 | L196: 1 | M196: LV | N196: 337.3 | O196: DN65
D197: 43 | E197: LW.0339kW.20011 | F197: LW.0339kW.20011 | G197: 4 | H197: 2 | I197: 0 | J197: 0 | K197: 1 | L197: 1 | M197: LW | N197: 339.1 | O197: DN65
D198: 44 | E198: LV.0339kW.20011 | F198: LV.0339kW.20011 | G198: 4 | H198: 2 | I198: 0 | J198: 0 | K198: 1 | L198: 1 | M198: LV | N198: 339.1 | O198: DN65
D199: 45 | E199: LW.0344kW.10002 | F199: LW.0344kW.10002 | G199: 3 | H199: 1 | I199: 0 | J199: 0 | K199: 0 | L199: 2 | M199: LW | N199: 344.2 | O199: DN65
D200: 46 | E200: LV.0344kW.10002 | F200: LV.0344kW.10002 | G200: 3 | H200: 1 | I200: 0 | J200: 0 | K200: 0 | L200: 2 | M200: LV | N200: 344.2 | O200: DN65
D201: 47 | E201: LW.0343kW.00111 | F201: LW.0343kW.00111 | G201: 3 | H201: 0 | I201: 0 | J201: 1 | K201: 1 | L201: 1 | M201: LW | N201: 343.3 | O201: DN65
D202: 48 | E202: LV.0343kW.00111 | F202: LV.0343kW.00111 | G202: 3 | H202: 0 | I202: 0 | J202: 1 | K202: 1 | L202: 1 | M202: LV | N202: 343.3 | O202: DN65
D203: 49 | E203: LW.0358kW.02101 | F203: LW.0358kW.02101 | G203: 4 | H203: 0 | I203: 2 | J203: 1 | K203: 0 | L203: 1 | M203: LW | N203: 358.3 | O203: DN65
D204: 50 | E204: LV.0358kW.02101 | F204: LV.0358kW.02101 | G204: 4 | H204: 0 | I204: 2 | J204: 1 | K204: 0 | L204: 1 | M204: LV | N204: 358.3 | O204: DN65
D205: 51 | E205: LW.0360kW.11011 | F205: LW.0360kW.11011 | G205: 4 | H205: 1 | I205: 1 | J205: 0 | K205: 1 | L205: 1 | M205: LW | N205: 360.1 | O205: DN65
D206: 52 | E206: LW.0360kW.10201 | F206: LW.0360kW.10201 | G206: 4 | H206: 1 | I206: 0 | J206: 2 | K206: 0 | L206: 1 | M206: LW | N206: 360.5 | O206: DN65
D207: 53 | E207: LV.0360kW.11011 | F207: LV.0360kW.11011 | G207: 4 | H207: 1 | I207: 1 | J207: 0 | K207: 1 | L207: 1 | M207: LV | N207: 360.1 | O207: DN65
D208: 54 | E208: LV.0360kW.10201 | F208: LV.0360kW.10201 | G208: 4 | H208: 1 | I208: 0 | J208: 2 | K208: 0 | L208: 1 | M208: LV | N208: 360.5 | O208: DN65
D209: 55 | E209: LW.0365kW.01002 | F209: LW.0365kW.01002 | G209: 3 | H209: 0 | I209: 1 | J209: 0 | K209: 0 | L209: 2 | M209: LW | N209: 365.2 | O209: DN65
D210: 56 | E210: LV.0365kW.01002 | F210: LV.0365kW.01002 | G210: 3 | H210: 0 | I210: 1 | J210: 0 | K210: 0 | L210: 2 | M210: LV | N210: 365.2 | O210: DN65
... 54 more rows

Sheet References (hidden)
B2: DESIGNATION | D2: REFERENCE
D3: Deutsch | E3: English | F3: Español | G3: Français | H3: Italiano | I3: Polsky | J3: Русский | K3: Nederlands | L3: Other
B5: SONDE DE DÉPART + DOIGT DE GANT | C5: 100008701 | G5: 100008701
B6: SONDE DE DÉPART + DOIGT DE GANT-BOUTEILLE < 350 kW | C6: 100013027 | G6: 100013027
B7: CABLE DE LIAISON INTER-MODULE RX 11 | C7: 88017836 | G7: 88017836
B8: POMPE CHAUFFAGE 3 VITESSES POUR MC 45 | C8: S101614 | G8: S101614
B9: POMPE CHAUFFAGE 3 VITESSES POUR MC 65 | C9: S101614 | G9: S101614
B10: POMPE CHAUFFAGE 3 VITESSES POUR MC 90 | C10: 7608398 | G10: 7608398
B11: COLLECTEUR DN65 - 2 CHAUDIÈRES | C11: 110968 | G11: 110968
B12: COLLECTEUR DN65 - 3 CHAUDIÈRES | C12: 110967 | G12: 110967
B13: COLLECTEUR DN65 - 4 CHAUDIÈRES | C13: 110966 | G13: 110966
B14: BOUTEILLE DE DÉCOUPLAGE DN65 > 350 et < 460 kW | C14: 111712 | G14: 111712
B15: BOUTEILLE DE DÉCOUPLAGE DN65 < 350 kW | C15: 114311 | G15: 114311
B16: COLLECTEUR DN100 - 2 CHAUDIÈRES | C16: 110961 | G16: 110961
B17: COLLECTEUR DN100 - 3 CHAUDIÈRES | C17: 110960 | G17: 110960
B18: COLLECTEUR DN100 - 4 CHAUDIÈRES | C18: 110954 | G18: 110954
B19: BOUTEILLE DE DÉCOUPLAGE DN100 | C19: 111714 | G19: 111714
B20: KIT DE RACCORDEMENT AVANT FR + BE | C20: 111022 | G20: 111022
B21: KIT DE RACC. POUR MONTAGE ARRIÈRE | C21: 111037 | G21: 111037
B23: JEU DE BOUCHONS | C23: 111708 | G23: 111708
B24: BRIDE PLEINE GAZ DN50 | C24: 111698 | G24: 111698
B25: BRIDES PLEINES EAU DN65 | C25: 111701 | G25: 111701
B26: BRIDE PLEINE GAZ DN65 | C26: 111699 | G26: 111699
B27: BRIDES PLEINES EAU DN100 | C27: 111703 | G27: 111703
B28: MONTANT-SUPPORT L | C28: 110948 | G28: 110948
B29: MONTANT-SUPPORT I | C29: 110950 | G29: 110950
B30: CHASSIS DE MONTAGE | C30: 110496 | G30: 110496
B31: RAIL DE MONTAGE MURAL 2 CHAUDIÈRES | C31: 111688 | G31: 111688
B32: RAIL DE MONTAGE MURAL 3 CHAUDIÈRES | C32: 111689 | G32: 111689
B33: RAIL DE MONTAGE MURAL 4 CHAUDIÈRES | C33: 111690 | G33: 111690
B35: ADAPTATEUR Ø 80 - 100 MM | C35: 84887768 | G35: 84887768
B36: CLAPET FUMEES MOTORISE | C36: 100002685 | G36: 100002685
B37: COMMANDE EXTERNE ALARME VANNE | C37: 100003347 | G37: 100003347
B38: VANNE DES SECURITE GAZ DN50 | C38: 114418 | G38: 114418
B39: FILTRE GAZ DN50 | C39: 111779 | G39: 111779
B40: VANNE DES SECURITE GAZ DN65 | C40: 114419 | G40: 114419
B41: FILTRE GAZ DN65 | C41: 111780 | G41: 111780
B42: COUDES DN65 | C42: 111788 | G42: 111788
B43: COUDES DN100 | C43: 111790 | G43: 111790
B44: TUBE RALLONGE POUR FILTRE GAZ DN50 | C44: 111805 | G44: 111805
B45: TUBE RALLONGE POUR FILTRE GAZ DN65 | C45: 111806 | G45: 111806
B46: ISOLATION COLLECTEUR | C46: 111069 | G46: 111069
B47: ISOLATION RACCORDEMENT CHAUDIÈRE | C47: 111920 | G47: 111920
B48: ISOLATION BOUTEILLE DE DÉCOUPLAGE | C48: 111067 | G48: 111067
B49: ISOLATION BOUTEILLE DE DÉCOUPLAGE < 350 kW | C49: 115269 | G49: 115269
B50: ISOLATION COUDES 90°C | C50: 111167 | G50: 111167
B51: PIED RÉGLABLE | C51: 111807 | G51: 111807
B52: JEU DE CONTRE-BRIDES À SOUDER DN65 | C52: 112632 | G52: 112632
B53: JEU DE CONTRE-BRIDES À SOUDER DN100 | C53: 112633 | G53: 112633
B55: CHASSIS DE MONTAGE | C55: 110496 | G55: 110496
B56: MONTANT-SUPPORT L | C56: 110948 | G56: 110948
B57: MONTANT-SUPPORT I | C57: 110950 | G57: 110950
B58: COLLECTEUR DN65 - 4 CHAUDIÈRES | C58: 110966 | G58: 110966
B59: COLLECTEUR DN65 - 3 CHAUDIÈRES | C59: 110967 | G59: 110967
B60: COLLECTEUR DN65 - 2 CHAUDIÈRES | C60: 110968 | G60: 110968
B61: COLLECTEUR DN100 - 3 CHAUDIÈRES | C61: 110960 | G61: 110960
B62: COLLECTEUR DN100 - 2 CHAUDIÈRES | C62: 110961 | G62: 110961
B63: COLLECTEUR DN100 - 4 CHAUDIÈRES | C63: 110954 | G63: 110954
B64: RAIL DE MONTAGE MURAL 2 CHAUDIÈRES | C64: 111688 | G64: 111688
B65: RAIL DE MONTAGE MURAL 3 CHAUDIÈRES | C65: 111689 | G65: 111689
B66: RAIL DE MONTAGE MURAL 4 CHAUDIÈRES | C66: 111690 | G66: 111690
B67: JEU DE BOUCHONS | C67: 111708 | G67: 111708
B68: BRIDE PLEINE GAZ DN50 | C68: 111698 | G68: 111698
B69: BRIDE PLEINE GAZ DN65 | C69: 111699 | G69: 111699
B70: BRIDES PLEINES EAU DN65 | C70: 111701 | G70: 111701
B71: BRIDES PLEINES EAU DN100 | C71: 111703 | G71: 111703
B72: BOUTEILLE DE DÉCOUPLAGE DN65 < 350 kW | C72: 114311 | G72: 114311
B73: BOUTEILLE DE DÉCOUPLAGE DN65 > 350 et < 460 kW | C73: 111712 | G73: 111712
B74: BOUTEILLE DE DÉCOUPLAGE DN100 | C74: 111714 | G74: 111714
B75: KIT DE RACCORDEMENT AVANT FR + BE | C75: 111022 | G75: 111022
B76: KIT DE RACC. POUR MONTAGE ARRIÈRE | C76: 111037 | G76: 111037
B77: MANCHON D'ADAPTATION POUR POMPE MC35E | C77: 111088 | G77: 111088
B78: POMPE CHAUFFAGE 3 VITESSES POUR MC 45 | C78: S101614 | G78: S101614
B79: POMPE CHAUFFAGE 3 VITESSES POUR MC 65 | C79: S101614 | G79: S101614
B80: POMPE CHAUFFAGE 3 VITESSES POUR MC 90 | C80: 7608398 | G80: 7608398
B81: SONDE DE DÉPART + DOIGT DE GANT-BOUTEILLE < 350 kW | C81: 100013027 | G81: 100013027
B82: SONDE DE DÉPART + DOIGT DE GANT | C82: 100008701 | G82: 100008701
B83: CABLE DE LIAISON INTER-MODULE RX 11 | C83: 88017836 | G83: 88017836
B85: FILTRE GAZ DN50 | C85: 111779 | G85: 111779
B86: FILTRE GAZ DN65 | C86: 111780 | G86: 111780
B87: COUDES DN65 | C87: 111788 | G87: 111788
B88: COUDES DN100 | C88: 111790 | G88: 111790
B89: TUBE RALLONGE POUR FILTRE GAZ DN50 | C89: 111805 | G89: 111805
B90: TUBE RALLONGE POUR FILTRE GAZ DN65 | C90: 111806 | G90: 111806
B91: ISOLATION COLLECTEUR | C91: 111069 | G91: 111069
B92: ISOLATION RACCORDEMENT CHAUDIÈRE | C92: 111920 | G92: 111920
B93: ISOLATION BOUTEILLE DE DÉCOUPLAGE < 350 kW | C93: 115269 | G93: 115269
B94: ISOLATION BOUTEILLE DE DÉCOUPLAGE | C94: 111067 | G94: 111067
B95: ISOLATION COUDES 90°C | C95: 111167 | G95: 111167
B96: JEU DE CONTRE-BRIDES À SOUDER DN65 | C96: 112632 | G96: 112632
B97: JEU DE CONTRE-BRIDES À SOUDER DN100 | C97: 112633 | G97: 112633
B98: PIED RÉGLABLE | C98: 111807 | G98: 111807
B99: COMMANDE EXTERNE ALARME VANNE | C99: 100003347 | G99: 100003347
B100: CLAPET FUMEES MOTORISE | C100: 100002685 | G100: 100002685
B101: ADAPTATEUR Ø 80 - 100 MM | C101: 84887768 | G101: 84887768
B103: KIT ISPESL DN65 | C103: 116675 | G103: 116675
B104: KIT ISPESL DN100 | C104: 116741 | G104: 116741

Sheet Language (hidden)
A2: N°
A3: 1 | B3: Français | C3: Deutsch | D3: English | E3: Español | F3: Italiano | G3: Polsky | H3: Русский | I3: Nederlands | J3: Other | K3: Langues
A4: 2 | B4: Détermination et chiffrage des systèmes cascade | C4: Bestimmung und Bestelldaten der Kaskaden-Système | D4: Determination and calculation of cascade systems | E4: Determinación y cálculo de los sistemas de cascada | F4: Determinazione e cifratura dei sistemi cascata | G4: Określenie i ocena liczbowa systemów kaskadowych | H4: Определение и расчет каскадных систем | I4: Bepaling en calculatie van de cascadesystemen
A5: 3 | B5: Pour MC 45, 65, 90 et 115 | C5: Für MC 45, 65, 90 und 115 | D5: For MC 45, 65, 90 and 115 | E5: Para MC 45, 65, 90 y 115 | F5: Per MC 45, 65, 90 e 115 | G5: Dla urządzeń MC 45, 65, 90 oraz 115 | H5: Для MC 45, 65, 90 и 115 | I5: Voor MC 45, 65, 90 en 115
A6: 4 | B6: PRIX DU SYSTEME CASCADE | C6: GESAMTPREIS DES KASKADENSYSTEMS | D6: TOTAL PRICE OF THE CASCADE SYSTEM | E6: PRECIO TOTAL DEL SISTEMA DE CASCADA | F6: PREZZO TOTALE DEL SISTEMA CASCATA | G6: CAŁKOWITA CENA SYSTEMU KASKADOWEGO | H6: ИТОГОВАЯ ЦЕНА КАСКАДНОЙ СИСТЕМЫ | I6: TOTAALPRIJS VAN HET CASCADESYSTEEM
A7: 5 | B7: PRIX TOTAL DU SYSTEME CASCADE AVEC CHAUDIERES | C7: GESAMTPREIS DES KASKADENSYSTEMS MIT HEIZKESSELN | D7: TOTAL PRICE OF THE CASCADE SYSTEM WITH BOILERS | E7: PRECIO TOTAL DEL SISTEMA DE CASCADA CON CALDERAS | F7: PREZZO TOTALE DEL SISTEMA CASCATA CON CALDAIE | G7: CALKOWITA CENA SYSTEMU KASKADOWEGO Z KOTŁAMI | H7: ИТОГОВАЯ ЦЕНА КАСКАДНОЙ СИСТЕМЫ С КОТЛАМИ | I7: TOTAALPRIJS VAN HET CASCADESYSTEEM MET VERWARMINGSKETELS
A8: 6 | B8: PRIX TOTAL ACCESSOIRES | C8: GESAMTPREIS ZUBEHÖR | D8: TOTAL PRICE ACCESSORIES | E8: PRECIO TOTAL DE LOS ACCESORIOS | F8: PREZZO TOTALE ACCESSORI | G8: CAŁKOWITA CENA CZĘŚCI | H8: ИТОГОВАЯ ЦЕНА ДОПОЛНИТЕЛЬНОГО ОБОРУДОВАНИЯ | I8: TOTAALPRIJS ACCESSOIRES
A9: 7 | B9: Version 02/2011 | C9: Version 11/2009 | D9: Version 11/2009 | E9: Versión 11/2009 | F9: Versione Agosto 2009 | G9: Wersja z Sierpień 2009 | H9: Версия : 11/2009 | I9: Versie Augustus 2009
A10: 8 | B10: Identification de l'étude | C10: Bezeichnung der Analyse | D10: Identification of the study | E10: Identificación del estudio | F10: Identificazione dello studio | G10: Identyfikacja projektu | H10: Идентификация расчета | I10: Identificatie rapportage
A11: 9 | B11: Référence | C11: Referenz | D11: Reference | E11: Referencia | F11: Articolo | G11: Oznaczenie | H11: Описание объекта | I11: Referentie
A12: 10 | B12: Données | C12: Daten | D12: Data | E12: Datos | F12: Dati | G12: Dane | H12: Вводимые данные | I12: Gegevens
A13: 11 | B13: Puisance de l'installation (kW) | C13: Wärmeleistung der Installation (in kW) | D13: Output of the installation (kW) | E13: Potencia de la instalación (kW) | F13: Potenza dell’impianto (kW) | G13: Moc instalacji (kW) | H13: Мощность установки (кВт) | I13: Vermogen van de installatie (kW)
A14: 12 | B14: Intervalle autorisé (+/- … kW) | C14: Zulässiges Intervall (+/- … kW) | D14: Gap permitted (+/- … kW) | E14: Intervalo autorizado (+/- … kW) | F14: Intervallo autorizzato (+/- … kW) | G14: Dopuszczalny przedział (+/- … kW) | H14: Разрешенный диапазон (+/- ... кВт) | I14: Toegestane interval (+/- … kW)
A15: 13 | B15: Nombre de chaudières | C15: Anzahl Heizkessel | D15: Number of boilers | E15: Número de calderas | F15: Numero di caldaie | G15: Liczba kotłów | H15: Количество котлов | I15: Aantal verwarmingsketels
A16: 14 | B16: Alignement de la cascade | C16: Anordnung der Kaskade | D16: Alignment of the cascade | E16: Alineación de la cascada | F16: Allineamento della cascata | G16: Wyrównanie kaskady | H16: Расположение в каскаде | I16: Uitlijning van de cascade
A17: 15 | B17: Système cascade | C17: Kaskadensystem | D17: Cascade system | E17: Sistema de cascada | F17: Sistema cascata | G17: System kaskadowy | H17: Каскадная система | I17: Cascadesysteem
A18: 16 | B18: Attention ! Lorsque vous modifiez une des sélections, il faut toujours revalider les suivantes ! | C18: Achtung! Wenn einer der Werte geändert wird, müssen die anderen Werte erneut bestätigt werden! | D18: NB! When you change one of the selections, you must always revalidate the next ones! | E18: Atención! si modifica alguna de las opciones seleccionadas, siempre hay que volver a validar las siguientes! | F18: Attenzione! Quando modificate una delle selezioni, bisogna sempre confermare quelle successive! | G18: Uwaga! Jeżeli zmieniasz jedną w wybranych wartości, należy zatwierdzić następne wartości! | H18: Внимание! При изменении выбора всегда изменять следующие значения! | I18: Let op! Wanneer u één van de selecties wijzigt, moet u altijd de volgende opnieuw valideren!
A19: 17 | B19: Nb chaudières ! | C19: Anzahl Heizkessel! | D19: Number boilers! | E19: N.º calderas | F19: N° caldaie! | G19: Licz kotłów! | H19: Количество котлов | I19: Aant. verwarmingsketels!
A20: 18 | B20: Solution De Dietrich | C20: De Dietrich-Lösung | D20: De Dietrich Solution | E20: Solución De Dietrich | F20: Soluzione De Dietrich | G20: Rozwiązanie De Dietrich | H20: Решение De Dietrich | I20: Oplossing De Dietrich
A21: 19 | B21: Solution De Dietrich (suite) | C21: De Dietrich-Lösung (Fortsetzung) | D21: De Dietrich Solution (contd.) | E21: Solución De Dietrich (cont.) | F21: Soluzione De Dietrich (segue) | G21: Rozwiązanie De Dietrich (ciąg dalszy) | H21: Решение De Dietrich (продолжение) | I21: Oplossing De Dietrich (vervolg)
A22: 20 | B22: Désignation | C22: Bezeichnung | D22: Description | E22: Denominación | F22: Designazione | G22: Nazwa | H22: Наименование | I22: Benaming
A23: 21 | B23: Puissance (kW) | C23: Leistung (kW) | D23: Output (kW) | E23: Potencia (kW) | F23: Potenza (kW) | G23: Moc (kW) | H23: Мощность (кBт) | I23: Vermogen (kW)
A24: 22 | B24: Nombre de chaudières | C24: Anzahl Heizkessel | D24: Number of boilers | E24: Número de calderas | F24: Numero di caldaie | G24: Liczba kotłów | H24: Количество котлов | I24: Aantal verwarmingsketels
A25: 23 | B25: Type de chaudières | C25: Heizkesseltypen | D25: Type of boilers | E25: Tipo de calderas | F25: Tipo di caldaie | G25: Rodzaj kotłów | H25: Тип котлов | I25: Type verwarmingsketels
A26: 24 | B26: MCA 45 | C26: MC 45 | D26: MC 45 | E26: MC 45 | F26: MC 45 | G26: MC 45 | H26: MC 45 | I26: MC 45
A27: 25 | B27: MCA 65 | C27: MC 65 | D27: MC 65 | E27: MC 65 | F27: MC 65 | G27: MC 65 | H27: MC 65 | I27: MC 65
A28: 26 | B28: MCA 90 | C28: MC 90 | D28: MC 90 | E28: MC 90 | F28: MC 90 | G28: MC 90 | H28: MC 90 | I28: MC 90
A29: 27 | B29: MCA 115 | C29: MC 115 | D29: MC 115 | E29: MC 115 | F29: MC 115 | G29: MC 115 | H29: MC 115 | I29: MC 115
A30: 28 | B30: Prix système cascade seul | C30: Preis Kaskadensystem einzeln | D30: Price cascade system only | E30: Precio del sistema de cascada solo | F30: Prezzo del solo sistema cascata | G30: Cena pojedynczego systemu kaskadowego | H30: Цена только каскадной системы | I30: Prijs los cascadesysteem
A31: 29 | B31: Prix système cascade avec chaudières | C31: Preis Kaskadensystem mit Heizkesseln | D31: Price cascade system with boilers | E31: Precio del sistema de cascada con calderas | F31: Prezzo sistema cascata con caldaie | G31: Cena systemu kaskadowego z kotłami | H31: Цена каскадной системы с котлами | I31: Prijs cascadesysteem met verwarmingsketels
A32: 30 | B32: en € | C32: Netto in € | D32: Excl VAT in € | E32: Antes de impuestos en € | F32: Iva Esclusa in € | G32: Ceny netto wyrażone w euro | H32: €, без НДС | I32: exclusief B.T.W. in €
A33: 31 | B33: Solution sélectionnée | C33: Gewählte Lösung | D33: Solution selected | E33: Solución seleccionada | F33: Soluzione scelta | G33: Wybrane rozwiązanie | H33: Выбранное решение | I33: Geselecteerde oplossing
A34: 32 | B34: Qtté | C34: Menge | D34: Qty | E34: Ctd. | F34: Q.tà | G34: Ilość | H34: Кол-во | I34: Aant
A35: 33 | B35: Prix unitaire | C35: Preis pro Einheit | D35: Unit price | E35: Precio unitario | F35: Prezzo unitario | G35: Cena jednostkowa | H35: Цена за единицу | I35: Eenheidsprijs
A36: 34 | B36: Prix total | C36: Gesamtpreis | D36: Total price | E36: Precio total | F36: Prezzo totale | G36: Cena całkowita | H36: Итоговая цена | I36: Totaalprijs
A37: 35 | B37: Référence | C37: Art.-Nr. | D37: Reference | E37: Referencia | F37: Articolo | G37: Oznaczenie | H37: Позиция | I37: Referentie
A38: 36 | B38: Désignation | C38: Bezeichnung | D38: Description | E38: Denominación | F38: Designazione | G38: Nazwa | H38: Наименование | I38: Benaming
A39: 37 | B39: Système | C39: System | D39: System | E39: Sistema | F39: Sistema | G39: System | H39: Система | I39: Systeem
A40: 38 | B40: Accessoires | C40: Zubehör | D40: Accessories | E40: Accesorios | F40: Accessori | G40: Narzędzia | H40: Доп. оборудование | I40: Accessoires
A41: 39 | B41: Composition | C41: Aufbau | D41: Composition | E41: Composición | F41: Composizione | G41: Elementy | H41: Состав | I41: Samenstelling
A42: 40 | B42: du système cascade | C42: des Kaskadensystems | D42: of the cascade system | E42: del sistema de cascada | F42: del sistema cascata | G42: systemu kaskadowego | H42: каскадной системы | I42: van het cascadesysteem
A43: 41 | B43: mural "LW" | C43: Wand "LW" | D43: wall-hung "LW" | E43: mural "LW" | F43: murale "LW" | G43: ścienny „LW” | H43: настенное "LW" | I43: wand "LW"
A44: 42 | B44: sol "LV" | C44: Boden "LV" | D44: floor-standing "LV" | E44: suelo "LV" | F44: pavimento "LV" | G44: podłogowy „LV” | H44: напольное "LV" | I44: vloer "LV"
A45: 43 | B45: dos à dos "RG" | C45: Rücken an Rücken "RG" | D45: back to back "RG" | E45: espalda con espalda “RG” | F45: dorso a dorso "RG" | G45: przytwierdzony zewnętrzną stroną „RG” | H45: сдвоенное "RG" | I45: rug tegen rug "RG"
A46: 44 | B46: * Pour installation en cascade sous pression | C46: * Für unter Druck stehende Kaskadensysteme | D46: * For pressurised installation in cascade | E46: * Para instalación en cascada a presión | F46: * Per installazione a cascata sotto pressione | G46: * W przypadku instalacji kaskadowej pod ciśnieniem | H46: * Для каскадной установки под давлением | I46: * Voor cascade-installatie onder druk
A47: 45 | B47: Code à rappeler lors de la commande. | C47: Kode zu errinern während der Bestellung. | D47: Code to be reminded during the order. | E47: Código que debe darse al efectuar el pedido | F47: Codice da precisare al momento dell'ordine | H47: Повторить код во время заказа
A48: 46 | B48: Marché | C48: Markt | D48: Market | E48: Mercado | F48: Mercato | H48: Рынок
A49: 47 | B49: Puissance (80/60°C) | C49: Leistung (80/60°C) | D49: Output (80/60°C) | E49: Potencia (80/60°C) | F49: Potenza (80/60°C) | G49: Moc (80/60°C) | H49: Мощность (80/60°C) | I49: Vermogen (80/60°C)
A50: 48 | B50: Support | C50: Halter | D50: Supports | E50: Soportes | F50: Supporto | G50: Wsporniki | H50: Опора | I50: Houders
A51: 49 | B51: _ | C51: _ | D51: _ | E51: _ | F51: _ | G51: _ | H51: _ | I51: _ | J51: _
A52: 50 | B52: Régulation | C52: Regelung | D52: Control system | E52: Regulación | F52: Regolazione | G52: Regulacja | H52: Панель управления | I52: Afregeling
A53: 51 | B53: Hydraulique | C53: Hydraulisch | D53: Hydraulic | E53: Hidráulica | F53: Idraulica | G53: Hydrauliczny | H53: Гидравлика | I53: Hydraulisch
A54: 52 | B54: DESIGNATION | C54: BEZEICHNUNG | D54: DESCRIPTION | E54: DENOMINACIÓN | F54: DENOMINAZIONE | G54: BEZEICHNUNG | H54: ОБОЗНАЧЕНИЕ
A55: 53 | B55: COLIS | C55: KOLLI | D55: PACKAGE | E55: BULTO | F55: COLLO | G55: KOLLI | H55: Ед. поставки
A56: 54 | B56: PRIX | C56: PREIS | D56: PRICE | E56: PRECIO | F56: PREZZO | G56: PREIS | H56: ПРАЙС-ЛИСТ
A57: 55 | B57: Merci de spécifier le marché de destination de ce logiciel | C57: Bitte angeben fûr welchen Markt diese software bestimmt ist. | D57: Please specify the destination market of this software | E57: Gracias por especificar el mercado de destino de este software | F57: Specificare che mercato è destinario da questo software. | H57: Необохдимо выбрать целевой рынок для данного ПО
A58: 56 | B58: Vérifiez les données (tarif, calcul, …) | C58: Überprüfen Sie die Daten (Tarif, Berechnung, usw.) | D58: Check the data (tariff, calculation, etc.) | E58: Compruebe los datos (tarifa, cálculo, …) | F58: Controllare i dati (listino, calcolo,…) | G58: Sprawdź dane (ceny, obliczenie, …) | H58: Проверить данные (цены, расчет, …) | I58: Controleer de gegevens (tarief, berekening, …)
A59: 57 | B59: H.T. en € | C59: ohne MwSt. In € | D59: EXCL VAT in € | E59: antes de impuestos en € | F59: IVA esclusa in Euro | G59: ceny netto wyrażone w euro | H59: €, без НДС | I59: excl. B.T.W. in €
D61: PRIX

Sheet Price List (hidden)
A1: N°Article | B1: Désignation | C1: Colis | D1: Tarif HT au 01/04/2020 | X1: Colis | Y1: Désignation | Z1: N°Article | AA1: Tarif HT au 01/04/2020 | AB1: Tarif HT au 01/04/2020
A4: LA LEGISLATION IMPOSE UNE ECO-PARTICIPATION AFIN D'ORGANISER SUR LE TERRITOIRE NATIONAL LA COLLECTE ET | Z4: LA LEGISLATION IMPOSE UNE ECO-PARTICIPATION AFIN D'ORGANISER SUR LE TERRITOIRE NATIONAL LA COLLECTE ET
A5: LE RECYCLAGE DE CERTAINS PRODUITS ELECTRIQUES ET ELECTRONIQUES D'EQUIPEMENTS DE LA MAISON . CELA SIGNIFIE QUE LE | Z5: LE RECYCLAGE DE CERTAINS PRODUITS ELECTRIQUES ET ELECTRONIQUES D'EQUIPEMENTS DE LA MAISON . CELA SIGNIFIE QUE LE
A6: CONSOMMATEUR POURRA DEMANDER AU PROFESSIONNEL LA REPRISE DE L'ANCIEN MATERIEL CONTRE L'ACHAT D'UN NOUVEL | Z6: CONSOMMATEUR POURRA DEMANDER AU PROFESSIONNEL LA REPRISE DE L'ANCIEN MATERIEL CONTRE L'ACHAT D'UN NOUVEL
A7: EQUIPEMENT DE MEME NATURE , SELON LE PRINCIPE DE << UN >> POUR << UN >> . | Z7: EQUIPEMENT DE MEME NATURE , SELON LE PRINCIPE DE << UN >> POUR << UN >> .
A8: LES PRODUITS ELIGIBLES SONT REPERTORIES SUR LE SITE OFFICIEL : www.eco-systemes.fr | Z8: LES PRODUITS ELIGIBLES SONT REPERTORIES SUR LE SITE OFFICIEL : www.eco-systemes.fr
A9: ET APPARAISSENT DANS NOTRE TARIF AVEC UN MONTANT HT D'ECO-PARTICIPATION | Z9: ET APPARAISSENT DANS NOTRE TARIF AVEC UN MONTANT HT D'ECO-PARTICIPATION
A10: * TOUT MONTANT D'ECO PARTICIPATION EST SUSCEPTIBLE D'EVOLUER EN CAS DE MODIFICATION DU BAREME PAR NOTRE ORGANISME COLLECTEUR | Z10: * TOUT MONTANT D'ECO PARTICIPATION EST SUSCEPTIBLE D'EVOLUER EN CAS DE MODIFICATION DU BAREME PAR NOTRE ORGANISME COLLECTEUR
A16: 100017617 | B16: OTWH 200 E | C16: EH195 | D16: 2464 | X16: EH195 | Y16: OTWH 200 E | Z16: 100017617 | AA16: 2464 | AB16: 2464
A17: 100017618 | B17: OTWH 300 E | C17: EH196 | D17: 2583 | X17: EH196 | Y17: OTWH 300 E | Z17: 100017618 | AA17: 2583 | AB17: 2583
A18: 100017619 | B18: OTWH 300 EH | C18: EH197 | D18: 3065 | X18: EH197 | Y18: OTWH 300 EH | Z18: 100017619 | AA18: 3065 | AB18: 3065
A20: OPTIONS OTWH | Z20: OPTIONS OTWH
A21: 100019424 | B21: KIT RACC. GROUPE DE SECURITE OTWH 300 EH | C21: ER208 | D21: 26 | X21: ER208 | Y21: KIT RACC. GROUPE DE SECURITE OTWH 300 EH | Z21: 100019424 | AA21: 26 | AB21: 26
A22: 100007557 | B22: COUDE A 90° D160 | C22: EH77 | D22: 69 | X22: EH77 | Y22: COUDE A 90° D160 | Z22: 100007557 | AA22: 69 | AB22: 69
A23: 100017621 | B23: MANCHON D'ADAPTATION D200 x D160 | C23: EH205 | D23: 85 | X23: EH205 | Y23: MANCHON D'ADAPTATION D200 x D160 | Z23: 100017621 | AA23: 85 | AB23: 85
A24: 100017622 | B24: GAINE SOUPLE ISOLEE Ø 160 LONGUEUR 3 M | C24: EH206 | D24: 319 | X24: EH206 | Y24: GAINE SOUPLE ISOLEE Ø 160 LONGUEUR 3 M | Z24: 100017622 | AA24: 319 | AB24: 319
A25: 100017623 | B25: JEU DE 2 COLLIERS DE FIXATION Ø 160 | C25: EH207 | D25: 36 | X25: EH207 | Y25: JEU DE 2 COLLIERS DE FIXATION Ø 160 | Z25: 100017623 | AA25: 36 | AB25: 36
A26: 7625587 | B26: GRILLE PRISE ET REJET AIR D160 | C26: EH558 | D26: 367 | X26: EH558 | Y26: GRILLE PRISE ET REJET AIR D160 | Z26: 7625587 | AA26: 367 | AB26: 367
A27: 100017624 | B27: TRAVERSEE DE MUR Ø 160 AVEC GRILLE | C27: EH208 | D27: 176 | X27: EH208 | Y27: TRAVERSEE DE MUR Ø 160 AVEC GRILLE | Z27: 100017624 | AA27: 176 | AB27: 176
A28: 100017625 | B28: GRILLE EXTERIEURE Ø 160 EN ALUMINIUM | C28: EH209 | D28: 253 | X28: EH209 | Y28: GRILLE EXTERIEURE Ø 160 EN ALUMINIUM | Z28: 100017625 | AA28: 253 | AB28: 253
A29: 100019964 | B29: CONDUIT PPE Ø 160 mm 2 x 1 m + 2 MANCHONS | C29: EH272 | D29: 119 | X29: EH272 | Y29: CONDUIT PPE Ø 160 mm 2 x 1 m + 2 MANCHONS | Z29: 100019964 | AA29: 119 | AB29: 119
A30: 100019965 | B30: JEU DE 2 COUDES 90° PPE Ø 160 mm + 2 MANCHONS | C30: EH273 | D30: 85 | X30: EH273 | Y30: JEU DE 2 COUDES 90° PPE Ø 160 mm + 2 MANCHONS | Z30: 100019965 | AA30: 85 | AB30: 85
A31: 100019966 | B31: JEU DE 2 MANCHONS PPE Ø 160 mm | C31: EH274 | D31: 26 | X31: EH274 | Y31: JEU DE 2 MANCHONS PPE Ø 160 mm | Z31: 100019966 | AA31: 26 | AB31: 26
A32: 100019967 | B32: TERMINAL VERTICAL NOIR Ø 160 mm | C32: EH275 | D32: 197 | X32: EH275 | Y32: TERMINAL VERTICAL NOIR Ø 160 mm | Z32: 100019967 | AA32: 197 | AB32: 197
A33: 100019968 | B33: EMBASE D'ETANCHEITE TOIT PLAT Ø 160mm | C33: EH276 | D33: 41 | X33: EH276 | Y33: EMBASE D'ETANCHEITE TOIT PLAT Ø 160mm | Z33: 100019968 | AA33: 41 | AB33: 41
A34: 100019969 | B34: EMBASE D'ETANCHEITE TOIT PENTE DEN 25 à 45° | C34: EH277 | D34: 165 | X34: EH277 | Y34: EMBASE D'ETANCHEITE TOIT PENTE DEN 25 à 45° | Z34: 100019969 | AA34: 165 | AB34: 165
A35: 7613626 | B35: COUDE CONDUIT | C35: EH434 | D35: 59 | X35: EH434 | Y35: COUDE CONDUIT | Z35: 7613626 | AA35: 59 | AB35: 59
A39: 7603139 | B39: OTWH 200 EV | C39: EH282 | D39: 3452 | X39: EH282 | Y39: OTWH 200 EV | Z39: 7603139 | AA39: 3452 | AB39: 3452
A41: OPTIONS OTWH 200 EV | Z41: OPTIONS OTWH 200 EV
A42: 7673158 | B42: BOUCHE EXTR HY CUISINE 10-40-90 | C42: EH703 | D42: 132 | X42: EH703 | Y42: BOUCHE EXTR HY CUISINE 10-40-90 | Z42: 7673158 | AA42: 132 | AB42: 132
A43: 7603279 | B43: BOUCHE EXTRACTION HYGRO CUISINE A PILES 10/45/135 m3/h (1) | C43: EH293 | D43: 132 | X43: EH293 | Y43: BOUCHE EXTRACTION HYGRO CUISINE A PILES 10/45/135 m3/h (1) | Z43: 7603279 | AA43: 132 | AB43: 132
A44: 7673162 | B44: BOUCHE EXTR HY CUIS CORD 10-40-90 | C44: EH707 | D44: 114 | X44: EH707 | Y44: BOUCHE EXTR HY CUIS CORD 10-40-90 | Z44: 7673162 | AA44: 114 | AB44: 114
A45: 7603283 | B45: BOUCHE EXTRACTION HYGRO CUISINE A CORDON 10/45/135 m3/h | C45: EH297 | D45: 114 | X45: EH297 | Y45: BOUCHE EXTRACTION HYGRO CUISINE A CORDON 10/45/135 m3/h | Z45: 7603283 | AA45: 114 | AB45: 114
A46: 7603286 | B46: BOUCHE EXTRACTION HYGRO BAINS A PILES 5/40 m3/h | C46: EH299 | D46: 79 | X46: EH299 | Y46: BOUCHE EXTRACTION HYGRO BAINS A PILES 5/40 m3/h | Z46: 7603286 | AA46: 79 | AB46: 79
A47: 7603288 | B47: BOUCHE EXTRACTION HYGRO BAINS A PILES 10/40 m3/h | C47: EH301 | D47: 79 | X47: EH301 | Y47: BOUCHE EXTRACTION HYGRO BAINS A PILES 10/40 m3/h | Z47: 7603288 | AA47: 79 | AB47: 79
A48: 7603289 | B48: BOUCHE EXTRACTION HYGRO BAINS A PILES 10/45 m3/h | C48: EH302 | D48: 79 | X48: EH302 | Y48: BOUCHE EXTRACTION HYGRO BAINS A PILES 10/45 m3/h | Z48: 7603289 | AA48: 79 | AB48: 79
A49: 7695991 | B49: BOUCHE HYGRO BAINS 5/40/30 m3/h | C49: EH882 | D49: 115 | X49: EH882 | Y49: BOUCHE HYGRO BAINS 5/40/30 m3/h | Z49: 7695991 | AA49: 115 | AB49: 115
A50: 7695992 | B50: BOUCHE HYGRO BAINS 15/45/40 m3/h | C50: EH883 | D50: 115 | X50: EH883 | Y50: BOUCHE HYGRO BAINS 15/45/40 m3/h | Z50: 7695992 | AA50: 115 | AB50: 115
A51: 7673167 | B51: BOUCHE EXTR HY BAINS PILE 15-45-45 | C51: EH712 | D51: 115 | X51: EH712 | Y51: BOUCHE EXTR HY BAINS PILE 15-45-45 | Z51: 7673167 | AA51: 115 | AB51: 115
A52: 7603290 | B52: BOUCHE EXTRACTION HYGRO WC A PILES 5/30 m3/h (2) | C52: EH303 | D52: 87 | X52: EH303 | Y52: BOUCHE EXTRACTION HYGRO WC A PILES 5/30 m3/h (2) | Z52: 7603290 | AA52: 87 | AB52: 87
A53: 7673170 | B53: KiT ENTREE AIR HYGRO 5-45 | C53: EH715 | D53: 37 | X53: EH715 | Y53: KiT ENTREE AIR HYGRO 5-45 | Z53: 7673170 | AA53: 37 | AB53: 37
A54: 7603296 | B54: MANCHETTE PLASTIQUE D 125 POUR BOUCHE EXTRACTION | C54: EH307 | D54: 3 | X54: EH307 | Y54: MANCHETTE PLASTIQUE D 125 POUR BOUCHE EXTRACTION | Z54: 7603296 | AA54: 3 | AB54: 3
A55: 7603298 | B55: CHAPEAU DE TOITURE COULEUR TUILE D 160 | C55: EH309 | D55: 69 | X55: EH309 | Y55: CHAPEAU DE TOITURE COULEUR TUILE D 160 | Z55: 7603298 | AA55: 69 | AB55: 69
A56: 7608997 | B56: CHAPEAU DE TOITURE COULEUR ARDOISE D 160 | C56: EH370 | D56: 69 | X56: EH370 | Y56: CHAPEAU DE TOITURE COULEUR ARDOISE D 160 | Z56: 7608997 | AA56: 69 | AB56: 69
A57: 100017624 | B57: TRAVERSEE DE MUR Ø 160 AVEC GRILLE | C57: EH208 | D57: 176 | X57: EH208 | Y57: TRAVERSEE DE MUR Ø 160 AVEC GRILLE | Z57: 100017624 | AA57: 176 | AB57: 176
A58: 100017625 | B58: GRILLE EXTERIEURE Ø 160 EN ALUMINIUM | C58: EH209 | D58: 253 | X58: EH209 | Y58: GRILLE EXTERIEURE Ø 160 EN ALUMINIUM | Z58: 100017625 | AA58: 253 | AB58: 253
A59: 7603304 | B59: CONDUIT FLEXIBLE ISOLE D 160 LONGUEUR 6 M | C59: EH314 | D59: 110 | X59: EH314 | Y59: CONDUIT FLEXIBLE ISOLE D 160 LONGUEUR 6 M | Z59: 7603304 | AA59: 110 | AB59: 110
A60: 7603303 | B60: CONDUIT FLEXIBLE ISOLE D 125 LONGUEUR 6 M | C60: EH313 | D60: 69 | X60: EH313 | Y60: CONDUIT FLEXIBLE ISOLE D 125 LONGUEUR 6 M | Z60: 7603303 | AA60: 69 | AB60: 69
A61: 7603302 | B61: CONDUIT FLEXIBLE ISOLE D 80 LONGUEUR 6 M | C61: EH312 | D61: 57 | X61: EH312 | Y61: CONDUIT FLEXIBLE ISOLE D 80 LONGUEUR 6 M | Z61: 7603302 | AA61: 57 | AB61: 57
A62: 7603305 | B62: CAISSON COLLECTEUR 2 PIQUAGES D 125 ET 6 PIQUAGES D 80 | C62: EH315 | D62: 159 | X62: EH315 | Y62: CAISSON COLLECTEUR 2 PIQUAGES D 125 ET 6 PIQUAGES D 80 | Z62: 7603305 | AA62: 159 | AB62: 159
A63: 100019964 | B63: CONDUIT PPE Ø 160 mm 2 x 1 m + 2 MANCHONS | C63: EH272 | D63: 119 | X63: EH272 | Y63: CONDUIT PPE Ø 160 mm 2 x 1 m + 2 MANCHONS | Z63: 100019964 | AA63: 119 | AB63: 119
A64: 7603307 | B64: TUBE PPE D125 L=1M | C64: EH317 | D64: 84 | X64: EH317 | Y64: TUBE PPE D125 L=1M | Z64: 7603307 | AA64: 84 | AB64: 84
A65: 100019965 | B65: JEU DE 2 COUDES 90° PPE Ø 160 mm + 2 MANCHONS | C65: EH273 | D65: 85 | X65: EH273 | Y65: JEU DE 2 COUDES 90° PPE Ø 160 mm + 2 MANCHONS | Z65: 100019965 | AA65: 85 | AB65: 85
A66: 7603310 | B66: 2 COUDES 90° PPE D125 + 2 MANCHONS | C66: EH319 | D66: 78 | X66: EH319 | Y66: 2 COUDES 90° PPE D125 + 2 MANCHONS | Z66: 7603310 | AA66: 78 | AB66: 78
A67: 100019966 | B67: JEU DE 2 MANCHONS PPE Ø 160 mm | C67: EH274 | D67: 26 | X67: EH274 | Y67: JEU DE 2 MANCHONS PPE Ø 160 mm | Z67: 100019966 | AA67: 26 | AB67: 26
A68: 7603312 | B68: 2 MANCHONS PPE D125 | C68: EH321 | D68: 15 | X68: EH321 | Y68: 2 MANCHONS PPE D125 | Z68: 7603312 | AA68: 15 | AB68: 15
A69: 7603314 | B69: TE DROIT GALVA 90° A JOINT D 160 | C69: EH323 | D69: 34 | X69: EH323 | Y69: TE DROIT GALVA 90° A JOINT D 160 | Z69: 7603314 | AA69: 34 | AB69: 34
A70: 7603317 | B70: REDUCTION GALVA A JOINT D 125 X 80 | C70: EH326 | D70: 27 | X70: EH326 | Y70: REDUCTION GALVA A JOINT D 125 X 80 | Z70: 7603317 | AA70: 27 | AB70: 27
A71: 7603318 | B71: REDUCTION GALVA A Ø 160 X 80 | C71: EH327 | D71: 33 | X71: EH327 | Y71: REDUCTION GALVA A Ø 160 X 80 | Z71: 7603318 | AA71: 33 | AB71: 33
A72: 7603319 | B72: REDUCTION GALVA A JOINT D 160 X 125 | C72: EH328 | D72: 27 | X72: EH328 | Y72: REDUCTION GALVA A JOINT D 160 X 125 | Z72: 7603319 | AA72: 27 | AB72: 27
A73: 7603320 | B73: MANCHON GALVA D 125 | C73: EH329 | D73: 4 | X73: EH329 | Y73: MANCHON GALVA D 125 | Z73: 7603320 | AA73: 4 | AB73: 4
A74: 7603321 | B74: MANCHON GALVA D 160 | C74: EH330 | D74: 4 | X74: EH330 | Y74: MANCHON GALVA D 160 | Z74: 7603321 | AA74: 4 | AB74: 4
A75: 100017623 | B75: JEU DE 2 COLLIERS DE FIXATION Ø 160 | C75: EH207 | D75: 36 | X75: EH207 | Y75: JEU DE 2 COLLIERS DE FIXATION Ø 160 | Z75: 100017623 | AA75: 36 | AB75: 36
A76: 7603322 | B76: JEU DE 10 COLLIERS DE FIXATION Ø 80 à Ø 125 | C76: EH331 | D76: 54 | X76: EH331 | Y76: JEU DE 10 COLLIERS DE FIXATION Ø 80 à Ø 125 | Z76: 7603322 | AA76: 54 | AB76: 54
A77: 7603325 | B77: FILTRE DE RECHANGE | C77: EH334 | D77: 38 | X77: EH334 | Y77: FILTRE DE RECHANGE | Z77: 7603325 | AA77: 38 | AB77: 38
A78: 7602875 | B78: ENJOLIVEUR POUR MONTAGE REGULATEUR SUR OTWH 200 EV | C78: EH286 | D78: 88 | X78: EH286 | Y78: ENJOLIVEUR POUR MONTAGE REGULATEUR SUR OTWH 200 EV | Z78: 7602875 | AA78: 88 | AB78: 88
A79: 100019890 | B79: KIT POIGNEES DE PREHENSION | C79: ER239 | D79: 36 | X79: ER239 | Y79: KIT POIGNEES DE PREHENSION | Z79: 100019890 | AA79: 36 | AB79: 36
A83: 7629721 | B83: OTWH SPLIT FS 200 E | D83: 2360 | Y83: OTWH SPLIT FS 200 E | Z83: 7629721 | AA83: 2360 | AB83: 2360
A84: 7629722 | B84: OTWH SPLIT FS 270 E | D84: 2475 | Y84: OTWH SPLIT FS 270 E | Z84: 7629722 | AA84: 2475 | AB84: 2475
A86: COMPOSANTS | Z86: COMPOSANTS
A87: 7629505 | B87: BALLON OSFS 200 E | C87: ER688 | D87: 1687 | X87: ER688 | Y87: BALLON OSFS 200 E | Z87: 7629505 | AA87: 1687 | AB87: 1687
A88: 7629506 | B88: BALLON OSFS 270 E | C88: ER689 | D88: 1802 | X88: ER689 | Y88: BALLON OSFS 270 E | Z88: 7629506 | AA88: 1802 | AB88: 1802
A89: 7626223 | B89: UNITE EXTERIEURE SPLIT TD | C89: EH571 | D89: 673 | X89: EH571 | Y89: UNITE EXTERIEURE SPLIT TD | Z89: 7626223 | AA89: 673 | AB89: 673
A93: 7680680 | B93: OTWH SPLIT WH 150 E | D93: 2078 | Y93: OTWH SPLIT WH 150 E | Z93: 7680680 | AA93: 2078 | AB93: 2078
A94: 7680681 | B94: OTWH SPLIT WH 200 E | D94: 2273 | Y94: OTWH SPLIT WH 200 E | Z94: 7680681 | AA94: 2273 | AB94: 2273
A96: COMPOSANTS | Z96: COMPOSANTS
A97: 7673271 | B97: OSWH 150 E | C97: EH754 | D97: 1405 | X97: EH754 | Y97: OSWH 150 E | Z97: 7673271 | AA97: 1405 | AB97: 1405
A98: 7673269 | B98: OSWH 200 E | C98: EH755 | D98: 1600 | X98: EH755 | Y98: OSWH 200 E | Z98: 7673269 | AA98: 1600 | AB98: 1600
A99: 7626223 | B99: UNITE EXTERIEURE SPLIT TD | C99: EH571 | D99: 673 | X99: EH571 | Y99: UNITE EXTERIEURE SPLIT TD | Z99: 7626223 | AA99: 673 | AB99: 673
A101: OPTIONS FS/WH | Z101: OPTIONS FS/WH
A102: 100011222 | B102: SUPPORT MURALE & PLOTS ANTIVIBRATILES POUR ROE-II AWHP 6-8 | C102: EH95 | D102: 181 | X102: EH95 | Y102: SUPPORT MURALE & PLOTS ANTIVIBRATILES POUR ROE-II AWHP 6-8 | Z102: 100011222 | AA102: 181 | AB102: 181
A103: 100012533 | B103: SUPPORT POSE AU SOL AWHP | C103: EH112 | D103: 48 | X103: EH112 | Y103: SUPPORT POSE AU SOL AWHP | Z103: 100012533 | AA103: 48 | AB103: 48
A104: 7627741 | B104: TUBE CU ISOLE 1/4 3/8 L5M | C104: EH569 | D104: 144 | X104: EH569 | Y104: TUBE CU ISOLE 1/4 3/8 L5M | Z104: 7627741 | AA104: 144 | AB104: 144
A105: 7627742 | B105: TUBE CU ISOLE 1/4 3/8 L10M | C105: EH570 | D105: 250 | X105: EH570 | Y105: TUBE CU ISOLE 1/4 3/8 L10M | Z105: 7627742 | AA105: 250 | AB105: 250
A106: 7629725 | B106: TUBE CU ISOLE 1/4 3/8 L20 | C106: EH589 | D106: 369 | X106: EH589 | Y106: TUBE CU ISOLE 1/4 3/8 L20 | Z106: 7629725 | AA106: 369 | AB106: 369
A107: 89788949 | B107: TREPIED MV STAND./CEB (version murale) | D107: 51 | Y107: TREPIED MV STAND./CEB (version murale) | Z107: 89788949 | AA107: 51 | AB107: 51
A108: 100019794 | B108: KIT ENTRAXE UNIVERSEL MV | D108: 72 | Y108: KIT ENTRAXE UNIVERSEL MV | Z108: 100019794 | AA108: 72 | AB108: 72
A109: 7713456 | B109: ANODE CORREX LG 232 | C109: AJ173 | D109: 349 | X109: AJ173 | Y109: ANODE CORREX LG 232 | Z109: 7713456 | AA109: 349 | AB109: 349
A110: 7694974 | B110: SUPPORT AU SOL CAOUTCHOUC 600MM | C110: EH879 | D110: 119 | X110: EH879 | Y110: SUPPORT AU SOL CAOUTCHOUC 600MM | Z110: 7694974 | AA110: 119 | AB110: 119
A111: 100019424 | B111: KIT RACC. GROUPE DE SECURITE OTWH 300 EH | C111: ER208 | D111: 26 | X111: ER208 | Y111: KIT RACC. GROUPE DE SECURITE OTWH 300 EH | Z111: 100019424 | AA111: 26 | AB111: 26
A112: 7752101 | B112: HMI+HW CABLES SODU2M | C112: HK231 | D112: 105 | X112: HK231 | Y112: HMI+HW CABLES SODU2M | Z112: 7752101 | AA112: 105 | AB112: 105
A118: 7746887 | B118: OENOVIAPAC-C FIRST4.5MR/H | D118: 4189 | Y118: OENOVIAPAC-C FIRST4.5MR/H | Z118: 7746887 | AA118: 4189 | AB118: 4189
A119: 7746888 | B119: OENOVIAPAC-C FIRST4.5MR/EM | D119: 4189 | Y119: OENOVIAPAC-C FIRST4.5MR/EM | Z119: 7746888 | AA119: 4189 | AB119: 4189
A120: 7746889 | B120: OENOVIAPAC-C FIRST6MR/H | D120: 4592 | Y120: OENOVIAPAC-C FIRST6MR/H | Z120: 7746889 | AA120: 4592 | AB120: 4592
A121: 7746890 | B121: OENOVIAPAC-C FIRST6MR/EM | D121: 4592 | Y121: OENOVIAPAC-C FIRST6MR/EM | Z121: 7746890 | AA121: 4592 | AB121: 4592
A122: 7746891 | B122: OENOVIAPAC-C FIRST8MR/H | D122: 5332 | Y122: OENOVIAPAC-C FIRST8MR/H | Z122: 7746891 | AA122: 5332 | AB122: 5332
A123: 7746892 | B123: OENOVIAPAC-C FIRST8MR/EM | D123: 5332 | Y123: OENOVIAPAC-C FIRST8MR/EM | Z123: 7746892 | AA123: 5332 | AB123: 5332
A124: 7746893 | B124: OENOVIAPAC-C FIRST11MR/H | D124: 6878 | Y124: OENOVIAPAC-C FIRST11MR/H | Z124: 7746893 | AA124: 6878 | AB124: 6878
A125: 7746894 | B125: OENOVIAPAC-C FIRST11MR/EM | D125: 6878 | Y125: OENOVIAPAC-C FIRST11MR/EM | Z125: 7746894 | AA125: 6878 | AB125: 6878
A126: 7746895 | B126: OENOVIAPAC-C FIRST11TR/HT | D126: 7209 | Y126: OENOVIAPAC-C FIRST11TR/HT | Z126: 7746895 | AA126: 7209 | AB126: 7209
A127: 7746896 | B127: OENOVIAPAC-C FIRST11TR/ET | D127: 7209 | Y127: OENOVIAPAC-C FIRST11TR/ET | Z127: 7746896 | AA127: 7209 | AB127: 7209
A128: 7746897 | B128: OENOVIAPAC-C FIRST16MR/H | D128: 8019 | Y128: OENOVIAPAC-C FIRST16MR/H | Z128: 7746897 | AA128: 8019 | AB128: 8019
A129: 7746898 | B129: OENOVIAPAC-C FIRST16MR/EM | D129: 8019 | Y129: OENOVIAPAC-C FIRST16MR/EM | Z129: 7746898 | AA129: 8019 | AB129: 8019
A130: 7746899 | B130: OENOVIAPAC-C FIRST16TR/HT | D130: 8465 | Y130: OENOVIAPAC-C FIRST16TR/HT | Z130: 7746899 | AA130: 8465 | AB130: 8465
A131: 7746920 | B131: OENOVIAPAC-C FIRST16TR/ET | D131: 8465 | Y131: OENOVIAPAC-C FIRST16TR/ET | Z131: 7746920 | AA131: 8465 | AB131: 8465
A133: COMPOSANTS OEnoviaPac-C First | Z133: COMPOSANTS OEnoviaPac-C First
A134: 7656794 | B134: AWHP 4.5 MR | C134: EH616 | D134: 1963 | X134: EH616 | Y134: AWHP 4.5 MR | Z134: 7656794 | AA134: 1963 | AB134: 1963
A135: 7668016 | B135: AWHP 6 MR-3 | C135: EH672 | D135: 2366 | X135: EH672 | Y135: AWHP 6 MR-3 | Z135: 7668016 | AA135: 2366 | AB135: 2366
A136: 7609926 | B136: AWHP 8 MR-2 | C136: EH381 | D136: 3170 | X136: EH381 | Y136: AWHP 8 MR-2 | Z136: 7609926 | AA136: 3170 | AB136: 3170
A137: 7609927 | B137: AWHP 11 MR-2 | C137: EH382 | D137: 4335 | X137: EH382 | Y137: AWHP 11 MR-2 | Z137: 7609927 | AA137: 4335 | AB137: 4335
A138: 7609928 | B138: AWHP 11 TR-2 | C138: EH383 | D138: 4666 | X138: EH383 | Y138: AWHP 11 TR-2 | Z138: 7609928 | AA138: 4666 | AB138: 4666
A139: 7609929 | B139: AWHP 16 MR-2 | C139: EH384 | D139: 5476 | X139: EH384 | Y139: AWHP 16 MR-2 | Z139: 7609929 | AA139: 5476 | AB139: 5476
A140: 7609930 | B140: AWHP 16 TR-2 | C140: EH385 | D140: 5922 | X140: EH385 | Y140: AWHP 16 TR-2 | Z140: 7609930 | AA140: 5922 | AB140: 5922
A141: 7683551 | B141: MHC /H 4-8 | C141: EH740 | D141: 2162 | X141: EH740 | Y141: MHC /H 4-8 | Z141: 7683551 | AA141: 2162 | AB141: 2162
A142: 7683552 | B142: MHC /H 11-16 | C142: EH744 | D142: 2543 | X142: EH744 | Y142: MHC /H 11-16 | Z142: 7683552 | AA142: 2543 | AB142: 2543
A143: 7683548 | B143: MHC /EM 4-8 | C143: EH740 | D143: 2162 | X143: EH740 | Y143: MHC /EM 4-8 | Z143: 7683548 | AA143: 2162 | AB143: 2162
A144: 7683549 | B144: MHC /EM 11-16 | C144: EH741 | D144: 2543 | X144: EH741 | Y144: MHC /EM 11-16 | Z144: 7683549 | AA144: 2543 | AB144: 2543
A145: 7683550 | B145: MHC /ET 11-16 | C145: EH742 | D145: 2543 | X145: EH742 | Y145: MHC /ET 11-16 | Z145: 7683550 | AA145: 2543 | AB145: 2543
A146: 100015480 | B146: RACCORD D'ADAPTATION FRIGO POUR 4 kW ET 6 kW | C146: EH146 | D146: 64 | X146: EH146 | Y146: RACCORD D'ADAPTATION FRIGO POUR 4 kW ET 6 kW | Z146: 100015480 | AA146: 64 | AB146: 64
A148: OPTIONS OEnoviaPac-C First | Z148: OPTIONS OEnoviaPac-C First
A149: 100011222 | B149: SUPPORT MURALE & PLOTS ANTIVIBRATILES POUR ROE-II AWHP 6-8 | C149: EH95 | D149: 181 | X149: EH95 | Y149: SUPPORT MURALE & PLOTS ANTIVIBRATILES POUR ROE-II AWHP 6-8 | Z149: 100011222 | AA149: 181 | AB149: 181
A150: 100018409 | B150: SUPPORT MURAL AWHP 11à 27 kW | C150: EH250 | D150: 181 | X150: EH250 | Y150: SUPPORT MURAL AWHP 11à 27 kW | Z150: 100018409 | AA150: 181 | AB150: 181
A151: 7694974 | B151: SUPPORT AU SOL CAOUTCHOUC 600MM | C151: EH879 | D151: 119 | X151: EH879 | Y151: SUPPORT AU SOL CAOUTCHOUC 600MM | Z151: 7694974 | AA151: 119 | AB151: 119
A152: 100012533 | B152: SUPPORT POSE AU SOL AWHP | C152: EH112 | D152: 48 | X152: EH112 | Y152: SUPPORT POSE AU SOL AWHP | Z152: 100012533 | AA152: 48 | AB152: 48
A153: 100015476 | B153: LIAISON FRIGORIFIQUE PE 1/2" 1/4" - LG 10 m | C153: EH142 | D153: 255 | X153: EH142 | Y153: LIAISON FRIGORIFIQUE PE 1/2" 1/4" - LG 10 m | Z153: 100015476 | AA153: 255 | AB153: 255
A154: 100012535 | B154: LIAISON FRIGORIFIQUE PE 5/8'' 3/8'' - LG 5m | C154: EH114 | D154: 255 | X154: EH114 | Y154: LIAISON FRIGORIFIQUE PE 5/8'' 3/8'' - LG 5m | Z154: 100012535 | AA154: 255 | AB154: 255
A155: 100012536 | B155: LIAISON FRIGORIFIQUE PE 5/8'' 3/8'' - LG 10m | C155: EH115 | D155: 456 | X155: EH115 | Y155: LIAISON FRIGORIFIQUE PE 5/8'' 3/8'' - LG 10m | Z155: 100012536 | AA155: 456 | AB155: 456
A156: 100012537 | B156: LIAISON FRIGORIFIQUE PE 5/8'' 3/8'' - LG 20m | C156: EH116 | D156: 823 | X156: EH116 | Y156: LIAISON FRIGORIFIQUE PE 5/8'' 3/8'' - LG 20m | Z156: 100012537 | AA156: 823 | AB156: 823
A157: 100008841 | B157: BALLON TAMPON 80L B 80 T | C157: EH85 | D157: 572 | X157: EH85 | Y157: BALLON TAMPON 80L B 80 T | Z157: 100008841 | AA157: 572 | AB157: 572
A158: 100004415 | B158: BALLON TAMPON 160L B 150 T | C158: EH60 | D158: 857 | X158: EH60 | Y158: BALLON TAMPON 160L B 150 T | Z158: 100004415 | AA158: 857 | AB158: 857
A159: 88017904 | B159: THERMOSTAT AMBIANCE PROGRAMMABLE (FILAIRE) | C159: AD191 | D159: 176 | X159: AD191 | Y159: THERMOSTAT AMBIANCE PROGRAMMABLE (FILAIRE) | Z159: 88017904 | AA159: 176 | AB159: 176
A160: 88017010 | B160: THERMOSTAT D'AMBIANCE PROGRAMMABLE (SANS FILS) | C160: AD192 | D160: 308 | X160: AD192 | Y160: THERMOSTAT D'AMBIANCE PROGRAMMABLE (SANS FILS) | Z160: 88017010 | AA160: 308 | AB160: 308
A161: 100015468 | B161: KIT RAC HYDRAULIQUE PAC - BALLON ECS | C161: EH149 | D161: 109 | X161: EH149 | Y161: KIT RAC HYDRAULIQUE PAC - BALLON ECS | Z161: 100015468 | AA161: 109 | AB161: 109
A162: 7622063 | B162: PREPARATEUR MIXTE OBEPB 300 POUR PAC | C162: ER616 | D162: 2247 | X162: ER616 | Y162: PREPARATEUR MIXTE OBEPB 300 POUR PAC | Z162: 7622063 | AA162: 2247 | AB162: 2247
A163: 100018187 | B163: PREPARATEUR VERTICAL OBLC 150 | C163: EC614 | D163: 1252 | X163: EC614 | Y163: PREPARATEUR VERTICAL OBLC 150 | Z163: 100018187 | AA163: 1252 | AB163: 1252
A164: 100018188 | B164: PREPARATEUR VERTICAL OBLC 200 | C164: EC615 | D164: 1437 | X164: EC615 | Y164: PREPARATEUR VERTICAL OBLC 200 | Z164: 100018188 | AA164: 1437 | AB164: 1437
A165: 100018189 | B165: PREPARATEUR VERTICAL OBLC 300 | C165: EC616 | D165: 1767 | X165: EC616 | Y165: PREPARATEUR VERTICAL OBLC 300 | Z165: 100018189 | AA165: 1767 | AB165: 1767
A166: 88017017 | B166: SONDE DEPART v3v | C166: AD199 | D166: 85 | X166: AD199 | Y166: SONDE DEPART v3v | Z166: 88017017 | AA166: 85 | AB166: 85
A167: 7746197 | B167: BOUTEILLE DE DECOUPLAGE 25L | C167: HK147 | D167: 362 | X167: HK147 | Y167: BOUTEILLE DE DECOUPLAGE 25L | Z167: 7746197 | AA167: 362 | AB167: 362
A168: 7746242 | B168: SOUPAPE DIFFERENTIELLE | C168: HK150 | D168: 59 | X168: HK150 | Y168: SOUPAPE DIFFERENTIELLE | Z168: 7746242 | AA168: 59 | AB168: 59
A169: 7746307 | B169: KIT HYDRAULIQUE 2ND CIRCUIT V3V EXTERNE | C169: HK152 | D169: 440 | X169: HK152 | Y169: KIT HYDRAULIQUE 2ND CIRCUIT V3V EXTERNE | Z169: 7746307 | AA169: 440 | AB169: 440
A170: 7685541 | B170: VANNE D'INVERSION CHAUFFAGE-SANITAIRE+SONDE ECS | C170: EH784 | D170: 358 | X170: EH784 | Y170: VANNE D'INVERSION CHAUFFAGE-SANITAIRE+SONDE ECS | Z170: 7685541 | AA170: 358 | AB170: 358
A171: 7624902 | B171: KIT CABLAGE PLANCHER CHAUFFANT DIRECT | C171: HA255 | D171: 40 | X171: HA255 | Y171: KIT CABLAGE PLANCHER CHAUFFANT DIRECT | Z171: 7624902 | AA171: 40 | AB171: 40
A172: 7691374 | B172: THERMOSTAT AMBIANCE OETROSMART (R-BUS) | C172: AD323 | D172: 207 | X172: AD323 | Y172: THERMOSTAT AMBIANCE OETROSMART (R-BUS) | Z172: 7691374 | AA172: 207 | AB172: 207
A173: 100019114 | B173: KIT SONDE HYGRO RAFRAICHISSEMENT | C173: HK27 | D173: 233 | X173: HK27 | Y173: KIT SONDE HYGRO RAFRAICHISSEMENT | Z173: 100019114 | AA173: 233 | AB173: 233
A174: 7636899 | B174: KIT SILENCIEUX MODULE EXTERIEUR | C174: EH572 | D174: 66 | X174: EH572 | Y174: KIT SILENCIEUX MODULE EXTERIEUR | Z174: 7636899 | AA174: 66 | AB174: 66
A175: 7683828 | B175: KIT CARTE REGULATION 2ND CIRCUIT | C175: EH783 | D175: 120 | X175: EH783 | Y175: KIT CARTE REGULATION 2ND CIRCUIT | Z175: 7683828 | AA175: 120 | AB175: 120
A176: 7622433 | B176: KIT SONDE CONDENSATION (0-10V) | C176: HZ64 | D176: 420 | X176: HZ64 | Y176: KIT SONDE CONDENSATION (0-10V) | Z176: 7622433 | AA176: 420 | AB176: 420
A180: 7746921 | B180: OENOVIAPAC-C SLIM 4.5 MR/EM | D180: 6229 | Y180: OENOVIAPAC-C SLIM 4.5 MR/EM | Z180: 7746921 | AA180: 6229 | AB180: 6229
A181: 7746922 | B181: OENOVIAPAC-C SLIM 6 MR/EM | D181: 6632 | Y181: OENOVIAPAC-C SLIM 6 MR/EM | Z181: 7746922 | AA181: 6632 | AB181: 6632
A182: 7746923 | B182: OENOVIAPAC-C SLIM 8 MR/EM | D182: 7372 | Y182: OENOVIAPAC-C SLIM 8 MR/EM | Z182: 7746923 | AA182: 7372 | AB182: 7372
A183: 7746924 | B183: OENOVIAPAC-C SLIM 11 MR/EM | D183: 8918 | Y183: OENOVIAPAC-C SLIM 11 MR/EM | Z183: 7746924 | AA183: 8918 | AB183: 8918
A184: 7746925 | B184: OENOVIAPAC-C SLIM 11 TR/ET | D184: 9249 | Y184: OENOVIAPAC-C SLIM 11 TR/ET | Z184: 7746925 | AA184: 9249 | AB184: 9249
A185: 7746926 | B185: OENOVIAPAC-C SLIM 16 MR/EM | D185: 10059 | Y185: OENOVIAPAC-C SLIM 16 MR/EM | Z185: 7746926 | AA185: 10059 | AB185: 10059
A186: 7746927 | B186: OENOVIAPAC-C SLIM 16 TR/ET | D186: 10505 | Y186: OENOVIAPAC-C SLIM 16 TR/ET | Z186: 7746927 | AA186: 10505 | AB186: 10505
A188: COMPOSANTS OEnoviaPac-C Slim | Z188: COMPOSANTS OEnoviaPac-C Slim
A189: 7656794 | B189: AWHP 4.5 MR-4 | C189: EH616 | D189: 1963 | X189: EH616 | Y189: AWHP 4.5 MR-4 | Z189: 7656794 | AA189: 1963 | AB189: 1963
A190: 7668016 | B190: AWHP 6 MR-3 | C190: EH672 | D190: 2366 | X190: EH672 | Y190: AWHP 6 MR-3 | Z190: 7668016 | AA190: 2366 | AB190: 2366
A191: 7609926 | B191: AWHP 8 MR-2 | C191: EH381 | D191: 3170 | X191: EH381 | Y191: AWHP 8 MR-2 | Z191: 7609926 | AA191: 3170 | AB191: 3170
A192: 7609927 | B192: AWHP 11 MR-2 | C192: EH382 | D192: 4335 | X192: EH382 | Y192: AWHP 11 MR-2 | Z192: 7609927 | AA192: 4335 | AB192: 4335
A193: 7609928 | B193: AWHP 11 TR-2 | C193: EH383 | D193: 4666 | X193: EH383 | Y193: AWHP 11 TR-2 | Z193: 7609928 | AA193: 4666 | AB193: 4666
A194: 7609929 | B194: AWHP 16 MR-2 | C194: EH384 | D194: 5476 | X194: EH384 | Y194: AWHP 16 MR-2 | Z194: 7609929 | AA194: 5476 | AB194: 5476
A195: 7609930 | B195: AWHP 16 TR-2 | C195: EH385 | D195: 5922 | X195: EH385 | Y195: AWHP 16 TR-2 | Z195: 7609930 | AA195: 5922 | AB195: 5922
A196: 7683548 | B196: MHC /EM 4-8 | C196: EH740 | D196: 2162 | X196: EH740 | Y196: MHC /EM 4-8 | Z196: 7683548 | AA196: 2162 | AB196: 2162
A197: 7683549 | B197: MHC /EM 11-16 | C197: EH741 | D197: 2543 | X197: EH741 | Y197: MHC /EM 11-16 | Z197: 7683549 | AA197: 2543 | AB197: 2543
A198: 7683550 | B198: MHC /ET 11-16 | C198: EH742 | D198: 2543 | X198: EH742 | Y198: MHC /ET 11-16 | Z198: 7683550 | AA198: 2543 | AB198: 2543
A199: 7666419 | B199: BALLON ALEZIO | C199: ER841 | D199: 1286 | X199: ER841 | Y199: BALLON ALEZIO | Z199: 7666419 | AA199: 1286 | AB199: 1286
A200: 7670250 | B200: KIT HYDRAULIQUE | C200: EH722 | D200: 754 | X200: EH722 | Y200: KIT HYDRAULIQUE | Z200: 7670250 | AA200: 754 | AB200: 754
A201: 100015480 | B201: RACCORD D'ADAPTATION FRIGO POUR 4 kW ET 6 kW | C201: EH146 | D201: 64 | X201: EH146 | Y201: RACCORD D'ADAPTATION FRIGO POUR 4 kW ET 6 kW | Z201: 100015480 | AA201: 64 | AB201: 64
A203: OPTIONS OEnoviaPac-C Slim | Z203: OPTIONS OEnoviaPac-C Slim
A204: 7680473 | B204: KIT FLEXIBLES FRIGORIFIQUE | C204: EH725 | D204: 285 | X204: EH725 | Y204: KIT FLEXIBLES FRIGORIFIQUE | Z204: 7680473 | AA204: 285 | AB204: 285
A205: 100011222 | B205: SUPPORT MURALE & PLOTS ANTIVIBRATILES POUR ROE-II AWHP 6-8 | C205: EH95 | D205: 181 | X205: EH95 | Y205: SUPPORT MURALE & PLOTS ANTIVIBRATILES POUR ROE-II AWHP 6-8 | Z205: 100011222 | AA205: 181 | AB205: 181
A206: 100018409 | B206: SUPPORT MURAL AWHP 11à 27 kW | C206: EH250 | D206: 181 | X206: EH250 | Y206: SUPPORT MURAL AWHP 11à 27 kW | Z206: 100018409 | AA206: 181 | AB206: 181
A207: 7694974 | B207: SUPPORT AU SOL CAOUTCHOUC 600MM | C207: EH879 | D207: 119 | X207: EH879 | Y207: SUPPORT AU SOL CAOUTCHOUC 600MM | Z207: 7694974 | AA207: 119 | AB207: 119
A208: 100012533 | B208: SUPPORT POSE AU SOL AWHP | C208: EH112 | D208: 48 | X208: EH112 | Y208: SUPPORT POSE AU SOL AWHP | Z208: 100012533 | AA208: 48 | AB208: 48
A209: 100015476 | B209: LIAISON FRIGORIFIQUE PE 1/2" 1/4" - LG 10 m | C209: EH142 | D209: 255 | X209: EH142 | Y209: LIAISON FRIGORIFIQUE PE 1/2" 1/4" - LG 10 m | Z209: 100015476 | AA209: 255 | AB209: 255
A210: 100012535 | B210: LIAISON FRIGORIFIQUE PE 5/8'' 3/8'' - LG 5m | C210: EH114 | D210: 255 | X210: EH114 | Y210: LIAISON FRIGORIFIQUE PE 5/8'' 3/8'' - LG 5m | Z210: 100012535 | AA210: 255 | AB210: 255
A211: 100012536 | B211: LIAISON FRIGORIFIQUE PE 5/8'' 3/8'' - LG 10m | C211: EH115 | D211: 456 | X211: EH115 | Y211: LIAISON FRIGORIFIQUE PE 5/8'' 3/8'' - LG 10m | Z211: 100012536 | AA211: 456 | AB211: 456
A212: 100012537 | B212: LIAISON FRIGORIFIQUE PE 5/8'' 3/8'' - LG 20m | C212: EH116 | D212: 823 | X212: EH116 | Y212: LIAISON FRIGORIFIQUE PE 5/8'' 3/8'' - LG 20m | Z212: 100012537 | AA212: 823 | AB212: 823
A213: 100008841 | B213: BALLON TAMPON 80L B 80 T | C213: EH85 | D213: 572 | X213: EH85 | Y213: BALLON TAMPON 80L B 80 T | Z213: 100008841 | AA213: 572 | AB213: 572
A214: 100004415 | B214: BALLON TAMPON 160L B 150 T | C214: EH60 | D214: 857 | X214: EH60 | Y214: BALLON TAMPON 160L B 150 T | Z214: 100004415 | AA214: 857 | AB214: 857
A215: 88017017 | B215: SONDE DEPART v3v | C215: AD199 | D215: 85 | X215: AD199 | Y215: SONDE DEPART v3v | Z215: 88017017 | AA215: 85 | AB215: 85
A216: 88017904 | B216: THERMOSTAT AMBIANCE PROGRAMMABLE (FILAIRE) | C216: AD191 | D216: 176 | X216: AD191 | Y216: THERMOSTAT AMBIANCE PROGRAMMABLE (FILAIRE) | Z216: 88017904 | AA216: 176 | AB216: 176
A217: 88017010 | B217: THERMOSTAT D'AMBIANCE PROGRAMMABLE (SANS FILS) | C217: AD192 | D217: 308 | X217: AD192 | Y217: THERMOSTAT D'AMBIANCE PROGRAMMABLE (SANS FILS) | Z217: 88017010 | AA217: 308 | AB217: 308
A218: 7746197 | B218: BOUTEILLE DE DECOUPLAGE 25L | C218: HK147 | D218: 362 | X218: HK147 | Y218: BOUTEILLE DE DECOUPLAGE 25L | Z218: 7746197 | AA218: 362 | AB218: 362
A219: 7746242 | B219: SOUPAPE DIFFERENTIELLE | C219: HK150 | D219: 59 | X219: HK150 | Y219: SOUPAPE DIFFERENTIELLE | Z219: 7746242 | AA219: 59 | AB219: 59
A220: 7746307 | B220: KIT HYDRAULIQUE 2ND CIRCUIT V3V EXTERNE | C220: HK152 | D220: 440 | X220: HK152 | Y220: KIT HYDRAULIQUE 2ND CIRCUIT V3V EXTERNE | Z220: 7746307 | AA220: 440 | AB220: 440
A221: 7624902 | B221: KIT CABLAGE PLANCHER CHAUFFANT DIRECT | C221: HA255 | D221: 40 | X221: HA255 | Y221: KIT CABLAGE PLANCHER CHAUFFANT DIRECT | Z221: 7624902 | AA221: 40 | AB221: 40
A222: 7691374 | B222: THERMOSTAT AMBIANCE OETROSMART (R-BUS) | C222: AD323 | D222: 207 | X222: AD323 | Y222: THERMOSTAT AMBIANCE OETROSMART (R-BUS) | Z222: 7691374 | AA222: 207 | AB222: 207
A223: 100019114 | B223: KIT SONDE HYGRO RAFRAICHISSEMENT | C223: HK27 | D223: 233 | X223: HK27 | Y223: KIT SONDE HYGRO RAFRAICHISSEMENT | Z223: 100019114 | AA223: 233 | AB223: 233
A224: 7636899 | B224: KIT SILENCIEUX MODULE EXTERIEUR | C224: EH572 | D224: 66 | X224: EH572 | Y224: KIT SILENCIEUX MODULE EXTERIEUR | Z224: 7636899 | AA224: 66 | AB224: 66
A225: 7683828 | B225: KIT CARTE REGULATION 2ND CIRCUIT | C225: EH783 | D225: 120 | X225: EH783 | Y225: KIT CARTE REGULATION 2ND CIRCUIT | Z225: 7683828 | AA225: 120 | AB225: 120
A226: 7622433 | B226: KIT SONDE CONDENSATION (0-10V) | C226: HZ64 | D226: 420 | X226: HZ64 | Y226: KIT SONDE CONDENSATION (0-10V) | Z226: 7622433 | AA226: 420 | AB226: 420
A230: 7693006 | B230: PAC-C COLONNE-CONF 4.5MR/EM | D230: 6165 | Y230: PAC-C COLONNE-CONF 4.5MR/EM | Z230: 7693006 | AA230: 6165 | AB230: 6165
A231: 7693008 | B231: PAC-C COLONNE-CONF 6MR/EM | D231: 6568 | Y231: PAC-C COLONNE-CONF 6MR/EM | Z231: 7693008 | AA231: 6568 | AB231: 6568
A232: 7693010 | B232: PAC-C COLONNE-CONF 8MR/EM | D232: 7308 | Y232: PAC-C COLONNE-CONF 8MR/EM | Z232: 7693010 | AA232: 7308 | AB232: 7308
A233: 7693012 | B233: PAC-C COLONNE-CONF 11MR/EM | D233: 9371 | Y233: PAC-C COLONNE-CONF 11MR/EM | Z233: 7693012 | AA233: 9371 | AB233: 9371
A234: 7693014 | B234: PAC-C COLONNE-CONF 11TR/ET | D234: 9702 | Y234: PAC-C COLONNE-CONF 11TR/ET | Z234: 7693014 | AA234: 9702 | AB234: 9702
A235: 7693017 | B235: PAC-C COLONNE-CONF 16MR/EM | D235: 10512 | Y235: PAC-C COLONNE-CONF 16MR/EM | Z235: 7693017 | AA235: 10512 | AB235: 10512
A236: 7693019 | B236: PAC-C COLONNE-CONF 16TR/ET | D236: 10958 | Y236: PAC-C COLONNE-CONF 16TR/ET | Z236: 7693019 | AA236: 10958 | AB236: 10958
... 1678 more rows

Sheet texte (hidden)
A1: 2 | B1: =HLOOKUP(texte!$C$75,Language!$B$3:$J$67,A1,FALSE) -> Détermination et chiffrage des systèmes cascade | H1: PRIX TOTAL DU SYSTEME CASCADE AVEC CHAUDIERES | K1: CASCADES MCA 45 A 115 | P1: Ajout pour MCA 160
A2: 3 | B2: Pour MCA 160 | K2: REFERENCE | L2: DESIGNATION | M2: COLIS | N2: PRIX | P2: Colis | Q2: Désignation | R2: Référence | S2: Prix
A3: 4 | B3: =HLOOKUP(texte!$C$75,Language!$B$3:$J$67,A3,FALSE) -> PRIX DU SYSTEME CASCADE | Q3: MCA 160 | R3: 7674140 | S3: 10073
A4: 5 | B4: =H1 -> PRIX TOTAL DU SYSTEME CASCADE AVEC CHAUDIERES | P4: EH651 | Q4: POMPE UPM XL GRUNDFOS 25-105 H180 | R4: 7637223 | S4: 605.8
A5: 6 | B5: =HLOOKUP(texte!$C$75,Language!$B$3:$J$67,A5,FALSE) -> PRIX TOTAL ACCESSOIRES | L5: REFERENCES DES COMPOSANTS DE BASE DE LA CASCADE : | P5: EH652 | Q5: COLLECTEUR DN100-2 CHAUDIERES MCA 160 FR | R5: 7665725 | S5: 1137.5
A6: 7 | B6: =HLOOKUP(texte!$C$75,Language!$B$3:$J$67,A6,FALSE) -> Version 02/2011 | E6: Ref. France | J6: Ref. France | P6: EH653 | Q6: COLLECTEUR DN100-3 CHAUDIERES MCA 160 FR | R6: 7665728 | S6: 1442
A7: 8 | B7: =HLOOKUP(texte!$C$75,Language!$B$3:$J$67,A7,FALSE) -> Identification de l'étude | E7: 100008701 | F7: =VLOOKUP($E7,'Price List'!$A:$K,1,FALSE) -> 100008701 | G7: =VLOOKUP($F7,'Price List'!$A:$K,3,FALSE) -> HC206 | H7: =VLOOKUP($F7,'Price List'!$A:$K,2,FALSE) -> SONDE DE DÉPART + DOIGT DE GANT | I7: =(1-remise)*VLOOKUP($F7,'Price List'!$A:$K,4,FALSE) -> 167 | J7: 120918 | K7: =VLOOKUP(J7,'Price List'!$1:65510,1,FALSE) -> 120918 | L7: =VLOOKUP($K7,'Price List'!$A:$K,2,FALSE) -> CHASSIS DE MONTAGE GMR 5000 | M7: =VLOOKUP($K7,'Price List'!$A:$K,3,FALSE) -> HC248 | N7: =(1-remise)*VLOOKUP($K7,'Price List'!$A:$K,4,FALSE) -> 100 | P7: HC222 | Q7: BOUTEILLE DE DÉCOUPLAGE DN65 < 350 kW | R7: 114311 | S7: 617.5
A8: 9 | B8: =HLOOKUP(texte!$C$75,Language!$B$3:$J$67,A8,FALSE) -> Référence | E8: 100013027 | F8: =VLOOKUP($E8,'Price List'!$A:$K,1,FALSE) -> 100013027 | G8: =VLOOKUP($F8,'Price List'!$A:$K,3,FALSE) -> HC223 | H8: =VLOOKUP($F8,'Price List'!$A:$K,2,FALSE) -> SONDE DE DÉPART + DOIGT DE GANT-BOUTEILLE < 350 kW | I8: =(1-remise)*VLOOKUP($F8,'Price List'!$A:$K,4,FALSE) -> 141 | J8: 120842 | K8: =VLOOKUP(J8,'Price List'!$1:1048576,1,FALSE) ->  | L8: =VLOOKUP($K8,'Price List'!$A:$K,2,FALSE) ->  | M8: =VLOOKUP($K8,'Price List'!$A:$K,3,FALSE) ->  | N8: =(1-remise)*VLOOKUP($K8,'Price List'!$A:$K,4,FALSE) ->  | P8: HC200 | Q8: BOUTEILLE DE DÉCOUPLAGE DN65 > 350 et < 460 kW | R8: 111712 | S8: 1028.2
A9: 10 | B9: =HLOOKUP(texte!$C$75,Language!$B$3:$J$67,A9,FALSE) -> Données | E9: 88017836 | F9: =VLOOKUP($E9,'Price List'!$A:$K,1,FALSE) -> 88017836 | G9: =VLOOKUP($F9,'Price List'!$A:$K,3,FALSE) -> AD124 | H9: =VLOOKUP($F9,'Price List'!$A:$K,2,FALSE) -> CABLE BUS RX11 LG 1,5 M | I9: =(1-remise)*VLOOKUP($F9,'Price List'!$A:$K,4,FALSE) -> 90 | J9: 120900 | K9: =VLOOKUP(J9,'Price List'!$1:1048576,1,FALSE) -> 120900 | L9: =VLOOKUP($K9,'Price List'!$A:$K,2,FALSE) -> MONTANT-SUPPORT I GMR 5000 | M9: =VLOOKUP($K9,'Price List'!$A:$K,3,FALSE) -> HC250 | N9: =(1-remise)*VLOOKUP($K9,'Price List'!$A:$K,4,FALSE) -> 95 | P9: HC201 | Q9: BOUTEILLE DE DÉCOUPLAGE DN100 > 460 kW | R9: 111714 | S9: 1239.7
A10: 11 | B10: =HLOOKUP(texte!$C$75,Language!$B$3:$J$67,A10,FALSE) -> Puisance de l'installation (kW) | E10: S101614 | F10: =VLOOKUP($E10,'Price List'!$A:$K,1,FALSE) -> S101614 | G10: =VLOOKUP($F10,'Price List'!$A:$K,3,FALSE) -> 0 | H10: =VLOOKUP($F10,'Price List'!$A:$K,2,FALSE) -> POMPE CHAUFFAGE EEI UPM2 25-70 130MM | I10: =(1-remise)*VLOOKUP($F10,'Price List'!$A:$K,4,FALSE) -> 326 | J10: 90777 | K10: 90777 | L10: =VLOOKUP($K10,'Price List'!$A:$K,2,FALSE) -> COLLECTEUR DN65 - 2 CHAUDIERES | M10: =VLOOKUP($K10,'Price List'!$A:$K,3,FALSE) -> HC259 | N10: =(1-remise)*VLOOKUP($K10,'Price List'!$A:$K,4,FALSE) -> 712 | P10: EH654 | Q10: ADAPTATEUR DN100/DN65 | R10: 7633244 | S10: 304.9
A11: 12 | B11: =HLOOKUP(texte!$C$75,Language!$B$3:$J$67,A11,FALSE) -> Intervalle autorisé (+/- … kW) | E11: S101614 | F11: =VLOOKUP($E11,'Price List'!$A:$K,1,FALSE) -> S101614 | G11: =VLOOKUP($F11,'Price List'!$A:$K,3,FALSE) -> 0 | H11: =VLOOKUP($F11,'Price List'!$A:$K,2,FALSE) -> POMPE CHAUFFAGE EEI UPM2 25-70 130MM | I11: =(1-remise)*VLOOKUP($F11,'Price List'!$A:$K,4,FALSE) -> 326 | J11: 90778 | K11: 90778 | L11: =VLOOKUP($K11,'Price List'!$A:$K,2,FALSE) -> COLLECTEUR DN65 - 3 CHAUDIERES | M11: =VLOOKUP($K11,'Price List'!$A:$K,3,FALSE) -> HC260 | N11: =(1-remise)*VLOOKUP($K11,'Price List'!$A:$K,4,FALSE) -> 964 | P11: EH656 | Q11: RAC COLLEC L MCA 160 EH656 | R11: 7622701 | S11: 712.3
A12: 13 | B12: =HLOOKUP(texte!$C$75,Language!$B$3:$J$67,A12,FALSE) -> Nombre de chaudières | E12: 7608398 | F12: =VLOOKUP($E12,'Price List'!$A:$K,1,FALSE) -> 7608398 | G12: =VLOOKUP($F12,'Price List'!$A:$K,3,FALSE) -> 0 | H12: =VLOOKUP($F12,'Price List'!$A:$K,2,FALSE) -> POMPE CHAUFFAGE UPML 25-115 130 MM | I12: =(1-remise)*VLOOKUP($F12,'Price List'!$A:$K,4,FALSE) -> 421 | J12: ="" ->  | K12: ="" ->  | L12: ="" ->  | M12: ="" ->  | N12: ="" -> 
A13: 14 | B13: =HLOOKUP(texte!$C$75,Language!$B$3:$J$67,A13,FALSE) -> Alignement de la cascade | E13: 90777 | F13: =VLOOKUP($E13,'Price List'!$A:$K,1,FALSE) -> 90777 | G13: =VLOOKUP($F13,'Price List'!$A:$K,3,FALSE) -> HC259 | H13: =VLOOKUP($F13,'Price List'!$A:$K,2,FALSE) -> COLLECTEUR DN65 - 2 CHAUDIERES | I13: =(1-remise)*VLOOKUP($F13,'Price List'!$A:$K,4,FALSE) -> 712 | J13: ="" ->  | K13: ="" ->  | L13: ="" ->  | M13: ="" ->  | N13: ="" ->  | P13: HC199 | Q13: BRIDES PLEINES EAU DN100 | R13: 111703 | S13: 189.1
A14: 15 | B14: =HLOOKUP(texte!$C$75,Language!$B$3:$J$67,A14,FALSE) -> Système cascade | E14: 90778 | F14: =VLOOKUP($E14,'Price List'!$A:$K,1,FALSE) -> 90778 | G14: =VLOOKUP($F14,'Price List'!$A:$K,3,FALSE) -> HC260 | H14: =VLOOKUP($F14,'Price List'!$A:$K,2,FALSE) -> COLLECTEUR DN65 - 3 CHAUDIERES | I14: =(1-remise)*VLOOKUP($F14,'Price List'!$A:$K,4,FALSE) -> 964 | J14: ="" ->  | K14: ="" ->  | L14: ="" ->  | M14: ="" ->  | N14: ="" ->  | P14: EH663 | Q14: MONTANT-SUPPORT I MCA 160 | R14: 7612941 | S14: 116.7
A15: 16 | B15: =HLOOKUP(texte!$C$75,Language!$B$3:$J$67,A15,FALSE) -> Attention ! Lorsque vous modifiez une des sélections, il faut toujours revalider les suivantes ! | F15: ="" ->  | G15: ="" ->  | H15: ="" ->  | I15: ="" ->  | J15: ="" ->  | K15: ="" ->  | L15: ="" ->  | M15: ="" ->  | N15: ="" ->  | P15: EH664 | Q15: CHASSIS DE MONTAGE MCA 160 | R15: 7621566 | S15: 193.1
A16: 17 | B16: =HLOOKUP(texte!$C$75,Language!$B$3:$J$67,A16,FALSE) -> Nb chaudières ! | E16: 111712 | F16: =VLOOKUP($E16,'Price List'!$A:$K,1,FALSE) -> 111712 | G16: =VLOOKUP($F16,'Price List'!$A:$K,3,FALSE) -> HC200 | H16: =VLOOKUP($F16,'Price List'!$A:$K,2,FALSE) -> BOUTEILLE DE DÉCOUPLAGE DN65 > 350 et < 460 kW | I16: =(1-remise)*VLOOKUP($F16,'Price List'!$A:$K,4,FALSE) -> 1101 | J16: 111688 | K16: =IF(VLOOKUP($J16,References!$C$3:$L$208,texte!$C$74+1,FALSE)<>0,VLOOKUP($J16,References!$C$3:$L$208,texte!$C$74+1,FALSE),$J16) -> 111688 | L16: =VLOOKUP($K16,'Price List'!$A:$K,2,FALSE) -> RAIL DE MONTAGE MURAL 2 CHAUDIÈRES | M16: =VLOOKUP($K16,'Price List'!$A:$K,3,FALSE) -> HC192 | N16: =(1-remise)*VLOOKUP($K16,'Price List'!$A:$K,4,FALSE) -> 45 | P16: EH670 | Q16: RAIL DE MONTAGE MURAL 2 CHAUDIÈRES MCA 160 | R16: 7637077 | S16: 46.5
A17: 18 | B17: =HLOOKUP(texte!$C$75,Language!$B$3:$J$67,A17,FALSE) -> Solution De Dietrich | E17: 114311 | F17: =VLOOKUP($E17,'Price List'!$A:$K,1,FALSE) -> 114311 | G17: =VLOOKUP($F17,'Price List'!$A:$K,3,FALSE) -> HC222 | H17: =VLOOKUP($F17,'Price List'!$A:$K,2,FALSE) -> BOUTEILLE DE DÉCOUPLAGE DN65 < 350 kW | I17: =(1-remise)*VLOOKUP($F17,'Price List'!$A:$K,4,FALSE) -> 664 | J17: 111689 | K17: =IF(VLOOKUP($J17,References!$C$3:$L$208,texte!$C$74+1,FALSE)<>0,VLOOKUP($J17,References!$C$3:$L$208,texte!$C$74+1,FALSE),$J17) -> 111689 | L17: =VLOOKUP($K17,'Price List'!$A:$K,2,FALSE) -> RAIL DE MONTAGE MURAL 3 CHAUDIÈRES | M17: =VLOOKUP($K17,'Price List'!$A:$K,3,FALSE) -> HC193 | N17: =(1-remise)*VLOOKUP($K17,'Price List'!$A:$K,4,FALSE) -> 54 | P17: EH671 | Q17: RAIL DE MONTAGE MURAL 3 CHAUDIÈRES MCA 160 | R17: 7637088 | S17: 65.2
A18: 19 | B18: =HLOOKUP(texte!$C$75,Language!$B$3:$J$67,A18,FALSE) -> Solution De Dietrich (suite) | E18: ="" ->  | F18: ="" ->  | G18: ="" ->  | H18: ="" ->  | I18: ="" ->  | J18: 111690 | K18: =IF(VLOOKUP($J18,References!$C$3:$L$208,texte!$C$74+1,FALSE)<>0,VLOOKUP($J18,References!$C$3:$L$208,texte!$C$74+1,FALSE),$J18) -> 111690 | L18: =VLOOKUP($K18,'Price List'!$A:$K,2,FALSE) -> RAIL DE MONTAGE MURAL 4 CHAUDIÈRES | M18: =VLOOKUP($K18,'Price List'!$A:$K,3,FALSE) -> HC194 | N18: =(1-remise)*VLOOKUP($K18,'Price List'!$A:$K,4,FALSE) -> 71 | P18: HC256 | Q18: FILTRE GAZ DN65 | R18: S101656 | S18: 714.5
A19: 20 | B19: =HLOOKUP(texte!$C$75,Language!$B$3:$J$67,A19,FALSE) -> Désignation | E19: ="" ->  | F19: ="" ->  | G19: ="" ->  | H19: ="" ->  | I19: ="" ->  | J19: 111708 | K19: =IF(VLOOKUP($J19,References!$C$3:$L$208,texte!$C$74+1,FALSE)<>0,VLOOKUP($J19,References!$C$3:$L$208,texte!$C$74+1,FALSE),$J19) -> 111708 | L19: =VLOOKUP($K19,'Price List'!$A:$K,2,FALSE) -> JEU DE BOUCHONS | M19: =VLOOKUP($K19,'Price List'!$A:$K,3,FALSE) -> HC195 | N19: =(1-remise)*VLOOKUP($K19,'Price List'!$A:$K,4,FALSE) -> 43 | P19: HC209 | Q19: COUDES DN65 | R19: 111788 | S19: 647.7
A20: 21 | B20: =HLOOKUP(texte!$C$75,Language!$B$3:$J$67,A20,FALSE) -> Puissance (kW) | E20: ="" ->  | F20: ="" ->  | G20: ="" ->  | H20: ="" ->  | I20: ="" ->  | J20: ="" ->  | K20: ="" ->  | L20: ="" ->  | M20: ="" ->  | N20: ="" ->  | P20: HC210 | Q20: COUDES DN100 | R20: 111790 | S20: 893.1
A21: 22 | B21: =HLOOKUP(texte!$C$75,Language!$B$3:$J$67,A21,FALSE) -> Nombre de chaudières | E21: ="" ->  | F21: ="" ->  | G21: ="" ->  | H21: ="" ->  | I21: ="" ->  | J21: ="" ->  | K21: ="" ->  | L21: ="" ->  | M21: ="" ->  | N21: ="" -> 
A22: 23 | B22: =HLOOKUP(texte!$C$75,Language!$B$3:$J$67,A22,FALSE) -> Type de chaudières | E22: 111022 | F22: =VLOOKUP($E22,'Price List'!$A:$K,1,FALSE) -> 111022 | G22: =VLOOKUP($F22,'Price List'!$A:$K,3,FALSE) -> HC202 | H22: =VLOOKUP($F22,'Price List'!$A:$K,2,FALSE) -> KIT DE RACCORDEMENT AVANT FR + BE | I22: =(1-remise)*VLOOKUP($F22,'Price List'!$A:$K,4,FALSE) -> 650 | J22: 111701 | K22: =IF(VLOOKUP($J22,References!$C$3:$L$208,texte!$C$74+1,FALSE)<>0,VLOOKUP($J22,References!$C$3:$L$208,texte!$C$74+1,FALSE),$J22) -> 111701 | L22: =VLOOKUP($K22,'Price List'!$A:$K,2,FALSE) -> BRIDES PLEINES EAU DN65 | M22: =VLOOKUP($K22,'Price List'!$A:$K,3,FALSE) -> HC198 | N22: =(1-remise)*VLOOKUP($K22,'Price List'!$A:$K,4,FALSE) -> 160 | P22: EH647 | Q22: ISOLATION COLLECTEUR MCA 160 | R22: 7613401 | S22: 89.2
A23: 24 | B23: =HLOOKUP(texte!$C$75,Language!$B$3:$J$67,A23,FALSE) -> MCA 45 | C23: =(1-remise)*VLOOKUP($D23,'Price List'!$1:$1048576,4,FALSE) ->  | D23: 100016195 | E23: ="" ->  | F23: ="" ->  | G23: ="" ->  | H23: ="" ->  | I23: ="" ->  | J23: 112632 | K23: 112632 | L23: =VLOOKUP($K23,'Price List'!$A:$K,2,FALSE) -> JEU DE CONTRE-BRIDES À SOUDER DN65 | M23: =VLOOKUP($K23,'Price List'!$A:$K,3,FALSE) -> HC217 | N23: =(1-remise)*VLOOKUP($K23,'Price List'!$A:$K,4,FALSE) -> 165 | P23: EH648 | Q23: ISOLATION RACCORD MCA 160 | R23: 7611804 | S23: 86.6
A24: 25 | B24: =HLOOKUP(texte!$C$75,Language!$B$3:$J$67,A24,FALSE) -> MCA 65 | C24: =(1-remise)*VLOOKUP($D24,'Price List'!$1:$1048576,4,FALSE) ->  | D24: 100016196 | E24: ="" ->  | F24: ="" ->  | G24: ="" ->  | H24: ="" ->  | I24: ="" ->  | J24: 114311 | K24: =IF(VLOOKUP($J24,References!$C$3:$L$208,texte!$C$74+1,FALSE)<>0,VLOOKUP($J24,References!$C$3:$L$208,texte!$C$74+1,FALSE),$J24) -> 114311 | L24: =VLOOKUP($K24,'Price List'!$A:$K,2,FALSE) -> BOUTEILLE DE DÉCOUPLAGE DN65 < 350 kW | M24: =VLOOKUP($K24,'Price List'!$A:$K,3,FALSE) -> HC222 | N24: =(1-remise)*VLOOKUP($K24,'Price List'!$A:$K,4,FALSE) -> 664 | P24: EH649 | Q24: PLAQ ISOLATION AR | R24: 7631858 | S24: 79.8
A25: 26 | B25: =HLOOKUP(texte!$C$75,Language!$B$3:$J$67,A25,FALSE) -> MCA 90 | C25: =(1-remise)*VLOOKUP($D25,'Price List'!$1:$1048576,4,FALSE) ->  | D25: 100016197 | E25: ="" ->  | F25: ="" ->  | G25: ="" ->  | H25: ="" ->  | I25: ="" ->  | J25: 111712 | K25: =IF(VLOOKUP($J25,References!$C$3:$L$208,texte!$C$74+1,FALSE)<>0,VLOOKUP($J25,References!$C$3:$L$208,texte!$C$74+1,FALSE),$J25) -> 111712 | L25: =VLOOKUP($K25,'Price List'!$A:$K,2,FALSE) -> BOUTEILLE DE DÉCOUPLAGE DN65 > 350 et < 460 kW | M25: =VLOOKUP($K25,'Price List'!$A:$K,3,FALSE) -> HC200 | N25: =(1-remise)*VLOOKUP($K25,'Price List'!$A:$K,4,FALSE) -> 1101 | P25: HC215 | Q25: ISOLATION BOUTEILLE DE DÉCOUPLAGE | R25: 111067 | S25: 237.6
A26: 27 | B26: =HLOOKUP(texte!$C$75,Language!$B$3:$J$67,A26,FALSE) -> MCA 115 | C26: =(1-remise)*VLOOKUP($D26,'Price List'!$1:$1048576,4,FALSE) ->  | D26: 100016198 | E26: 111708 | F26: =VLOOKUP($E26,'Price List'!$A:$K,1,FALSE) -> 111708 | G26: =VLOOKUP($F26,'Price List'!$A:$K,3,FALSE) -> HC195 | H26: =VLOOKUP($F26,'Price List'!$A:$K,2,FALSE) -> JEU DE BOUCHONS | I26: =(1-remise)*VLOOKUP($F26,'Price List'!$A:$K,4,FALSE) -> 43 | J26: ="" ->  | K26: ="" ->  | L26: ="" ->  | M26: ="" ->  | N26: ="" ->  | P26: EH650 | Q26: ISOLATION ADAPTATEUR 100/65 | R26: 7622201 | S26: 46.7
A27: 28 | B27: =HLOOKUP(texte!$C$75,Language!$B$3:$J$67,A27,FALSE) -> Prix système cascade seul | C27: =C31-C23 ->  | D27: diférence iSystem/Inicontol | E27: ="" ->  | F27: ="" ->  | G27: ="" ->  | H27: ="" ->  | I27: ="" ->  | J27: 111022 | K27: =IF(VLOOKUP($J27,References!$C$3:$L$208,texte!$C$74+1,FALSE)<>0,VLOOKUP($J27,References!$C$3:$L$208,texte!$C$74+1,FALSE),$J27) -> 111022 | L27: =VLOOKUP($K27,'Price List'!$A:$K,2,FALSE) -> KIT DE RACCORDEMENT AVANT FR + BE | M27: =VLOOKUP($K27,'Price List'!$A:$K,3,FALSE) -> HC202 | N27: =(1-remise)*VLOOKUP($K27,'Price List'!$A:$K,4,FALSE) -> 650 | P27: HC224 | Q27: ISOLATION BOUTEILLE DE DÉCOUPLAGE < 350 kW | R27: 115269 | S27: 35.1
A28: 29 | B28: Prix du système cascade avec chaudières | E28: 111701 | F28: =VLOOKUP($E28,'Price List'!$A:$K,1,FALSE) -> 111701 | G28: =VLOOKUP($F28,'Price List'!$A:$K,3,FALSE) -> HC198 | H28: =VLOOKUP($F28,'Price List'!$A:$K,2,FALSE) -> BRIDES PLEINES EAU DN65 | I28: =(1-remise)*VLOOKUP($F28,'Price List'!$A:$K,4,FALSE) -> 160 | J28: ="" ->  | K28: ="" ->  | L28: ="" ->  | M28: ="" ->  | N28: ="" ->  | P28: HC216 | Q28: ISOLATION COUDES 90° | R28: 111167 | S28: 100
A29: 30 | B29: =HLOOKUP(texte!$C$75,Language!$B$3:$J$67,A29,FALSE) -> en € | E29: ="" ->  | F29: ="" ->  | G29: ="" ->  | H29: ="" ->  | I29: ="" ->  | J29: ="" ->  | K29: ="" ->  | L29: ="" ->  | M29: ="" ->  | N29: ="" ->  | P29: HC219 | Q29: PIED RÉGLABLE | R29: 111807 | S29: 4.2
A30: 31 | B30: =HLOOKUP(texte!$C$75,Language!$B$3:$J$67,A30,FALSE) -> Solution sélectionnée | E30: ="" ->  | F30: ="" ->  | G30: ="" ->  | H30: ="" ->  | I30: ="" ->  | J30: S101614 | K30: =IF(VLOOKUP($J30,References!$C$3:$L$208,texte!$C$74+1,FALSE)<>0,VLOOKUP($J30,References!$C$3:$L$208,texte!$C$74+1,FALSE),$J30) -> S101614 | L30: =VLOOKUP($K30,'Price List'!$A:$K,2,FALSE) -> POMPE CHAUFFAGE EEI UPM2 25-70 130MM | M30: =VLOOKUP($K30,'Price List'!$A:$K,3,FALSE) -> 0 | N30: =(1-remise)*VLOOKUP($K30,'Price List'!$A:$K,4,FALSE) -> 326 | P30: EH669 | Q30: JEU DE CONTRE BRIDE A SOUDER DN65 | R30: 7638518 | S30: 139.6
A31: 32 | B31: =HLOOKUP(texte!$C$75,Language!$B$3:$J$67,A31,FALSE) -> Qtté | C31: =(1-remise)*VLOOKUP($D31,'Price List'!$1:$1048576,4,FALSE) ->  | D31: 100016199 | E31: 120842 | F31: =VLOOKUP($E31,'Price List'!$A:$K,1,FALSE) ->  | G31: =VLOOKUP($F31,'Price List'!$A:$K,3,FALSE) ->  | H31: =VLOOKUP($F31,'Price List'!$A:$K,2,FALSE) ->  | I31: =(1-remise)*VLOOKUP($F31,'Price List'!$A:$K,4,FALSE) ->  | J31: S101614 | K31: =IF(VLOOKUP($J31,References!$C$3:$L$208,texte!$C$74+1,FALSE)<>0,VLOOKUP($J31,References!$C$3:$L$208,texte!$C$74+1,FALSE),$J31) -> S101614 | L31: =VLOOKUP($K31,'Price List'!$A:$K,2,FALSE) -> POMPE CHAUFFAGE EEI UPM2 25-70 130MM | M31: =VLOOKUP($K31,'Price List'!$A:$K,3,FALSE) -> 0 | N31: =(1-remise)*VLOOKUP($K31,'Price List'!$A:$K,4,FALSE) -> 326 | P31: HC218 | Q31: JEU DE CONTRE-BRIDES À SOUDER DN100 | R31: 112633 | S31: 170.8
A32: 33 | B32: =HLOOKUP(texte!$C$75,Language!$B$3:$J$67,A32,FALSE) -> Prix unitaire | E32: 120900 | F32: =VLOOKUP($E32,'Price List'!$A:$K,1,FALSE) -> 120900 | G32: =VLOOKUP($F32,'Price List'!$A:$K,3,FALSE) -> HC250 | H32: =VLOOKUP($F32,'Price List'!$A:$K,2,FALSE) -> MONTANT-SUPPORT I GMR 5000 | I32: =(1-remise)*VLOOKUP($F32,'Price List'!$A:$K,4,FALSE) -> 95 | J32: 7608398 | K32: =IF(VLOOKUP($J32,References!$C$3:$L$208,texte!$C$74+1,FALSE)<>0,VLOOKUP($J32,References!$C$3:$L$208,texte!$C$74+1,FALSE),$J32) -> 7608398 | L32: =VLOOKUP($K32,'Price List'!$A:$K,2,FALSE) -> POMPE CHAUFFAGE UPML 25-115 130 MM | M32: =VLOOKUP($K32,'Price List'!$A:$K,3,FALSE) -> 0 | N32: =(1-remise)*VLOOKUP($K32,'Price List'!$A:$K,4,FALSE) -> 421 | P32: HC195 | Q32: JEU DE BOUCHONS | R32: 111708 | S32: 40.5
A33: 34 | B33: =HLOOKUP(texte!$C$75,Language!$B$3:$J$67,A33,FALSE) -> Prix total | E33: 120918 | F33: =VLOOKUP($E33,'Price List'!$A:$K,1,FALSE) -> 120918 | G33: =VLOOKUP($F33,'Price List'!$A:$K,3,FALSE) -> HC248 | H33: =VLOOKUP($F33,'Price List'!$A:$K,2,FALSE) -> CHASSIS DE MONTAGE GMR 5000 | I33: =(1-remise)*VLOOKUP($F33,'Price List'!$A:$K,4,FALSE) -> 100 | J33: 100013027 | K33: =IF(VLOOKUP($J33,References!$C$3:$L$208,texte!$C$74+1,FALSE)<>0,VLOOKUP($J33,References!$C$3:$L$208,texte!$C$74+1,FALSE),$J33) -> 100013027 | L33: =VLOOKUP($K33,'Price List'!$A:$K,2,FALSE) -> SONDE DE DÉPART + DOIGT DE GANT-BOUTEILLE < 350 kW | M33: =VLOOKUP($K33,'Price List'!$A:$K,3,FALSE) -> HC223 | N33: =(1-remise)*VLOOKUP($K33,'Price List'!$A:$K,4,FALSE) -> 141
A34: 35 | B34: =HLOOKUP(texte!$C$75,Language!$B$3:$J$67,A34,FALSE) -> Référence | E34: 111688 | F34: =VLOOKUP($E34,'Price List'!$A:$K,1,FALSE) -> 111688 | G34: =VLOOKUP($F34,'Price List'!$A:$K,3,FALSE) -> HC192 | H34: =VLOOKUP($F34,'Price List'!$A:$K,2,FALSE) -> RAIL DE MONTAGE MURAL 2 CHAUDIÈRES | I34: =(1-remise)*VLOOKUP($F34,'Price List'!$A:$K,4,FALSE) -> 45 | J34: 100008701 | K34: =IF(VLOOKUP($J34,References!$C$3:$L$208,texte!$C$74+1,FALSE)<>0,VLOOKUP($J34,References!$C$3:$L$208,texte!$C$74+1,FALSE),$J34) -> 100008701 | L34: =VLOOKUP($K34,'Price List'!$A:$K,2,FALSE) -> SONDE DE DÉPART + DOIGT DE GANT | M34: =VLOOKUP($K34,'Price List'!$A:$K,3,FALSE) -> HC206 | N34: =(1-remise)*VLOOKUP($K34,'Price List'!$A:$K,4,FALSE) -> 167 | P34: HC223 | Q34: SONDE DE DÉPART + DOIGT DE GANT-BOUTEILLE < 350 kW | R34: 100013027 | S34: 132.3
